Workbook

Sheet Assumptions ->

Sheet Mortality
A1: Mortality Assumptions
A2: Rate per 1000
A4: Age
B6: AM | C6: AF | D6: PM | E6: PF
A7: 0 | B7: 0.4226863966 | C7: 0.3390628553 | D7: 0.6 | E7: 0.33
A8: 1 | B8: 0.4226863966 | C8: 0.3390628553 | D8: 0.6 | E8: 0.33
A9: 2 | B9: 0.2874353377 | C9: 0.2075381926 | D9: 0.54 | E9: 0.332
A10: 3 | B10: 0.2249449608 | C10: 0.1592152112 | D10: 0.49 | E10: 0.334
A11: 4 | B11: 0.1581647666 | C11: 0.138854055 | D11: 0.46 | E11: 0.336
A12: 5 | B12: 0.1555405906 | C12: 0.1255722018 | D12: 0.43 | E12: 0.338
A13: 6 | B13: 0.1384561474 | C13: 0.1129581433 | D13: 0.41 | E13: 0.341
A14: 7 | B14: 0.1243642764 | C14: 0.1036224785 | D14: 0.4 | E14: 0.344
A15: 8 | B15: 0.1104106268 | C15: 0.09669153224 | D15: 0.39 | E15: 0.348
A16: 9 | B16: 0.09820367268 | C16: 0.09237877384 | D16: 0.38 | E16: 0.351
A17: 10 | B17: 0.09397680697 | C17: 0.09201855573 | D17: 0.37 | E17: 0.355
A18: 11 | B18: 0.1078612477 | C18: 0.09789587784 | D18: 0.37 | E18: 0.36
A19: 12 | B19: 0.1515570475 | C19: 0.1126942807 | D19: 0.35 | E19: 0.365
A20: 13 | B20: 0.2318950574 | C20: 0.1379369496 | D20: 0.426 | E20: 0.371
A21: 14 | B21: 0.3413899685 | C21: 0.1716629922 | D21: 0.518 | E21: 0.377
A22: 15 | B22: 0.4613281344 | C22: 0.2099885023 | D22: 0.598 | E22: 0.385
A23: 16 | B23: 0.5841611419 | C23: 0.250209705 | D23: 0.668 | E23: 0.392
A24: 17 | B24: 0.7175786886 | C24: 0.2925501612 | D24: 0.73 | E24: 0.401
A25: 18 | B25: 0.8585978649 | C25: 0.3356623056 | D25: 0.754 | E25: 0.411
A26: 19 | B26: 1.001486788 | C26: 0.3790347255 | D26: 0.757 | E26: 0.422
A27: 20 | B27: 1.147071132 | C27: 0.4244505544 | D27: 0.757 | E27: 0.434
A28: 21 | B28: 1.285942388 | C28: 0.4705753527 | D28: 0.772 | E28: 0.448
A29: 22 | B29: 1.402832917 | C29: 0.5130990176 | D29: 0.82 | E29: 0.463

Sheet Myopia Raw
A1: Cumulative odds | B1: -3 | C1: -4 | D1: -5 | E1: -6 | J1: Risk Factors
A2: 6 | B2: 0.03049080358 | C2: 0.01659227634 | D2: 0.009928667823 | E2: 0.006049548684 | O2: Exposure | R2: Country Factor
A3: 9 | B3: 0.1043101447 | C3: 0.05258887742 | D3: 0.02506823732 | E3: 0.01234305171 | J3: Sex | K3: OR | L3: Base Exposure | M3: Base Adj Factor | O3: Palȍmϊnϊa | P3: Ambernϊa | R3: Palȍmϊnϊa | S3: Ambernϊa
A4: 12 | B4: 0.2426936756 | C4: 0.1224162011 | D4: 0.06134442684 | E4: 0.02919894986 | J4: Male | K4: =Myopia!U17 -> 1 | L4: 0.539
A5: 15 | B5: 0.325307734 | C5: 0.1739011177 | D5: 0.09358630382 | E5: 0.05030983496 | J5: Female | K5: =Myopia!U18 -> 1 | L5: 0.461
A6: 18 | B6: 0.3451369216 | C6: 0.1816673579 | D6: 0.1017014695 | E6: 0.05206794682 | M6: =SUMPRODUCT(K4:K5,L4:L5) -> 1
J7: Income / GDP | K7: OR | L7: Base Exposure
J8: High | K8: =Myopia!L17 -> 1 | L8: 0.1189 | O8: 0 | P8: 1
J9: Low | K9: =Myopia!L18 -> 0.9 | L9: 0.882 | O9: 1 | P9: 0
M10: =SUMPRODUCT(K8:K9,L8:L9) -> 0.9127 | R10: =SUMPRODUCT($K8:$K9,O8:O9) -> 0.9 | S10: =SUMPRODUCT($K8:$K9,P8:P9) -> 1
A11: -5.0 D | B11: Cumulative odds | E11: Baseline | J11: Exercise | K11: OR | L11: Base Exposure
A12: 2 | B12: 0 | E12: =B12/$M$24 -> 0 | J12: No | K12: =Myopia!L21 -> 1 | L12: 0.618 | O12: =1-O13 -> 0.668 | P12: =1-P13 -> 0.1668
A13: 3 | B13: =B14-C16 -> 0.002482166956 | E13: =B13/$M$24 -> 0.001244466124 | J13: Yes | K13: =Myopia!L22 -> 0.9 | L13: 0.382 | O13: 0.332 | P13: 0.8332
A14: 4 | B14: =B15-C16 -> 0.004964333912 | E14: 0.002488932249 | M14: =SUMPRODUCT(K12:K13,L12:L13) -> 0.9618 | R14: =SUMPRODUCT($K12:$K13,O12:O13) -> 0.9668 | S14: =SUMPRODUCT($K12:$K13,P12:P13) -> 0.91668
A15: 5 | B15: =B16-C16 -> 0.007446500868 | E15: =B15/$M$24 -> 0.003733398373 | J15: Number of myopic parents | K15: OR | L15: Base Exposure
A16: 6 | B16: =D2 -> 0.009928667823 | C16: =(B16-B12)/4 -> 0.002482166956 | E16: 0.004977864497 | J16: 0 | K16: =Myopia!U21 -> 1 | L16: 0.267
A17: 7 | B17: =B16+C19 -> 0.01497519099 | E17: =B17/$M$24 -> 0.007508003379 | J17: 1 | K17: =Myopia!U22 -> 2.08 | L17: 0.483
A18: 8 | B18: =B17+C19 -> 0.02002171416 | E18: =B18/$M$24 -> 0.01003814226 | J18: 2 | K18: =Myopia!U23 -> 5.07 | L18: 0.25
A19: 9 | B19: =D3 -> 0.02506823732 | C19: =(B19-B16)/3 -> 0.005046523166 | E19: 0.01256828114 | M19: =SUMPRODUCT(K17:K18,L17:L18) -> 2.27214
A20: 10 | B20: =B19+C22 -> 0.03716030049 | E20: 0.01863079154
A21: 11 | B21: =B20+C22 -> 0.04925236366 | E21: =B21/$M$24 -> 0.02469330195
A22: 12 | B22: =D4 -> 0.06134442684 | C22: =(B22-B19)/3 -> 0.01209206317 | E22: =B22/$M$24 -> 0.03075581235
A23: 13 | B23: =B22+C25 -> 0.07209171916 | E23: 0.0361441047
A24: 14 | B24: =B23+C25 -> 0.08283901149 | E24: 0.04153239706 | L24: Total | M24: =M6*M10*M14*M19 -> 1.994563699
A25: 15 | B25: =D5 -> 0.09358630382 | C25: =(B25-B22)/3 -> 0.01074729233 | E25: 0.04692068941
A26: 16 | B26: =B25+C28 -> 0.09629135903 | E26: 0.04827690341
A27: 17 | B27: =B26+C28 -> 0.09899641424 | E27: 0.04963311741
A28: 18 | B28: =D6 -> 0.1017014695 | C28: =(B28-B25)/3 -> 0.00270505521 | E28: 0.05098933141
A29: 19 | B29: =B28+C28 -> 0.1044065247 | E29: 0.05234554541
A30: 20 | B30: =B29+C28 -> 0.1071115799 | E30: 0.05370175941

Sheet Myopia
A1: Myopia Assumptions
K3: Country Factors | T3: Underwriting Factor
B5: -5.0 D | L5: Total Adjustment | U5: Input | V5: Adjustment
A6: Age | B6: Baseline Odds | D6: Country Factor | E6: Underwriting Factor | F6: Adjusted Odds | G6: Cumulative Prob | H6: Rate per 1000 | J6: P | K6: Palȍmϊnϊa | L6: =P17*P21*P31 -> 0.8131675542 | T6: Sex | U6: =Pol_Sex -> F | V6: =VLOOKUP(U6,T17:U18,2,0) -> 1
A7: 0 | B7: ='Myopia Raw'!E12 -> 0 | D7: =M10 -> 0.8131675542 | E7: =V10 -> 6.1347 | F7: =B7*D7*E7 -> 0 | G7: =F7/(1+F7) -> 0 | J7: A | K7: Ambernϊa | L7: =Q17*Q21*Q31 -> 0.8378868853 | T7: Num of Myopic Parents | U7: =Parameters!C7 -> 2 | V7: =VLOOKUP(U7,T21:U23,2,0) -> 5.07
A8: 1 | B8: 0 | D8: =D7 -> 0.8131675542 | E8: =E7 -> 6.1347 | F8: =B8*D8*E8 -> 0 | G8: =F8/(1+F8) -> 0 | H8: =(G8-G7)/(1-G7)*1000 -> 0 | T8: Num of High Educated Parents | U8: =Parameters!C8 -> 2 | V8: =VLOOKUP(U8,T26:U28,2,0) -> 1.21
A9: 2 | B9: ='Myopia Raw'!E12 -> 0 | D9: =D8 -> 0.8131675542 | E9: =E8 -> 6.1347 | F9: 0 | G9: 0 | H9: =(G9-G8)/(1-G8)*1000 -> 0
A10: 3 | B10: ='Myopia Raw'!E13 -> 0.001244466124 | D10: 0.8131675542 | E10: 6.1347 | F10: 0.006208067788 | G10: 0.006169765466 | H10: 6.169765466 | K10: Country | L10: =Pol_Country -> P | M10: =VLOOKUP(L10, J6:L7, 3, 0) -> 0.8131675542 | T10: Total Adjustment | V10: =PRODUCT(V6:V9) -> 6.1347
A11: 4 | B11: ='Myopia Raw'!E14 -> 0.002488932249 | D11: 0.8131675542 | E11: 6.1347 | F11: 0.01241613558 | G11: 0.01226386576 | H11: 6.131932878
A12: 5 | B12: ='Myopia Raw'!E15 -> 0.003733398373 | D12: 0.8131675542 | E12: 6.1347 | F12: 0.01862420337 | G12: 0.01828368431 | H12: 6.094561437
A13: 6 | B13: ='Myopia Raw'!E16 -> 0.004977864497 | D13: 0.8131675542 | E13: 6.1347 | F13: 0.02483227115 | G13: 0.02423057104 | H13: 6.057642761
A14: 7 | B14: ='Myopia Raw'!E17 -> 0.007508003379 | D14: 0.8131675542 | E14: 6.1347 | F14: 0.03745396763 | G14: 0.03610181155 | H14: 12.16603037
A15: 8 | B15: ='Myopia Raw'!E18 -> 0.01003814226 | D15: 0.8131675542 | E15: 6.1347 | F15: 0.0500756641 | G15: 0.04768767224 | H15: 12.01979715 | M15: Exposure | P15: Factor
A16: 9 | B16: ='Myopia Raw'!E19 -> 0.01256828114 | D16: 0.8131675542 | E16: 6.1347 | F16: 0.06269736057 | G16: 0.05899832153 | H16: 11.87703757 | K16: Income / GDP | L16: OR | M16: Palȍmϊnϊa | N16: Ambernϊa | P16: Palȍmϊnϊa | Q16: Ambernϊa | T16: Sex | U16: OR
A17: 10 | B17: ='Myopia Raw'!E20 -> 0.01863079154 | D17: 0.8131675542 | E17: 6.1347 | F17: 0.09294043012 | G17: 0.08503705011 | H17: 27.67128813 | K17: High | L17: 1 | M17: 0 | N17: 1 | P17: =SUMPRODUCT($L17:$L18,M17:M18) -> 0.9 | Q17: =SUMPRODUCT($L17:$L18,N17:N18) -> 1 | T17: M | U17: 1
A18: 11 | B18: ='Myopia Raw'!E21 -> 0.02469330195 | D18: 0.8131675542 | E18: 6.1347 | F18: 0.1231834997 | G18: 0.1096735304 | H18: 26.92620534 | K18: Low | L18: 0.9 | M18: 1 | N18: 0 | T18: F | U18: 1
A19: 12 | B19: ='Myopia Raw'!E22 -> 0.03075581235 | D19: 0.8131675542 | E19: 6.1347 | F19: 0.1534265692 | G19: 0.133018064 | H19: 26.22019498
A20: 13 | B20: ='Myopia Raw'!E23 -> 0.0361441047 | D20: 0.8131675542 | E20: 6.1347 | F20: 0.1803062757 | G20: 0.1527622783 | H20: 22.77350132 | K20: Exercise | L20: OR | M20: Palȍmϊnϊa | N20: Ambernϊa | P20: Palȍmϊnϊa | Q20: Ambernϊa | T20: Num of Myopic Parents | U20: OR
A21: 14 | B21: ='Myopia Raw'!E24 -> 0.04153239706 | D21: 0.8131675542 | E21: 6.1347 | F21: 0.2071859823 | G21: 0.1716272267 | H21: 22.26641704 | K21: No | L21: 1 | M21: 0.668 | N21: 0.1668 | P21: =SUMPRODUCT($L21:$L22,M21:M22) -> 0.9668 | Q21: =SUMPRODUCT($L21:$L22,N21:N22) -> 0.91668 | T21: 0 | U21: 1
A22: 15 | B22: ='Myopia Raw'!E25 -> 0.04692068941 | D22: 0.8131675542 | E22: 6.1347 | F22: 0.2340656888 | G22: 0.1896703643 | H22: 21.78142279 | K22: Yes | L22: 0.9 | M22: 0.332 | N22: 0.8332 | T22: 1 | U22: 2.08
A23: 16 | B23: ='Myopia Raw'!E26 -> 0.04827690341 | D23: 0.8131675542 | E23: 6.1347 | F23: 0.2408312152 | G23: 0.1940886176 | H23: 5.452414749 | T23: 2 | U23: 5.07
A24: 17 | B24: ='Myopia Raw'!E27 -> 0.04963311741 | D24: 0.8131675542 | E24: 6.1347 | F24: 0.2475967416 | G24: 0.1984589518 | H24: 5.422847138
A25: 18 | B25: ='Myopia Raw'!E28 -> 0.05098933141 | D25: 0.8131675542 | E25: 6.1347 | F25: 0.254362268 | G25: 0.2027821424 | H25: =(G25-G24)/(1-G24)*1000 -> 5.393598478 | T25: Num of High Educated Parents | U25: OR
A26: 19 | B26: ='Myopia Raw'!E29 -> 0.05234554541 | D26: 0.8131675542 | E26: 6.1347 | F26: 0.2611277945 | G26: 0.207058948 | H26: 5.364663636 | T26: 0 | U26: 1
A27: 20 | B27: ='Myopia Raw'!E30 -> 0.05370175941 | D27: 0.8131675542 | E27: 6.1347 | F27: 0.2678933209 | G27: 0.2112901113 | H27: =(G27-G26)/(1-G26)*1000 -> 5.336037589 | T27: 1 | U27: 1.1
K28: Baseline Adjustment before Individual Risk Factors | T28: 2 | U28: =U27^2 -> 1.21
K30: Num of High Educated Parents | L30: OR | M30: Palȍmϊnϊa | N30: Ambernϊa | P30: Palȍmϊnϊa | Q30: Ambernϊa
K31: 0 | L31: 1 | M31: 0.666486788 | N31: 0.5522005241 | P31: =1/SUMPRODUCT($L31:$L33,M31:M33) -> 0.9345464467 | Q31: =1/SUMPRODUCT($L31:$L33,N31:N33) -> 0.9140451251
K32: 1 | L32: 1.1 | M32: 0 | N32: 0
K33: 2 | L33: =L32^2 -> 1.21 | M33: 0.333513212 | N33: 0.4477994759

Sheet Myopia_(Reserve)
A1: Myopia Assumptions
K3: Country Factors | T3: Underwriting Factor
A4: Age
B5: -5.0 D | L5: Total Adjustment | U5: Input | V5: Adjustment
B6: Baseline Odds | D6: Country Factor | E6: Underwriting Factor | F6: Adjusted Odds | G6: Cumulative Prob | H6: Rate per 1000 | J6: P | K6: Palȍmϊnϊa | L6: =P17*P21*P31 -> 0.8131675542 | T6: Sex | U6: =Pol_Sex -> F | V6: =VLOOKUP(U6,T17:U18,2,0) -> 1
A7: 0 | B7: 0 | D7: =M10 -> 0.8131675542 | E7: =V10 -> 6.1347 | F7: =B7*D7*E7 -> 0 | G7: =F7/(1+F7) -> 0 | J7: A | K7: Ambernϊa | L7: =Q17*Q21*Q31 -> 0.8378868853 | T7: Num of Myopic Parents | U7: =Parameters!C7 -> 2 | V7: =VLOOKUP(U7,T21:U23,2,0) -> 5.07
A8: 1 | B8: 0 | D8: =D7 -> 0.8131675542 | E8: =E7 -> 6.1347 | F8: =B8*D8*E8 -> 0 | G8: =F8/(1+F8) -> 0 | H8: =(G8-G7)/(1-G7)*1000 -> 0 | T8: Num of High Educated Parents | U8: =Parameters!C8 -> 2 | V8: =VLOOKUP(U8,T26:U28,2,0) -> 1.21
A9: 2 | B9: 0 | D9: =D8 -> 0.8131675542 | E9: 6.1347 | F9: 0 | G9: 0 | H9: =(G9-G8)/(1-G8)*1000 -> 0
A10: 3 | B10: 0.001244466124 | D10: 0.8131675542 | E10: 6.1347 | F10: 0.006208067788 | G10: 0.006169765466 | H10: 6.169765466 | K10: Country | L10: =Pol_Country -> P | M10: =VLOOKUP(L10, J6:L7, 3, 0) -> 0.8131675542 | T10: Total Adjustment | V10: =PRODUCT(V6:V9) -> 6.1347
A11: 4 | B11: 0.002488932249 | D11: 0.8131675542 | E11: 6.1347 | F11: 0.01241613558 | G11: 0.01226386576 | H11: 6.131932878
A12: 5 | B12: 0.003733398373 | D12: 0.8131675542 | E12: 6.1347 | F12: 0.01862420337 | G12: 0.01828368431 | H12: 6.094561437
A13: 6 | B13: 0.004977864497 | D13: 0.8131675542 | E13: 6.1347 | F13: 0.02483227115 | G13: 0.02423057104 | H13: 6.057642761
A14: 7 | B14: 0.007508003379 | D14: 0.8131675542 | E14: 6.1347 | F14: 0.03745396763 | G14: 0.03610181155 | H14: 12.16603037
A15: 8 | B15: 0.01003814226 | D15: 0.8131675542 | E15: 6.1347 | F15: 0.0500756641 | G15: 0.04768767224 | H15: 12.01979715 | M15: Exposure | P15: Factor
A16: 9 | B16: 0.01256828114 | D16: 0.8131675542 | E16: 6.1347 | F16: 0.06269736057 | G16: 0.05899832153 | H16: 11.87703757 | K16: Income / GDP | L16: OR | M16: Palȍmϊnϊa | N16: Ambernϊa | P16: Palȍmϊnϊa | Q16: Ambernϊa | T16: Sex | U16: OR
A17: 10 | B17: 0.01863079154 | D17: 0.8131675542 | E17: 6.1347 | F17: 0.09294043012 | G17: 0.08503705011 | H17: 27.67128813 | K17: High | L17: 1 | M17: 0 | N17: 1 | P17: =SUMPRODUCT($L17:$L18,M17:M18) -> 0.9 | Q17: =SUMPRODUCT($L17:$L18,N17:N18) -> 1 | T17: M | U17: 1
A18: 11 | B18: 0.02469330195 | D18: 0.8131675542 | E18: 6.1347 | F18: 0.1231834997 | G18: 0.1096735304 | H18: 26.92620534 | K18: Low | L18: 0.9 | M18: 1 | N18: 0 | T18: F | U18: 1
A19: 12 | B19: 0.03075581235 | D19: 0.8131675542 | E19: 6.1347 | F19: 0.1534265692 | G19: 0.133018064 | H19: 26.22019498
A20: 13 | B20: 0.0361441047 | D20: 0.8131675542 | E20: 6.1347 | F20: 0.1803062757 | G20: 0.1527622783 | H20: 22.77350132 | K20: Exercise | L20: OR | M20: Palȍmϊnϊa | N20: Ambernϊa | P20: Palȍmϊnϊa | Q20: Ambernϊa | T20: Num of Myopic Parents | U20: OR
A21: 14 | B21: 0.04153239706 | D21: 0.8131675542 | E21: 6.1347 | F21: 0.2071859823 | G21: 0.1716272267 | H21: 22.26641704 | K21: No | L21: 1 | M21: 0.668 | N21: 0.1668 | P21: =SUMPRODUCT($L21:$L22,M21:M22) -> 0.9668 | Q21: =SUMPRODUCT($L21:$L22,N21:N22) -> 0.91668 | T21: 0 | U21: 1
A22: 15 | B22: 0.04692068941 | D22: 0.8131675542 | E22: 6.1347 | F22: 0.2340656888 | G22: 0.1896703643 | H22: 21.78142279 | K22: Yes | L22: 0.9 | M22: 0.332 | N22: 0.8332 | T22: 1 | U22: 2.08
A23: 16 | B23: 0.04827690341 | D23: 0.8131675542 | E23: 6.1347 | F23: 0.2408312152 | G23: 0.1940886176 | H23: 5.452414749 | T23: 2 | U23: 5.07
A24: 17 | B24: 0.04963311741 | D24: 0.8131675542 | E24: 6.1347 | F24: 0.2475967416 | G24: 0.1984589518 | H24: 5.422847138
A25: 18 | B25: 0.05098933141 | D25: =D24 -> 0.8131675542 | E25: 6.1347 | F25: 0.254362268 | G25: 0.2027821424 | H25: 5.393598478 | T25: Num of High Educated Parents | U25: OR
A26: 19 | B26: 0.05234554541 | D26: 0.8131675542 | E26: 6.1347 | F26: 0.2611277945 | G26: 0.207058948 | H26: 5.364663636 | T26: 0 | U26: 1
A27: 20 | B27: 0.05370175941 | D27: 0.8131675542 | E27: 6.1347 | F27: 0.2678933209 | G27: 0.2112901113 | H27: 5.336037589 | T27: 1 | U27: 1.1
K28: Baseline Adjustment before Individual Risk Factors | T28: 2 | U28: =U27^2 -> 1.21
K30: Num of High Educated Parents | L30: OR | M30: Palȍmϊnϊa | N30: Ambernϊa | P30: Palȍmϊnϊa | Q30: Ambernϊa
K31: 0 | L31: 1 | M31: 0.666486788 | N31: 0.5522005241 | P31: =1/SUMPRODUCT($L31:$L33,M31:M33) -> 0.9345464467 | Q31: =1/SUMPRODUCT($L31:$L33,N31:N33) -> 0.9140451251
K32: 1 | L32: 1.1 | M32: 0 | N32: 0
K33: 2 | L33: =L32^2 -> 1.21 | M33: 0.333513212 | N33: 0.4477994759

Sheet Others
A2: Economic Assumptions | H2: PAD | L2: Lapse assumption | P2: Expense Assumption | U2: Profit Assumption
L3: Rate per 1000
B4: P | C4: A | F4: P | G4: A | I4: Parameters | Q4: Fixed | R4: Per 1000 SA | S4: % of Prem
A5: Short term rate | B5: =2.62909090909091% -> 0.02629090909 | C5: =0.425454545454545% -> 0.004254545455 | F5: 0.02629090909 | G5: 0.0043 | H5: PAD down | I5: -0.25 | P5: Initial expense | Q5: 0 | R5: 0 | S5: 0 | U5: Hurdle Rate | V5: 0.1
A6: Long term rate | B6: =4.06909090909091% -> 0.04069090909 | C6: =1.94454545454545% -> 0.01944545455 | F6: 0.04069090909 | G6: 0.0194 | P6: Commission (1st year) | Q6: 0 | R6: 0 | S6: 0.09
A7: Mixed year | B7: 10 | C7: 10 | F7: 10 | G7: 10 | P7: Commission (Renewal) | Q7: 0 | R7: 0 | S7: 0
P8: Maintenance expense | Q8: 0 | R8: 0 | S8: 0.045
B9: Spot Rate | D9: Forward Rate | F9: Reserve Fwd Rate | H9: Reserve Fwd Rate Down | P9: Claims expense | Q9: 0 | R9: 0 | S9: 0.043
A10: Year | B10: P | C10: A | D10: P | E10: A | F10: P | G10: A | H10: P | I10: A | L10: Year | M10: Laspe Rate
A11: 1 | B11: =IF(A11<=$B$7, ($B$5*($B$7-A11+1) + $B$6*(A11-1))/$B$7, $B$6) -> 0.02629090909 | C11: =IF(A11<=$C$7, ($C$5*($C$7-A11+1) + $C$6*(A11-1))/$C$7, $C$6) -> 0.004254545455 | D11: =B11 -> 0.02629090909 | E11: =C11 -> 0.004254545455 | F11: 0.02629090909 | G11: 0.004254545455 | H11: =F11*(1+$I$5) -> 0.01971818182 | I11: =G11*(1+$I$5) -> 0.003190909091 | L11: 1 | M11: 0
A12: 2 | B12: =IF(A12<=$B$7, ($B$5*($B$7-A12+1) + $B$6*(A12-1))/$B$7, $B$6) -> 0.02773090909 | C12: =IF(A12<=$C$7, ($C$5*($C$7-A12+1) + $C$6*(A12-1))/$C$7, $C$6) -> 0.005773636364 | D12: =(1+B12)^$A12 / (1+B11)^$A11 - 1 -> 0.02917292957 | E12: =(1+C12)^$A12 / (1+C11)^$A11 - 1 -> 0.007295025134 | F12: 0.02917292957 | G12: 0.007295025134 | H12: =F12*(1+$I$5) -> 0.02187969718 | I12: 0.00547126885 | L12: 2 | M12: 0 | Q12: Pricing | R12: Reserving
A13: 3 | B13: 0.02917090909 | C13: 0.007292727273 | D13: =(1+B13)^$A13 / (1+B12)^$A12 - 1 -> 0.03205696486 | E13: 0.01033779573 | F13: 0.03205696486 | G13: 0.01033779573 | H13: 0.02404272365 | I13: 0.007753346795 | L13: 3 | M13: 0 | P13: Maintenance inflation | Q13: 0.0135 | R13: 0.0235
A14: 4 | B14: 0.03061090909 | C14: 0.008811818182 | D14: 0.03494300933 | E14: 0.01338285031 | F14: 0.03494300933 | G14: 0.01338285031 | H14: 0.02620725699 | I14: 0.01003713774 | L14: 4 | M14: 0
A15: 5 | B15: 0.03205090909 | C15: 0.01033090909 | D15: 0.03783105733 | E15: 0.016430182 | F15: 0.03783105733 | G15: 0.016430182 | H15: 0.028373293 | I15: 0.0123226365 | L15: 5 | M15: 0
A16: 6 | B16: 0.03349090909 | C16: 0.01185 | D16: 0.04072110327 | E16: 0.01947978392 | F16: 0.04072110327 | G16: 0.01947978392 | H16: 0.03054082745 | I16: 0.01460983794 | L16: 6 | M16: 0
A17: 7 | B17: 0.03493090909 | C17: 0.01336909091 | D17: 0.04361314155 | E17: 0.02253164923 | F17: 0.04361314155 | G17: 0.02253164923 | H17: 0.03270985616 | I17: 0.01689873692 | L17: 7 | M17: 0
A18: 8 | B18: 0.03637090909 | C18: 0.01488818182 | D18: 0.04650716662 | E18: 0.02558577111 | F18: 0.04650716662 | G18: 0.02558577111 | H18: 0.03488037496 | I18: 0.01918932833 | L18: 8 | M18: 0
A19: 9 | B19: 0.03781090909 | C19: 0.01640727273 | D19: 0.04940317292 | E19: 0.02864214278 | F19: 0.04940317292 | G19: 0.02864214278 | H19: 0.03705237969 | I19: 0.02148160708 | L19: 9 | M19: 0
A20: 10 | B20: 0.03925090909 | C20: 0.01792636364 | D20: 0.05230115492 | E20: 0.03170075746 | F20: 0.05230115492 | G20: 0.03170075746 | H20: 0.03922586619 | I20: 0.0237755681 | L20: 10 | M20: 0
A21: 11 | B21: 0.04069090909 | C21: 0.01944545455 | D21: 0.05520110711 | E21: 0.03476160842 | F21: 0.05520110711 | G21: 0.03476160842 | H21: 0.04140083034 | I21: 0.02607120632 | L21: 11 | M21: 0
A22: 12 | B22: 0.04069090909 | C22: 0.01944545455 | D22: 0.04069090909 | E22: 0.01944545455 | F22: 0.04069090909 | G22: 0.01944545455 | H22: 0.03051818182 | I22: 0.01458409091 | L22: 12 | M22: 0
A23: 13 | B23: 0.04069090909 | C23: 0.01944545455 | D23: 0.04069090909 | E23: 0.01944545455 | F23: 0.04069090909 | G23: 0.01944545455 | H23: 0.03051818182 | I23: 0.01458409091 | L23: 13 | M23: 0
A24: 14 | B24: 0.04069090909 | C24: 0.01944545455 | D24: 0.04069090909 | E24: 0.01944545455 | F24: 0.04069090909 | G24: 0.01944545455 | H24: 0.03051818182 | I24: 0.01458409091 | L24: 14 | M24: 0
A25: 15 | B25: 0.04069090909 | C25: 0.01944545455 | D25: 0.04069090909 | E25: 0.01944545455 | F25: 0.04069090909 | G25: 0.01944545455 | H25: 0.03051818182 | I25: 0.01458409091 | L25: 15 | M25: 0 | P25: PAD
A26: 16 | B26: 0.04069090909 | C26: 0.01944545455 | D26: 0.04069090909 | E26: 0.01944545455 | F26: 0.04069090909 | G26: 0.01944545455 | H26: 0.03051818182 | I26: 0.01458409091 | L26: 16 | M26: 0
A27: 17 | B27: 0.04069090909 | C27: 0.01944545455 | D27: 0.04069090909 | E27: 0.01944545455 | F27: 0.04069090909 | G27: 0.01944545455 | H27: 0.03051818182 | I27: 0.01458409091 | L27: 17 | M27: 0 | Q27: Pricing PAD | R27: Reserving PAD
A28: 18 | B28: 0.04069090909 | C28: 0.01944545455 | D28: 0.04069090909 | E28: 0.01944545455 | F28: 0.04069090909 | G28: 0.01944545455 | H28: 0.03051818182 | I28: 0.01458409091 | L28: 18 | M28: 0 | P28: Mortality | Q28: 0 | R28: 0.15
A29: 19 | B29: 0.04069090909 | C29: 0.01944545455 | D29: 0.04069090909 | E29: 0.01944545455 | F29: 0.04069090909 | G29: 0.01944545455 | H29: 0.03051818182 | I29: 0.01458409091 | L29: 19 | M29: 0 | P29: Myopia | Q29: 0 | R29: 0.3
A30: 20 | B30: 0.04069090909 | C30: 0.01944545455 | D30: 0.04069090909 | E30: 0.01944545455 | F30: 0.04069090909 | G30: 0.01944545455 | H30: 0.03051818182 | I30: 0.01458409091 | L30: 20 | M30: 0
A31: 21 | B31: 0.04069090909 | C31: 0.01944545455 | D31: 0.04069090909 | E31: 0.01944545455 | F31: 0.04069090909 | G31: 0.01944545455 | H31: 0.03051818182 | I31: 0.01458409091 | L31: 21 | M31: 0 | P31: Laspe | Q31: 0 | R31: 0
A32: 22 | B32: 0.04069090909 | C32: 0.01944545455 | D32: 0.04069090909 | E32: 0.01944545455 | F32: 0.04069090909 | G32: 0.01944545455 | H32: 0.03051818182 | I32: 0.01458409091 | L32: 22 | M32: 0
A33: 23 | B33: 0.04069090909 | C33: 0.01944545455 | D33: 0.04069090909 | E33: 0.01944545455 | F33: 0.04069090909 | G33: 0.01944545455 | H33: 0.03051818182 | I33: 0.01458409091 | L33: 23 | M33: 0 | P33: Maintenance expense | Q33: 0 | R33: 0.1
A34: 24 | B34: 0.04069090909 | C34: 0.01944545455 | D34: 0.04069090909 | E34: 0.01944545455 | F34: 0.04069090909 | G34: 0.01944545455 | H34: 0.03051818182 | I34: 0.01458409091 | L34: 24 | M34: 0 | P34: Claims expense | Q34: 0 | R34: 0.1
A35: 25 | B35: 0.04069090909 | C35: 0.01944545455 | D35: 0.04069090909 | E35: 0.01944545455 | F35: 0.04069090909 | G35: 0.01944545455 | H35: 0.03051818182 | I35: 0.01458409091 | L35: 25 | M35: 0
A36: 26 | B36: 0.04069090909 | C36: 0.01944545455 | D36: 0.04069090909 | E36: 0.01944545455 | F36: 0.04069090909 | G36: 0.01944545455 | H36: 0.03051818182 | I36: 0.01458409091 | L36: 26 | M36: 0
A37: 27 | B37: 0.04069090909 | C37: 0.01944545455 | D37: 0.04069090909 | E37: 0.01944545455 | F37: 0.04069090909 | G37: 0.01944545455 | H37: 0.03051818182 | I37: 0.01458409091 | L37: 27 | M37: 0
A38: 28 | B38: 0.04069090909 | C38: 0.01944545455 | D38: 0.04069090909 | E38: 0.01944545455 | F38: 0.04069090909 | G38: 0.01944545455 | H38: 0.03051818182 | I38: 0.01458409091 | L38: 28 | M38: 0
A39: 29 | B39: 0.04069090909 | C39: 0.01944545455 | D39: 0.04069090909 | E39: 0.01944545455 | F39: 0.04069090909 | G39: 0.01944545455 | H39: 0.03051818182 | I39: 0.01458409091 | L39: 29 | M39: 0
A40: 30 | B40: 0.04069090909 | C40: 0.01944545455 | D40: 0.04069090909 | E40: 0.01944545455 | F40: 0.04069090909 | G40: 0.01944545455 | H40: 0.03051818182 | I40: 0.01458409091 | L40: 30 | M40: 0 | P40: Tax
A41: 31 | B41: 0.04069090909 | C41: 0.01944545455 | D41: 0.04069090909 | E41: 0.01944545455 | F41: 0.04069090909 | G41: 0.01944545455 | H41: 0.03051818182 | I41: 0.01458409091 | L41: 31 | M41: 0
A42: 32 | B42: 0.04069090909 | C42: 0.01944545455 | D42: 0.04069090909 | E42: 0.01944545455 | F42: 0.04069090909 | G42: 0.01944545455 | H42: 0.03051818182 | I42: 0.01458409091 | L42: 32 | M42: 0 | Q42: Rate
A43: 33 | B43: 0.04069090909 | C43: 0.01944545455 | D43: 0.04069090909 | E43: 0.01944545455 | F43: 0.04069090909 | G43: 0.01944545455 | H43: 0.03051818182 | I43: 0.01458409091 | L43: 33 | M43: 0 | P43: Corporate Tax | Q43: 0.256
A44: 34 | B44: 0.04069090909 | C44: 0.01944545455 | D44: =(1+B44)^$A44 / (1+B43)^$A43 - 1 -> 0.04069090909 | E44: =(1+C44)^$A44 / (1+C43)^$A43 - 1 -> 0.01944545455 | F44: 0.04069090909 | G44: 0.01944545455 | H44: 0.03051818182 | I44: 0.01458409091 | L44: 34 | M44: 0
A45: 35 | B45: 0.04069090909 | C45: 0.01944545455 | D45: 0.04069090909 | E45: 0.01944545455 | F45: 0.04069090909 | G45: 0.01944545455 | H45: 0.03051818182 | I45: 0.01458409091 | L45: 35 | M45: 0
A46: 36 | B46: 0.04069090909 | C46: 0.01944545455 | D46: 0.04069090909 | E46: 0.01944545455 | F46: 0.04069090909 | G46: 0.01944545455 | H46: 0.03051818182 | I46: 0.01458409091 | L46: 36 | M46: 0
A47: 37 | B47: 0.04069090909 | C47: 0.01944545455 | D47: 0.04069090909 | E47: 0.01944545455 | F47: 0.04069090909 | G47: 0.01944545455 | H47: 0.03051818182 | I47: 0.01458409091 | L47: 37 | M47: 0
A48: 38 | B48: 0.04069090909 | C48: 0.01944545455 | D48: 0.04069090909 | E48: 0.01944545455 | F48: 0.04069090909 | G48: 0.01944545455 | H48: 0.03051818182 | I48: 0.01458409091 | L48: 38 | M48: 0
A49: 39 | B49: 0.04069090909 | C49: 0.01944545455 | D49: 0.04069090909 | E49: 0.01944545455 | F49: 0.04069090909 | G49: 0.01944545455 | H49: 0.03051818182 | I49: 0.01458409091 | L49: 39 | M49: 0
A50: 40 | B50: 0.04069090909 | C50: 0.01944545455 | D50: 0.04069090909 | E50: 0.01944545455 | F50: 0.04069090909 | G50: 0.01944545455 | H50: 0.03051818182 | I50: 0.01458409091 | L50: 40 | M50: 0
A51: 41 | B51: 0.04069090909 | C51: 0.01944545455 | D51: 0.04069090909 | E51: 0.01944545455 | F51: 0.04069090909 | G51: 0.01944545455 | H51: 0.03051818182 | I51: 0.01458409091 | L51: 41 | M51: 0
A52: 42 | B52: 0.04069090909 | C52: 0.01944545455 | D52: 0.04069090909 | E52: 0.01944545455 | F52: 0.04069090909 | G52: 0.01944545455 | H52: 0.03051818182 | I52: 0.01458409091 | L52: 42 | M52: 0
A53: 43 | B53: 0.04069090909 | C53: 0.01944545455 | D53: 0.04069090909 | E53: 0.01944545455 | F53: 0.04069090909 | G53: 0.01944545455 | H53: 0.03051818182 | I53: 0.01458409091 | L53: 43 | M53: 0
A54: 44 | B54: 0.04069090909 | C54: 0.01944545455 | D54: 0.04069090909 | E54: 0.01944545455 | F54: 0.04069090909 | G54: 0.01944545455 | H54: 0.03051818182 | I54: 0.01458409091 | L54: 44 | M54: 0
A55: 45 | B55: 0.04069090909 | C55: 0.01944545455 | D55: 0.04069090909 | E55: 0.01944545455 | F55: 0.04069090909 | G55: 0.01944545455 | H55: 0.03051818182 | I55: 0.01458409091 | L55: 45 | M55: 0
A56: 46 | B56: 0.04069090909 | C56: 0.01944545455 | D56: 0.04069090909 | E56: 0.01944545455 | F56: 0.04069090909 | G56: 0.01944545455 | H56: 0.03051818182 | I56: 0.01458409091 | L56: 46 | M56: 0
A57: 47 | B57: 0.04069090909 | C57: 0.01944545455 | D57: 0.04069090909 | E57: 0.01944545455 | F57: 0.04069090909 | G57: 0.01944545455 | H57: 0.03051818182 | I57: 0.01458409091 | L57: 47 | M57: 0
A58: 48 | B58: 0.04069090909 | C58: 0.01944545455 | D58: 0.04069090909 | E58: 0.01944545455 | F58: 0.04069090909 | G58: 0.01944545455 | H58: 0.03051818182 | I58: 0.01458409091 | L58: 48 | M58: 0
A59: 49 | B59: 0.04069090909 | C59: 0.01944545455 | D59: 0.04069090909 | E59: 0.01944545455 | F59: 0.04069090909 | G59: 0.01944545455 | H59: 0.03051818182 | I59: 0.01458409091 | L59: 49 | M59: 0
A60: 50 | B60: 0.04069090909 | C60: 0.01944545455 | D60: 0.04069090909 | E60: 0.01944545455 | F60: 0.04069090909 | G60: 0.01944545455 | H60: 0.03051818182 | I60: 0.01458409091 | L60: 50 | M60: 0

Sheet Model ->

Sheet Parameters
A2: Product Parameters | C2: Input | G2: =MAX(G5:G68) -> 0 | J2: Hurdle Rate | K2: =Others!V5 -> 0.1 | L2: Hurdle | P2: Profit Signature
B4: Policyholder | E4: Variable Name | G4: Checking | J4: Profitability | U4: VBA
B5: Entry Age | C5: 0.5 | E5: Pol_Entry_Age | J5: IRR | K5: =(1+IRR(Pricing!CB5:CB605, $K$2))^(12)-1 -> 0.1734906286 | U5: Pricing Target | V5: 0.05
B6: Sex | C6: F | E6: Pol_Sex
B7: Num of Myopic Parents | C7: 2 | E7: Pol_Myopic | J7: NPV @3% | K7: =NPV((1+0.03)^(1/12)-1,Pricing!$CB$6:$CB$605)+Pricing!$CB$5 -> 1409.696303
B8: Num of High Educated Parents | C8: 2 | E8: Pol_Educated | J8: NPV @5% | K8: =NPV((1+0.05)^(1/12)-1,Pricing!$CB$6:$CB$605)+Pricing!$CB$5 -> 1057.206004
B9: Country | C9: P | E9: Pol_Country | J9: NPV @10% | K9: =NPV((1+0.1)^(1/12)-1,Pricing!$CB$6:$CB$605)+Pricing!$CB$5 -> 462.6488603 | P9: Year | Q9: Profit Signature | R9: Profit Signature per AP
J10: NPV @Hurdle | K10: =NPV((1+Hurdle)^(1/12)-1,Pricing!$CB$6:$CB$605)+Pricing!$CB$5 -> 462.6488603 | P10: 0 | Q10: =SUMIFS(Pricing!CB:CB, Pricing!C:C, P10) -> -714.0345106 | R10: =Q10/Ann_Prem -> -1.534568043
B11: Incident Table | E11: Pol_Inc_Tbl | P11: 1 | Q11: =SUMIFS(Pricing!CB:CB, Pricing!C:C, P11) -> 47.13542259 | R11: 0.1013011446
C12: =SUM(Pricing!X6:X317) -> 0.00668415183 | J12: PV(Prem) @Hurdle | K12: =NPV((1+Hurdle)^(1/12)-1,Pricing!$AE$7:$AE$605)+Pricing!$AE$6 -> 9306 | P12: 2 | Q12: =SUMIFS(Pricing!CB:CB, Pricing!C:C, P12) -> 53.09842692 | R12: 0.1141165418
C13: =SUM(Pricing!Y6:Y317) -> 0.2088665615 | P13: 3 | Q13: =SUMIFS(Pricing!CB:CB, Pricing!C:C, P13) -> 88.86465712 | R13: 0.1909835743
J14: PM @3% | K14: =K7 / (NPV((1+0.03)^(1/12)-1,Pricing!$AE$7:$AE$605)+Pricing!$AE$6) -> 0.151482517 | P14: 4 | Q14: =SUMIFS(Pricing!CB:CB, Pricing!C:C, P14) -> 114.3209363 | R14: 0.2456929643
J15: PM @5% | K15: =K8 / (NPV((1+0.05)^(1/12)-1,Pricing!$AE$7:$AE$605)+Pricing!$AE$6) -> 0.1136047715 | P15: 5 | Q15: =SUMIFS(Pricing!CB:CB, Pricing!C:C, P15) -> 118.057435 | R15: 0.2537232646
B16: Premium Rate | J16: PM @10% | K16: =K9 / (NPV((1+0.1)^(1/12)-1,Pricing!$AE$7:$AE$605)+Pricing!$AE$6) -> 0.04971511501 | P16: 6 | Q16: =SUMIFS(Pricing!CB:CB, Pricing!C:C, P16) -> 121.793147 | R16: 0.2617518741
B17: Prem Lookup Ind | C17: 1 | E17: Prem_Lookup_Ind | J17: PM @Hurdle | K17: =K10 / (NPV((1+Hurdle)^(1/12)-1,Pricing!$AE$7:$AE$605)+Pricing!$AE$6) -> 0.04971511501 | M17: profit_mar_hurdle | P17: 7 | Q17: =SUMIFS(Pricing!CB:CB, Pricing!C:C, P17) -> 154.302582 | R17: 0.3316195616
B18: Prem Manual Input | C18: 198 | E18: VBA_Prem_Input | P18: 8 | Q18: =SUMIFS(Pricing!CB:CB, Pricing!C:C, P18) -> 175.6830241 | R18: 0.377569362
B19: Prem Table | C19: =Pol_Sex&C7&C8&Pol_Country -> F22P | J19: 1st Year Loss | K19: =-SUM(MIN(0,Pricing!CB5:CB17)) -> 714.0345106 | P19: 9 | Q19: =SUMIFS(Pricing!CB:CB, Pricing!C:C, P19) -> 175.3253304 | R19: 0.3768006242
B20: Prem Lookup rate | C20: =VLOOKUP(C19,Rate_Table!$E:$F,2,0) -> 198 | J20: 1st Year IF Prem | K20: =SUM(Pricing!AG5:AG17) -> 9306 | P20: 10 | Q20: =SUMIFS(Pricing!CB:CB, Pricing!C:C, P20) -> 248.395413 | R20: 0.5338392714
J21: Surplus Stain | K21: =K19/ K20 -> 0.07672840217 | P21: 11 | Q21: =SUMIFS(Pricing!CB:CB, Pricing!C:C, P21) -> 290.9024385 | R21: 0.6251932913
E22: =VLOOKUP(Pol_Country,'Business Mix'!$B$36:$C$38, 2,0) -> 47000 | P22: 12 | Q22: =SUMIFS(Pricing!CB:CB, Pricing!C:C, P22) -> 259.3552699 | R22: 0.5573936599
B23: Product | J23: DPP @3% | K23: =(COUNTIFS(Pricing!CK$5:CK$605, "<0")+1) /12 -> 7.75 | P23: 13 | Q23: =SUMIFS(Pricing!CB:CB, Pricing!C:C, P23) -> 232.7795227 | R23: 0.5002783639
B24: Maturity Year | C24: 20 | E24: Mat_Year | J24: DPP @5% | K24: =(COUNTIFS(Pricing!CL$5:CL$605, "<0")+1) /12 -> 8.25 | P24: 14 | Q24: =SUMIFS(Pricing!CB:CB, Pricing!C:C, P24) -> 211.7305137 | R24: 0.4550408634
B25: Prem Rate | C25: =IF(C17=0, VBA_Prem_Input,C20) -> 198 | E25: Prem_Rate | J25: DPP @10% | K25: =(COUNTIFS(Pricing!CM$5:CM$605, "<0")+1) /12 -> 9.833333333 | P25: 15 | Q25: =SUMIFS(Pricing!CB:CB, Pricing!C:C, P25) -> 201.0037326 | R25: 0.43198739
B26: Sum Assured | C26: =VLOOKUP(Pol_Country,'Business Mix'!$B$36:$C$38, 2,0) -> 47000 | E26: Sum_Assured | J26: DPP @Hurdle | K26: =(COUNTIFS(Pricing!CN$5:CN$605, "<0")+1) /12 -> 9.833333333 | P26: 16 | Q26: =SUMIFS(Pricing!CB:CB, Pricing!C:C, P26) -> 115.4153821 | R26: 0.2480450937
B27: Annual Prem Eqv | C27: =Prem_Rate*Sum_Assured/1000 * IF(Prem_Mode="single", 1/20, 1) -> 465.3 | E27: Ann_Prem | P27: 17 | Q27: =SUMIFS(Pricing!CB:CB, Pricing!C:C, P27) -> 57.35055115 | R27: 0.1232549992
B28: Single Premium | C28: =Prem_Rate * Sum_Assured/1000 -> 9306 | E28: Single_Prem | J28: NBV @Hurdle | K28: =K10 -> 462.6488603 | P28: 18 | Q28: =SUMIFS(Pricing!CB:CB, Pricing!C:C, P28) -> 55.47505831 | R28: 0.1192242818
J29: NB Margin / NBV per AP | K29: =K28/Ann_Prem -> 0.9943023002 | P29: 19 | Q29: =SUMIFS(Pricing!CB:CB, Pricing!C:C, P29) -> 53.57341545 | R29: 0.1151373639
B30: Premium Mode | C30: single | E30: Prem_Mode | P30: 20 | Q30: =SUMIFS(Pricing!CB:CB, Pricing!C:C, P30) -> 51.64400271 | R30: 0.1109907645
B31: Premium Term | C31: =IF(Prem_Mode="single", 1, "Error") -> 1 | E31: Prem_Term | M31: check | P31: 21 | Q31: =SUMIFS(Pricing!CB:CB, Pricing!C:C, P31) -> 20.96908764 | R31: 0.04506573747
J32: Premium breakdown @ Earn rate | M32: =IF(ABS(-Pricing!$AP$5 - SUM(L34:L35)) > 0.0001, 1, 0) -> 0 | P32: 22 | Q32: =SUMIFS(Pricing!CB:CB, Pricing!C:C, P32) -> 0 | R32: 0
P33: 23 | Q33: =SUMIFS(Pricing!CB:CB, Pricing!C:C, P33) -> 0 | R33: 0
J34: Myopia Benefit | K34: =L34/$L$40 -> 0.6922250983 | L34: =-SUMPRODUCT(Pricing!AL$5:AL$605, Pricing!$I$5:$I$605) -> 6441.846765 | P34: 24 | Q34: =SUMIFS(Pricing!CB:CB, Pricing!C:C, P34) -> 0 | R34: 0
J35: ROP Benefit | K35: =L35/$L$40 -> 0.004657332896 | L35: =-SUMPRODUCT(Pricing!AK$5:AK$605, Pricing!$I$5:$I$605) -> 43.34113993 | P35: 25 | Q35: =SUMIFS(Pricing!CB:CB, Pricing!C:C, P35) -> 0 | R35: 0
B36: Trend | J36: Expense | K36: 0.03343345531 | L36: =-(Pricing!BH5 + Pricing!BF5) - L38 -> 311.1317351 | P36: 26 | Q36: =SUMIFS(Pricing!CB:CB, Pricing!C:C, P36) -> 0 | R36: 0
B37: Trend Factor Pricing | C37: 1 | E37: Trend_Factor | J37: Tax | K37: 0.04599913304 | L37: =-SUMPRODUCT(Pricing!BX$5:BX$605, Pricing!$I$5:$I$605) -> 428.0679321 | P37: 27 | Q37: =SUMIFS(Pricing!CB:CB, Pricing!C:C, P37) -> 0 | R37: 0
B38: Trend Factor Reserve | C38: 1 | E38: Trend_Factor_Reserve | J38: Commission | K38: 0.09 | L38: =-SUMPRODUCT(Pricing!AT$5:AT$605, Pricing!$I$5:$I$605) -> 837.54 | P38: 28 | Q38: =SUMIFS(Pricing!CB:CB, Pricing!C:C, P38) -> 0 | R38: 0
J39: Overhead | K39: =1-SUM(K34:K38) -> 0.1336849804 | L39: =L40-SUM(L34:L38) -> 1244.072428 | P39: 29 | Q39: =SUMIFS(Pricing!CB:CB, Pricing!C:C, P39) -> 0 | R39: 0
B40: Expense | J40: Premium | K40: 1 | L40: =Pricing!AG5 -> 9306 | P40: 30 | Q40: =SUMIFS(Pricing!CB:CB, Pricing!C:C, P40) -> 0 | R40: 0
B41: Initial | C41: =Others!Q5 + Others!R5 * Sum_Assured/1000 + Others!S5 * Ann_Prem -> 0 | E41: Exp_Init | J41: Lost Ratio | K41: =SUM(K34:K35) -> 0.6968824312 | L41: =SUM(L34:L35) -> 6485.187905 | P41: 31 | Q41: =SUMIFS(Pricing!CB:CB, Pricing!C:C, P41) -> 0 | R41: 0
B42: Commission (1st year) | C42: =Others!Q6 + Others!R6 * Sum_Assured/1000 + Others!S6 * Single_Prem -> 837.54 | E42: Exp_Comm | J42: Expense Ratio | K42: =SUM(K36:K38) -> 0.1694325884 | L42: =SUM(L36:L38) -> 1576.739667 | P42: 32 | Q42: =SUMIFS(Pricing!CB:CB, Pricing!C:C, P42) -> 0 | R42: =Q42/Ann_Prem -> 0
B43: Commission (Renewal) | C43: =Others!Q7 + Others!R7 * Sum_Assured/1000 + Others!S7 * Ann_Prem -> 0 | E43: Exp_Comm_Renew | P43: 33 | Q43: =SUMIFS(Pricing!CB:CB, Pricing!C:C, P43) -> 0 | R43: 0
B44: Maintenance | C44: =Others!Q8 + Others!R8 * Sum_Assured/1000 + Others!S8 * Ann_Prem -> 20.9385 | E44: Exp_Main | P44: 34 | Q44: =SUMIFS(Pricing!CB:CB, Pricing!C:C, P44) -> 0 | R44: 0
B45: Claims | C45: =Others!Q9 + Others!R9 * Sum_Assured/1000 + Others!S9 * Ann_Prem -> 20.0079 | E45: Exp_Claim | P45: 35 | Q45: =SUMIFS(Pricing!CB:CB, Pricing!C:C, P45) -> 0 | R45: 0
P46: 36 | Q46: =SUMIFS(Pricing!CB:CB, Pricing!C:C, P46) -> 0 | R46: 0
B47: Main Inflation Pricing | C47: =Others!$Q$13 -> 0.0135 | E47: Exp_Main_Infl | P47: 37 | Q47: =SUMIFS(Pricing!CB:CB, Pricing!C:C, P47) -> 0 | R47: 0
B48: Main Inflation Reserve | C48: =Others!$R$13 -> 0.0235 | E48: Exp_Main_Infl_Reserve | P48: 38 | Q48: =SUMIFS(Pricing!CB:CB, Pricing!C:C, P48) -> 0 | R48: 0
P49: 39 | Q49: =SUMIFS(Pricing!CB:CB, Pricing!C:C, P49) -> 0 | R49: 0
B50: Pricing PAD | P50: 40 | Q50: =SUMIFS(Pricing!CB:CB, Pricing!C:C, P50) -> 0 | R50: 0
B51: Mortality | C51: =Others!Q28 -> 0 | E51: PAD_Mort | P51: 41 | Q51: =SUMIFS(Pricing!CB:CB, Pricing!C:C, P51) -> 0 | R51: 0
B52: Myopia | C52: =Others!Q29 -> 0 | E52: PAD_Incid | P52: 42 | Q52: =SUMIFS(Pricing!CB:CB, Pricing!C:C, P52) -> 0 | R52: 0
J53: Marketing | P53: 43 | Q53: =SUMIFS(Pricing!CB:CB, Pricing!C:C, P53) -> 0 | R53: 0
B54: Laspe | C54: =Others!Q31 -> 0 | E54: PAD_Laspe | J54: Accum. Amount / Prem | P54: 44 | Q54: =SUMIFS(Pricing!CB:CB, Pricing!C:C, P54) -> 0 | R54: 0
P55: 45 | Q55: =SUMIFS(Pricing!CB:CB, Pricing!C:C, P55) -> 0 | R55: 0
B56: Maintenance expense | C56: =Others!Q33 -> 0 | E56: PAD_Exp_Main | J56: Customer Maturity Yield | P56: 46 | Q56: =SUMIFS(Pricing!CB:CB, Pricing!C:C, P56) -> 0 | R56: 0
B57: Claims expense | C57: =Others!Q34 -> 0 | E57: PAD_Exp_Claim | P57: 47 | Q57: =SUMIFS(Pricing!CB:CB, Pricing!C:C, P57) -> 0 | R57: 0
P58: 48 | Q58: =SUMIFS(Pricing!CB:CB, Pricing!C:C, P58) -> 0 | R58: 0
P59: 49 | Q59: =SUMIFS(Pricing!CB:CB, Pricing!C:C, P59) -> 0 | R59: 0
P60: 50 | Q60: =SUMIFS(Pricing!CB:CB, Pricing!C:C, P60) -> 0 | R60: 0
B61: Reserving PAD
B62: Mortality | C62: =Others!R28 -> 0.15 | E62: PAD_Res_Mort
B63: Myopia | C63: =Others!R29 -> 0.3 | E63: PAD_Res_Incid
B65: Laspe | C65: =Others!R31 -> 0 | E65: PAD_Res_Laspe
B67: Maintenance expense | C67: =Others!R33 -> 0.1 | E67: PAD_Res_Exp_Main
B68: Claims expense | C68: =Others!R34 -> 0.1 | E68: PAD_Res_Exp_Claim

Sheet Pricing
A1: Pricing CF Model | F1: PP (Per Policy) | J1: IF (Inforce)
A2: Time | D2: Age | G2: Interest | K2: Decrement (Annual) | T2: Decrement (Monthly) | W2: Inforce (Population) | AC2: Premium | AI2: Benefit | AR2: Expense | BJ2: Cash Flow | BP2: Reserves | BT2: Interest | BX2: Tax | BZ2: Profit | CD2: =SUMPRODUCT(BZ5:BZ$605, $I5:$I$605) -> 1672.14036 | CE2: =SUMPRODUCT(CA5:CA$605, $I5:$I$605) -> 1244.072428 | CF2: =SUMPRODUCT(CB5:CB$605, $I5:$I$605) -> 1244.072428 | CH2: Others
G3: =Pol_Country -> P | K3: =Pol_Country&Pol_Sex -> PF | V3: EOP | W3: BOP | Z3: EOP | AA3: EOP | AC3: BOP | AD3: BOP | AE3: BOP | AK3: EOP | AL3: EOP | AM3: EOP | AN3: EOP | AT3: BOP | AU3: BOP | AV3: BOP | AW3: BOP | AX3: EOP | AY3: EOP | AZ3: EOP | BA3: BOP | BB3: EOP | BC3: BOP | BD3: EOP | BE3: BOP | BF3: EOP | BT3: EOP | BU3: EOP | CK3: 0.03 | CL3: 0.05 | CM3: 0.1 | CN3: =Hurdle -> 0.1
A4: t | B4: Month | C4: Year | D4: Age | E4: Age_round | G4: Ann Fwd | H4: Mth Fwd | I4: v_t | K4: Mort | L4: PAD | M4: Mort_pad | N4: Myopia | O4: PAD | P4: Myopia_pad | Q4: Lapse | R4: PAD | S4: Lapse_pad | T4: Mort | U4: Myopia | V4: Lapse | W4: BOP_IF | X4: Mort | Y4: Myopia | Z4: Lapse | AA4: EOP_IF | AC4: Annual_Prem | AD4: Prem_PP | AE4: Prem_IF | AF4: Prem_PV_PP | AG4: Prem_PV_IF | AI4: SA | AJ4: ROP | AK4: Death_Outgo | AL4: Myopia_Outgo | AM4: Benefit_PP | AN4: Benefit_IF | AO4: Benefit_PV_PP | AP4: Benefit_PV_IF | AR4: Initial_Exp | AS4: Commission | AT4: Commission_IF | AU4: Main_exp | AV4: PAD | AW4: =AU4 & "_pad" -> Main_exp_pad | AX4: Claims_exp | AY4: PAD | AZ4: =AX4 & "_pad" -> Claims_exp_pad | BA4: Main_exp_IF | BB4: Claims_exp_IF | BC4: Expense_BOP_PP | BD4: Expense_EOP_PP | BE4: Expense_BOP_IF | BF4: Expense_EOP_IF | BG4: Expense_PV_PP | BH4: Expense_PV_IF | BJ4: BOP Cash Flow | BK4: EOP Cash Flow | BM4: Cash Flow PV PP | BN4: Cash Flow PV IF | BP4: EOP_Reserve_PP | BQ4: EOP_Reserve_IF | BR4: Change_in_Res_IF | BT4: Interest_PP | BU4: Interest | BV4: Interest_PV | BX4: Tax | BZ4: Gross_Profit | CA4: Profit_after_tax | CB4: Dist_Profit | CD4: Gross_Profit_PV | CE4: Profit_a_tax_PV | CF4: Dist_Profit_PV | CH4: Myopia_NAAR | CI4: Death_NAAR | CK4: Partial NPV | CL4: Partial NPV | CM4: Partial NPV | CN4: Partial NPV
A5: 0 | B5: 0 | C5: 0 | D5: =Pol_Entry_Age -> 0.5 | E5: =INT(D5+0.001) -> 0 | I5: 1 | J5: =SUM(I5:I250)/12 -> 14.27755677 | AA5: 1 | AG5: =SUMPRODUCT(AE6:AE$605, $I5:$I$604) / $I5 -> 9306 | AP5: =SUMPRODUCT(AN6:AN$605, $I6:$I$605) / $I5 -> -6485.187905 | AR5: =-Exp_Init -> 0 | AS5: =-Exp_Comm -> -837.54 | AT5: =AS5 -> -837.54 | BF5: =SUM(AR5, AT5) -> -837.54 | BH5: =(SUMPRODUCT(BE6:BE$605,$I5:$I$604)+SUMPRODUCT(BF6:BF$605,$I6:$I$605)) / $I5 -> -311.1317351 | BK5: =SUM(AN5,BF5) -> -837.54 | BN5: =MAX(BN6/(1+H6) - (BJ6 + BK6/(1+H6)),0) -> 0 | BP5: =Reserve!BX5 -> 122.1838046 | BQ5: =BP5*AA5 -> 122.1838046 | BR5: =-BQ5 -> -122.1838046 | BV5: =SUMPRODUCT(BU6:BU$605, $I6:$I$605) / $I5 -> 3672.089901 | BX5: =-BZ5*Others!$Q$43 -> 245.689294 | BZ5: =SUM(BJ5,BK5,BR5,BU5) -> -959.7238046 | CA5: =BZ5+BX5 -> -714.0345106 | CB5: =CA5 -> -714.0345106 | CD5: =SUMPRODUCT(BZ6:BZ$605, $I6:$I$605) / $I5 -> 2631.864164 | CE5: =SUMPRODUCT(CA6:CA$605, $I6:$I$605) / $I5 -> 1958.106938 | CF5: =SUMPRODUCT(CB6:CB$605, $I6:$I$605) / $I5 -> 1958.106938
A6: =A5+1/12 -> 0.08333333333 | B6: =IF(B5=12,1,B5+1) -> 1 | C6: 1 | D6: =$D$5+A6 -> 0.5833333333 | E6: =INT(D6+0.001) -> 0 | G6: =INDEX(Others!$D$11:$E$60, MATCH(C6, Others!$A$11:$A$60, 0), MATCH(G$3, Others!$D$10:$E$10, 0)) -> 0.02629090909 | H6: =(1+G6)^(1/12) - 1 -> 0.002164943754 | I6: =I5/(1+H6) -> 0.9978397331 | K6: =INDEX(Mortality!$B$7:$F$32, MATCH( E6,Mortality!$A$7:$A$32, 0), MATCH( K$3,Mortality!$B$6:$F$6,0)) -> 0.33 | L6: =PAD_Mort -> 0 | M6: =IFERROR( K6*(1+L6), 0) -> 0.33 | N6: =INDEX(Myopia!$H:$H, MATCH(E6, Myopia!$A:$A, 0)) * Trend_Factor^(A6) -> 0 | O6: =PAD_Incid -> 0 | P6: =IFERROR( N6*(1+O6), 0) -> 0 | Q6: =VLOOKUP(C6,Others!$L$10:$M$61,2) -> 0 | R6: =PAD_Laspe -> 0 | S6: =IFERROR( Q6*(1+R6), 0) -> 0 | T6: =(M6/1000)/12 -> 2.75e-05 | U6: =(P6/1000)/12 -> 0 | V6: =(S6/1000)/12 -> 0 | W6: =IF(E6>Mat_Year, 0, AA5) -> 1 | X6: =W6 * (T6)*(1-U6/2) -> 2.75e-05 | Y6: =W6 * (1-T6/2)*(U6) -> 0 | Z6: =W6 * (1-T6)*(1-U6)*(V6) -> 0 | AA6: =W6-SUM(X6:Z6) -> 0.9999725 | AC6: =IF(C6>Prem_Term,0,Ann_Prem) -> 465.3 | AD6: =IF(Prem_Mode="single", Parameters!$C$28, IF(Prem_Mode="Mth", AC6/12, IF(B6=1, AC6, 0))) -> 9306 | AE6: =AD6*$W6 -> 9306 | AF6: =IF($W6 = 0, 0, AG6/$W6) -> 0 | AG6: =SUMPRODUCT(AE7:AE$605, $I6:$I$604) / $I6 -> 0 | AI6: =IF(E6>Mat_Year,0, -Sum_Assured) -> -47000 | AJ6: =IF(E6>Mat_Year,0, -SUM($AD$5:AD6)) -> -9306 | AK6: =AJ6*X6 -> -0.255915 | AL6: =AI6*Y6 -> 0 | AM6: =IF($W6 = 0, 0, AN6/$W6) -> -0.255915 | AN6: =SUM(AK6:AL6) -> -0.255915 | AO6: =IF($W6 = 0, 0, AP6/$W6) -> -6498.972057 | AP6: =SUMPRODUCT(AN7:AN$605, $I7:$I$605) / $I6 -> -6498.972057 | AR6: 0 | AS6: 0 | AT6: 0 | AU6: =IF(E6>Mat_Year,0, -Exp_Main/12 * (1+Exp_Main_Infl)^(A5)) -> -1.744875 | AV6: =PAD_Exp_Main -> 0 | AW6: =AU6*(1+AV6) -> -1.744875 | AX6: =IF(E6>Mat_Year,0, -Exp_Claim* (1+Exp_Main_Infl)^(A5)) -> -20.0079 | AY6: =PAD_Exp_Claim -> 0 | AZ6: =AX6*(1+AY6) -> -20.0079 | BA6: =AW6*$W6 -> -1.744875 | BB6: =AZ6*SUM(X6:Y6) -> -0.00055021725 | BC6: =IF($W6 = 0, 0, BE6/$W6) -> -1.744875 | BD6: =IF($W6 = 0, 0, BF6/$W6) -> -0.00055021725 | BE6: =SUM(AT6,BA6) -> -1.744875 | BF6: =SUM(BB6) -> -0.00055021725 | BG6: =IF($W6 = 0, 0, BH6/$W6) -> -310.056115 | BH6: =(SUMPRODUCT(BE7:BE$605,$I6:$I$604)+SUMPRODUCT(BF7:BF$605,$I7:$I$605)) / $I6 -> -310.056115 | BJ6: =SUM(AE6,BE6) -> 9304.255125 | BK6: =SUM(AN6,BF6) -> -0.2564652172 | BM6: =IF($W6 = 0, 0, BN6/$AA6) -> 6809.215426 | BN6: =MAX(BN7/(1+H7) - (BJ7 + BK7/(1+H7)),0) -> 6809.028172 | BP6: =Reserve!BX6 -> 9441.618857 | BQ6: =BP6*AA6 -> 9441.359213 | BR6: =BQ5-BQ6 -> -9319.175408 | BT6: =IF($W6 = 0, 0, BU6/$W6) -> 20.40771009 | BU6: =SUM(BJ6,BQ5)*H6 -> 20.40771009 | BV6: =SUMPRODUCT(BU7:BU$605, $I7:$I$605) / $I6 -> 3659.632059 | BX6: =-BZ6*Others!$Q$43 -> -1.339126161 | BZ6: =SUM(BJ6,BK6,BR6,BU6) -> 5.230961567 | CA6: =BZ6+BX6 -> 3.891835406 | CB6: =CA6 -> 3.891835406 | CD6: =SUMPRODUCT(BZ7:BZ$605, $I7:$I$605) / $I6 -> 2632.331041 | CE6: =SUMPRODUCT(CA7:CA$605, $I7:$I$605) / $I6 -> 1958.454294 | CF6: =SUMPRODUCT(CB7:CB$605, $I7:$I$605) / $I6 -> 1958.454294 | CH6: =IF(E7>Mat_Year, 0, MAX(0, -AI6-$BP6)) -> 37558.38114 | CI6: =IF(E7>Mat_Year, 0, MAX(0, -AJ6-$BP6)) -> 0 | CK6: =NPV((1+CK$3)^(1/12)-1,$CB$6:$CB6)+$CB$5 -> -710.1522499 | CL6: =NPV((1+CL$3)^(1/12)-1,$CB$6:$CB6)+$CB$5 -> -710.1584667 | CM6: =NPV((1+CM$3)^(1/12)-1,$CB$6:$CB6)+$CB$5 -> -710.1734637 | CN6: =NPV((1+CN$3)^(1/12)-1,$CB$6:$CB6)+$CB$5 -> -710.1734637
A7: 0.1666666667 | B7: =IF(B6=12,1,B6+1) -> 2 | C7: =IF(B6=12,C6+1,C6) -> 1 | D7: =$D$5+A7 -> 0.6666666667 | E7: 0 | G7: =INDEX(Others!$D$11:$E$60, MATCH(C7, Others!$A$11:$A$60, 0), MATCH(G$3, Others!$D$10:$E$10, 0)) -> 0.02629090909 | H7: =(1+G7)^(1/12) - 1 -> 0.002164943754 | I7: =I6/(1+H7) -> 0.995684133 | K7: =INDEX(Mortality!$B$7:$F$32, MATCH( E7,Mortality!$A$7:$A$32, 0), MATCH( K$3,Mortality!$B$6:$F$6,0)) -> 0.33 | L7: 0 | M7: =IFERROR( K7*(1+L7), 0) -> 0.33 | N7: =INDEX(Myopia!$H:$H, MATCH(E7, Myopia!$A:$A, 0)) * Trend_Factor^(A7) -> 0 | O7: 0 | P7: =IFERROR( N7*(1+O7), 0) -> 0 | Q7: =VLOOKUP(C7,Others!$L$10:$M$61,2) -> 0 | R7: 0 | S7: =IFERROR( Q7*(1+R7), 0) -> 0 | T7: =(M7/1000)/12 -> 2.75e-05 | U7: =(P7/1000)/12 -> 0 | V7: =(S7/1000)/12 -> 0 | W7: 0.9999725 | X7: =W7 * (T7)*(1-U7/2) -> 2.749924375e-05 | Y7: =W7 * (1-T7/2)*(U7) -> 0 | Z7: =W7 * (1-T7)*(1-U7)*(V7) -> 0 | AA7: =W7-SUM(X7:Z7) -> 0.9999450008 | AC7: 465.3 | AD7: =IF(Prem_Mode="Mth",AC7/12, IF(B7=1, AC7, 0)) -> 0 | AE7: =AD7*$W7 -> 0 | AF7: =IF($W7 = 0, 0, AG7/$W7) -> 0 | AG7: =SUMPRODUCT(AE8:AE$605, $I7:$I$604) / $I7 -> 0 | AI7: -47000 | AJ7: =IF(E7>Mat_Year,0, -SUM($AD$5:AD7)) -> -9306 | AK7: =AJ7*X7 -> -0.2559079623 | AL7: =AI7*Y7 -> 0 | AM7: =IF($W7 = 0, 0, AN7/$W7) -> -0.255915 | AN7: =SUM(AK7:AL7) -> -0.2559079623 | AO7: =IF($W7 = 0, 0, AP7/$W7) -> -6512.965165 | AP7: =SUMPRODUCT(AN8:AN$605, $I8:$I$605) / $I7 -> -6512.786058 | AR7: 0 | AS7: 0 | AT7: 0 | AU7: -1.746825942 | AV7: 0 | AW7: =AU7*(1+AV7) -> -1.746825942 | AX7: -20.0302708 | AY7: 0 | AZ7: =AX7*(1+AY7) -> -20.0302708 | BA7: =AW7*$W7 -> -1.746777904 | BB7: =AZ7*SUM(X7:Y7) -> -0.0005508172992 | BC7: =IF($W7 = 0, 0, BE7/$W7) -> -1.746825942 | BD7: =IF($W7 = 0, 0, BF7/$W7) -> -0.0005508324471 | BE7: =SUM(AT7,BA7) -> -1.746777904 | BF7: =SUM(BB7) -> -0.0005508172992 | BG7: =IF($W7 = 0, 0, BH7/$W7) -> -308.9847558 | BH7: =(SUMPRODUCT(BE8:BE$605,$I7:$I$604)+SUMPRODUCT(BF8:BF$605,$I8:$I$605)) / $I7 -> -308.9762587 | BJ7: =SUM(AE7,BE7) -> -1.746777904 | BK7: =SUM(AN7,BF7) -> -0.2564587796 | BM7: =IF($W7 = 0, 0, BN7/$AA7) -> 6822.137529 | BN7: =MAX(BN8/(1+H8) - (BJ8 + BK8/(1+H8)),0) -> 6821.762317 | BP7: =Reserve!BX7 -> 9455.072489 | BQ7: 9454.552467 | BR7: =BQ6-BQ7 -> -13.1932539 | BT7: =IF($W7 = 0, 0, BU7/$W7) -> 20.436792 | BU7: =SUM(BJ7,BQ6)*H7 -> 20.43622998 | BV7: =SUMPRODUCT(BU8:BU$605, $I8:$I$605) / $I7 -> 3647.118727 | BX7: =-BZ7*Others!$Q$43 -> -1.341373286 | BZ7: =SUM(BJ7,BK7,BR7,BU7) -> 5.239739397 | CA7: =BZ7+BX7 -> 3.898366112 | CB7: 3.898366112 | CD7: =SUMPRODUCT(BZ8:BZ$605, $I8:$I$605) / $I7 -> 2632.79015 | CE7: =SUMPRODUCT(CA8:CA$605, $I8:$I$605) / $I7 -> 1958.795872 | CF7: =SUMPRODUCT(CB8:CB$605, $I8:$I$605) / $I7 -> 1958.795872 | CH7: 37544.92751 | CI7: 0 | CK7: =NPV((1+CK$3)^(1/12)-1,$CB$6:$CB7)+$CB$5 -> -706.2730417 | CL7: =NPV((1+CL$3)^(1/12)-1,$CB$6:$CB7)+$CB$5 -> -706.2916723 | CM7: =NPV((1+CM$3)^(1/12)-1,$CB$6:$CB7)+$CB$5 -> -706.336534 | CN7: =NPV((1+CN$3)^(1/12)-1,$CB$6:$CB7)+$CB$5 -> -706.336534
A8: 0.25 | B8: =IF(B7=12,1,B7+1) -> 3 | C8: 1 | D8: 0.75 | E8: 0 | G8: =INDEX(Others!$D$11:$E$60, MATCH(C8, Others!$A$11:$A$60, 0), MATCH(G$3, Others!$D$10:$E$10, 0)) -> 0.02629090909 | H8: 0.002164943754 | I8: 0.9935331895 | K8: =INDEX(Mortality!$B$7:$F$32, MATCH( E8,Mortality!$A$7:$A$32, 0), MATCH( K$3,Mortality!$B$6:$F$6,0)) -> 0.33 | L8: 0 | M8: 0.33 | N8: =INDEX(Myopia!$H:$H, MATCH(E8, Myopia!$A:$A, 0)) * Trend_Factor^(A8) -> 0 | O8: 0 | P8: 0 | Q8: =VLOOKUP(C8,Others!$L$10:$M$61,2) -> 0 | R8: 0 | S8: 0 | T8: 2.75e-05 | U8: 0 | V8: 0 | W8: 0.9999450008 | X8: 2.749848752e-05 | Y8: 0 | Z8: 0 | AA8: 0.9999175023 | AC8: 465.3 | AD8: 0 | AE8: 0 | AF8: 0 | AG8: =SUMPRODUCT(AE9:AE$605, $I8:$I$604) / $I8 -> 0 | AI8: -47000 | AJ8: =IF(E8>Mat_Year,0, -SUM($AD$5:AD8)) -> -9306 | AK8: -0.2559009249 | AL8: 0 | AM8: -0.255915 | AN8: -0.2559009249 | AO8: -6526.988952 | AP8: =SUMPRODUCT(AN9:AN$605, $I9:$I$605) / $I8 -> -6526.629973 | AR8: 0 | AS8: 0 | AT8: 0 | AU8: -1.748779066 | AV8: 0 | AW8: -1.748779066 | AX8: -20.05266662 | AY8: 0 | AZ8: -20.05266662 | BA8: -1.748682884 | BB8: -0.0005514180028 | BC8: -1.748779066 | BD8: -0.000551448332 | BE8: -1.748682884 | BF8: -0.0005514180028 | BG8: -307.9090896 | BH8: =(SUMPRODUCT(BE9:BE$605,$I8:$I$604)+SUMPRODUCT(BF9:BF$605,$I9:$I$605)) / $I8 -> -307.8921548 | BJ8: -1.748682884 | BK8: -0.2564523429 | BM8: 6835.086007 | BN8: 6834.522128 | BP8: =Reserve!BX8 -> 9468.544722 | BQ8: 9467.763588 | BR8: -13.21112162 | BT8: 20.46591412 | BU8: 20.46478851 | BV8: =SUMPRODUCT(BU9:BU$605, $I9:$I$605) / $I8 -> 3634.549745 | BX8: =-BZ8*Others!$Q$43 -> -1.343624106 | BZ8: 5.248531662 | CA8: 3.904907557 | CB8: 3.904907557 | CD8: =SUMPRODUCT(BZ9:BZ$605, $I9:$I$605) / $I8 -> 2633.241461 | CE8: =SUMPRODUCT(CA9:CA$605, $I9:$I$605) / $I8 -> 1959.131647 | CF8: =SUMPRODUCT(CB9:CB$605, $I9:$I$605) / $I8 -> 1959.131647 | CH8: 37531.45528 | CI8: 0 | CK8: =NPV((1+CK$3)^(1/12)-1,$CB$6:$CB8)+$CB$5 -> -702.3968839 | CL8: =NPV((1+CL$3)^(1/12)-1,$CB$6:$CB8)+$CB$5 -> -702.4341057 | CM8: =NPV((1+CM$3)^(1/12)-1,$CB$6:$CB8)+$CB$5 -> -702.5235711 | CN8: =NPV((1+CN$3)^(1/12)-1,$CB$6:$CB8)+$CB$5 -> -702.5235711
A9: 0.3333333333 | B9: 4 | C9: 1 | D9: 0.8333333333 | E9: 0 | G9: =INDEX(Others!$D$11:$E$60, MATCH(C9, Others!$A$11:$A$60, 0), MATCH(G$3, Others!$D$10:$E$10, 0)) -> 0.02629090909 | H9: 0.002164943754 | I9: 0.9913868926 | K9: =INDEX(Mortality!$B$7:$F$32, MATCH( E9,Mortality!$A$7:$A$32, 0), MATCH( K$3,Mortality!$B$6:$F$6,0)) -> 0.33 | L9: 0 | M9: 0.33 | N9: =INDEX(Myopia!$H:$H, MATCH(E9, Myopia!$A:$A, 0)) * Trend_Factor^(A9) -> 0 | O9: 0 | P9: 0 | Q9: =VLOOKUP(C9,Others!$L$10:$M$61,2) -> 0 | R9: 0 | S9: 0 | T9: 2.75e-05 | U9: 0 | V9: 0 | W9: 0.9999175023 | X9: 2.749773131e-05 | Y9: 0 | Z9: 0 | AA9: 0.9998900045 | AC9: 465.3 | AD9: 0 | AE9: 0 | AF9: 0 | AG9: =SUMPRODUCT(AE10:AE$605, $I9:$I$604) / $I9 -> 0 | AI9: -47000 | AJ9: =IF(E9>Mat_Year,0, -SUM($AD$5:AD9)) -> -9306 | AK9: -0.2558938876 | AL9: 0 | AM9: -0.255915 | AN9: -0.2558938876 | AO9: -6541.043487 | AP9: =SUMPRODUCT(AN10:AN$605, $I10:$I$605) / $I9 -> -6540.503866 | AR9: 0 | AS9: 0 | AT9: 0 | AU9: -1.750734373 | AV9: 0 | AW9: -1.750734373 | AX9: -20.07508748 | AY9: 0 | AZ9: -20.07508748 | BA9: -1.750589941 | BB9: -0.0005520193615 | BC9: -1.750734373 | BD9: -0.0005520649056 | BE9: -1.750589941 | BF9: -0.0005520193615 | BG9: -306.8291048 | BH9: =(SUMPRODUCT(BE10:BE$605,$I9:$I$604)+SUMPRODUCT(BF10:BF$605,$I10:$I$605)) / $I9 -> -306.8037921 | BJ9: -1.750589941 | BK9: -0.256445907 | BM9: 6848.060913 | BN9: 6847.307658 | BP9: =Reserve!BX9 -> 9482.035581 | BQ9: 9480.9926 | BR9: -13.22901149 | BT9: 20.49507652 | BU9: 20.49338572 | BV9: =SUMPRODUCT(BU10:BU$605, $I10:$I$605) / $I9 -> 3621.924955 | BX9: =-BZ9*Others!$Q$43 -> -1.345878627 | BZ9: 5.257338385 | CA9: 3.911459759 | CB9: 3.911459759 | CD9: =SUMPRODUCT(BZ10:BZ$605, $I10:$I$605) / $I9 -> 2633.684942 | CE9: =SUMPRODUCT(CA10:CA$605, $I10:$I$605) / $I9 -> 1959.461597 | CF9: =SUMPRODUCT(CB10:CB$605, $I10:$I$605) / $I9 -> 1959.461597 | CH9: 37517.96442 | CI9: 0 | CK9: =NPV((1+CK$3)^(1/12)-1,$CB$6:$CB9)+$CB$5 -> -698.5237743 | CL9: =NPV((1+CL$3)^(1/12)-1,$CB$6:$CB9)+$CB$5 -> -698.5857451 | CM9: =NPV((1+CM$3)^(1/12)-1,$CB$6:$CB9)+$CB$5 -> -698.7344254 | CN9: =NPV((1+CN$3)^(1/12)-1,$CB$6:$CB9)+$CB$5 -> -698.7344254
A10: 0.4166666667 | B10: 5 | C10: 1 | D10: 0.9166666667 | E10: 0 | G10: =INDEX(Others!$D$11:$E$60, MATCH(C10, Others!$A$11:$A$60, 0), MATCH(G$3, Others!$D$10:$E$10, 0)) -> 0.02629090909 | H10: =(1+G10)^(1/12) - 1 -> 0.002164943754 | I10: =I9/(1+H10) -> 0.9892452323 | K10: =INDEX(Mortality!$B$7:$F$32, MATCH( E10,Mortality!$A$7:$A$32, 0), MATCH( K$3,Mortality!$B$6:$F$6,0)) -> 0.33 | L10: 0 | M10: 0.33 | N10: =INDEX(Myopia!$H:$H, MATCH(E10, Myopia!$A:$A, 0)) * Trend_Factor^(A10) -> 0 | O10: 0 | P10: 0 | Q10: =VLOOKUP(C10,Others!$L$10:$M$61,2) -> 0 | R10: 0 | S10: 0 | T10: 2.75e-05 | U10: 0 | V10: 0 | W10: 0.9998900045 | X10: 2.749697512e-05 | Y10: 0 | Z10: 0 | AA10: 0.9998625076 | AC10: 465.3 | AD10: 0 | AE10: 0 | AF10: 0 | AG10: =SUMPRODUCT(AE11:AE$605, $I10:$I$604) / $I10 -> 0 | AI10: -47000 | AJ10: =IF(E10>Mat_Year,0, -SUM($AD$5:AD10)) -> -9306 | AK10: -0.2558868505 | AL10: 0 | AM10: -0.255915 | AN10: -0.2558868505 | AO10: -6555.128836 | AP10: =SUMPRODUCT(AN11:AN$605, $I11:$I$605) / $I10 -> -6554.407802 | AR10: 0 | AS10: 0 | AT10: 0 | AU10: -1.752691866 | AV10: 0 | AW10: -1.752691866 | AX10: -20.0975334 | AY10: 0 | AZ10: -20.0975334 | BA10: -1.752499078 | BB10: -0.000552621376 | BC10: -1.752691866 | BD10: -0.0005526821685 | BE10: -1.752499078 | BF10: -0.000552621376 | BG10: -305.7447899 | BH10: =(SUMPRODUCT(BE11:BE$605,$I10:$I$604)+SUMPRODUCT(BF11:BF$605,$I11:$I$605)) / $I10 -> -305.7111593 | BJ10: -1.752499078 | BK10: -0.2564394719 | BM10: 6861.062305 | BN10: 6860.118961 | BP10: =Reserve!BX10 -> 9495.545089 | BQ10: 9494.239523 | BR10: -13.24692351 | BT10: 20.52427923 | BU10: 20.52202165 | BV10: =SUMPRODUCT(BU11:BU$605, $I11:$I$605) / $I10 -> 3609.244197 | BX10: =-BZ10*Others!$Q$43 -> -1.348136855 | BZ10: 5.266159589 | CA10: 3.918022734 | CB10: 3.918022734 | CD10: =SUMPRODUCT(BZ11:BZ$605, $I11:$I$605) / $I10 -> 2634.120562 | CE10: =SUMPRODUCT(CA11:CA$605, $I11:$I$605) / $I10 -> 1959.785698 | CF10: =SUMPRODUCT(CB11:CB$605, $I11:$I$605) / $I10 -> 1959.785698 | CH10: 37504.45491 | CI10: 0 | CK10: =NPV((1+CK$3)^(1/12)-1,$CB$6:$CB10)+$CB$5 -> -694.6537106 | CL10: =NPV((1+CL$3)^(1/12)-1,$CB$6:$CB10)+$CB$5 -> -694.7465686 | CM10: =NPV((1+CM$3)^(1/12)-1,$CB$6:$CB10)+$CB$5 -> -694.9689484 | CN10: =NPV((1+CN$3)^(1/12)-1,$CB$6:$CB10)+$CB$5 -> -694.9689484
A11: 0.5 | B11: 6 | C11: 1 | D11: 1 | E11: 1 | G11: =INDEX(Others!$D$11:$E$60, MATCH(C11, Others!$A$11:$A$60, 0), MATCH(G$3, Others!$D$10:$E$10, 0)) -> 0.02629090909 | H11: 0.002164943754 | I11: 0.9871081986 | K11: =INDEX(Mortality!$B$7:$F$32, MATCH( E11,Mortality!$A$7:$A$32, 0), MATCH( K$3,Mortality!$B$6:$F$6,0)) -> 0.33 | L11: 0 | M11: 0.33 | N11: =INDEX(Myopia!$H:$H, MATCH(E11, Myopia!$A:$A, 0)) * Trend_Factor^(A11) -> 0 | O11: 0 | P11: 0 | Q11: =VLOOKUP(C11,Others!$L$10:$M$61,2) -> 0 | R11: 0 | S11: 0 | T11: 2.75e-05 | U11: 0 | V11: 0 | W11: 0.9998625076 | X11: 2.749621896e-05 | Y11: 0 | Z11: 0 | AA11: 0.9998350113 | AC11: 465.3 | AD11: 0 | AE11: 0 | AF11: 0 | AG11: =SUMPRODUCT(AE12:AE$605, $I11:$I$604) / $I11 -> 0 | AI11: -47000 | AJ11: =IF(E11>Mat_Year,0, -SUM($AD$5:AD11)) -> -9306 | AK11: -0.2558798136 | AL11: 0 | AM11: -0.255915 | AN11: -0.2558798136 | AO11: -6569.245068 | AP11: =SUMPRODUCT(AN12:AN$605, $I12:$I$605) / $I11 -> -6568.341846 | AR11: 0 | AS11: 0 | AT11: 0 | AU11: -1.754651549 | AV11: 0 | AW11: -1.754651549 | AX11: -20.12000442 | AY11: 0 | AZ11: -20.12000442 | BA11: -1.754410297 | BB11: -0.0005532240471 | BC11: -1.754651549 | BD11: -0.0005533001217 | BE11: -1.754410297 | BF11: -0.0005532240471 | BG11: -304.656133 | BH11: =(SUMPRODUCT(BE12:BE$605,$I11:$I$604)+SUMPRODUCT(BF12:BF$605,$I12:$I$605)) / $I11 -> -304.6142451 | BJ11: -1.754410297 | BK11: -0.2564330377 | BM11: 6874.090238 | BN11: 6872.956091 | BP11: =Reserve!BX11 -> 9509.07327 | BQ11: 9507.504381 | BR11: -13.26485773 | BT11: 20.55352231 | BU11: 20.55069636 | BV11: =SUMPRODUCT(BU12:BU$605, $I12:$I$605) / $I11 -> 3596.507312 | BX11: =-BZ11*Others!$Q$43 -> -1.350398796 | BZ11: 5.274995295 | CA11: 3.9245965 | CB11: 3.9245965 | CD11: =SUMPRODUCT(BZ12:BZ$605, $I12:$I$605) / $I11 -> 2634.54829 | CE11: =SUMPRODUCT(CA12:CA$605, $I12:$I$605) / $I11 -> 1960.103928 | CF11: =SUMPRODUCT(CB12:CB$605, $I12:$I$605) / $I11 -> 1960.103928 | CH11: 37490.92673 | CI11: 0 | CK11: =NPV((1+CK$3)^(1/12)-1,$CB$6:$CB11)+$CB$5 -> -690.7866908 | CL11: =NPV((1+CL$3)^(1/12)-1,$CB$6:$CB11)+$CB$5 -> -690.9165546 | CM11: =NPV((1+CM$3)^(1/12)-1,$CB$6:$CB11)+$CB$5 -> -691.2269924 | CN11: =NPV((1+CN$3)^(1/12)-1,$CB$6:$CB11)+$CB$5 -> -691.2269924
A12: 0.5833333333 | B12: 7 | C12: 1 | D12: 1.083333333 | E12: 1 | G12: =INDEX(Others!$D$11:$E$60, MATCH(C12, Others!$A$11:$A$60, 0), MATCH(G$3, Others!$D$10:$E$10, 0)) -> 0.02629090909 | H12: 0.002164943754 | I12: 0.9849757814 | K12: =INDEX(Mortality!$B$7:$F$32, MATCH( E12,Mortality!$A$7:$A$32, 0), MATCH( K$3,Mortality!$B$6:$F$6,0)) -> 0.33 | L12: 0 | M12: 0.33 | N12: =INDEX(Myopia!$H:$H, MATCH(E12, Myopia!$A:$A, 0)) * Trend_Factor^(A12) -> 0 | O12: 0 | P12: 0 | Q12: =VLOOKUP(C12,Others!$L$10:$M$61,2) -> 0 | R12: 0 | S12: 0 | T12: 2.75e-05 | U12: 0 | V12: 0 | W12: 0.9998350113 | X12: 2.749546281e-05 | Y12: 0 | Z12: 0 | AA12: 0.9998075159 | AC12: 465.3 | AD12: 0 | AE12: 0 | AF12: 0 | AG12: =SUMPRODUCT(AE13:AE$605, $I12:$I$604) / $I12 -> 0 | AI12: -47000 | AJ12: =IF(E12>Mat_Year,0, -SUM($AD$5:AD12)) -> -9306 | AK12: -0.2558727769 | AL12: 0 | AM12: -0.255915 | AN12: -0.2558727769 | AO12: -6583.392249 | AP12: =SUMPRODUCT(AN13:AN$605, $I13:$I$605) / $I12 -> -6582.306064 | AR12: 0 | AS12: 0 | AT12: 0 | AU12: -1.756613422 | AV12: 0 | AW12: =AU12*(1+AV12) -> -1.756613422 | AX12: -20.14250057 | AY12: 0 | AZ12: =AX12*(1+AY12) -> -20.14250057 | BA12: =AW12*$W12 -> -1.756323601 | BB12: =AZ12*SUM(X12:Y12) -> -0.0005538273754 | BC12: =IF($W12 = 0, 0, BE12/$W12) -> -1.756613422 | BD12: =IF($W12 = 0, 0, BF12/$W12) -> -0.0005539187657 | BE12: =SUM(AT12,BA12) -> -1.756323601 | BF12: =SUM(BB12) -> -0.0005538273754 | BG12: -303.5631225 | BH12: =(SUMPRODUCT(BE13:BE$605,$I12:$I$604)+SUMPRODUCT(BF13:BF$605,$I13:$I$605)) / $I12 -> -303.513038 | BJ12: -1.756323601 | BK12: -0.2564266043 | BM12: 6887.144768 | BN12: 6885.819102 | BP12: =Reserve!BX12 -> 9522.620148 | BQ12: 9520.787195 | BR12: -13.28281415 | BT12: 20.58280582 | BU12: 20.57940989 | BV12: =SUMPRODUCT(BU13:BU$605, $I13:$I$605) / $I12 -> 3583.714138 | BX12: =-BZ12*Others!$Q$43 -> -1.352664455 | BZ12: 5.283845529 | CA12: 3.931181074 | CB12: 3.931181074 | CD12: =SUMPRODUCT(BZ13:BZ$605, $I13:$I$605) / $I12 -> 2634.968093 | CE12: =SUMPRODUCT(CA13:CA$605, $I13:$I$605) / $I12 -> 1960.416261 | CF12: =SUMPRODUCT(CB13:CB$605, $I13:$I$605) / $I12 -> 1960.416261 | CH12: 37477.37985 | CI12: 0 | CK12: =NPV((1+CK$3)^(1/12)-1,$CB$6:$CB12)+$CB$5 -> -686.9227126 | CL12: =NPV((1+CL$3)^(1/12)-1,$CB$6:$CB12)+$CB$5 -> -687.0956814 | CM12: =NPV((1+CM$3)^(1/12)-1,$CB$6:$CB12)+$CB$5 -> -687.5084108 | CN12: =NPV((1+CN$3)^(1/12)-1,$CB$6:$CB12)+$CB$5 -> -687.5084108
A13: 0.6666666667 | B13: 8 | C13: 1 | D13: 1.166666667 | E13: 1 | G13: =INDEX(Others!$D$11:$E$60, MATCH(C13, Others!$A$11:$A$60, 0), MATCH(G$3, Others!$D$10:$E$10, 0)) -> 0.02629090909 | H13: 0.002164943754 | I13: 0.9828479709 | K13: =INDEX(Mortality!$B$7:$F$32, MATCH( E13,Mortality!$A$7:$A$32, 0), MATCH( K$3,Mortality!$B$6:$F$6,0)) -> 0.33 | L13: 0 | M13: 0.33 | N13: =INDEX(Myopia!$H:$H, MATCH(E13, Myopia!$A:$A, 0)) * Trend_Factor^(A13) -> 0 | O13: 0 | P13: 0 | Q13: =VLOOKUP(C13,Others!$L$10:$M$61,2) -> 0 | R13: 0 | S13: 0 | T13: 2.75e-05 | U13: 0 | V13: 0 | W13: 0.9998075159 | X13: 2.749470669e-05 | Y13: 0 | Z13: 0 | AA13: 0.9997800212 | AC13: 465.3 | AD13: 0 | AE13: 0 | AF13: 0 | AG13: =SUMPRODUCT(AE14:AE$605, $I13:$I$604) / $I13 -> 0 | AI13: -47000 | AJ13: =IF(E13>Mat_Year,0, -SUM($AD$5:AD13)) -> -9306 | AK13: -0.2558657404 | AL13: 0 | AM13: -0.255915 | AN13: -0.2558657404 | AO13: -6597.570448 | AP13: =SUMPRODUCT(AN14:AN$605, $I14:$I$605) / $I13 -> -6596.300521 | AR13: 0 | AS13: 0 | AT13: 0 | AU13: -1.758577489 | AV13: 0 | AW13: -1.758577489 | AX13: -20.16502187 | AY13: 0 | AZ13: -20.16502187 | BA13: -1.758238991 | BB13: -0.0005544313617 | BC13: -1.758577489 | BD13: -0.0005545381015 | BE13: -1.758238991 | BF13: -0.0005544313617 | BG13: -302.4657466 | BH13: =(SUMPRODUCT(BE14:BE$605,$I13:$I$604)+SUMPRODUCT(BF14:BF$605,$I14:$I$605)) / $I13 -> -302.4075267 | BJ13: -1.758238991 | BK13: -0.2564201718 | BM13: 6900.225951 | BN13: 6898.708048 | BP13: =Reserve!BX13 -> 9536.185747 | BQ13: 9534.087988 | BR13: -13.30079281 | BT13: 20.61212979 | BU13: 20.60816229 | BV13: =SUMPRODUCT(BU14:BU$605, $I14:$I$605) / $I13 -> 3570.864515 | BX13: =-BZ13*Others!$Q$43 -> -1.35493384 | BZ13: 5.292710312 | CA13: 3.937776472 | CB13: 3.937776472 | CD13: =SUMPRODUCT(BZ14:BZ$605, $I14:$I$605) / $I13 -> 2635.379941 | CE13: =SUMPRODUCT(CA14:CA$605, $I14:$I$605) / $I13 -> 1960.722676 | CF13: =SUMPRODUCT(CB14:CB$605, $I14:$I$605) / $I13 -> 1960.722676 | CH13: 37463.81425 | CI13: 0 | CK13: =NPV((1+CK$3)^(1/12)-1,$CB$6:$CB13)+$CB$5 -> -683.0617738 | CL13: =NPV((1+CL$3)^(1/12)-1,$CB$6:$CB13)+$CB$5 -> -683.2839274 | CM13: =NPV((1+CM$3)^(1/12)-1,$CB$6:$CB13)+$CB$5 -> -683.8130578 | CN13: =NPV((1+CN$3)^(1/12)-1,$CB$6:$CB13)+$CB$5 -> -683.8130578
A14: 0.75 | B14: 9 | C14: 1 | D14: 1.25 | E14: 1 | G14: =INDEX(Others!$D$11:$E$60, MATCH(C14, Others!$A$11:$A$60, 0), MATCH(G$3, Others!$D$10:$E$10, 0)) -> 0.02629090909 | H14: 0.002164943754 | I14: 0.9807247569 | K14: =INDEX(Mortality!$B$7:$F$32, MATCH( E14,Mortality!$A$7:$A$32, 0), MATCH( K$3,Mortality!$B$6:$F$6,0)) -> 0.33 | L14: 0 | M14: 0.33 | N14: =INDEX(Myopia!$H:$H, MATCH(E14, Myopia!$A:$A, 0)) * Trend_Factor^(A14) -> 0 | O14: 0 | P14: 0 | Q14: =VLOOKUP(C14,Others!$L$10:$M$61,2) -> 0 | R14: 0 | S14: 0 | T14: 2.75e-05 | U14: 0 | V14: 0 | W14: 0.9997800212 | X14: 2.749395058e-05 | Y14: 0 | Z14: 0 | AA14: 0.9997525272 | AC14: 465.3 | AD14: 0 | AE14: 0 | AF14: 0 | AG14: =SUMPRODUCT(AE15:AE$605, $I14:$I$604) / $I14 -> 0 | AI14: -47000 | AJ14: =IF(E14>Mat_Year,0, -SUM($AD$5:AD14)) -> -9306 | AK14: -0.2558587041 | AL14: 0 | AM14: -0.255915 | AN14: -0.2558587041 | AO14: -6611.779733 | AP14: =SUMPRODUCT(AN15:AN$605, $I15:$I$605) / $I14 -> -6610.325282 | AR14: 0 | AS14: 0 | AT14: 0 | AU14: -1.760543752 | AV14: 0 | AW14: -1.760543752 | AX14: -20.18756835 | AY14: 0 | AZ14: -20.18756835 | BA14: -1.760156469 | BB14: -0.0005550360066 | BC14: -1.760543752 | BD14: -0.0005551581297 | BE14: -1.760156469 | BF14: -0.0005550360066 | BG14: -301.3639936 | BH14: =(SUMPRODUCT(BE15:BE$605,$I14:$I$604)+SUMPRODUCT(BF15:BF$605,$I15:$I$605)) / $I14 -> -301.2976999 | BJ14: -1.760156469 | BK14: -0.2564137401 | BM14: 6913.333843 | BN14: 6911.622982 | BP14: =Reserve!BX14 -> 9549.77009 | BQ14: 9547.406782 | BR14: -13.31879373 | BT14: 20.64149429 | BU14: =SUM(BJ14,BQ13)*H14 -> 20.6369536 | BV14: =SUMPRODUCT(BU15:BU$605, $I15:$I$605) / $I14 -> 3557.958282 | BX14: =-BZ14*Others!$Q$43 -> -1.357206955 | BZ14: =SUM(BJ14,BK14,BR14,BU14) -> 5.301589668 | CA14: 3.944382713 | CB14: 3.944382713 | CD14: =SUMPRODUCT(BZ15:BZ$605, $I15:$I$605) / $I14 -> 2635.7838 | CE14: =SUMPRODUCT(CA15:CA$605, $I15:$I$605) / $I14 -> 1961.023147 | CF14: =SUMPRODUCT(CB15:CB$605, $I15:$I$605) / $I14 -> 1961.023147 | CH14: 37450.22991 | CI14: 0 | CK14: =NPV((1+CK$3)^(1/12)-1,$CB$6:$CB14)+$CB$5 -> -679.2038724 | CL14: =NPV((1+CL$3)^(1/12)-1,$CB$6:$CB14)+$CB$5 -> -679.4812712 | CM14: =NPV((1+CM$3)^(1/12)-1,$CB$6:$CB14)+$CB$5 -> -680.1407884 | CN14: =NPV((1+CN$3)^(1/12)-1,$CB$6:$CB14)+$CB$5 -> -680.1407884
A15: 0.8333333333 | B15: 10 | C15: 1 | D15: 1.333333333 | E15: 1 | G15: =INDEX(Others!$D$11:$E$60, MATCH(C15, Others!$A$11:$A$60, 0), MATCH(G$3, Others!$D$10:$E$10, 0)) -> 0.02629090909 | H15: 0.002164943754 | I15: 0.9786061297 | K15: =INDEX(Mortality!$B$7:$F$32, MATCH( E15,Mortality!$A$7:$A$32, 0), MATCH( K$3,Mortality!$B$6:$F$6,0)) -> 0.33 | L15: 0 | M15: 0.33 | N15: =INDEX(Myopia!$H:$H, MATCH(E15, Myopia!$A:$A, 0)) * Trend_Factor^(A15) -> 0 | O15: 0 | P15: 0 | Q15: =VLOOKUP(C15,Others!$L$10:$M$61,2) -> 0 | R15: 0 | S15: 0 | T15: 2.75e-05 | U15: 0 | V15: 0 | W15: 0.9997525272 | X15: 2.74931945e-05 | Y15: 0 | Z15: 0 | AA15: 0.999725034 | AC15: 465.3 | AD15: 0 | AE15: 0 | AF15: 0 | AG15: =SUMPRODUCT(AE16:AE$605, $I15:$I$604) / $I15 -> 0 | AI15: -47000 | AJ15: =IF(E15>Mat_Year,0, -SUM($AD$5:AD15)) -> -9306 | AK15: -0.255851668 | AL15: 0 | AM15: -0.255915 | AN15: -0.255851668 | AO15: -6626.020172 | AP15: =SUMPRODUCT(AN16:AN$605, $I16:$I$605) / $I15 -> -6624.380412 | AR15: 0 | AS15: 0 | AT15: 0 | AU15: -1.762512213 | AV15: 0 | AW15: -1.762512213 | AX15: -20.21014004 | AY15: 0 | AZ15: -20.21014004 | BA15: -1.762076039 | BB15: -0.000555641311 | BC15: -1.762512213 | BD15: -0.0005557788512 | BE15: -1.762076039 | BF15: -0.000555641311 | BG15: -300.2578516 | BH15: =(SUMPRODUCT(BE16:BE$605,$I15:$I$604)+SUMPRODUCT(BF16:BF$605,$I16:$I$605)) / $I15 -> -300.183546 | BJ15: -1.762076039 | BK15: -0.2564073093 | BM15: 6926.468502 | BN15: 6924.563958 | BP15: =Reserve!BX15 -> 9563.373201 | BQ15: 9560.743599 | BR15: -13.33681692 | BT15: 20.67089937 | BU15: 20.66578389 | BV15: =SUMPRODUCT(BU16:BU$605, $I16:$I$605) / $I15 -> 3544.995278 | BX15: =-BZ15*Others!$Q$43 -> -1.359483807 | BZ15: 5.31048362 | CA15: 3.950999813 | CB15: 3.950999813 | CD15: =SUMPRODUCT(BZ16:BZ$605, $I16:$I$605) / $I15 -> 2636.17964 | CE15: =SUMPRODUCT(CA16:CA$605, $I16:$I$605) / $I15 -> 1961.317652 | CF15: =SUMPRODUCT(CB16:CB$605, $I16:$I$605) / $I15 -> 1961.317652 | CH15: 37436.6268 | CI15: 0 | CK15: =NPV((1+CK$3)^(1/12)-1,$CB$6:$CB15)+$CB$5 -> -675.3490061 | CL15: =NPV((1+CL$3)^(1/12)-1,$CB$6:$CB15)+$CB$5 -> -675.687691 | CM15: =NPV((1+CM$3)^(1/12)-1,$CB$6:$CB15)+$CB$5 -> -676.4914587 | CN15: =NPV((1+CN$3)^(1/12)-1,$CB$6:$CB15)+$CB$5 -> -676.4914587
A16: 0.9166666667 | B16: 11 | C16: 1 | D16: 1.416666667 | E16: 1 | G16: =INDEX(Others!$D$11:$E$60, MATCH(C16, Others!$A$11:$A$60, 0), MATCH(G$3, Others!$D$10:$E$10, 0)) -> 0.02629090909 | H16: 0.002164943754 | I16: 0.9764920793 | K16: =INDEX(Mortality!$B$7:$F$32, MATCH( E16,Mortality!$A$7:$A$32, 0), MATCH( K$3,Mortality!$B$6:$F$6,0)) -> 0.33 | L16: 0 | M16: 0.33 | N16: =INDEX(Myopia!$H:$H, MATCH(E16, Myopia!$A:$A, 0)) * Trend_Factor^(A16) -> 0 | O16: 0 | P16: 0 | Q16: =VLOOKUP(C16,Others!$L$10:$M$61,2) -> 0 | R16: 0 | S16: 0 | T16: 2.75e-05 | U16: 0 | V16: 0 | W16: 0.999725034 | X16: 2.749243844e-05 | Y16: 0 | Z16: 0 | AA16: 0.9996975416 | AC16: 465.3 | AD16: 0 | AE16: 0 | AF16: 0 | AG16: =SUMPRODUCT(AE17:AE$605, $I16:$I$604) / $I16 -> 0 | AI16: -47000 | AJ16: =IF(E16>Mat_Year,0, -SUM($AD$5:AD16)) -> -9306 | AK16: -0.2558446321 | AL16: 0 | AM16: -0.255915 | AN16: -0.2558446321 | AO16: -6640.291833 | AP16: =SUMPRODUCT(AN17:AN$605, $I17:$I$605) / $I16 -> -6638.465979 | AR16: 0 | AS16: 0 | AT16: 0 | AU16: -1.764482875 | AV16: 0 | AW16: -1.764482875 | AX16: -20.23273697 | AY16: 0 | AZ16: -20.23273697 | BA16: -1.763997703 | BB16: -0.0005562472755 | BC16: -1.764482875 | BD16: -0.0005564002667 | BE16: -1.763997703 | BF16: -0.0005562472755 | BG16: -299.1473089 | BH16: =(SUMPRODUCT(BE17:BE$605,$I16:$I$604)+SUMPRODUCT(BF17:BF$605,$I17:$I$605)) / $I16 -> -299.0650536 | BJ16: -1.763997703 | BK16: -0.2564008794 | BM16: 6939.629982 | BN16: 6937.531032 | BP16: =Reserve!BX16 -> 9576.995104 | BQ16: 9574.098461 | BR16: -13.35486241 | BT16: 20.70034508 | BU16: 20.69465318 | BV16: =SUMPRODUCT(BU17:BU$605, $I17:$I$605) / $I16 -> 3531.97534 | BX16: =-BZ16*Others!$Q$43 -> -1.361764401 | BZ16: 5.319392191 | CA16: 3.95762779 | CB16: 3.95762779 | CD16: =SUMPRODUCT(BZ17:BZ$605, $I17:$I$605) / $I16 -> 2636.567429 | CE16: =SUMPRODUCT(CA17:CA$605, $I17:$I$605) / $I16 -> 1961.606167 | CF16: =SUMPRODUCT(CB17:CB$605, $I17:$I$605) / $I16 -> 1961.606167 | CH16: 37423.0049 | CI16: 0 | CK16: =NPV((1+CK$3)^(1/12)-1,$CB$6:$CB16)+$CB$5 -> -671.4971727 | CL16: =NPV((1+CL$3)^(1/12)-1,$CB$6:$CB16)+$CB$5 -> -671.9031657 | CM16: =NPV((1+CM$3)^(1/12)-1,$CB$6:$CB16)+$CB$5 -> -672.8649255 | CN16: =NPV((1+CN$3)^(1/12)-1,$CB$6:$CB16)+$CB$5 -> -672.8649255
A17: 1 | B17: 12 | C17: 1 | D17: 1.5 | E17: 1 | G17: =INDEX(Others!$D$11:$E$60, MATCH(C17, Others!$A$11:$A$60, 0), MATCH(G$3, Others!$D$10:$E$10, 0)) -> 0.02629090909 | H17: 0.002164943754 | I17: 0.9743825958 | K17: =INDEX(Mortality!$B$7:$F$32, MATCH( E17,Mortality!$A$7:$A$32, 0), MATCH( K$3,Mortality!$B$6:$F$6,0)) -> 0.33 | L17: 0 | M17: 0.33 | N17: =INDEX(Myopia!$H:$H, MATCH(E17, Myopia!$A:$A, 0)) * Trend_Factor^(A17) -> 0 | O17: 0 | P17: 0 | Q17: =VLOOKUP(C17,Others!$L$10:$M$61,2) -> 0 | R17: 0 | S17: 0 | T17: 2.75e-05 | U17: 0 | V17: 0 | W17: 0.9996975416 | X17: 2.749168239e-05 | Y17: 0 | Z17: 0 | AA17: 0.9996700499 | AC17: 465.3 | AD17: 0 | AE17: 0 | AF17: 0 | AG17: =SUMPRODUCT(AE18:AE$605, $I17:$I$604) / $I17 -> 0 | AI17: -47000 | AJ17: =IF(E17>Mat_Year,0, -SUM($AD$5:AD17)) -> -9306 | AK17: -0.2558375964 | AL17: 0 | AM17: -0.255915 | AN17: -0.2558375964 | AO17: -6654.594785 | AP17: =SUMPRODUCT(AN18:AN$605, $I18:$I$605) / $I17 -> -6652.582047 | AR17: 0 | AS17: 0 | AT17: 0 | AU17: -1.766455741 | AV17: 0 | AW17: -1.766455741 | AX17: -20.25535916 | AY17: 0 | AZ17: -20.25535916 | BA17: -1.765921462 | BB17: -0.0005568539009 | BC17: -1.766455741 | BD17: -0.000557022377 | BE17: -1.765921462 | BF17: -0.0005568539009 | BG17: -298.0323535 | BH17: =(SUMPRODUCT(BE18:BE$605,$I17:$I$604)+SUMPRODUCT(BF18:BF$605,$I18:$I$605)) / $I17 -> -297.9422111 | BJ17: -1.765921462 | BK17: -0.2563944503 | BM17: 6952.818341 | BN17: 6950.524258 | BP17: =Reserve!BX17 -> 9590.635823 | BQ17: 9587.471391 | BR17: -13.37293023 | BT17: 20.72983146 | BU17: 20.72356155 | BV17: =SUMPRODUCT(BU18:BU$605, $I18:$I$605) / $I17 -> 3518.898307 | BX17: =-BZ17*Others!$Q$43 -> -1.364048743 | BZ17: 5.328315404 | CA17: 3.96426666 | CB17: 3.96426666 | CD17: =SUMPRODUCT(BZ18:BZ$605, $I18:$I$605) / $I17 -> 2636.947134 | CE17: =SUMPRODUCT(CA18:CA$605, $I18:$I$605) / $I17 -> 1961.888667 | CF17: =SUMPRODUCT(CB18:CB$605, $I18:$I$605) / $I17 -> 1961.888667 | CH17: 37409.36418 | CI17: 0 | CK17: =NPV((1+CK$3)^(1/12)-1,$CB$6:$CB17)+$CB$5 -> -667.6483701 | CL17: =NPV((1+CL$3)^(1/12)-1,$CB$6:$CB17)+$CB$5 -> -668.1276736 | CM17: =NPV((1+CM$3)^(1/12)-1,$CB$6:$CB17)+$CB$5 -> -669.2610467 | CN17: =NPV((1+CN$3)^(1/12)-1,$CB$6:$CB17)+$CB$5 -> -669.2610467
A18: 1.083333333 | B18: 1 | C18: 2 | D18: 1.583333333 | E18: 1 | G18: =INDEX(Others!$D$11:$E$60, MATCH(C18, Others!$A$11:$A$60, 0), MATCH(G$3, Others!$D$10:$E$10, 0)) -> 0.02917292957 | H18: 0.002399164958 | I18: 0.9720504863 | K18: =INDEX(Mortality!$B$7:$F$32, MATCH( E18,Mortality!$A$7:$A$32, 0), MATCH( K$3,Mortality!$B$6:$F$6,0)) -> 0.33 | L18: 0 | M18: 0.33 | N18: =INDEX(Myopia!$H:$H, MATCH(E18, Myopia!$A:$A, 0)) * Trend_Factor^(A18) -> 0 | O18: 0 | P18: 0 | Q18: =VLOOKUP(C18,Others!$L$10:$M$61,2) -> 0 | R18: 0 | S18: 0 | T18: 2.75e-05 | U18: 0 | V18: 0 | W18: 0.9996700499 | X18: 2.749092637e-05 | Y18: 0 | Z18: 0 | AA18: 0.999642559 | AC18: 0 | AD18: 0 | AE18: 0 | AF18: 0 | AG18: =SUMPRODUCT(AE19:AE$605, $I18:$I$604) / $I18 -> 0 | AI18: -47000 | AJ18: =IF(E18>Mat_Year,0, -SUM($AD$5:AD18)) -> -9306 | AK18: -0.2558305608 | AL18: 0 | AM18: -0.255915 | AN18: -0.2558305608 | AO18: -6670.487786 | AP18: =SUMPRODUCT(AN19:AN$605, $I19:$I$605) / $I18 -> -6668.286858 | AR18: 0 | AS18: 0 | AT18: 0 | AU18: -1.768430813 | AV18: 0 | AW18: -1.768430813 | AX18: -20.27800665 | AY18: 0 | AZ18: -20.27800665 | BA18: -1.767847319 | BB18: -0.0005574611878 | BC18: -1.768430813 | BD18: -0.0005576451829 | BE18: -1.767847319 | BF18: -0.0005574611878 | BG18: -296.9823669 | BH18: =(SUMPRODUCT(BE19:BE$605,$I18:$I$604)+SUMPRODUCT(BF19:BF$605,$I19:$I$605)) / $I18 -> -296.8843775 | BJ18: -1.767847319 | BK18: -0.256388022 | BM18: 6967.661763 | BN18: 6965.171235 | BP18: =Reserve!BX18 -> 9605.99032 | BQ18: 9602.556745 | BR18: -15.08535404 | BT18: 23.00527463 | BU18: 22.99768404 | BV18: =SUMPRODUCT(BU19:BU$605, $I19:$I$605) / $I18 -> 3504.34304 | BX18: =-BZ18*Others!$Q$43 -> -1.507352232 | BZ18: 5.888094656 | CA18: 4.380742424 | CB18: 4.380742424 | CD18: =SUMPRODUCT(BZ19:BZ$605, $I19:$I$605) / $I18 -> 2637.38551 | CE18: =SUMPRODUCT(CA19:CA$605, $I19:$I$605) / $I18 -> 1962.214819 | CF18: =SUMPRODUCT(CB19:CB$605, $I19:$I$605) / $I18 -> 1962.214819 | CH18: 37394.00968 | CI18: 0 | CK18: =NPV((1+CK$3)^(1/12)-1,$CB$6:$CB18)+$CB$5 -> -663.4056858 | CL18: =NPV((1+CL$3)^(1/12)-1,$CB$6:$CB18)+$CB$5 -> -663.9724668 | CM18: =NPV((1+CM$3)^(1/12)-1,$CB$6:$CB18)+$CB$5 -> -665.3100593 | CN18: =NPV((1+CN$3)^(1/12)-1,$CB$6:$CB18)+$CB$5 -> -665.3100593
A19: 1.166666667 | B19: 2 | C19: 2 | D19: 1.666666667 | E19: 1 | G19: =INDEX(Others!$D$11:$E$60, MATCH(C19, Others!$A$11:$A$60, 0), MATCH(G$3, Others!$D$10:$E$10, 0)) -> 0.02917292957 | H19: 0.002399164958 | I19: 0.9697239586 | K19: =INDEX(Mortality!$B$7:$F$32, MATCH( E19,Mortality!$A$7:$A$32, 0), MATCH( K$3,Mortality!$B$6:$F$6,0)) -> 0.33 | L19: 0 | M19: 0.33 | N19: =INDEX(Myopia!$H:$H, MATCH(E19, Myopia!$A:$A, 0)) * Trend_Factor^(A19) -> 0 | O19: 0 | P19: 0 | Q19: =VLOOKUP(C19,Others!$L$10:$M$61,2) -> 0 | R19: 0 | S19: 0 | T19: 2.75e-05 | U19: 0 | V19: 0 | W19: 0.999642559 | X19: 2.749017037e-05 | Y19: 0 | Z19: 0 | AA19: 0.9996150688 | AC19: 0 | AD19: 0 | AE19: 0 | AF19: 0 | AG19: =SUMPRODUCT(AE20:AE$605, $I19:$I$604) / $I19 -> 0 | AI19: -47000 | AJ19: =IF(E19>Mat_Year,0, -SUM($AD$5:AD19)) -> -9306 | AK19: -0.2558235255 | AL19: 0 | AM19: -0.255915 | AN19: -0.2558235255 | AO19: -6686.419355 | AP19: =SUMPRODUCT(AN20:AN$605, $I20:$I$605) / $I19 -> -6684.029354 | AR19: 0 | AS19: 0 | AT19: 0 | AU19: -1.770408092 | AV19: 0 | AW19: -1.770408092 | AX19: -20.30067946 | AY19: 0 | AZ19: -20.30067946 | BA19: -1.769775276 | BB19: -0.000558069137 | BC19: -1.770408092 | BD19: -0.0005582686851 | BE19: -1.769775276 | BF19: -0.000558069137 | BG19: -295.9278495 | BH19: =(SUMPRODUCT(BE20:BE$605,$I19:$I$604)+SUMPRODUCT(BF20:BF$605,$I20:$I$605)) / $I19 -> -295.8220728 | BJ19: -1.769775276 | BK19: -0.2563815946 | BM19: 6982.539224 | BN19: 6979.851427 | BP19: =Reserve!BX19 -> 9621.369209 | BQ19: 9617.665644 | BR19: -15.10889865 | BT19: 23.04210786 | BU19: 23.03387167 | BV19: =SUMPRODUCT(BU20:BU$605, $I20:$I$605) / $I19 -> 3489.716665 | BX19: =-BZ19*Others!$Q$43 -> -1.510096933 | BZ19: 5.898816145 | CA19: 4.388719212 | CB19: 4.388719212 | CD19: =SUMPRODUCT(BZ20:BZ$605, $I20:$I$605) / $I19 -> 2637.814217 | CE19: =SUMPRODUCT(CA20:CA$605, $I20:$I$605) / $I19 -> 1962.533777 | CF19: =SUMPRODUCT(CB20:CB$605, $I20:$I$605) / $I19 -> 1962.533777 | CH19: 37378.63079 | CI19: 0 | CK19: =NPV((1+CK$3)^(1/12)-1,$CB$6:$CB19)+$CB$5 -> -659.1657328 | CL19: =NPV((1+CL$3)^(1/12)-1,$CB$6:$CB19)+$CB$5 -> -659.8265847 | CM19: =NPV((1+CM$3)^(1/12)-1,$CB$6:$CB19)+$CB$5 -> -661.3831911 | CN19: =NPV((1+CN$3)^(1/12)-1,$CB$6:$CB19)+$CB$5 -> -661.3831911
A20: 1.25 | B20: 3 | C20: 2 | D20: 1.75 | E20: 1 | G20: =INDEX(Others!$D$11:$E$60, MATCH(C20, Others!$A$11:$A$60, 0), MATCH(G$3, Others!$D$10:$E$10, 0)) -> 0.02917292957 | H20: 0.002399164958 | I20: 0.9674029992 | K20: =INDEX(Mortality!$B$7:$F$32, MATCH( E20,Mortality!$A$7:$A$32, 0), MATCH( K$3,Mortality!$B$6:$F$6,0)) -> 0.33 | L20: 0 | M20: 0.33 | N20: =INDEX(Myopia!$H:$H, MATCH(E20, Myopia!$A:$A, 0)) * Trend_Factor^(A20) -> 0 | O20: 0 | P20: 0 | Q20: =VLOOKUP(C20,Others!$L$10:$M$61,2) -> 0 | R20: 0 | S20: 0 | T20: 2.75e-05 | U20: 0 | V20: 0 | W20: 0.9996150688 | X20: 2.748941439e-05 | Y20: 0 | Z20: 0 | AA20: 0.9995875794 | AC20: 0 | AD20: 0 | AE20: 0 | AF20: 0 | AG20: =SUMPRODUCT(AE21:AE$605, $I20:$I$604) / $I20 -> 0 | AI20: -47000 | AJ20: =IF(E20>Mat_Year,0, -SUM($AD$5:AD20)) -> -9306 | AK20: -0.2558164903 | AL20: 0 | AM20: -0.255915 | AN20: -0.2558164903 | AO20: -6702.389586 | AP20: =SUMPRODUCT(AN21:AN$605, $I21:$I$605) / $I20 -> -6699.809627 | AR20: 0 | AS20: 0 | AT20: 0 | AU20: -1.772387583 | AV20: 0 | AW20: -1.772387583 | AX20: -20.32337762 | AY20: 0 | AZ20: -20.32337762 | BA20: -1.771705336 | BB20: -0.0005586777492 | BC20: -1.772387583 | BD20: -0.0005588928845 | BE20: -1.771705336 | BF20: -0.0005586777492 | BG20: -294.8687883 | BH20: =(SUMPRODUCT(BE21:BE$605,$I20:$I$604)+SUMPRODUCT(BF21:BF$605,$I21:$I$605)) / $I20 -> -294.7552841 | BJ20: -1.771705336 | BK20: -0.2563751681 | BM20: 6997.450804 | BN20: 6994.564911 | BP20: =Reserve!BX20 -> 9636.772526 | BQ20: 9632.798123 | BR20: -15.13247868 | BT20: 23.0789996 | BU20: 23.07011578 | BV20: =SUMPRODUCT(BU21:BU$605, $I21:$I$605) / $I20 -> 3475.018956 | BX20: =-BZ20*Others!$Q$43 -> -1.512846487 | BZ20: 5.909556591 | CA20: 4.396710104 | CB20: 4.396710104 | CD20: =SUMPRODUCT(BZ21:BZ$605, $I21:$I$605) / $I20 -> 2638.233212 | CE20: =SUMPRODUCT(CA21:CA$605, $I21:$I$605) / $I20 -> 1962.845509 | CF20: =SUMPRODUCT(CB21:CB$605, $I21:$I$605) / $I20 -> 1962.845509 | CH20: 37363.22747 | CI20: 0 | CK20: =NPV((1+CK$3)^(1/12)-1,$CB$6:$CB20)+$CB$5 -> -654.92851 | CL20: =NPV((1+CL$3)^(1/12)-1,$CB$6:$CB20)+$CB$5 -> -655.6900068 | CM20: =NPV((1+CM$3)^(1/12)-1,$CB$6:$CB20)+$CB$5 -> -657.4802951 | CN20: =NPV((1+CN$3)^(1/12)-1,$CB$6:$CB20)+$CB$5 -> -657.4802951
A21: 1.333333333 | B21: 4 | C21: 2 | D21: 1.833333333 | E21: 1 | G21: =INDEX(Others!$D$11:$E$60, MATCH(C21, Others!$A$11:$A$60, 0), MATCH(G$3, Others!$D$10:$E$10, 0)) -> 0.02917292957 | H21: 0.002399164958 | I21: 0.9650875948 | K21: =INDEX(Mortality!$B$7:$F$32, MATCH( E21,Mortality!$A$7:$A$32, 0), MATCH( K$3,Mortality!$B$6:$F$6,0)) -> 0.33 | L21: 0 | M21: 0.33 | N21: =INDEX(Myopia!$H:$H, MATCH(E21, Myopia!$A:$A, 0)) * Trend_Factor^(A21) -> 0 | O21: 0 | P21: 0 | Q21: =VLOOKUP(C21,Others!$L$10:$M$61,2) -> 0 | R21: 0 | S21: 0 | T21: 2.75e-05 | U21: 0 | V21: 0 | W21: 0.9995875794 | X21: 2.748865843e-05 | Y21: 0 | Z21: 0 | AA21: 0.9995600907 | AC21: 0 | AD21: 0 | AE21: 0 | AF21: 0 | AG21: =SUMPRODUCT(AE22:AE$605, $I21:$I$604) / $I21 -> 0 | AI21: -47000 | AJ21: =IF(E21>Mat_Year,0, -SUM($AD$5:AD21)) -> -9306 | AK21: -0.2558094554 | AL21: 0 | AM21: -0.255915 | AN21: -0.2558094554 | AO21: -6718.398572 | AP21: =SUMPRODUCT(AN22:AN$605, $I22:$I$605) / $I21 -> -6715.627766 | AR21: 0 | AS21: 0 | AT21: 0 | AU21: -1.774369287 | AV21: 0 | AW21: -1.774369287 | AX21: -20.34610116 | AY21: 0 | AZ21: -20.34610116 | BA21: -1.773637501 | BB21: -0.0005592870252 | BC21: -1.774369287 | BD21: -0.0005595177818 | BE21: -1.773637501 | BF21: -0.0005592870252 | BG21: -293.8051699 | BH21: =(SUMPRODUCT(BE22:BE$605,$I21:$I$604)+SUMPRODUCT(BF22:BF$605,$I22:$I$605)) / $I21 -> -293.6839986 | BJ21: -1.773637501 | BK21: -0.2563687424 | BM21: 7012.396583 | BN21: 7009.311765 | BP21: =Reserve!BX21 -> 9652.200309 | BQ21: 9647.954217 | BR21: -15.15609419 | BT21: 23.11594995 | BU21: 23.10641645 | BV21: =SUMPRODUCT(BU22:BU$605, $I22:$I$605) / $I21 -> 3460.249683 | BX21: =-BZ21*Others!$Q$43 -> -1.515600903 | BZ21: 5.920316026 | CA21: 4.404715124 | CB21: 4.404715124 | CD21: =SUMPRODUCT(BZ22:BZ$605, $I22:$I$605) / $I21 -> 2638.642452 | CE21: =SUMPRODUCT(CA22:CA$605, $I22:$I$605) / $I21 -> 1963.149985 | CF21: =SUMPRODUCT(CB22:CB$605, $I22:$I$605) / $I21 -> 1963.149985 | CH21: 37347.79969 | CI21: 0 | CK21: =NPV((1+CK$3)^(1/12)-1,$CB$6:$CB21)+$CB$5 -> -650.694016 | CL21: =NPV((1+CL$3)^(1/12)-1,$CB$6:$CB21)+$CB$5 -> -651.5627126 | CM21: =NPV((1+CM$3)^(1/12)-1,$CB$6:$CB21)+$CB$5 -> -653.6012255 | CN21: =NPV((1+CN$3)^(1/12)-1,$CB$6:$CB21)+$CB$5 -> -653.6012255
A22: 1.416666667 | B22: 5 | C22: 2 | D22: 1.916666667 | E22: 1 | G22: =INDEX(Others!$D$11:$E$60, MATCH(C22, Others!$A$11:$A$60, 0), MATCH(G$3, Others!$D$10:$E$10, 0)) -> 0.02917292957 | H22: 0.002399164958 | I22: 0.9627777322 | K22: =INDEX(Mortality!$B$7:$F$32, MATCH( E22,Mortality!$A$7:$A$32, 0), MATCH( K$3,Mortality!$B$6:$F$6,0)) -> 0.33 | L22: 0 | M22: 0.33 | N22: =INDEX(Myopia!$H:$H, MATCH(E22, Myopia!$A:$A, 0)) * Trend_Factor^(A22) -> 0 | O22: 0 | P22: 0 | Q22: =VLOOKUP(C22,Others!$L$10:$M$61,2) -> 0 | R22: 0 | S22: 0 | T22: 2.75e-05 | U22: 0 | V22: 0 | W22: 0.9995600907 | X22: 2.74879025e-05 | Y22: 0 | Z22: 0 | AA22: 0.9995326028 | AC22: 0 | AD22: 0 | AE22: 0 | AF22: 0 | AG22: =SUMPRODUCT(AE23:AE$605, $I22:$I$604) / $I22 -> 0 | AI22: -47000 | AJ22: =IF(E22>Mat_Year,0, -SUM($AD$5:AD22)) -> -9306 | AK22: -0.2558024206 | AL22: 0 | AM22: -0.255915 | AN22: -0.2558024206 | AO22: -6734.446408 | AP22: =SUMPRODUCT(AN23:AN$605, $I23:$I$605) / $I22 -> -6731.483862 | AR22: 0 | AS22: 0 | AT22: 0 | AU22: -1.776353207 | AV22: 0 | AW22: -1.776353207 | AX22: -20.3688501 | AY22: 0 | AZ22: -20.3688501 | BA22: -1.775571772 | BB22: -0.0005598969656 | BC22: -1.776353207 | BD22: -0.0005601433778 | BE22: -1.775571772 | BF22: -0.0005598969656 | BG22: -292.7369811 | BH22: =(SUMPRODUCT(BE23:BE$605,$I22:$I$604)+SUMPRODUCT(BF23:BF$605,$I23:$I$605)) / $I22 -> -292.6082034 | BJ22: -1.775571772 | BK22: -0.2563623176 | BM22: 7027.376642 | BN22: 7024.092066 | BP22: =Reserve!BX22 -> 9667.652596 | BQ22: 9663.133962 | BR22: -15.17974521 | BT22: 23.15295899 | BU22: 23.14277378 | BV22: =SUMPRODUCT(BU23:BU$605, $I23:$I$605) / $I22 -> 3445.408619 | BX22: =-BZ22*Others!$Q$43 -> -1.518360188 | BZ22: 5.931094484 | CA22: 4.412734296 | CB22: 4.412734296 | CD22: =SUMPRODUCT(BZ23:BZ$605, $I23:$I$605) / $I22 -> 2639.041896 | CE22: =SUMPRODUCT(CA23:CA$605, $I23:$I$605) / $I22 -> 1963.447171 | CF22: =SUMPRODUCT(CB23:CB$605, $I23:$I$605) / $I22 -> 1963.447171 | CH22: 37332.3474 | CI22: 0 | CK22: =NPV((1+CK$3)^(1/12)-1,$CB$6:$CB22)+$CB$5 -> -646.4622494 | CL22: =NPV((1+CL$3)^(1/12)-1,$CB$6:$CB22)+$CB$5 -> -647.4446817 | CM22: =NPV((1+CM$3)^(1/12)-1,$CB$6:$CB22)+$CB$5 -> -649.745837 | CN22: =NPV((1+CN$3)^(1/12)-1,$CB$6:$CB22)+$CB$5 -> -649.745837
A23: 1.5 | B23: 6 | C23: 2 | D23: 2 | E23: 2 | G23: =INDEX(Others!$D$11:$E$60, MATCH(C23, Others!$A$11:$A$60, 0), MATCH(G$3, Others!$D$10:$E$10, 0)) -> 0.02917292957 | H23: 0.002399164958 | I23: 0.9604733981 | K23: =INDEX(Mortality!$B$7:$F$32, MATCH( E23,Mortality!$A$7:$A$32, 0), MATCH( K$3,Mortality!$B$6:$F$6,0)) -> 0.332 | L23: 0 | M23: 0.332 | N23: =INDEX(Myopia!$H:$H, MATCH(E23, Myopia!$A:$A, 0)) * Trend_Factor^(A23) -> 0 | O23: 0 | P23: 0 | Q23: =VLOOKUP(C23,Others!$L$10:$M$61,2) -> 0 | R23: 0 | S23: 0 | T23: 2.766666667e-05 | U23: 0 | V23: 0 | W23: 0.9995326028 | X23: 2.765373535e-05 | Y23: 0 | Z23: 0 | AA23: 0.9995049491 | AC23: 0 | AD23: 0 | AE23: 0 | AF23: 0 | AG23: =SUMPRODUCT(AE24:AE$605, $I23:$I$604) / $I23 -> 0 | AI23: -47000 | AJ23: =IF(E23>Mat_Year,0, -SUM($AD$5:AD23)) -> -9306 | AK23: -0.2573456611 | AL23: 0 | AM23: -0.257466 | AN23: -0.2573456611 | AO23: -6750.531636 | AP23: =SUMPRODUCT(AN24:AN$605, $I24:$I$605) / $I23 -> -6747.376457 | AR23: 0 | AS23: 0 | AT23: 0 | AU23: -1.778339345 | AV23: 0 | AW23: -1.778339345 | AX23: -20.39162448 | AY23: 0 | AZ23: -20.39162448 | BA23: -1.777508154 | BB23: -0.0005639045867 | BC23: -1.778339345 | BD23: -0.0005641682774 | BE23: -1.777508154 | BF23: -0.0005639045867 | BG23: -291.6642052 | BH23: =(SUMPRODUCT(BE24:BE$605,$I23:$I$604)+SUMPRODUCT(BF24:BF$605,$I24:$I$605)) / $I23 -> -291.5278822 | BJ23: -1.777508154 | BK23: -0.2579095657 | BM23: 7042.390681 | BN23: 7038.904339 | BP23: =Reserve!BX23 -> 9683.129491 | BQ23: 9678.335849 | BR23: -15.2018866 | BT23: 23.1900268 | BU23: 23.17918785 | BV23: =SUMPRODUCT(BU24:BU$605, $I24:$I$605) / $I23 -> 3430.495535 | BX23: =-BZ23*Others!$Q$43 -> -1.521122184 | BZ23: 5.941883532 | CA23: 4.420761347 | CB23: 4.420761347 | CD23: =SUMPRODUCT(BZ24:BZ$605, $I24:$I$605) / $I23 -> 2639.43151 | CE23: =SUMPRODUCT(CA24:CA$605, $I24:$I$605) / $I23 -> 1963.737043 | CF23: =SUMPRODUCT(CB24:CB$605, $I24:$I$605) / $I23 -> 1963.737043 | CH23: 37316.87051 | CI23: 0 | CK23: =NPV((1+CK$3)^(1/12)-1,$CB$6:$CB23)+$CB$5 -> -642.2332148 | CL23: =NPV((1+CL$3)^(1/12)-1,$CB$6:$CB23)+$CB$5 -> -643.3358994 | CM23: =NPV((1+CM$3)^(1/12)-1,$CB$6:$CB23)+$CB$5 -> -645.9139911 | CN23: =NPV((1+CN$3)^(1/12)-1,$CB$6:$CB23)+$CB$5 -> -645.9139911
A24: 1.583333333 | B24: 7 | C24: 2 | D24: 2.083333333 | E24: 2 | G24: =INDEX(Others!$D$11:$E$60, MATCH(C24, Others!$A$11:$A$60, 0), MATCH(G$3, Others!$D$10:$E$10, 0)) -> 0.02917292957 | H24: 0.002399164958 | I24: 0.9581745792 | K24: =INDEX(Mortality!$B$7:$F$32, MATCH( E24,Mortality!$A$7:$A$32, 0), MATCH( K$3,Mortality!$B$6:$F$6,0)) -> 0.332 | L24: 0 | M24: 0.332 | N24: =INDEX(Myopia!$H:$H, MATCH(E24, Myopia!$A:$A, 0)) * Trend_Factor^(A24) -> 0 | O24: 0 | P24: 0 | Q24: =VLOOKUP(C24,Others!$L$10:$M$61,2) -> 0 | R24: 0 | S24: 0 | T24: 2.766666667e-05 | U24: 0 | V24: 0 | W24: 0.9995049491 | X24: 2.765297026e-05 | Y24: 0 | Z24: 0 | AA24: 0.9994772961 | AC24: 0 | AD24: 0 | AE24: 0 | AF24: 0 | AG24: =SUMPRODUCT(AE25:AE$605, $I24:$I$604) / $I24 -> 0 | AI24: -47000 | AJ24: =IF(E24>Mat_Year,0, -SUM($AD$5:AD24)) -> -9306 | AK24: -0.2573385412 | AL24: 0 | AM24: -0.257466 | AN24: -0.2573385412 | AO24: -6766.657027 | AP24: =SUMPRODUCT(AN25:AN$605, $I25:$I$605) / $I24 -> -6763.307188 | AR24: 0 | AS24: 0 | AT24: 0 | AU24: -1.780327703 | AV24: 0 | AW24: -1.780327703 | AX24: -20.41442433 | AY24: 0 | AZ24: -20.41442433 | BA24: -1.77944635 | BB24: -0.0005645194688 | BC24: -1.780327703 | BD24: -0.0005647990731 | BE24: -1.77944635 | BF24: -0.0005645194688 | BG24: -290.5868809 | BH24: =(SUMPRODUCT(BE25:BE$605,$I24:$I$604)+SUMPRODUCT(BF25:BF$605,$I25:$I$605)) / $I24 -> -290.4430256 | BJ24: -1.77944635 | BK24: -0.2579030607 | BM24: 7057.439164 | BN24: 7053.750213 | BP24: =Reserve!BX24 -> 9698.630968 | BQ24: 9693.561456 | BR24: -15.22560683 | BT24: 23.22715366 | BU24: 23.21565503 | BV24: =SUMPRODUCT(BU25:BU$605, $I25:$I$605) / $I24 -> 3415.510204 | BX24: =-BZ24*Others!$Q$43 -> -1.523890892 | BZ24: 5.952698795 | CA24: 4.428807904 | CB24: 4.428807904 | CD24: =SUMPRODUCT(BZ25:BZ$605, $I25:$I$605) / $I24 -> 2639.811242 | CE24: =SUMPRODUCT(CA25:CA$605, $I25:$I$605) / $I24 -> 1964.019564 | CF24: =SUMPRODUCT(CB25:CB$605, $I25:$I$605) / $I24 -> 1964.019564 | CH24: 37301.36903 | CI24: 0 | CK24: =NPV((1+CK$3)^(1/12)-1,$CB$6:$CB24)+$CB$5 -> -638.0069059 | CL24: =NPV((1+CL$3)^(1/12)-1,$CB$6:$CB24)+$CB$5 -> -639.2363406 | CM24: =NPV((1+CM$3)^(1/12)-1,$CB$6:$CB24)+$CB$5 -> -642.1055396 | CN24: =NPV((1+CN$3)^(1/12)-1,$CB$6:$CB24)+$CB$5 -> -642.1055396
A25: 1.666666667 | B25: 8 | C25: 2 | D25: 2.166666667 | E25: 2 | G25: =INDEX(Others!$D$11:$E$60, MATCH(C25, Others!$A$11:$A$60, 0), MATCH(G$3, Others!$D$10:$E$10, 0)) -> 0.02917292957 | H25: 0.002399164958 | I25: 0.9558812624 | K25: =INDEX(Mortality!$B$7:$F$32, MATCH( E25,Mortality!$A$7:$A$32, 0), MATCH( K$3,Mortality!$B$6:$F$6,0)) -> 0.332 | L25: 0 | M25: 0.332 | N25: =INDEX(Myopia!$H:$H, MATCH(E25, Myopia!$A:$A, 0)) * Trend_Factor^(A25) -> 0 | O25: 0 | P25: 0 | Q25: =VLOOKUP(C25,Others!$L$10:$M$61,2) -> 0 | R25: 0 | S25: 0 | T25: 2.766666667e-05 | U25: 0 | V25: 0 | W25: 0.9994772961 | X25: 2.765220519e-05 | Y25: 0 | Z25: 0 | AA25: 0.9994496439 | AC25: 0 | AD25: 0 | AE25: 0 | AF25: 0 | AG25: =SUMPRODUCT(AE26:AE$605, $I25:$I$604) / $I25 -> 0 | AI25: -47000 | AJ25: =IF(E25>Mat_Year,0, -SUM($AD$5:AD25)) -> -9306 | AK25: -0.2573314215 | AL25: 0 | AM25: -0.257466 | AN25: -0.2573314215 | AO25: -6782.821553 | AP25: =SUMPRODUCT(AN26:AN$605, $I26:$I$605) / $I25 -> -6779.276146 | AR25: 0 | AS25: 0 | AT25: 0 | AU25: -1.782318285 | AV25: 0 | AW25: -1.782318285 | AX25: -20.43724967 | AY25: 0 | AZ25: -20.43724967 | BA25: -1.78138666 | BB25: -0.0005651350214 | BC25: -1.782318285 | BD25: -0.0005654305741 | BE25: -1.78138666 | BF25: -0.0005651350214 | BG25: -289.5049461 | BH25: =(SUMPRODUCT(BE26:BE$605,$I25:$I$604)+SUMPRODUCT(BF26:BF$605,$I26:$I$605)) / $I25 -> -289.3536207 | BJ25: -1.78138666 | BK25: -0.2578965565 | BM25: 7072.522172 | BN25: 7068.629766 | BP25: =Reserve!BX25 -> 9714.157064 | BQ25: 9708.810818 | BR25: -15.24936273 | BT25: 23.26433948 | BU25: 23.25217912 | BV25: =SUMPRODUCT(BU26:BU$605, $I26:$I$605) / $I25 -> 3400.452398 | BX25: =-BZ25*Others!$Q$43 -> -1.526664493 | BZ25: 5.963533176 | CA25: 4.436868683 | CB25: 4.436868683 | CD25: =SUMPRODUCT(BZ26:BZ$605, $I26:$I$605) / $I25 -> 2640.181052 | CE25: =SUMPRODUCT(CA26:CA$605, $I26:$I$605) / $I25 -> 1964.294703 | CF25: =SUMPRODUCT(CB26:CB$605, $I26:$I$605) / $I25 -> 1964.294703 | CH25: 37285.84294 | CI25: 0 | CK25: =NPV((1+CK$3)^(1/12)-1,$CB$6:$CB25)+$CB$5 -> -633.7833213 | CL25: =NPV((1+CL$3)^(1/12)-1,$CB$6:$CB25)+$CB$5 -> -635.1459849 | CM25: =NPV((1+CM$3)^(1/12)-1,$CB$6:$CB25)+$CB$5 -> -638.3203402 | CN25: =NPV((1+CN$3)^(1/12)-1,$CB$6:$CB25)+$CB$5 -> -638.3203402
A26: 1.75 | B26: 9 | C26: 2 | D26: 2.25 | E26: 2 | G26: =INDEX(Others!$D$11:$E$60, MATCH(C26, Others!$A$11:$A$60, 0), MATCH(G$3, Others!$D$10:$E$10, 0)) -> 0.02917292957 | H26: 0.002399164958 | I26: 0.9535934345 | K26: =INDEX(Mortality!$B$7:$F$32, MATCH( E26,Mortality!$A$7:$A$32, 0), MATCH( K$3,Mortality!$B$6:$F$6,0)) -> 0.332 | L26: 0 | M26: 0.332 | N26: =INDEX(Myopia!$H:$H, MATCH(E26, Myopia!$A:$A, 0)) * Trend_Factor^(A26) -> 0 | O26: 0 | P26: 0 | Q26: =VLOOKUP(C26,Others!$L$10:$M$61,2) -> 0 | R26: 0 | S26: 0 | T26: 2.766666667e-05 | U26: 0 | V26: 0 | W26: 0.9994496439 | X26: 2.765144015e-05 | Y26: 0 | Z26: 0 | AA26: 0.9994219925 | AC26: 0 | AD26: 0 | AE26: 0 | AF26: 0 | AG26: =SUMPRODUCT(AE27:AE$605, $I26:$I$604) / $I26 -> 0 | AI26: -47000 | AJ26: =IF(E26>Mat_Year,0, -SUM($AD$5:AD26)) -> -9306 | AK26: -0.257324302 | AL26: 0 | AM26: -0.257466 | AN26: -0.257324302 | AO26: -6799.025308 | AP26: =SUMPRODUCT(AN27:AN$605, $I27:$I$605) / $I26 -> -6795.283423 | AR26: 0 | AS26: 0 | AT26: 0 | AU26: -1.784311092 | AV26: 0 | AW26: -1.784311092 | AX26: -20.46010052 | AY26: 0 | AZ26: -20.46010052 | BA26: -1.783329086 | BB26: -0.0005657512451 | BC26: -1.784311092 | BD26: -0.0005660627812 | BE26: -1.783329086 | BF26: -0.0005657512451 | BG26: -288.4183872 | BH26: =(SUMPRODUCT(BE27:BE$605,$I26:$I$604)+SUMPRODUCT(BF27:BF$605,$I27:$I$605)) / $I26 -> -288.2596544 | BJ26: -1.783329086 | BK26: -0.2578900533 | BM26: 7087.639787 | BN26: 7083.543078 | BP26: =Reserve!BX26 -> 9729.707817 | BQ26: 9724.083973 | BR26: -15.27315435 | BT26: 23.30158437 | BU26: 23.2887602 | BV26: =SUMPRODUCT(BU27:BU$605, $I27:$I$605) / $I26 -> 3385.321884 | BX26: =-BZ26*Others!$Q$43 -> -1.529442997 | BZ26: 5.974386705 | CA26: 4.444943709 | CB26: 4.444943709 | CD26: =SUMPRODUCT(BZ27:BZ$605, $I27:$I$605) / $I26 -> 2640.540895 | CE26: =SUMPRODUCT(CA27:CA$605, $I27:$I$605) / $I26 -> 1964.562426 | CF26: =SUMPRODUCT(CB27:CB$605, $I27:$I$605) / $I26 -> 1964.562426 | CH26: 37270.29218 | CI26: 0 | CK26: =NPV((1+CK$3)^(1/12)-1,$CB$6:$CB26)+$CB$5 -> -629.5624596 | CL26: =NPV((1+CL$3)^(1/12)-1,$CB$6:$CB26)+$CB$5 -> -631.0648121 | CM26: =NPV((1+CM$3)^(1/12)-1,$CB$6:$CB26)+$CB$5 -> -634.5582512 | CN26: =NPV((1+CN$3)^(1/12)-1,$CB$6:$CB26)+$CB$5 -> -634.5582512
A27: 1.833333333 | B27: 10 | C27: 2 | D27: 2.333333333 | E27: 2 | G27: =INDEX(Others!$D$11:$E$60, MATCH(C27, Others!$A$11:$A$60, 0), MATCH(G$3, Others!$D$10:$E$10, 0)) -> 0.02917292957 | H27: 0.002399164958 | I27: 0.9513110823 | K27: =INDEX(Mortality!$B$7:$F$32, MATCH( E27,Mortality!$A$7:$A$32, 0), MATCH( K$3,Mortality!$B$6:$F$6,0)) -> 0.332 | L27: 0 | M27: 0.332 | N27: =INDEX(Myopia!$H:$H, MATCH(E27, Myopia!$A:$A, 0)) * Trend_Factor^(A27) -> 0 | O27: 0 | P27: 0 | Q27: =VLOOKUP(C27,Others!$L$10:$M$61,2) -> 0 | R27: 0 | S27: 0 | T27: 2.766666667e-05 | U27: 0 | V27: 0 | W27: 0.9994219925 | X27: 2.765067513e-05 | Y27: 0 | Z27: 0 | AA27: 0.9993943418 | AC27: 0 | AD27: 0 | AE27: 0 | AF27: 0 | AG27: =SUMPRODUCT(AE28:AE$605, $I27:$I$604) / $I27 -> 0 | AI27: -47000 | AJ27: =IF(E27>Mat_Year,0, -SUM($AD$5:AD27)) -> -9306 | AK27: -0.2573171827 | AL27: 0 | AM27: -0.257466 | AN27: -0.2573171827 | AO27: -6815.268388 | AP27: =SUMPRODUCT(AN28:AN$605, $I28:$I$605) / $I27 -> -6811.329112 | AR27: 0 | AS27: 0 | AT27: 0 | AU27: -1.786306128 | AV27: 0 | AW27: -1.786306128 | AX27: -20.48297693 | AY27: 0 | AZ27: -20.48297693 | BA27: -1.785273629 | BB27: -0.0005663681408 | BC27: -1.786306128 | BD27: -0.0005666956951 | BE27: -1.785273629 | BF27: -0.0005663681408 | BG27: -287.327191 | BH27: =(SUMPRODUCT(BE28:BE$605,$I27:$I$604)+SUMPRODUCT(BF28:BF$605,$I28:$I$605)) / $I27 -> -287.1611137 | BJ27: =SUM(AE27,BE27) -> -1.785273629 | BK27: =SUM(AN27,BF27) -> -0.2578835509 | BM27: 7102.79209 | BN27: =MAX(BN28/(1+H28) - (BJ28 + BK28/(1+H28)),0) -> 7098.490226 | BP27: =Reserve!BX27 -> 9745.283265 | BQ27: 9739.380954 | BR27: -15.29698175 | BT27: 23.3388884 | BU27: 23.32539835 | BV27: =SUMPRODUCT(BU28:BU$605, $I28:$I$605) / $I27 -> 3370.118431 | BX27: =-BZ27*Others!$Q$43 -> -1.532226411 | BZ27: 5.985259417 | CA27: 4.453033006 | CB27: 4.453033006 | CD27: =SUMPRODUCT(BZ28:BZ$605, $I28:$I$605) / $I27 -> 2640.890729 | CE27: =SUMPRODUCT(CA28:CA$605, $I28:$I$605) / $I27 -> 1964.822702 | CF27: =SUMPRODUCT(CB28:CB$605, $I28:$I$605) / $I27 -> 1964.822702 | CH27: 37254.71673 | CI27: 0 | CK27: =NPV((1+CK$3)^(1/12)-1,$CB$6:$CB27)+$CB$5 -> -625.3443195 | CL27: =NPV((1+CL$3)^(1/12)-1,$CB$6:$CB27)+$CB$5 -> -626.9928018 | CM27: =NPV((1+CM$3)^(1/12)-1,$CB$6:$CB27)+$CB$5 -> -630.8191318 | CN27: =NPV((1+CN$3)^(1/12)-1,$CB$6:$CB27)+$CB$5 -> -630.8191318
A28: 1.916666667 | B28: 11 | C28: 2 | D28: 2.416666667 | E28: 2 | G28: =INDEX(Others!$D$11:$E$60, MATCH(C28, Others!$A$11:$A$60, 0), MATCH(G$3, Others!$D$10:$E$10, 0)) -> 0.02917292957 | H28: 0.002399164958 | I28: 0.9490341927 | K28: =INDEX(Mortality!$B$7:$F$32, MATCH( E28,Mortality!$A$7:$A$32, 0), MATCH( K$3,Mortality!$B$6:$F$6,0)) -> 0.332 | L28: 0 | M28: 0.332 | N28: =INDEX(Myopia!$H:$H, MATCH(E28, Myopia!$A:$A, 0)) * Trend_Factor^(A28) -> 0 | O28: 0 | P28: 0 | Q28: =VLOOKUP(C28,Others!$L$10:$M$61,2) -> 0 | R28: 0 | S28: 0 | T28: 2.766666667e-05 | U28: 0 | V28: 0 | W28: 0.9993943418 | X28: 2.764991012e-05 | Y28: 0 | Z28: 0 | AA28: 0.9993666919 | AC28: 0 | AD28: 0 | AE28: 0 | AF28: 0 | AG28: =SUMPRODUCT(AE29:AE$605, $I28:$I$604) / $I28 -> 0 | AI28: -47000 | AJ28: =IF(E28>Mat_Year,0, -SUM($AD$5:AD28)) -> -9306 | AK28: -0.2573100636 | AL28: 0 | AM28: -0.257466 | AN28: -0.2573100636 | AO28: -6831.550889 | AP28: =SUMPRODUCT(AN29:AN$605, $I29:$I$605) / $I28 -> -6827.413304 | AR28: 0 | AS28: 0 | AT28: 0 | AU28: -1.788303394 | AV28: 0 | AW28: -1.788303394 | AX28: -20.50587892 | AY28: 0 | AZ28: -20.50587892 | BA28: -1.787220293 | BB28: -0.0005669857091 | BC28: -1.788303394 | BD28: -0.0005673293168 | BE28: -1.787220293 | BF28: -0.0005669857091 | BG28: -286.2313439 | BH28: =(SUMPRODUCT(BE29:BE$605,$I28:$I$604)+SUMPRODUCT(BF29:BF$605,$I29:$I$605)) / $I28 -> -286.0579855 | BJ28: -1.787220293 | BK28: -0.2578770493 | BM28: 7117.979163 | BN28: 7113.471289 | BP28: =Reserve!BX28 -> 9760.883446 | BQ28: 9754.701799 | BR28: -15.32084498 | BT28: 23.37625168 | BU28: 23.36209366 | BV28: =SUMPRODUCT(BU29:BU$605, $I29:$I$605) / $I28 -> 3354.841807 | BX28: =-BZ28*Others!$Q$43 -> -1.535014744 | BZ28: 5.996151343 | CA28: 4.4611366 | CB28: 4.4611366 | CD28: =SUMPRODUCT(BZ29:BZ$605, $I29:$I$605) / $I28 -> 2641.23051 | CE28: =SUMPRODUCT(CA29:CA$605, $I29:$I$605) / $I28 -> 1965.075499 | CF28: =SUMPRODUCT(CB29:CB$605, $I29:$I$605) / $I28 -> 1965.075499 | CH28: 37239.11655 | CI28: 0 | CK28: =NPV((1+CK$3)^(1/12)-1,$CB$6:$CB28)+$CB$5 -> -621.1288996 | CL28: =NPV((1+CL$3)^(1/12)-1,$CB$6:$CB28)+$CB$5 -> -622.9299339 | CM28: =NPV((1+CM$3)^(1/12)-1,$CB$6:$CB28)+$CB$5 -> -627.1028423 | CN28: =NPV((1+CN$3)^(1/12)-1,$CB$6:$CB28)+$CB$5 -> -627.1028423
A29: 2 | B29: 12 | C29: 2 | D29: 2.5 | E29: 2 | G29: =INDEX(Others!$D$11:$E$60, MATCH(C29, Others!$A$11:$A$60, 0), MATCH(G$3, Others!$D$10:$E$10, 0)) -> 0.02917292957 | H29: 0.002399164958 | I29: 0.9467627527 | K29: =INDEX(Mortality!$B$7:$F$32, MATCH( E29,Mortality!$A$7:$A$32, 0), MATCH( K$3,Mortality!$B$6:$F$6,0)) -> 0.332 | L29: 0 | M29: 0.332 | N29: =INDEX(Myopia!$H:$H, MATCH(E29, Myopia!$A:$A, 0)) * Trend_Factor^(A29) -> 0 | O29: 0 | P29: 0 | Q29: =VLOOKUP(C29,Others!$L$10:$M$61,2) -> 0 | R29: 0 | S29: 0 | T29: 2.766666667e-05 | U29: 0 | V29: 0 | W29: 0.9993666919 | X29: 2.764914514e-05 | Y29: 0 | Z29: 0 | AA29: 0.9993390428 | AC29: 0 | AD29: 0 | AE29: 0 | AF29: 0 | AG29: =SUMPRODUCT(AE30:AE$605, $I29:$I$604) / $I29 -> 0 | AI29: -47000 | AJ29: =IF(E29>Mat_Year,0, -SUM($AD$5:AD29)) -> -9306 | AK29: -0.2573029447 | AL29: 0 | AM29: -0.257466 | AN29: -0.2573029447 | AO29: -6847.872905 | AP29: =SUMPRODUCT(AN30:AN$605, $I30:$I$605) / $I29 -> -6843.536092 | AR29: 0 | AS29: 0 | AT29: 0 | AU29: -1.790302893 | AV29: 0 | AW29: -1.790302893 | AX29: -20.52880651 | AY29: 0 | AZ29: -20.52880651 | BA29: -1.78916908 | BB29: -0.0005676039508 | BC29: -1.790302893 | BD29: -0.0005679636468 | BE29: -1.78916908 | BF29: -0.0005676039508 | BG29: -285.1308323 | BH29: =(SUMPRODUCT(BE30:BE$605,$I29:$I$604)+SUMPRODUCT(BF30:BF$605,$I30:$I$605)) / $I29 -> -284.9502566 | BJ29: -1.78916908 | BK29: -0.2578705486 | BM29: 7133.201089 | BN29: 7128.486348 | BP29: =Reserve!BX29 -> 9776.508398 | BQ29: 9770.046543 | BR29: -15.34474408 | BT29: 23.41367429 | BU29: 23.39884622 | BV29: =SUMPRODUCT(BU30:BU$605, $I30:$I$605) / $I29 -> 3339.49178 | BX29: =-BZ29*Others!$Q$43 -> -1.537808004 | BZ29: 6.007062517 | CA29: 4.469254513 | CB29: 4.469254513 | CD29: =SUMPRODUCT(BZ30:BZ$605, $I30:$I$605) / $I29 -> 2641.560195 | CE29: =SUMPRODUCT(CA30:CA$605, $I30:$I$605) / $I29 -> 1965.320785 | CF29: =SUMPRODUCT(CB30:CB$605, $I30:$I$605) / $I29 -> 1965.320785 | CH29: 37223.4916 | CI29: 0 | CK29: =NPV((1+CK$3)^(1/12)-1,$CB$6:$CB29)+$CB$5 -> -616.9161986 | CL29: =NPV((1+CL$3)^(1/12)-1,$CB$6:$CB29)+$CB$5 -> -618.8761883 | CM29: =NPV((1+CM$3)^(1/12)-1,$CB$6:$CB29)+$CB$5 -> -623.4092435 | CN29: =NPV((1+CN$3)^(1/12)-1,$CB$6:$CB29)+$CB$5 -> -623.4092435
A30: 2.083333333 | B30: 1 | C30: 3 | D30: 2.583333333 | E30: 2 | G30: =INDEX(Others!$D$11:$E$60, MATCH(C30, Others!$A$11:$A$60, 0), MATCH(G$3, Others!$D$10:$E$10, 0)) -> 0.03205696486 | H30: 0.002632948808 | I30: 0.9442765209 | K30: =INDEX(Mortality!$B$7:$F$32, MATCH( E30,Mortality!$A$7:$A$32, 0), MATCH( K$3,Mortality!$B$6:$F$6,0)) -> 0.332 | L30: 0 | M30: 0.332 | N30: =INDEX(Myopia!$H:$H, MATCH(E30, Myopia!$A:$A, 0)) * Trend_Factor^(A30) -> 0 | O30: 0 | P30: 0 | Q30: =VLOOKUP(C30,Others!$L$10:$M$61,2) -> 0 | R30: 0 | S30: 0 | T30: 2.766666667e-05 | U30: 0 | V30: 0 | W30: 0.9993390428 | X30: 2.764838018e-05 | Y30: 0 | Z30: 0 | AA30: 0.9993113944 | AC30: 0 | AD30: 0 | AE30: 0 | AF30: 0 | AG30: =SUMPRODUCT(AE31:AE$605, $I30:$I$604) / $I30 -> 0 | AI30: -47000 | AJ30: =IF(E30>Mat_Year,0, -SUM($AD$5:AD30)) -> -9306 | AK30: -0.257295826 | AL30: 0 | AM30: -0.257466 | AN30: -0.257295826 | AO30: -6865.8355 | AP30: =SUMPRODUCT(AN31:AN$605, $I31:$I$605) / $I30 -> -6861.297476 | AR30: 0 | AS30: 0 | AT30: 0 | AU30: -1.792304628 | AV30: 0 | AW30: -1.792304628 | AX30: -20.55175974 | AY30: 0 | AZ30: -20.55175974 | BA30: -1.791119992 | BB30: -0.0005682228667 | BC30: -1.792304628 | BD30: -0.0005685986861 | BE30: -1.791119992 | BF30: -0.0005682228667 | BG30: -284.0918845 | BH30: =(SUMPRODUCT(BE31:BE$605,$I30:$I$604)+SUMPRODUCT(BF31:BF$605,$I31:$I$605)) / $I30 -> -283.9041119 | BJ30: -1.791119992 | BK30: -0.2578640488 | BM30: 7150.125204 | BN30: 7145.201588 | BP30: =Reserve!BX30 -> 9793.883803 | BQ30: 9787.139679 | BR30: -17.09313571 | BT30: 25.73632709 | BU30: 25.71931647 | BV30: =SUMPRODUCT(BU31:BU$605, $I31:$I$605) / $I30 -> 3322.565174 | BX30: =-BZ30*Others!$Q$43 -> -1.683762362 | BZ30: 6.577196726 | CA30: 4.893434364 | CB30: 4.893434364 | CD30: =SUMPRODUCT(BZ31:BZ$605, $I31:$I$605) / $I30 -> 2641.938091 | CE30: =SUMPRODUCT(CA31:CA$605, $I31:$I$605) / $I30 -> 1965.60194 | CF30: =SUMPRODUCT(CB31:CB$605, $I31:$I$605) / $I30 -> 1965.60194 | CH30: 37206.1162 | CI30: 0 | CK30: =NPV((1+CK$3)^(1/12)-1,$CB$6:$CB30)+$CB$5 -> -612.3150151 | CL30: =NPV((1+CL$3)^(1/12)-1,$CB$6:$CB30)+$CB$5 -> -614.4557087 | CM30: =NPV((1+CM$3)^(1/12)-1,$CB$6:$CB30)+$CB$5 -> -619.3970765 | CN30: =NPV((1+CN$3)^(1/12)-1,$CB$6:$CB30)+$CB$5 -> -619.3970765
A31: 2.166666667 | B31: 2 | C31: 3 | D31: 2.666666667 | E31: 2 | G31: =INDEX(Others!$D$11:$E$60, MATCH(C31, Others!$A$11:$A$60, 0), MATCH(G$3, Others!$D$10:$E$10, 0)) -> 0.03205696486 | H31: 0.002632948808 | I31: 0.9417968181 | K31: =INDEX(Mortality!$B$7:$F$32, MATCH( E31,Mortality!$A$7:$A$32, 0), MATCH( K$3,Mortality!$B$6:$F$6,0)) -> 0.332 | L31: 0 | M31: 0.332 | N31: =INDEX(Myopia!$H:$H, MATCH(E31, Myopia!$A:$A, 0)) * Trend_Factor^(A31) -> 0 | O31: 0 | P31: 0 | Q31: =VLOOKUP(C31,Others!$L$10:$M$61,2) -> 0 | R31: 0 | S31: 0 | T31: 2.766666667e-05 | U31: 0 | V31: 0 | W31: 0.9993113944 | X31: 2.764761524e-05 | Y31: 0 | Z31: 0 | AA31: 0.9992837468 | AC31: 0 | AD31: 0 | AE31: 0 | AF31: 0 | AG31: =SUMPRODUCT(AE32:AE$605, $I31:$I$604) / $I31 -> 0 | AI31: -47000 | AJ31: =IF(E31>Mat_Year,0, -SUM($AD$5:AD31)) -> -9306 | AK31: -0.2572887075 | AL31: 0 | AM31: -0.257466 | AN31: -0.2572887075 | AO31: -6883.845887 | AP31: =SUMPRODUCT(AN32:AN$605, $I32:$I$605) / $I31 -> -6879.105632 | AR31: 0 | AS31: 0 | AT31: 0 | AU31: -1.794308602 | AV31: 0 | AW31: -1.794308602 | AX31: -20.57473863 | AY31: 0 | AZ31: -20.57473863 | BA31: -1.793073031 | BB31: -0.0005688424574 | BC31: -1.794308602 | BD31: -0.0005692344355 | BE31: -1.793073031 | BF31: -0.0005688424574 | BG31: -283.0481625 | BH31: =(SUMPRODUCT(BE32:BE$605,$I31:$I$604)+SUMPRODUCT(BF32:BF$605,$I32:$I$605)) / $I31 -> -282.8532539 | BJ31: -1.793073031 | BK31: -0.2578575499 | BM31: 7167.092339 | BN31: 7161.958886 | BP31: =Reserve!BX31 -> 9811.290292 | BQ31: 9804.262923 | BR31: -17.12324396 | BT31: 25.78207036 | BU31: 25.76431668 | BV31: =SUMPRODUCT(BU32:BU$605, $I32:$I$605) / $I31 -> 3305.549002 | BX31: =-BZ31*Others!$Q$43 -> -1.687076389 | BZ31: 6.590142146 | CA31: 4.903065757 | CB31: 4.903065757 | CD31: =SUMPRODUCT(BZ32:BZ$605, $I32:$I$605) / $I31 -> 2642.304037 | CE31: =SUMPRODUCT(CA32:CA$605, $I32:$I$605) / $I31 -> 1965.874203 | CF31: =SUMPRODUCT(CB32:CB$605, $I32:$I$605) / $I31 -> 1965.874203 | CH31: 37188.70971 | CI31: 0 | CK31: =NPV((1+CK$3)^(1/12)-1,$CB$6:$CB31)+$CB$5 -> -607.7161176 | CL31: =NPV((1+CL$3)^(1/12)-1,$CB$6:$CB31)+$CB$5 -> -610.0445003 | CM31: =NPV((1+CM$3)^(1/12)-1,$CB$6:$CB31)+$CB$5 -> -615.4088155 | CN31: =NPV((1+CN$3)^(1/12)-1,$CB$6:$CB31)+$CB$5 -> -615.4088155
A32: 2.25 | B32: 3 | C32: 3 | D32: 2.75 | E32: 2 | G32: =INDEX(Others!$D$11:$E$60, MATCH(C32, Others!$A$11:$A$60, 0), MATCH(G$3, Others!$D$10:$E$10, 0)) -> 0.03205696486 | H32: 0.002632948808 | I32: 0.9393236271 | K32: =INDEX(Mortality!$B$7:$F$32, MATCH( E32,Mortality!$A$7:$A$32, 0), MATCH( K$3,Mortality!$B$6:$F$6,0)) -> 0.332 | L32: 0 | M32: 0.332 | N32: =INDEX(Myopia!$H:$H, MATCH(E32, Myopia!$A:$A, 0)) * Trend_Factor^(A32) -> 0 | O32: 0 | P32: 0 | Q32: =VLOOKUP(C32,Others!$L$10:$M$61,2) -> 0 | R32: 0 | S32: 0 | T32: 2.766666667e-05 | U32: 0 | V32: 0 | W32: 0.9992837468 | X32: 2.764685033e-05 | Y32: 0 | Z32: 0 | AA32: 0.9992560999 | AC32: 0 | AD32: 0 | AE32: 0 | AF32: 0 | AG32: =SUMPRODUCT(AE33:AE$605, $I32:$I$604) / $I32 -> 0 | AI32: -47000 | AJ32: =IF(E32>Mat_Year,0, -SUM($AD$5:AD32)) -> -9306 | AK32: -0.2572815891 | AL32: 0 | AM32: -0.257466 | AN32: -0.2572815891 | AO32: -6901.904195 | AP32: =SUMPRODUCT(AN33:AN$605, $I33:$I$605) / $I32 -> -6896.960684 | AR32: 0 | AS32: 0 | AT32: 0 | AU32: -1.796314815 | AV32: 0 | AW32: -1.796314815 | AX32: -20.59774322 | AY32: 0 | AZ32: -20.59774322 | BA32: -1.795028199 | BB32: -0.0005694627238 | BC32: -1.796314815 | BD32: -0.0005698708957 | BE32: -1.795028199 | BF32: -0.0005694627238 | BG32: -281.9996514 | BH32: =(SUMPRODUCT(BE33:BE$605,$I32:$I$604)+SUMPRODUCT(BF33:BF$605,$I33:$I$605)) / $I32 -> -281.7976682 | BJ32: -1.795028199 | BK32: -0.2578510519 | BM32: 7184.102607 | BN32: 7178.758352 | BP32: =Reserve!BX32 -> 9828.727919 | BQ32: 9821.416328 | BR32: -17.15340465 | BT32: 25.82789547 | BU32: 25.80939616 | BV32: =SUMPRODUCT(BU33:BU$605, $I33:$I$605) / $I32 -> 3288.442947 | BX32: =-BZ32*Others!$Q$43 -> -1.690396737 | BZ32: 6.603112255 | CA32: 4.912715518 | CB32: 4.912715518 | CD32: =SUMPRODUCT(BZ33:BZ$605, $I33:$I$605) / $I32 -> 2642.657976 | CE32: =SUMPRODUCT(CA33:CA$605, $I33:$I$605) / $I32 -> 1966.137534 | CF32: =SUMPRODUCT(CB33:CB$605, $I33:$I$605) / $I32 -> 1966.137534 | CH32: 37171.27208 | CI32: 0 | CK32: =NPV((1+CK$3)^(1/12)-1,$CB$6:$CB32)+$CB$5 -> -603.1195054 | CL32: =NPV((1+CL$3)^(1/12)-1,$CB$6:$CB32)+$CB$5 -> -605.6425444 | CM32: =NPV((1+CM$3)^(1/12)-1,$CB$6:$CB32)+$CB$5 -> -611.4443187 | CN32: =NPV((1+CN$3)^(1/12)-1,$CB$6:$CB32)+$CB$5 -> -611.4443187
A33: 2.333333333 | B33: 4 | C33: 3 | D33: 2.833333333 | E33: 2 | G33: =INDEX(Others!$D$11:$E$60, MATCH(C33, Others!$A$11:$A$60, 0), MATCH(G$3, Others!$D$10:$E$10, 0)) -> 0.03205696486 | H33: 0.002632948808 | I33: 0.9368569307 | K33: =INDEX(Mortality!$B$7:$F$32, MATCH( E33,Mortality!$A$7:$A$32, 0), MATCH( K$3,Mortality!$B$6:$F$6,0)) -> 0.332 | L33: 0 | M33: 0.332 | N33: =INDEX(Myopia!$H:$H, MATCH(E33, Myopia!$A:$A, 0)) * Trend_Factor^(A33) -> 0 | O33: 0 | P33: 0 | Q33: =VLOOKUP(C33,Others!$L$10:$M$61,2) -> 0 | R33: 0 | S33: 0 | T33: 2.766666667e-05 | U33: 0 | V33: 0 | W33: 0.9992560999 | X33: 2.764608543e-05 | Y33: 0 | Z33: 0 | AA33: 0.9992284538 | AC33: 0 | AD33: 0 | AE33: 0 | AF33: 0 | AG33: =SUMPRODUCT(AE34:AE$605, $I33:$I$604) / $I33 -> 0 | AI33: -47000 | AJ33: =IF(E33>Mat_Year,0, -SUM($AD$5:AD33)) -> -9306 | AK33: -0.257274471 | AL33: 0 | AM33: -0.257466 | AN33: -0.257274471 | AO33: -6920.01055 | AP33: =SUMPRODUCT(AN34:AN$605, $I34:$I$605) / $I33 -> -6914.862754 | AR33: 0 | AS33: 0 | AT33: 0 | AU33: -1.798323272 | AV33: 0 | AW33: -1.798323272 | AX33: -20.62077352 | AY33: 0 | AZ33: -20.62077352 | BA33: -1.796985499 | BB33: -0.0005700836665 | BC33: -1.798323272 | BD33: -0.0005705080675 | BE33: -1.796985499 | BF33: -0.0005700836665 | BG33: -280.9463361 | BH33: =(SUMPRODUCT(BE34:BE$605,$I33:$I$604)+SUMPRODUCT(BF34:BF$605,$I34:$I$605)) / $I33 -> -280.7373401 | BJ33: -1.796985499 | BK33: -0.2578445547 | BM33: 7201.156118 | BN33: 7195.600094 | BP33: =Reserve!BX33 -> 9846.196741 | BQ33: 9838.599946 | BR33: -17.18361789 | BT33: 25.87380257 | BU33: 25.85455504 | BV33: =SUMPRODUCT(BU34:BU$605, $I34:$I$605) / $I33 -> 3271.246694 | BX33: =-BZ33*Others!$Q$43 -> -1.693723417 | BZ33: 6.616107099 | CA33: 4.922383682 | CB33: 4.922383682 | CD33: =SUMPRODUCT(BZ34:BZ$605, $I34:$I$605) / $I33 -> 2642.999852 | CE33: =SUMPRODUCT(CA34:CA$605, $I34:$I$605) / $I33 -> 1966.39189 | CF33: =SUMPRODUCT(CB34:CB$605, $I34:$I$605) / $I33 -> 1966.39189 | CH33: 37153.80326 | CI33: 0 | CK33: =NPV((1+CK$3)^(1/12)-1,$CB$6:$CB33)+$CB$5 -> -598.5251781 | CL33: =NPV((1+CL$3)^(1/12)-1,$CB$6:$CB33)+$CB$5 -> -601.2498219 | CM33: =NPV((1+CM$3)^(1/12)-1,$CB$6:$CB33)+$CB$5 -> -607.5034449 | CN33: =NPV((1+CN$3)^(1/12)-1,$CB$6:$CB33)+$CB$5 -> -607.5034449
A34: 2.416666667 | B34: 5 | C34: 3 | D34: 2.916666667 | E34: 2 | G34: =INDEX(Others!$D$11:$E$60, MATCH(C34, Others!$A$11:$A$60, 0), MATCH(G$3, Others!$D$10:$E$10, 0)) -> 0.03205696486 | H34: 0.002632948808 | I34: 0.934396712 | K34: =INDEX(Mortality!$B$7:$F$32, MATCH( E34,Mortality!$A$7:$A$32, 0), MATCH( K$3,Mortality!$B$6:$F$6,0)) -> 0.332 | L34: 0 | M34: 0.332 | N34: =INDEX(Myopia!$H:$H, MATCH(E34, Myopia!$A:$A, 0)) * Trend_Factor^(A34) -> 0 | O34: 0 | P34: 0 | Q34: =VLOOKUP(C34,Others!$L$10:$M$61,2) -> 0 | R34: 0 | S34: 0 | T34: 2.766666667e-05 | U34: 0 | V34: 0 | W34: 0.9992284538 | X34: 2.764532056e-05 | Y34: 0 | Z34: 0 | AA34: 0.9992008085 | AC34: 0 | AD34: 0 | AE34: 0 | AF34: 0 | AG34: =SUMPRODUCT(AE35:AE$605, $I34:$I$604) / $I34 -> 0 | AI34: -47000 | AJ34: =IF(E34>Mat_Year,0, -SUM($AD$5:AD34)) -> -9306 | AK34: -0.2572673531 | AL34: 0 | AM34: -0.257466 | AN34: -0.2572673531 | AO34: -6938.165081 | AP34: =SUMPRODUCT(AN35:AN$605, $I35:$I$605) / $I34 -> -6932.811966 | AR34: 0 | AS34: 0 | AT34: 0 | AU34: -1.800333975 | AV34: 0 | AW34: -1.800333975 | AX34: -20.64382958 | AY34: 0 | AZ34: -20.64382958 | BA34: -1.798944934 | BB34: -0.0005707052862 | BC34: -1.800333975 | BD34: -0.0005711459517 | BE34: -1.798944934 | BF34: -0.0005707052862 | BG34: -279.8882016 | BH34: =(SUMPRODUCT(BE35:BE$605,$I34:$I$604)+SUMPRODUCT(BF35:BF$605,$I35:$I$605)) / $I34 -> -279.672255 | BJ34: -1.798944934 | BK34: -0.2578380584 | BM34: 7218.252987 | BN34: 7212.484221 | BP34: =Reserve!BX34 -> 9863.696812 | BQ34: 9855.813829 | BR34: -17.21388375 | BT34: 25.91979179 | BU34: 25.89979347 | BV34: =SUMPRODUCT(BU35:BU$605, $I35:$I$605) / $I34 -> 3253.959925 | BX34: =-BZ34*Others!$Q$43 -> -1.697056441 | BZ34: 6.629126724 | CA34: 4.932070283 | CB34: 4.932070283 | CD34: =SUMPRODUCT(BZ35:BZ$605, $I35:$I$605) / $I34 -> 2643.329608 | CE34: =SUMPRODUCT(CA35:CA$605, $I35:$I$605) / $I34 -> 1966.637229 | CF34: =SUMPRODUCT(CB35:CB$605, $I35:$I$605) / $I34 -> 1966.637229 | CH34: 37136.30319 | CI34: 0 | CK34: =NPV((1+CK$3)^(1/12)-1,$CB$6:$CB34)+$CB$5 -> -593.9331349 | CL34: =NPV((1+CL$3)^(1/12)-1,$CB$6:$CB34)+$CB$5 -> -596.8663141 | CM34: =NPV((1+CM$3)^(1/12)-1,$CB$6:$CB34)+$CB$5 -> -603.5860538 | CN34: =NPV((1+CN$3)^(1/12)-1,$CB$6:$CB34)+$CB$5 -> -603.5860538
A35: 2.5 | B35: 6 | C35: 3 | D35: 3 | E35: 3 | G35: =INDEX(Others!$D$11:$E$60, MATCH(C35, Others!$A$11:$A$60, 0), MATCH(G$3, Others!$D$10:$E$10, 0)) -> 0.03205696486 | H35: 0.002632948808 | I35: 0.9319429539 | K35: =INDEX(Mortality!$B$7:$F$32, MATCH( E35,Mortality!$A$7:$A$32, 0), MATCH( K$3,Mortality!$B$6:$F$6,0)) -> 0.334 | L35: 0 | M35: 0.334 | N35: =INDEX(Myopia!$H:$H, MATCH(E35, Myopia!$A:$A, 0)) * Trend_Factor^(A35) -> 6.169765466 | O35: 0 | P35: 6.169765466 | Q35: =VLOOKUP(C35,Others!$L$10:$M$61,2) -> 0 | R35: 0 | S35: 0 | T35: 2.783333333e-05 | U35: 0.0005141471222 | V35: 0 | W35: 0.9992008085 | X35: 2.780393967e-05 | Y35: 0.0005137290707 | Z35: 0 | AA35: 0.9986592755 | AC35: 0 | AD35: 0 | AE35: 0 | AF35: 0 | AG35: =SUMPRODUCT(AE36:AE$605, $I35:$I$604) / $I35 -> 0 | AI35: -47000 | AJ35: =IF(E35>Mat_Year,0, -SUM($AD$5:AD35)) -> -9306 | AK35: -0.2587434626 | AL35: -24.14526632 | AM35: -24.42352886 | AN35: -24.40400978 | AO35: -6932.201852 | AP35: =SUMPRODUCT(AN36:AN$605, $I36:$I$605) / $I35 -> -6926.661695 | AR35: 0 | AS35: 0 | AT35: 0 | AU35: -1.802346926 | AV35: 0 | AW35: -1.802346926 | AX35: -20.66691141 | AY35: 0 | AZ35: -20.66691141 | BA35: -1.800906505 | BB35: -0.01119181475 | BC35: -1.802346926 | BD35: -0.01120076631 | BE35: -1.800906505 | BF35: -0.01119181475 | BG35: -278.8146039 | BH35: =(SUMPRODUCT(BE36:BE$605,$I35:$I$604)+SUMPRODUCT(BF36:BF$605,$I36:$I$605)) / $I35 -> -278.5917777 | BJ35: -1.800906505 | BK35: -24.4152016 | BM35: 7214.926702 | BN35: 7205.253473 | BP35: =Reserve!BX35 -> 9856.385863 | BQ35: 9843.171165 | BR35: 12.64266427 | BT35: 25.96586328 | BU35: 25.94511158 | BV35: =SUMPRODUCT(BU36:BU$605, $I36:$I$605) / $I35 -> 3236.582324 | BX35: =-BZ35*Others!$Q$43 -> -3.167146944 | BZ35: 12.37166775 | CA35: 9.204520807 | CB35: 9.204520807 | CD35: =SUMPRODUCT(BZ36:BZ$605, $I36:$I$605) / $I35 -> 2637.917692 | CE35: =SUMPRODUCT(CA36:CA$605, $I36:$I$605) / $I35 -> 1962.610763 | CF35: =SUMPRODUCT(CB36:CB$605, $I36:$I$605) / $I35 -> 1962.610763 | CH35: 37143.61414 | CI35: 0 | CK35: =NPV((1+CK$3)^(1/12)-1,$CB$6:$CB35)+$CB$5 -> -585.3842765 | CL35: =NPV((1+CL$3)^(1/12)-1,$CB$6:$CB35)+$CB$5 -> -588.7187472 | CM35: =NPV((1+CM$3)^(1/12)-1,$CB$6:$CB35)+$CB$5 -> -596.3330238 | CN35: =NPV((1+CN$3)^(1/12)-1,$CB$6:$CB35)+$CB$5 -> -596.3330238
A36: 2.583333333 | B36: 7 | C36: 3 | D36: 3.083333333 | E36: 3 | G36: =INDEX(Others!$D$11:$E$60, MATCH(C36, Others!$A$11:$A$60, 0), MATCH(G$3, Others!$D$10:$E$10, 0)) -> 0.03205696486 | H36: 0.002632948808 | I36: 0.9294956395 | K36: =INDEX(Mortality!$B$7:$F$32, MATCH( E36,Mortality!$A$7:$A$32, 0), MATCH( K$3,Mortality!$B$6:$F$6,0)) -> 0.334 | L36: 0 | M36: 0.334 | N36: =INDEX(Myopia!$H:$H, MATCH(E36, Myopia!$A:$A, 0)) * Trend_Factor^(A36) -> 6.169765466 | O36: 0 | P36: 6.169765466 | Q36: =VLOOKUP(C36,Others!$L$10:$M$61,2) -> 0 | R36: 0 | S36: 0 | T36: 2.783333333e-05 | U36: 0.0005141471222 | V36: 0 | W36: 0.9986592755 | X36: 2.778887088e-05 | Y36: 0.0005134506469 | Z36: 0 | AA36: 0.998118036 | AC36: 0 | AD36: 0 | AE36: 0 | AF36: 0 | AG36: =SUMPRODUCT(AE37:AE$605, $I36:$I$604) / $I36 -> 0 | AI36: -47000 | AJ36: =IF(E36>Mat_Year,0, -SUM($AD$5:AD36)) -> -9306 | AK36: -0.2586032324 | AL36: -24.13218041 | AM36: -24.42352886 | AN36: -24.39078364 | AO36: -6929.799409 | AP36: =SUMPRODUCT(AN37:AN$605, $I37:$I$605) / $I36 -> -6920.508457 | AR36: 0 | AS36: 0 | AT36: 0 | AU36: -1.804362127 | AV36: 0 | AW36: -1.804362127 | AX36: -20.69001906 | AY36: 0 | AZ36: -20.69001906 | BA36: -1.801942975 | BB36: -0.01119825594 | BC36: -1.804362127 | BD36: -0.01121328987 | BE36: -1.801942975 | BF36: -0.01119825594 | BG36: -277.8799704 | BH36: =(SUMPRODUCT(BE37:BE$605,$I36:$I$604)+SUMPRODUCT(BF37:BF$605,$I37:$I$605)) / $I36 -> -277.5074099 | BJ36: -1.801942975 | BK36: -24.40198189 | BM36: 7211.587816 | BN36: 7198.015867 | BP36: =Reserve!BX36 -> 9849.051316 | BQ36: 9830.515755 | BR36: 12.65540988 | BT36: 25.94660862 | BU36: 25.91182136 | BV36: =SUMPRODUCT(BU37:BU$605, $I37:$I$605) / $I36 -> 3219.192258 | BX36: =-BZ36*Others!$Q$43 -> -3.165006431 | BZ36: 12.36330637 | CA36: 9.198299942 | CB36: 9.198299942 | CD36: =SUMPRODUCT(BZ37:BZ$605, $I37:$I$605) / $I36 -> 2632.499888 | CE36: =SUMPRODUCT(CA37:CA$605, $I37:$I$605) / $I36 -> 1958.579917 | CF36: =SUMPRODUCT(CB37:CB$605, $I37:$I$605) / $I36 -> 1958.579917 | CH36: 37150.94868 | CI36: 0 | CK36: =NPV((1+CK$3)^(1/12)-1,$CB$6:$CB36)+$CB$5 -> -576.8622136 | CL36: =NPV((1+CL$3)^(1/12)-1,$CB$6:$CB36)+$CB$5 -> -580.609724 | CM36: =NPV((1+CM$3)^(1/12)-1,$CB$6:$CB36)+$CB$5 -> -589.1422362 | CN36: =NPV((1+CN$3)^(1/12)-1,$CB$6:$CB36)+$CB$5 -> -589.1422362
A37: 2.666666667 | B37: 8 | C37: 3 | D37: 3.166666667 | E37: 3 | G37: =INDEX(Others!$D$11:$E$60, MATCH(C37, Others!$A$11:$A$60, 0), MATCH(G$3, Others!$D$10:$E$10, 0)) -> 0.03205696486 | H37: 0.002632948808 | I37: 0.9270547518 | K37: =INDEX(Mortality!$B$7:$F$32, MATCH( E37,Mortality!$A$7:$A$32, 0), MATCH( K$3,Mortality!$B$6:$F$6,0)) -> 0.334 | L37: 0 | M37: 0.334 | N37: =INDEX(Myopia!$H:$H, MATCH(E37, Myopia!$A:$A, 0)) * Trend_Factor^(A37) -> 6.169765466 | O37: 0 | P37: 6.169765466 | Q37: =VLOOKUP(C37,Others!$L$10:$M$61,2) -> 0 | R37: 0 | S37: 0 | T37: 2.783333333e-05 | U37: 0.0005141471222 | V37: 0 | W37: 0.998118036 | X37: 2.777381025e-05 | Y37: 0.000513172374 | Z37: 0 | AA37: 0.9975770898 | AC37: 0 | AD37: 0 | AE37: 0 | AF37: 0 | AG37: =SUMPRODUCT(AE38:AE$605, $I37:$I$604) / $I37 -> 0 | AI37: -47000 | AJ37: =IF(E37>Mat_Year,0, -SUM($AD$5:AD37)) -> -9306 | AK37: -0.2584630782 | AL37: -24.11910158 | AM37: -24.42352886 | AN37: -24.37756466 | AO37: -6927.389335 | AP37: =SUMPRODUCT(AN38:AN$605, $I38:$I$605) / $I37 -> -6914.352237 | AR37: 0 | AS37: 0 | AT37: 0 | AU37: -1.806379582 | AV37: 0 | AW37: -1.806379582 | AX37: -20.71315254 | AY37: 0 | AZ37: -20.71315254 | BA37: -1.80298004 | BB37: -0.01120470083 | BC37: -1.806379582 | BD37: -0.01122582743 | BE37: -1.80298004 | BF37: -0.01120470083 | BG37: -276.9403326 | BH37: =(SUMPRODUCT(BE38:BE$605,$I37:$I$604)+SUMPRODUCT(BF38:BF$605,$I38:$I$605)) / $I37 -> -276.4191408 | BJ37: -1.80298004 | BK37: -24.38876936 | BM37: 7208.236287 | BN37: 7190.771378 | BP37: =Reserve!BX37 -> 9841.693098 | BQ37: 9817.847559 | BR37: 12.66819606 | BT37: 25.92729182 | BU37: 25.87849759 | BV37: =SUMPRODUCT(BU38:BU$605, $I38:$I$605) / $I37 -> 3201.789729 | BX37: =-BZ37*Others!$Q$43 -> -3.162865727 | BZ37: 12.35494424 | CA37: 9.192078518 | CB37: 9.192078518 | CD37: =SUMPRODUCT(BZ38:BZ$605, $I38:$I$605) / $I37 -> 2627.076181 | CE37: =SUMPRODUCT(CA38:CA$605, $I38:$I$605) / $I37 -> 1954.544679 | CF37: =SUMPRODUCT(CB38:CB$605, $I38:$I$605) / $I37 -> 1954.544679 | CH37: 37158.3069 | CI37: 0 | CK37: =NPV((1+CK$3)^(1/12)-1,$CB$6:$CB37)+$CB$5 -> -568.3668665 | CL37: =NPV((1+CL$3)^(1/12)-1,$CB$6:$CB37)+$CB$5 -> -572.5390663 | CM37: =NPV((1+CM$3)^(1/12)-1,$CB$6:$CB37)+$CB$5 -> -582.0131604 | CN37: =NPV((1+CN$3)^(1/12)-1,$CB$6:$CB37)+$CB$5 -> -582.0131604
A38: 2.75 | B38: 9 | C38: 3 | D38: 3.25 | E38: 3 | G38: =INDEX(Others!$D$11:$E$60, MATCH(C38, Others!$A$11:$A$60, 0), MATCH(G$3, Others!$D$10:$E$10, 0)) -> 0.03205696486 | H38: 0.002632948808 | I38: 0.924620274 | K38: =INDEX(Mortality!$B$7:$F$32, MATCH( E38,Mortality!$A$7:$A$32, 0), MATCH( K$3,Mortality!$B$6:$F$6,0)) -> 0.334 | L38: 0 | M38: 0.334 | N38: =INDEX(Myopia!$H:$H, MATCH(E38, Myopia!$A:$A, 0)) * Trend_Factor^(A38) -> 6.169765466 | O38: 0 | P38: 6.169765466 | Q38: =VLOOKUP(C38,Others!$L$10:$M$61,2) -> 0 | R38: 0 | S38: 0 | T38: 2.783333333e-05 | U38: 0.0005141471222 | V38: 0 | W38: 0.9975770898 | X38: 2.775875779e-05 | Y38: 0.000512894252 | Z38: 0 | AA38: 0.9970364368 | AC38: 0 | AD38: 0 | AE38: 0 | AF38: 0 | AG38: =SUMPRODUCT(AE39:AE$605, $I38:$I$604) / $I38 -> 0 | AI38: -47000 | AJ38: =IF(E38>Mat_Year,0, -SUM($AD$5:AD38)) -> -9306 | AK38: -0.258323 | AL38: -24.10602984 | AM38: -24.42352886 | AN38: -24.36435284 | AO38: -6924.971604 | AP38: =SUMPRODUCT(AN39:AN$605, $I39:$I$605) / $I38 -> -6908.19302 | AR38: 0 | AS38: 0 | AT38: 0 | AU38: -1.808399292 | AV38: 0 | AW38: -1.808399292 | AX38: -20.73631188 | AY38: 0 | AZ38: -20.73631188 | BA38: -1.804017703 | BB38: -0.01121114943 | BC38: -1.808399292 | BD38: -0.01123837901 | BE38: -1.804017703 | BF38: -0.01121114943 | BG38: -275.9956723 | BH38: =(SUMPRODUCT(BE39:BE$605,$I38:$I$604)+SUMPRODUCT(BF39:BF$605,$I39:$I$605)) / $I38 -> -275.3269595 | BJ38: -1.804017703 | BK38: -24.37556399 | BM38: 7204.872073 | BN38: 7183.519979 | BP38: =Reserve!BX38 -> 9834.311139 | BQ38: 9805.166536 | BR38: 12.6810229 | BT38: 25.90791269 | BU38: 25.84514014 | BV38: =SUMPRODUCT(BU39:BU$605, $I39:$I$605) / $I38 -> 3184.374737 | BX38: =-BZ38*Others!$Q$43 -> -3.160724825 | BZ38: 12.34658135 | CA38: 9.185856524 | CB38: 9.185856524 | CD38: =SUMPRODUCT(BZ39:BZ$605, $I39:$I$605) / $I38 -> 2621.646557 | CE38: =SUMPRODUCT(CA39:CA$605, $I39:$I$605) / $I38 -> 1950.505038 | CF38: =SUMPRODUCT(CB39:CB$605, $I39:$I$605) / $I38 -> 1950.505038 | CH38: 37165.68886 | CI38: 0 | CK38: =NPV((1+CK$3)^(1/12)-1,$CB$6:$CB38)+$CB$5 -> -559.898156 | CL38: =NPV((1+CL$3)^(1/12)-1,$CB$6:$CB38)+$CB$5 -> -564.5065968 | CM38: =NPV((1+CM$3)^(1/12)-1,$CB$6:$CB38)+$CB$5 -> -574.9452705 | CN38: =NPV((1+CN$3)^(1/12)-1,$CB$6:$CB38)+$CB$5 -> -574.9452705
A39: 2.833333333 | B39: 10 | C39: 3 | D39: 3.333333333 | E39: 3 | G39: =INDEX(Others!$D$11:$E$60, MATCH(C39, Others!$A$11:$A$60, 0), MATCH(G$3, Others!$D$10:$E$10, 0)) -> 0.03205696486 | H39: 0.002632948808 | I39: 0.9221921891 | K39: =INDEX(Mortality!$B$7:$F$32, MATCH( E39,Mortality!$A$7:$A$32, 0), MATCH( K$3,Mortality!$B$6:$F$6,0)) -> 0.334 | L39: 0 | M39: 0.334 | N39: =INDEX(Myopia!$H:$H, MATCH(E39, Myopia!$A:$A, 0)) * Trend_Factor^(A39) -> 6.169765466 | O39: 0 | P39: 6.169765466 | Q39: =VLOOKUP(C39,Others!$L$10:$M$61,2) -> 0 | R39: 0 | S39: 0 | T39: 2.783333333e-05 | U39: 0.0005141471222 | V39: 0 | W39: 0.9970364368 | X39: 2.774371348e-05 | Y39: 0.0005126162807 | Z39: 0 | AA39: 0.9964960768 | AC39: 0 | AD39: 0 | AE39: 0 | AF39: 0 | AG39: =SUMPRODUCT(AE40:AE$605, $I39:$I$604) / $I39 -> 0 | AI39: -47000 | AJ39: =IF(E39>Mat_Year,0, -SUM($AD$5:AD39)) -> -9306 | AK39: -0.2581829977 | AL39: -24.09296519 | AM39: -24.42352886 | AN39: -24.35114819 | AO39: -6922.546193 | AP39: =SUMPRODUCT(AN40:AN$605, $I40:$I$605) / $I39 -> -6902.03079 | AR39: 0 | AS39: 0 | AT39: 0 | AU39: -1.810421261 | AV39: 0 | AW39: -1.810421261 | AX39: -20.75949712 | AY39: 0 | AZ39: -20.75949712 | BA39: -1.805055963 | BB39: -0.01121760174 | BC39: -1.810421261 | BD39: -0.01125094463 | BE39: -1.805055963 | BF39: -0.01121760174 | BG39: -275.0459713 | BH39: =(SUMPRODUCT(BE40:BE$605,$I39:$I$604)+SUMPRODUCT(BF40:BF$605,$I40:$I$605)) / $I39 -> -274.2308551 | BJ39: -1.805055963 | BK39: -24.36236579 | BM39: 7201.495131 | BN39: 7176.261645 | BP39: =Reserve!BX39 -> 9826.905368 | BQ39: 9792.472646 | BR39: 12.6938905 | BT39: 25.88847105 | BU39: 25.81174893 | BV39: =SUMPRODUCT(BU40:BU$605, $I40:$I$605) / $I39 -> 3166.947284 | BX39: =-BZ39*Others!$Q$43 -> -3.158583724 | BZ39: 12.33821767 | CA39: 9.179633947 | CB39: 9.179633947 | CD39: =SUMPRODUCT(BZ40:BZ$605, $I40:$I$605) / $I39 -> 2616.211001 | CE39: =SUMPRODUCT(CA40:CA$605, $I40:$I$605) / $I39 -> 1946.460984 | CF39: =SUMPRODUCT(CB40:CB$605, $I40:$I$605) / $I39 -> 1946.460984 | CH39: 37173.09463 | CI39: 0 | CK39: =NPV((1+CK$3)^(1/12)-1,$CB$6:$CB39)+$CB$5 -> -551.4560028 | CL39: =NPV((1+CL$3)^(1/12)-1,$CB$6:$CB39)+$CB$5 -> -556.512139 | CM39: =NPV((1+CM$3)^(1/12)-1,$CB$6:$CB39)+$CB$5 -> -567.9380451 | CN39: =NPV((1+CN$3)^(1/12)-1,$CB$6:$CB39)+$CB$5 -> -567.9380451
A40: 2.916666667 | B40: 11 | C40: 3 | D40: 3.416666667 | E40: 3 | G40: =INDEX(Others!$D$11:$E$60, MATCH(C40, Others!$A$11:$A$60, 0), MATCH(G$3, Others!$D$10:$E$10, 0)) -> 0.03205696486 | H40: 0.002632948808 | I40: 0.9197704805 | K40: =INDEX(Mortality!$B$7:$F$32, MATCH( E40,Mortality!$A$7:$A$32, 0), MATCH( K$3,Mortality!$B$6:$F$6,0)) -> 0.334 | L40: 0 | M40: 0.334 | N40: =INDEX(Myopia!$H:$H, MATCH(E40, Myopia!$A:$A, 0)) * Trend_Factor^(A40) -> 6.169765466 | O40: 0 | P40: 6.169765466 | Q40: =VLOOKUP(C40,Others!$L$10:$M$61,2) -> 0 | R40: 0 | S40: 0 | T40: 2.783333333e-05 | U40: 0.0005141471222 | V40: 0 | W40: 0.9964960768 | X40: 2.772867733e-05 | Y40: 0.00051233846 | Z40: 0 | AA40: 0.9959560096 | AC40: 0 | AD40: 0 | AE40: 0 | AF40: 0 | AG40: =SUMPRODUCT(AE41:AE$605, $I40:$I$604) / $I40 -> 0 | AI40: -47000 | AJ40: =IF(E40>Mat_Year,0, -SUM($AD$5:AD40)) -> -9306 | AK40: -0.2580430712 | AL40: -24.07990762 | AM40: -24.42352886 | AN40: -24.33795069 | AO40: -6920.113078 | AP40: =SUMPRODUCT(AN41:AN$605, $I41:$I$605) / $I40 -> -6895.865533 | AR40: 0 | AS40: 0 | AT40: 0 | AU40: -1.81244549 | AV40: 0 | AW40: -1.81244549 | AX40: -20.78270828 | AY40: 0 | AZ40: -20.78270828 | BA40: -1.80609482 | BB40: -0.01122405777 | BC40: -1.81244549 | BD40: -0.01126352429 | BE40: -1.80609482 | BF40: -0.01122405777 | BG40: -274.0912113 | BH40: =(SUMPRODUCT(BE41:BE$605,$I40:$I$604)+SUMPRODUCT(BF41:BF$605,$I41:$I$605)) / $I40 -> -273.1308167 | BJ40: -1.80609482 | BK40: -24.34917475 | BM40: 7198.105419 | BN40: 7168.99635 | BP40: =Reserve!BX40 -> 9819.475712 | BQ40: 9779.765847 | BR40: 12.70679894 | BT40: 25.8689667 | BU40: 25.77832383 | BV40: =SUMPRODUCT(BU41:BU$605, $I41:$I$605) / $I40 -> 3149.50737 | BX40: =-BZ40*Others!$Q$43 -> -3.156442418 | BZ40: 12.32985319 | CA40: 9.173410777 | CB40: 9.173410777 | CD40: =SUMPRODUCT(BZ41:BZ$605, $I41:$I$605) / $I40 -> 2610.769497 | CE40: =SUMPRODUCT(CA41:CA$605, $I41:$I$605) / $I40 -> 1942.412506 | CF40: =SUMPRODUCT(CB41:CB$605, $I41:$I$605) / $I40 -> 1942.412506 | CH40: 37180.52429 | CI40: 0 | CK40: =NPV((1+CK$3)^(1/12)-1,$CB$6:$CB40)+$CB$5 -> -543.0403282 | CL40: =NPV((1+CL$3)^(1/12)-1,$CB$6:$CB40)+$CB$5 -> -548.5555171 | CM40: =NPV((1+CM$3)^(1/12)-1,$CB$6:$CB40)+$CB$5 -> -560.9909671 | CN40: =NPV((1+CN$3)^(1/12)-1,$CB$6:$CB40)+$CB$5 -> -560.9909671
A41: 3 | B41: 12 | C41: 3 | D41: 3.5 | E41: 3 | G41: =INDEX(Others!$D$11:$E$60, MATCH(C41, Others!$A$11:$A$60, 0), MATCH(G$3, Others!$D$10:$E$10, 0)) -> 0.03205696486 | H41: 0.002632948808 | I41: 0.9173551314 | K41: =INDEX(Mortality!$B$7:$F$32, MATCH( E41,Mortality!$A$7:$A$32, 0), MATCH( K$3,Mortality!$B$6:$F$6,0)) -> 0.334 | L41: 0 | M41: 0.334 | N41: =INDEX(Myopia!$H:$H, MATCH(E41, Myopia!$A:$A, 0)) * Trend_Factor^(A41) -> 6.169765466 | O41: 0 | P41: 6.169765466 | Q41: =VLOOKUP(C41,Others!$L$10:$M$61,2) -> 0 | R41: 0 | S41: 0 | T41: 2.783333333e-05 | U41: 0.0005141471222 | V41: 0 | W41: 0.9959560096 | X41: 2.771364932e-05 | Y41: 0.0005120607899 | Z41: 0 | AA41: 0.9954162352 | AC41: 0 | AD41: 0 | AE41: 0 | AF41: 0 | AG41: =SUMPRODUCT(AE42:AE$605, $I41:$I$604) / $I41 -> 0 | AI41: -47000 | AJ41: =IF(E41>Mat_Year,0, -SUM($AD$5:AD41)) -> -9306 | AK41: -0.2579032206 | AL41: -24.06685713 | AM41: -24.42352886 | AN41: -24.32476035 | AO41: -6917.672234 | AP41: =SUMPRODUCT(AN42:AN$605, $I42:$I$605) / $I41 -> -6889.697234 | AR41: 0 | AS41: 0 | AT41: 0 | AU41: -1.814471983 | AV41: 0 | AW41: -1.814471983 | AX41: -20.8059454 | AY41: 0 | AZ41: -20.8059454 | BA41: -1.807134275 | BB41: -0.01123051751 | BC41: -1.814471983 | BD41: -0.01127611802 | BE41: -1.807134275 | BF41: -0.01123051751 | BG41: -273.1313739 | BH41: =(SUMPRODUCT(BE42:BE$605,$I41:$I$604)+SUMPRODUCT(BF42:BF$605,$I42:$I$605)) / $I41 -> -272.0268333 | BJ41: -1.807134275 | BK41: -24.33599086 | BM41: 7194.702893 | BN41: 7161.724067 | BP41: =Reserve!BX41 -> 9812.0221 | BQ41: 9767.046099 | BR41: 12.7197483 | BT41: 25.84939946 | BU41: 25.74486474 | BV41: =SUMPRODUCT(BU42:BU$605, $I42:$I$605) / $I41 -> 3132.054997 | BX41: =-BZ41*Others!$Q$43 -> -3.154300903 | BZ41: 12.3214879 | CA41: 9.167187 | CB41: 9.167187 | CD41: =SUMPRODUCT(BZ42:BZ$605, $I42:$I$605) / $I41 -> 2605.322032 | CE41: =SUMPRODUCT(CA42:CA$605, $I42:$I$605) / $I41 -> 1938.359591 | CF41: =SUMPRODUCT(CB42:CB$605, $I42:$I$605) / $I41 -> 1938.359591 | CH41: 37187.9779 | CI41: 0 | CK41: =NPV((1+CK$3)^(1/12)-1,$CB$6:$CB41)+$CB$5 -> -534.6510535 | CL41: =NPV((1+CL$3)^(1/12)-1,$CB$6:$CB41)+$CB$5 -> -540.6365563 | CM41: =NPV((1+CM$3)^(1/12)-1,$CB$6:$CB41)+$CB$5 -> -554.1035238 | CN41: =NPV((1+CN$3)^(1/12)-1,$CB$6:$CB41)+$CB$5 -> -554.1035238
A42: 3.083333333 | B42: 1 | C42: 4 | D42: 3.583333333 | E42: 3 | G42: =INDEX(Others!$D$11:$E$60, MATCH(C42, Others!$A$11:$A$60, 0), MATCH(G$3, Others!$D$10:$E$10, 0)) -> 0.03494300933 | H42: 0.002866296808 | I42: 0.9147332345 | K42: =INDEX(Mortality!$B$7:$F$32, MATCH( E42,Mortality!$A$7:$A$32, 0), MATCH( K$3,Mortality!$B$6:$F$6,0)) -> 0.334 | L42: 0 | M42: 0.334 | N42: =INDEX(Myopia!$H:$H, MATCH(E42, Myopia!$A:$A, 0)) * Trend_Factor^(A42) -> 6.169765466 | O42: 0 | P42: 6.169765466 | Q42: =VLOOKUP(C42,Others!$L$10:$M$61,2) -> 0 | R42: 0 | S42: 0 | T42: 2.783333333e-05 | U42: 0.0005141471222 | V42: 0 | W42: 0.9954162352 | X42: 2.769862946e-05 | Y42: 0.0005117832703 | Z42: 0 | AA42: 0.9948767533 | AC42: 0 | AD42: 0 | AE42: 0 | AF42: 0 | AG42: =SUMPRODUCT(AE43:AE$605, $I42:$I$604) / $I42 -> 0 | AI42: -47000 | AJ42: =IF(E42>Mat_Year,0, -SUM($AD$5:AD42)) -> -9306 | AK42: -0.2577634458 | AL42: -24.0538137 | AM42: -24.42352886 | AN42: -24.31157715 | AO42: -6916.838736 | AP42: =SUMPRODUCT(AN43:AN$605, $I43:$I$605) / $I42 -> -6885.133574 | AR42: 0 | AS42: 0 | AT42: 0 | AU42: -1.816500741 | AV42: 0 | AW42: -1.816500741 | AX42: -20.8292085 | AY42: 0 | AZ42: -20.8292085 | BA42: -1.808174329 | BB42: -0.01123698097 | BC42: -1.816500741 | BD42: -0.01128872583 | BE42: -1.808174329 | BF42: -0.01123698097 | BG42: -272.2297861 | BH42: =(SUMPRODUCT(BE43:BE$605,$I42:$I$604)+SUMPRODUCT(BF43:BF$605,$I43:$I$605)) / $I42 -> -270.9819488 | BJ42: -1.808174329 | BK42: -24.32281413 | BM42: 7192.966866 | BN42: 7156.115523 | BP42: =Reserve!BX42 -> 9806.275376 | BQ42: 9756.035409 | BR42: 11.01069007 | BT42: 28.118961 | BU42: 27.99007029 | BV42: =SUMPRODUCT(BU43:BU$605, $I43:$I$605) / $I42 -> 3113.042326 | BX42: =-BZ42*Others!$Q$43 -> -3.294661609 | BZ42: 12.86977191 | CA42: 9.575110301 | CB42: 9.575110301 | CD42: =SUMPRODUCT(BZ43:BZ$605, $I43:$I$605) / $I42 -> 2599.919886 | CE42: =SUMPRODUCT(CA43:CA$605, $I43:$I$605) / $I42 -> 1934.340395 | CF42: =SUMPRODUCT(CB43:CB$605, $I43:$I$605) / $I42 -> 1934.340395 | CH42: 37193.72462 | CI42: 0 | CK42: =NPV((1+CK$3)^(1/12)-1,$CB$6:$CB42)+$CB$5 -> -525.9100289 | CL42: =NPV((1+CL$3)^(1/12)-1,$CB$6:$CB42)+$CB$5 -> -532.3987777 | CM42: =NPV((1+CM$3)^(1/12)-1,$CB$6:$CB42)+$CB$5 -> -546.9665132 | CN42: =NPV((1+CN$3)^(1/12)-1,$CB$6:$CB42)+$CB$5 -> -546.9665132
A43: 3.166666667 | B43: 2 | C43: 4 | D43: 3.666666667 | E43: 3 | G43: =INDEX(Others!$D$11:$E$60, MATCH(C43, Others!$A$11:$A$60, 0), MATCH(G$3, Others!$D$10:$E$10, 0)) -> 0.03494300933 | H43: 0.002866296808 | I43: 0.9121188312 | K43: =INDEX(Mortality!$B$7:$F$32, MATCH( E43,Mortality!$A$7:$A$32, 0), MATCH( K$3,Mortality!$B$6:$F$6,0)) -> 0.334 | L43: 0 | M43: 0.334 | N43: =INDEX(Myopia!$H:$H, MATCH(E43, Myopia!$A:$A, 0)) * Trend_Factor^(A43) -> 6.169765466 | O43: 0 | P43: 6.169765466 | Q43: =VLOOKUP(C43,Others!$L$10:$M$61,2) -> 0 | R43: 0 | S43: 0 | T43: 2.783333333e-05 | U43: 0.0005141471222 | V43: 0 | W43: 0.9948767533 | X43: 2.768361774e-05 | Y43: 0.0005115059011 | Z43: 0 | AA43: 0.9943375638 | AC43: 0 | AD43: 0 | AE43: 0 | AF43: 0 | AG43: =SUMPRODUCT(AE44:AE$605, $I43:$I$604) / $I43 -> 0 | AI43: -47000 | AJ43: =IF(E43>Mat_Year,0, -SUM($AD$5:AD43)) -> -9306 | AK43: -0.2576237467 | AL43: -24.04077735 | AM43: -24.42352886 | AN43: -24.2984011 | AO43: -6916.002395 | AP43: =SUMPRODUCT(AN44:AN$605, $I44:$I$605) / $I43 -> -6880.570009 | AR43: 0 | AS43: 0 | AT43: 0 | AU43: -1.818531768 | AV43: 0 | AW43: -1.818531768 | AX43: -20.8524976 | AY43: 0 | AZ43: -20.8524976 | BA43: -1.809214981 | BB43: -0.01124344815 | BC43: -1.818531768 | BD43: -0.01130134774 | BE43: -1.809214981 | BF43: -0.01124344815 | BG43: -271.3230744 | BH43: =(SUMPRODUCT(BE44:BE$605,$I43:$I$604)+SUMPRODUCT(BF44:BF$605,$I44:$I$605)) / $I43 -> -269.9330194 | BJ43: -1.809214981 | BK43: -24.30964455 | BM43: 7191.222869 | BN43: 7150.503028 | BP43: =Reserve!BX43 -> 9800.508183 | BQ43: 9745.013431 | BR43: 11.02197748 | BT43: 28.10248336 | BU43: 27.95850741 | BV43: =SUMPRODUCT(BU44:BU$605, $I44:$I$605) / $I43 -> 3094.006722 | BX43: =-BZ43*Others!$Q$43 -> -3.292576093 | BZ43: 12.86162536 | CA43: 9.56904927 | CB43: 9.56904927 | CD43: =SUMPRODUCT(BZ44:BZ$605, $I44:$I$605) / $I43 -> 2594.510403 | CE43: =SUMPRODUCT(CA44:CA$605, $I44:$I$605) / $I43 -> 1930.315739 | CF43: =SUMPRODUCT(CB44:CB$605, $I44:$I$605) / $I43 -> 1930.315739 | CH43: 37199.49182 | CI43: 0 | CK43: =NPV((1+CK$3)^(1/12)-1,$CB$6:$CB43)+$CB$5 -> -517.1960284 | CL43: =NPV((1+CL$3)^(1/12)-1,$CB$6:$CB43)+$CB$5 -> -524.1996181 | CM43: =NPV((1+CM$3)^(1/12)-1,$CB$6:$CB43)+$CB$5 -> -539.890446 | CN43: =NPV((1+CN$3)^(1/12)-1,$CB$6:$CB43)+$CB$5 -> -539.890446
A44: 3.25 | B44: 3 | C44: 4 | D44: 3.75 | E44: 3 | G44: =INDEX(Others!$D$11:$E$60, MATCH(C44, Others!$A$11:$A$60, 0), MATCH(G$3, Others!$D$10:$E$10, 0)) -> 0.03494300933 | H44: 0.002866296808 | I44: 0.9095119001 | K44: =INDEX(Mortality!$B$7:$F$32, MATCH( E44,Mortality!$A$7:$A$32, 0), MATCH( K$3,Mortality!$B$6:$F$6,0)) -> 0.334 | L44: 0 | M44: 0.334 | N44: =INDEX(Myopia!$H:$H, MATCH(E44, Myopia!$A:$A, 0)) * Trend_Factor^(A44) -> 6.169765466 | O44: 0 | P44: 6.169765466 | Q44: =VLOOKUP(C44,Others!$L$10:$M$61,2) -> 0 | R44: 0 | S44: 0 | T44: 2.783333333e-05 | U44: 0.0005141471222 | V44: 0 | W44: 0.9943375638 | X44: 2.766861416e-05 | Y44: 0.0005112286822 | Z44: 0 | AA44: 0.9937986665 | AC44: 0 | AD44: 0 | AE44: 0 | AF44: 0 | AG44: =SUMPRODUCT(AE45:AE$605, $I44:$I$604) / $I44 -> 0 | AI44: -47000 | AJ44: =IF(E44>Mat_Year,0, -SUM($AD$5:AD44)) -> -9306 | AK44: -0.2574841234 | AL44: -24.02774806 | AM44: -24.42352886 | AN44: -24.28523219 | AO44: -6915.163203 | AP44: =SUMPRODUCT(AN45:AN$605, $I45:$I$605) / $I44 -> -6876.006533 | AR44: 0 | AS44: 0 | AT44: 0 | AU44: -1.820565065 | AV44: 0 | AW44: -1.820565065 | AX44: -20.87581275 | AY44: 0 | AZ44: -20.87581275 | BA44: -1.810256232 | BB44: -0.01124991905 | BC44: -1.820565065 | BD44: -0.01131398376 | BE44: -1.810256232 | BF44: -0.01124991905 | BG44: -270.4112189 | BH44: =(SUMPRODUCT(BE45:BE$605,$I44:$I$604)+SUMPRODUCT(BF45:BF$605,$I45:$I$605)) / $I44 -> -268.8800326 | BJ44: -1.810256232 | BK44: -24.29648211 | BM44: 7189.470872 | BN44: 7144.886565 | BP44: =Reserve!BX44 -> 9794.720455 | BQ44: 9733.980127 | BR44: 11.03330434 | BT44: 28.08594705 | BU44: 27.92691216 | BV44: =SUMPRODUCT(BU45:BU$605, $I45:$I$605) / $I44 -> 3074.948151 | BX44: =-BZ44*Others!$Q$43 -> -3.290490411 | BZ44: 12.85347817 | CA44: 9.562987757 | CB44: 9.562987757 | CD44: =SUMPRODUCT(BZ45:BZ$605, $I45:$I$605) / $I44 -> 2589.093561 | CE44: =SUMPRODUCT(CA45:CA$605, $I45:$I$605) / $I44 -> 1926.28561 | CF44: =SUMPRODUCT(CB45:CB$605, $I45:$I$605) / $I44 -> 1926.28561 | CH44: 37205.27955 | CI44: 0 | CK44: =NPV((1+CK$3)^(1/12)-1,$CB$6:$CB44)+$CB$5 -> -508.5089724 | CL44: =NPV((1+CL$3)^(1/12)-1,$CB$6:$CB44)+$CB$5 -> -516.0388999 | CM44: =NPV((1+CM$3)^(1/12)-1,$CB$6:$CB44)+$CB$5 -> -532.8748047 | CN44: =NPV((1+CN$3)^(1/12)-1,$CB$6:$CB44)+$CB$5 -> -532.8748047
A45: 3.333333333 | B45: 4 | C45: 4 | D45: 3.833333333 | E45: 3 | G45: =INDEX(Others!$D$11:$E$60, MATCH(C45, Others!$A$11:$A$60, 0), MATCH(G$3, Others!$D$10:$E$10, 0)) -> 0.03494300933 | H45: 0.002866296808 | I45: 0.90691242 | K45: =INDEX(Mortality!$B$7:$F$32, MATCH( E45,Mortality!$A$7:$A$32, 0), MATCH( K$3,Mortality!$B$6:$F$6,0)) -> 0.334 | L45: 0 | M45: 0.334 | N45: =INDEX(Myopia!$H:$H, MATCH(E45, Myopia!$A:$A, 0)) * Trend_Factor^(A45) -> 6.169765466 | O45: 0 | P45: 6.169765466 | Q45: =VLOOKUP(C45,Others!$L$10:$M$61,2) -> 0 | R45: 0 | S45: 0 | T45: 2.783333333e-05 | U45: 0.0005141471222 | V45: 0 | W45: 0.9937986665 | X45: 2.765361871e-05 | Y45: 0.0005109516136 | Z45: 0 | AA45: 0.9932600613 | AC45: 0 | AD45: 0 | AE45: 0 | AF45: 0 | AG45: =SUMPRODUCT(AE46:AE$605, $I45:$I$604) / $I45 -> 0 | AI45: -47000 | AJ45: =IF(E45>Mat_Year,0, -SUM($AD$5:AD45)) -> -9306 | AK45: -0.2573445757 | AL45: -24.01472584 | AM45: -24.42352886 | AN45: -24.27207041 | AO45: -6914.321149 | AP45: =SUMPRODUCT(AN46:AN$605, $I46:$I$605) / $I45 -> -6871.443138 | AR45: 0 | AS45: 0 | AT45: 0 | AU45: -1.822600637 | AV45: 0 | AW45: -1.822600637 | AX45: -20.89915397 | AY45: 0 | AZ45: -20.89915397 | BA45: -1.811298082 | BB45: -0.01125639368 | BC45: -1.822600637 | BD45: -0.01132663391 | BE45: -1.811298082 | BF45: -0.01125639368 | BG45: -269.4941998 | BH45: =(SUMPRODUCT(BE46:BE$605,$I45:$I$604)+SUMPRODUCT(BF46:BF$605,$I46:$I$605)) / $I45 -> -267.8229764 | BJ45: -1.811298082 | BK45: -24.28332681 | BM45: 7187.710845 | BN45: 7139.266114 | BP45: =Reserve!BX45 -> 9788.912124 | BQ45: 9722.935456 | BR45: 11.04467075 | BT45: 28.06935186 | BU45: 27.89528445 | BV45: =SUMPRODUCT(BU46:BU$605, $I46:$I$605) / $I45 -> 3055.866581 | BX45: =-BZ45*Others!$Q$43 -> -3.288404559 | BZ45: 12.84533031 | CA45: 9.55692575 | CB45: 9.55692575 | CD45: =SUMPRODUCT(BZ46:BZ$605, $I46:$I$605) / $I45 -> 2583.669342 | CE45: =SUMPRODUCT(CA46:CA$605, $I46:$I$605) / $I45 -> 1922.24999 | CF45: =SUMPRODUCT(CB46:CB$605, $I46:$I$605) / $I45 -> 1922.24999 | CH45: 37211.08788 | CI45: 0 | CK45: =NPV((1+CK$3)^(1/12)-1,$CB$6:$CB45)+$CB$5 -> -499.8487816 | CL45: =NPV((1+CL$3)^(1/12)-1,$CB$6:$CB45)+$CB$5 -> -507.9164468 | CM45: =NPV((1+CM$3)^(1/12)-1,$CB$6:$CB45)+$CB$5 -> -525.9190766 | CN45: =NPV((1+CN$3)^(1/12)-1,$CB$6:$CB45)+$CB$5 -> -525.9190766
A46: 3.416666667 | B46: 5 | C46: 4 | D46: 3.916666667 | E46: 3 | G46: =INDEX(Others!$D$11:$E$60, MATCH(C46, Others!$A$11:$A$60, 0), MATCH(G$3, Others!$D$10:$E$10, 0)) -> 0.03494300933 | H46: 0.002866296808 | I46: 0.9043203694 | K46: =INDEX(Mortality!$B$7:$F$32, MATCH( E46,Mortality!$A$7:$A$32, 0), MATCH( K$3,Mortality!$B$6:$F$6,0)) -> 0.334 | L46: 0 | M46: 0.334 | N46: =INDEX(Myopia!$H:$H, MATCH(E46, Myopia!$A:$A, 0)) * Trend_Factor^(A46) -> 6.169765466 | O46: 0 | P46: 6.169765466 | Q46: =VLOOKUP(C46,Others!$L$10:$M$61,2) -> 0 | R46: 0 | S46: 0 | T46: 2.783333333e-05 | U46: 0.0005141471222 | V46: 0 | W46: 0.9932600613 | X46: 2.763863138e-05 | Y46: 0.0005106746951 | Z46: 0 | AA46: 0.9927217479 | AC46: 0 | AD46: 0 | AE46: 0 | AF46: 0 | AG46: =SUMPRODUCT(AE47:AE$605, $I46:$I$604) / $I46 -> 0 | AI46: -47000 | AJ46: =IF(E46>Mat_Year,0, -SUM($AD$5:AD46)) -> -9306 | AK46: -0.2572051037 | AL46: -24.00171067 | AM46: -24.42352886 | AN46: -24.25891577 | AO46: -6913.476224 | AP46: =SUMPRODUCT(AN47:AN$605, $I47:$I$605) / $I46 -> -6866.879818 | AR46: 0 | AS46: 0 | AT46: 0 | AU46: -1.824638484 | AV46: 0 | AW46: -1.824638484 | AX46: -20.92252128 | AY46: 0 | AZ46: -20.92252128 | BA46: -1.812340532 | BB46: -0.01126287203 | BC46: -1.824638484 | BD46: -0.0113392982 | BE46: -1.812340532 | BF46: -0.01126287203 | BG46: -268.5719973 | BH46: =(SUMPRODUCT(BE47:BE$605,$I46:$I$604)+SUMPRODUCT(BF47:BF$605,$I47:$I$605)) / $I46 -> -266.7618384 | BJ46: -1.812340532 | BK46: -24.27017864 | BM46: 7185.942759 | BN46: 7133.641656 | BP46: =Reserve!BX46 -> 9783.083124 | BQ46: 9711.879379 | BR46: 11.05607679 | BT46: 28.05269762 | BU46: 27.86362416 | BV46: =SUMPRODUCT(BU47:BU$605, $I47:$I$605) / $I46 -> 3036.761977 | BX46: =-BZ46*Others!$Q$43 -> -3.286318533 | BZ46: 12.83718177 | CA46: 9.550863236 | CB46: 9.550863236 | CD46: =SUMPRODUCT(BZ47:BZ$605, $I47:$I$605) / $I46 -> 2578.237723 | CE46: =SUMPRODUCT(CA47:CA$605, $I47:$I$605) / $I46 -> 1918.208866 | CF46: =SUMPRODUCT(CB47:CB$605, $I47:$I$605) / $I46 -> 1918.208866 | CH46: 37216.91688 | CI46: 0 | CK46: =NPV((1+CK$3)^(1/12)-1,$CB$6:$CB46)+$CB$5 -> -491.2153767 | CL46: =NPV((1+CL$3)^(1/12)-1,$CB$6:$CB46)+$CB$5 -> -499.8320829 | CM46: =NPV((1+CM$3)^(1/12)-1,$CB$6:$CB46)+$CB$5 -> -519.0227533 | CN46: =NPV((1+CN$3)^(1/12)-1,$CB$6:$CB46)+$CB$5 -> -519.0227533
A47: 3.5 | B47: 6 | C47: 4 | D47: 4 | E47: 4 | G47: =INDEX(Others!$D$11:$E$60, MATCH(C47, Others!$A$11:$A$60, 0), MATCH(G$3, Others!$D$10:$E$10, 0)) -> 0.03494300933 | H47: 0.002866296808 | I47: 0.9017357271 | K47: =INDEX(Mortality!$B$7:$F$32, MATCH( E47,Mortality!$A$7:$A$32, 0), MATCH( K$3,Mortality!$B$6:$F$6,0)) -> 0.336 | L47: 0 | M47: 0.336 | N47: =INDEX(Myopia!$H:$H, MATCH(E47, Myopia!$A:$A, 0)) * Trend_Factor^(A47) -> 6.131932878 | O47: 0 | P47: 6.131932878 | Q47: =VLOOKUP(C47,Others!$L$10:$M$61,2) -> 0 | R47: 0 | S47: 0 | T47: 2.8e-05 | U47: 0.0005109944065 | V47: 0 | W47: 0.9927217479 | X47: 2.778910709e-05 | Y47: 0.0005072681586 | Z47: 0 | AA47: 0.9921866907 | AC47: 0 | AD47: 0 | AE47: 0 | AF47: 0 | AG47: =SUMPRODUCT(AE48:AE$605, $I47:$I$604) / $I47 -> 0 | AI47: -47000 | AJ47: =IF(E47>Mat_Year,0, -SUM($AD$5:AD47)) -> -9306 | AK47: -0.2586054306 | AL47: -23.84160345 | AM47: -24.2769023 | AN47: -24.10020888 | AO47: -6912.775044 | AP47: =SUMPRODUCT(AN48:AN$605, $I48:$I$605) / $I47 -> -6862.462125 | AR47: 0 | AS47: 0 | AT47: 0 | AU47: -1.826678609 | AV47: 0 | AW47: -1.826678609 | AX47: -20.94591472 | AY47: 0 | AZ47: -20.94591472 | BA47: -1.813383582 | BB47: -0.01120726386 | BC47: -1.826678609 | BD47: -0.01128943118 | BE47: -1.813383582 | BF47: -0.01120726386 | BG47: -267.6446538 | BH47: =(SUMPRODUCT(BE48:BE$605,$I47:$I$604)+SUMPRODUCT(BF48:BF$605,$I48:$I$605)) / $I47 -> -265.6966685 | BJ47: -1.813383582 | BK47: -24.11141615 | BM47: 7184.291888 | BN47: 7128.158793 | BP47: =Reserve!BX47 -> 9777.386237 | BQ47: 9700.992494 | BR47: 10.8868856 | BT47: 28.03598413 | BU47: 27.83193117 | BV47: =SUMPRODUCT(BU48:BU$605, $I48:$I$605) / $I47 -> 3017.634307 | BX47: =-BZ47*Others!$Q$43 -> -3.275268361 | BZ47: 12.79401704 | CA47: 9.518748675 | CB47: 9.518748675 | CD47: =SUMPRODUCT(BZ48:BZ$605, $I48:$I$605) / $I47 -> 2572.833701 | CE47: =SUMPRODUCT(CA48:CA$605, $I48:$I$605) / $I47 -> 1914.188273 | CF47: =SUMPRODUCT(CB48:CB$605, $I48:$I$605) / $I47 -> 1914.188273 | CH47: 37222.61376 | CI47: 0 | CK47: =NPV((1+CK$3)^(1/12)-1,$CB$6:$CB47)+$CB$5 -> -482.6321699 | CL47: =NPV((1+CL$3)^(1/12)-1,$CB$6:$CB47)+$CB$5 -> -491.8075952 | CM47: =NPV((1+CM$3)^(1/12)-1,$CB$6:$CB47)+$CB$5 -> -512.2039924 | CN47: =NPV((1+CN$3)^(1/12)-1,$CB$6:$CB47)+$CB$5 -> -512.2039924
A48: 3.583333333 | B48: 7 | C48: 4 | D48: 4.083333333 | E48: 4 | G48: =INDEX(Others!$D$11:$E$60, MATCH(C48, Others!$A$11:$A$60, 0), MATCH(G$3, Others!$D$10:$E$10, 0)) -> 0.03494300933 | H48: 0.002866296808 | I48: 0.8991584721 | K48: =INDEX(Mortality!$B$7:$F$32, MATCH( E48,Mortality!$A$7:$A$32, 0), MATCH( K$3,Mortality!$B$6:$F$6,0)) -> 0.336 | L48: 0 | M48: 0.336 | N48: =INDEX(Myopia!$H:$H, MATCH(E48, Myopia!$A:$A, 0)) * Trend_Factor^(A48) -> 6.131932878 | O48: 0 | P48: 6.131932878 | Q48: =VLOOKUP(C48,Others!$L$10:$M$61,2) -> 0 | R48: 0 | S48: 0 | T48: 2.8e-05 | U48: 0.0005109944065 | V48: 0 | W48: 0.9921866907 | X48: 2.777412931e-05 | Y48: 0.0005069947512 | Z48: 0 | AA48: 0.9916519218 | AC48: 0 | AD48: 0 | AE48: 0 | AF48: 0 | AG48: =SUMPRODUCT(AE49:AE$605, $I48:$I$604) / $I48 -> 0 | AI48: -47000 | AJ48: =IF(E48>Mat_Year,0, -SUM($AD$5:AD48)) -> -9306 | AK48: -0.2584660474 | AL48: -23.8287533 | AM48: -24.2769023 | AN48: -24.08721935 | AO48: -6912.050749 | AP48: =SUMPRODUCT(AN49:AN$605, $I49:$I$605) / $I48 -> -6858.044758 | AR48: 0 | AS48: 0 | AT48: 0 | AU48: -1.828721016 | AV48: 0 | AW48: -1.828721016 | AX48: -20.96933431 | AY48: 0 | AZ48: -20.96933431 | BA48: -1.814432653 | BB48: -0.01121374744 | BC48: -1.828721016 | BD48: -0.01130205388 | BE48: -1.814432653 | BF48: -0.01121374744 | BG48: -266.7112847 | BH48: =(SUMPRODUCT(BE49:BE$605,$I48:$I$604)+SUMPRODUCT(BF49:BF$605,$I49:$I$605)) / $I48 -> -264.6273869 | BJ48: -1.814432653 | BK48: -24.0984331 | BM48: 7182.63333 | BN48: 7122.672145 | BP48: =Reserve!BX48 -> 9771.669006 | BQ48: 9690.094349 | BR48: 10.89814485 | BT48: 28.01964931 | BU48: 27.80072312 | BV48: =SUMPRODUCT(BU49:BU$605, $I49:$I$605) / $I48 -> 2998.48302 | BX48: =-BZ48*Others!$Q$43 -> -3.273216569 | BZ48: 12.78600222 | CA48: 9.512785653 | CB48: 9.512785653 | CD48: =SUMPRODUCT(BZ49:BZ$605, $I49:$I$605) / $I48 -> 2567.422203 | CE48: =SUMPRODUCT(CA49:CA$605, $I49:$I$605) / $I48 -> 1910.162119 | CF48: =SUMPRODUCT(CB49:CB$605, $I49:$I$605) / $I48 -> 1910.162119 | CH48: 37228.33099 | CI48: 0 | CK48: =NPV((1+CK$3)^(1/12)-1,$CB$6:$CB48)+$CB$5 -> -474.0754433 | CL48: =NPV((1+CL$3)^(1/12)-1,$CB$6:$CB48)+$CB$5 -> -483.8206742 | CM48: =NPV((1+CM$3)^(1/12)-1,$CB$6:$CB48)+$CB$5 -> -505.4434129 | CN48: =NPV((1+CN$3)^(1/12)-1,$CB$6:$CB48)+$CB$5 -> -505.4434129
A49: 3.666666667 | B49: 8 | C49: 4 | D49: 4.166666667 | E49: 4 | G49: =INDEX(Others!$D$11:$E$60, MATCH(C49, Others!$A$11:$A$60, 0), MATCH(G$3, Others!$D$10:$E$10, 0)) -> 0.03494300933 | H49: 0.002866296808 | I49: 0.8965885831 | K49: =INDEX(Mortality!$B$7:$F$32, MATCH( E49,Mortality!$A$7:$A$32, 0), MATCH( K$3,Mortality!$B$6:$F$6,0)) -> 0.336 | L49: 0 | M49: 0.336 | N49: =INDEX(Myopia!$H:$H, MATCH(E49, Myopia!$A:$A, 0)) * Trend_Factor^(A49) -> 6.131932878 | O49: 0 | P49: 6.131932878 | Q49: =VLOOKUP(C49,Others!$L$10:$M$61,2) -> 0 | R49: 0 | S49: 0 | T49: 2.8e-05 | U49: 0.0005109944065 | V49: 0 | W49: 0.9916519218 | X49: 2.775915961e-05 | Y49: 0.0005067214911 | Z49: 0 | AA49: 0.9911174411 | AC49: 0 | AD49: 0 | AE49: 0 | AF49: 0 | AG49: =SUMPRODUCT(AE50:AE$605, $I49:$I$604) / $I49 -> 0 | AI49: -47000 | AJ49: =IF(E49>Mat_Year,0, -SUM($AD$5:AD49)) -> -9306 | AK49: -0.2583267393 | AL49: -23.81591008 | AM49: -24.2769023 | AN49: -24.07423682 | AO49: -6911.323987 | AP49: =SUMPRODUCT(AN50:AN$605, $I50:$I$605) / $I49 -> -6853.627713 | AR49: 0 | AS49: 0 | AT49: 0 | AU49: -1.830765706 | AV49: 0 | AW49: -1.830765706 | AX49: -20.9927801 | AY49: 0 | AZ49: -20.9927801 | BA49: -1.815482331 | BB49: -0.01122023477 | BC49: -1.830765706 | BD49: -0.01131469069 | BE49: -1.815482331 | BF49: -0.01122023477 | BG49: -265.7726723 | BH49: =(SUMPRODUCT(BE50:BE$605,$I49:$I$604)+SUMPRODUCT(BF50:BF$605,$I50:$I$605)) / $I49 -> -263.5539813 | BJ49: -1.815482331 | BK49: -24.08545705 | BM49: 7180.967057 | BN49: 7117.181695 | BP49: =Reserve!BX49 -> 9765.931366 | BQ49: 9679.184905 | BR49: 10.90944335 | BT49: 28.00325617 | BU49: 27.76948279 | BV49: =SUMPRODUCT(BU50:BU$605, $I50:$I$605) / $I49 -> 2979.308079 | BX49: =-BZ49*Others!$Q$43 -> -3.27116461 | BZ49: 12.77798676 | CA49: 9.506822149 | CB49: 9.506822149 | CD49: =SUMPRODUCT(BZ50:BZ$605, $I50:$I$605) / $I49 -> 2562.003211 | CE49: =SUMPRODUCT(CA50:CA$605, $I50:$I$605) / $I49 -> 1906.130389 | CF49: =SUMPRODUCT(CB50:CB$605, $I50:$I$605) / $I49 -> 1906.130389 | CH49: 37234.06863 | CI49: 0 | CK49: =NPV((1+CK$3)^(1/12)-1,$CB$6:$CB49)+$CB$5 -> -465.545119 | CL49: =NPV((1+CL$3)^(1/12)-1,$CB$6:$CB49)+$CB$5 -> -475.8711475 | CM49: =NPV((1+CM$3)^(1/12)-1,$CB$6:$CB49)+$CB$5 -> -498.7405214 | CN49: =NPV((1+CN$3)^(1/12)-1,$CB$6:$CB49)+$CB$5 -> -498.7405214
A50: 3.75 | B50: 9 | C50: 4 | D50: 4.25 | E50: 4 | G50: =INDEX(Others!$D$11:$E$60, MATCH(C50, Others!$A$11:$A$60, 0), MATCH(G$3, Others!$D$10:$E$10, 0)) -> 0.03494300933 | H50: 0.002866296808 | I50: 0.8940260391 | K50: =INDEX(Mortality!$B$7:$F$32, MATCH( E50,Mortality!$A$7:$A$32, 0), MATCH( K$3,Mortality!$B$6:$F$6,0)) -> 0.336 | L50: 0 | M50: 0.336 | N50: =INDEX(Myopia!$H:$H, MATCH(E50, Myopia!$A:$A, 0)) * Trend_Factor^(A50) -> 6.131932878 | O50: 0 | P50: 6.131932878 | Q50: =VLOOKUP(C50,Others!$L$10:$M$61,2) -> 0 | R50: 0 | S50: 0 | T50: 2.8e-05 | U50: 0.0005109944065 | V50: 0 | W50: 0.9911174411 | X50: 2.774419798e-05 | Y50: 0.0005064483783 | Z50: 0 | AA50: 0.9905832486 | AC50: 0 | AD50: 0 | AE50: 0 | AF50: 0 | AG50: =SUMPRODUCT(AE51:AE$605, $I50:$I$604) / $I50 -> 0 | AI50: -47000 | AJ50: =IF(E50>Mat_Year,0, -SUM($AD$5:AD50)) -> -9306 | AK50: -0.2581875064 | AL50: -23.80307378 | AM50: -24.2769023 | AN50: -24.06126129 | AO50: -6910.594748 | AP50: =SUMPRODUCT(AN51:AN$605, $I51:$I$605) / $I50 -> -6849.210983 | AR50: 0 | AS50: 0 | AT50: 0 | AU50: -1.832812682 | AV50: 0 | AW50: -1.832812682 | AX50: -21.01625209 | AY50: 0 | AZ50: -21.01625209 | BA50: -1.816532616 | BB50: -0.01122672585 | BC50: -1.832812682 | BD50: -0.01132734163 | BE50: -1.816532616 | BF50: -0.01122672585 | BG50: -264.8287965 | BH50: =(SUMPRODUCT(BE51:BE$605,$I50:$I$604)+SUMPRODUCT(BF51:BF$605,$I51:$I$605)) / $I50 -> -262.4764392 | BJ50: -1.816532616 | BK50: -24.07248801 | BM50: 7179.293041 | BN50: 7111.687423 | BP50: =Reserve!BX50 -> 9760.17325 | BQ50: 9668.264124 | BR50: 10.92078118 | BT50: 27.98680452 | BU50: 27.73821008 | BV50: =SUMPRODUCT(BU51:BU$605, $I51:$I$605) / $I50 -> 2960.10945 | BX50: =-BZ50*Others!$Q$43 -> -3.269112482 | BZ50: 12.76997063 | CA50: 9.500858151 | CB50: 9.500858151 | CD50: =SUMPRODUCT(BZ51:BZ$605, $I51:$I$605) / $I50 -> 2556.576702 | CE50: =SUMPRODUCT(CA51:CA$605, $I51:$I$605) / $I50 -> 1902.093066 | CF50: =SUMPRODUCT(CB51:CB$605, $I51:$I$605) / $I50 -> 1902.093066 | CH50: 37239.82675 | CI50: 0 | CK50: =NPV((1+CK$3)^(1/12)-1,$CB$6:$CB50)+$CB$5 -> -457.0411192 | CL50: =NPV((1+CL$3)^(1/12)-1,$CB$6:$CB50)+$CB$5 -> -467.9588435 | CM50: =NPV((1+CM$3)^(1/12)-1,$CB$6:$CB50)+$CB$5 -> -492.0948285 | CN50: =NPV((1+CN$3)^(1/12)-1,$CB$6:$CB50)+$CB$5 -> -492.0948285
A51: 3.833333333 | B51: 10 | C51: 4 | D51: 4.333333333 | E51: 4 | G51: =INDEX(Others!$D$11:$E$60, MATCH(C51, Others!$A$11:$A$60, 0), MATCH(G$3, Others!$D$10:$E$10, 0)) -> 0.03494300933 | H51: 0.002866296808 | I51: 0.8914708191 | K51: =INDEX(Mortality!$B$7:$F$32, MATCH( E51,Mortality!$A$7:$A$32, 0), MATCH( K$3,Mortality!$B$6:$F$6,0)) -> 0.336 | L51: 0 | M51: 0.336 | N51: =INDEX(Myopia!$H:$H, MATCH(E51, Myopia!$A:$A, 0)) * Trend_Factor^(A51) -> 6.131932878 | O51: 0 | P51: 6.131932878 | Q51: =VLOOKUP(C51,Others!$L$10:$M$61,2) -> 0 | R51: 0 | S51: 0 | T51: 2.8e-05 | U51: 0.0005109944065 | V51: 0 | W51: 0.9905832486 | X51: 2.77292444e-05 | Y51: 0.0005061754127 | Z51: 0 | AA51: 0.9900493439 | AC51: 0 | AD51: 0 | AE51: 0 | AF51: 0 | AG51: =SUMPRODUCT(AE52:AE$605, $I51:$I$604) / $I51 -> 0 | AI51: -47000 | AJ51: =IF(E51>Mat_Year,0, -SUM($AD$5:AD51)) -> -9306 | AK51: -0.2580483484 | AL51: -23.7902444 | AM51: -24.2769023 | AN51: -24.04829274 | AO51: -6909.863025 | AP51: =SUMPRODUCT(AN52:AN$605, $I52:$I$605) / $I51 -> -6844.794562 | AR51: 0 | AS51: 0 | AT51: 0 | AU51: -1.834861948 | AV51: 0 | AW51: -1.834861948 | AX51: -21.03975033 | AY51: 0 | AZ51: -21.03975033 | BA51: -1.817583509 | BB51: -0.01123322069 | BC51: -1.834861948 | BD51: -0.01134000671 | BE51: -1.817583509 | BF51: -0.01123322069 | BG51: -263.879637 | BH51: =(SUMPRODUCT(BE52:BE$605,$I51:$I$604)+SUMPRODUCT(BF52:BF$605,$I52:$I$605)) / $I51 -> -261.3947481 | BJ51: -1.817583509 | BK51: -24.05952596 | BM51: 7177.611251 | BN51: 7106.18931 | BP51: =Reserve!BX51 -> 9754.394592 | BQ51: 9657.331966 | BR51: 10.93215843 | BT51: 27.97029418 | BU51: 27.70690487 | BV51: =SUMPRODUCT(BU52:BU$605, $I52:$I$605) / $I51 -> 2940.887098 | BX51: =-BZ51*Others!$Q$43 -> -3.267060179 | BZ51: 12.76195383 | CA51: 9.494893647 | CB51: 9.494893647 | CD51: =SUMPRODUCT(BZ52:BZ$605, $I52:$I$605) / $I51 -> 2551.142655 | CE51: =SUMPRODUCT(CA52:CA$605, $I52:$I$605) / $I51 -> 1898.050136 | CF51: =SUMPRODUCT(CB52:CB$605, $I52:$I$605) / $I51 -> 1898.050136 | CH51: 37245.60541 | CI51: 0 | CK51: =NPV((1+CK$3)^(1/12)-1,$CB$6:$CB51)+$CB$5 -> -448.5633665 | CL51: =NPV((1+CL$3)^(1/12)-1,$CB$6:$CB51)+$CB$5 -> -460.0835916 | CM51: =NPV((1+CM$3)^(1/12)-1,$CB$6:$CB51)+$CB$5 -> -485.5058492 | CN51: =NPV((1+CN$3)^(1/12)-1,$CB$6:$CB51)+$CB$5 -> -485.5058492
A52: 3.916666667 | B52: 11 | C52: 4 | D52: 4.416666667 | E52: 4 | G52: =INDEX(Others!$D$11:$E$60, MATCH(C52, Others!$A$11:$A$60, 0), MATCH(G$3, Others!$D$10:$E$10, 0)) -> 0.03494300933 | H52: 0.002866296808 | I52: 0.8889229023 | K52: =INDEX(Mortality!$B$7:$F$32, MATCH( E52,Mortality!$A$7:$A$32, 0), MATCH( K$3,Mortality!$B$6:$F$6,0)) -> 0.336 | L52: 0 | M52: 0.336 | N52: =INDEX(Myopia!$H:$H, MATCH(E52, Myopia!$A:$A, 0)) * Trend_Factor^(A52) -> 6.131932878 | O52: 0 | P52: 6.131932878 | Q52: =VLOOKUP(C52,Others!$L$10:$M$61,2) -> 0 | R52: 0 | S52: 0 | T52: 2.8e-05 | U52: 0.0005109944065 | V52: 0 | W52: 0.9900493439 | X52: 2.771429889e-05 | Y52: 0.0005059025942 | Z52: 0 | AA52: 0.989515727 | AC52: 0 | AD52: 0 | AE52: 0 | AF52: 0 | AG52: =SUMPRODUCT(AE53:AE$605, $I52:$I$604) / $I52 -> 0 | AI52: -47000 | AJ52: =IF(E52>Mat_Year,0, -SUM($AD$5:AD52)) -> -9306 | AK52: -0.2579092655 | AL52: -23.77742193 | AM52: -24.2769023 | AN52: -24.03533119 | AO52: -6909.128809 | AP52: =SUMPRODUCT(AN53:AN$605, $I53:$I$605) / $I52 -> -6840.378444 | AR52: 0 | AS52: 0 | AT52: 0 | AU52: -1.836913504 | AV52: 0 | AW52: -1.836913504 | AX52: -21.06327485 | AY52: 0 | AZ52: -21.06327485 | BA52: -1.818635009 | BB52: -0.01123971928 | BC52: -1.836913504 | BD52: -0.01135268596 | BE52: -1.818635009 | BF52: -0.01123971928 | BG52: -262.9251735 | BH52: =(SUMPRODUCT(BE53:BE$605,$I52:$I$604)+SUMPRODUCT(BF53:BF$605,$I53:$I$605)) / $I52 -> -260.3088955 | BJ52: -1.818635009 | BK52: -24.04657091 | BM52: 7175.921661 | BN52: 7100.687339 | BP52: =Reserve!BX52 -> 9748.595325 | BQ52: 9646.388391 | BR52: 10.9435752 | BT52: 27.95372495 | BU52: 27.67556704 | BV52: =SUMPRODUCT(BU53:BU$605, $I53:$I$605) / $I52 -> 2921.640986 | BX52: =-BZ52*Others!$Q$43 -> -3.265007698 | BZ52: 12.75393632 | CA52: 9.488928622 | CB52: 9.488928622 | CD52: =SUMPRODUCT(BZ53:BZ$605, $I53:$I$605) / $I52 -> 2545.701051 | CE52: =SUMPRODUCT(CA53:CA$605, $I53:$I$605) / $I52 -> 1894.001582 | CF52: =SUMPRODUCT(CB53:CB$605, $I53:$I$605) / $I52 -> 1894.001582 | CH52: 37251.40467 | CI52: 0 | CK52: =NPV((1+CK$3)^(1/12)-1,$CB$6:$CB52)+$CB$5 -> -440.1117837 | CL52: =NPV((1+CL$3)^(1/12)-1,$CB$6:$CB52)+$CB$5 -> -452.2452216 | CM52: =NPV((1+CM$3)^(1/12)-1,$CB$6:$CB52)+$CB$5 -> -478.9731023 | CN52: =NPV((1+CN$3)^(1/12)-1,$CB$6:$CB52)+$CB$5 -> -478.9731023
A53: 4 | B53: 12 | C53: 4 | D53: 4.5 | E53: 4 | G53: =INDEX(Others!$D$11:$E$60, MATCH(C53, Others!$A$11:$A$60, 0), MATCH(G$3, Others!$D$10:$E$10, 0)) -> 0.03494300933 | H53: 0.002866296808 | I53: 0.8863822676 | K53: =INDEX(Mortality!$B$7:$F$32, MATCH( E53,Mortality!$A$7:$A$32, 0), MATCH( K$3,Mortality!$B$6:$F$6,0)) -> 0.336 | L53: 0 | M53: 0.336 | N53: =INDEX(Myopia!$H:$H, MATCH(E53, Myopia!$A:$A, 0)) * Trend_Factor^(A53) -> 6.131932878 | O53: 0 | P53: 6.131932878 | Q53: =VLOOKUP(C53,Others!$L$10:$M$61,2) -> 0 | R53: 0 | S53: 0 | T53: 2.8e-05 | U53: 0.0005109944065 | V53: 0 | W53: 0.989515727 | X53: 2.769936144e-05 | Y53: 0.0005056299228 | Z53: 0 | AA53: 0.9889823977 | AC53: 0 | AD53: 0 | AE53: 0 | AF53: 0 | AG53: =SUMPRODUCT(AE54:AE$605, $I53:$I$604) / $I53 -> 0 | AI53: -47000 | AJ53: =IF(E53>Mat_Year,0, -SUM($AD$5:AD53)) -> -9306 | AK53: -0.2577702575 | AL53: -23.76460637 | AM53: -24.2769023 | AN53: -24.02237663 | AO53: -6908.392091 | AP53: =SUMPRODUCT(AN54:AN$605, $I54:$I$605) / $I53 -> -6835.962622 | AR53: 0 | AS53: 0 | AT53: 0 | AU53: -1.838967354 | AV53: 0 | AW53: -1.838967354 | AX53: -21.08682566 | AY53: 0 | AZ53: -21.08682566 | BA53: -1.819687119 | BB53: -0.01124622164 | BC53: -1.838967354 | BD53: -0.01136537938 | BE53: -1.819687119 | BF53: -0.01124622164 | BG53: -261.9653856 | BH53: =(SUMPRODUCT(BE54:BE$605,$I53:$I$604)+SUMPRODUCT(BF54:BF$605,$I54:$I$605)) / $I53 -> -259.218869 | BJ53: -1.819687119 | BK53: -24.03362285 | BM53: 7174.22424 | BN53: 7095.181491 | BP53: =Reserve!BX53 -> 9742.775383 | BQ53: 9635.433359 | BR53: 10.95503157 | BT53: 27.93709664 | BU53: 27.64419649 | BV53: =SUMPRODUCT(BU54:BU$605, $I54:$I$605) / $I53 -> 2902.37108 | BX53: =-BZ53*Others!$Q$43 -> -3.262955033 | BZ53: 12.7459181 | CA53: 9.482963064 | CB53: 9.482963064 | CD53: =SUMPRODUCT(BZ54:BZ$605, $I54:$I$605) / $I53 -> 2540.251868 | CE53: =SUMPRODUCT(CA54:CA$605, $I54:$I$605) / $I53 -> 1889.94739 | CF53: =SUMPRODUCT(CB54:CB$605, $I54:$I$605) / $I53 -> 1889.94739 | CH53: 37257.22462 | CI53: 0 | CK53: =NPV((1+CK$3)^(1/12)-1,$CB$6:$CB53)+$CB$5 -> -431.6862939 | CL53: =NPV((1+CL$3)^(1/12)-1,$CB$6:$CB53)+$CB$5 -> -444.4435644 | CM53: =NPV((1+CM$3)^(1/12)-1,$CB$6:$CB53)+$CB$5 -> -472.496111 | CN53: =NPV((1+CN$3)^(1/12)-1,$CB$6:$CB53)+$CB$5 -> -472.496111
A54: 4.083333333 | B54: 1 | C54: 5 | D54: 4.583333333 | E54: 4 | G54: =INDEX(Others!$D$11:$E$60, MATCH(C54, Others!$A$11:$A$60, 0), MATCH(G$3, Others!$D$10:$E$10, 0)) -> 0.03783105733 | H54: 0.003099210455 | I54: 0.8836436699 | K54: =INDEX(Mortality!$B$7:$F$32, MATCH( E54,Mortality!$A$7:$A$32, 0), MATCH( K$3,Mortality!$B$6:$F$6,0)) -> 0.336 | L54: 0 | M54: 0.336 | N54: =INDEX(Myopia!$H:$H, MATCH(E54, Myopia!$A:$A, 0)) * Trend_Factor^(A54) -> 6.131932878 | O54: 0 | P54: 6.131932878 | Q54: =VLOOKUP(C54,Others!$L$10:$M$61,2) -> 0 | R54: 0 | S54: 0 | T54: 2.8e-05 | U54: 0.0005109944065 | V54: 0 | W54: 0.9889823977 | X54: 2.768443203e-05 | Y54: 0.0005053573983 | Z54: 0 | AA54: 0.9884493559 | AC54: 0 | AD54: 0 | AE54: 0 | AF54: 0 | AG54: =SUMPRODUCT(AE55:AE$605, $I54:$I$604) / $I54 -> 0 | AI54: -47000 | AJ54: =IF(E54>Mat_Year,0, -SUM($AD$5:AD54)) -> -9306 | AK54: -0.2576313245 | AL54: -23.75179772 | AM54: -24.2769023 | AN54: -24.00942904 | AO54: -6909.262789 | AP54: =SUMPRODUCT(AN55:AN$605, $I55:$I$605) / $I54 -> -6833.13928 | AR54: 0 | AS54: 0 | AT54: 0 | AU54: -1.841023501 | AV54: 0 | AW54: -1.841023501 | AX54: -21.11040281 | AY54: 0 | AZ54: -21.11040281 | BA54: -1.820739836 | BB54: -0.01125272775 | BC54: -1.841023501 | BD54: -0.01137808699 | BE54: -1.820739836 | BF54: -0.01125272775 | BG54: -261.0608722 | BH54: =(SUMPRODUCT(BE55:BE$605,$I54:$I$604)+SUMPRODUCT(BF55:BF$605,$I55:$I$605)) / $I54 -> -258.1846074 | BJ54: -1.820739836 | BK54: -24.02068177 | BM54: 7174.190407 | BN54: 7091.323887 | BP54: =Reserve!BX54 -> 9738.651252 | BQ54: 9626.163557 | BR54: 9.269802037 | BT54: 30.18920561 | BU54: 29.85659295 | BV54: =SUMPRODUCT(BU55:BU$605, $I55:$I$605) / $I54 -> 2881.509546 | BX54: =-BZ54*Others!$Q$43 -> -3.400953185 | BZ54: 13.28497338 | CA54: 9.884020193 | CB54: 9.884020193 | CD54: =SUMPRODUCT(BZ55:BZ$605, $I55:$I$605) / $I54 -> 2534.83967 | CE54: =SUMPRODUCT(CA55:CA$605, $I55:$I$605) / $I54 -> 1885.920714 | CF54: =SUMPRODUCT(CB55:CB$605, $I55:$I$605) / $I54 -> 1885.920714 | CH54: 37261.34875 | CI54: 0 | CK54: =NPV((1+CK$3)^(1/12)-1,$CB$6:$CB54)+$CB$5 -> -422.926075 | CL54: =NPV((1+CL$3)^(1/12)-1,$CB$6:$CB54)+$CB$5 -> -436.3449513 | CM54: =NPV((1+CM$3)^(1/12)-1,$CB$6:$CB54)+$CB$5 -> -465.7985991 | CN54: =NPV((1+CN$3)^(1/12)-1,$CB$6:$CB54)+$CB$5 -> -465.7985991
A55: 4.166666667 | B55: 2 | C55: 5 | D55: 4.666666667 | E55: 4 | G55: =INDEX(Others!$D$11:$E$60, MATCH(C55, Others!$A$11:$A$60, 0), MATCH(G$3, Others!$D$10:$E$10, 0)) -> 0.03783105733 | H55: 0.003099210455 | I55: 0.8809135335 | K55: =INDEX(Mortality!$B$7:$F$32, MATCH( E55,Mortality!$A$7:$A$32, 0), MATCH( K$3,Mortality!$B$6:$F$6,0)) -> 0.336 | L55: 0 | M55: 0.336 | N55: =INDEX(Myopia!$H:$H, MATCH(E55, Myopia!$A:$A, 0)) * Trend_Factor^(A55) -> 6.131932878 | O55: 0 | P55: 6.131932878 | Q55: =VLOOKUP(C55,Others!$L$10:$M$61,2) -> 0 | R55: 0 | S55: 0 | T55: 2.8e-05 | U55: 0.0005109944065 | V55: 0 | W55: 0.9884493559 | X55: 2.766951068e-05 | Y55: 0.0005050850207 | Z55: 0 | AA55: 0.9879166014 | AC55: 0 | AD55: 0 | AE55: 0 | AF55: 0 | AG55: =SUMPRODUCT(AE56:AE$605, $I55:$I$604) / $I55 -> 0 | AI55: -47000 | AJ55: =IF(E55>Mat_Year,0, -SUM($AD$5:AD55)) -> -9306 | AK55: -0.2574924663 | AL55: -23.73899597 | AM55: -24.2769023 | AN55: -23.99648844 | AO55: -6910.136657 | AP55: =SUMPRODUCT(AN56:AN$605, $I56:$I$605) / $I55 -> -6830.320128 | AR55: 0 | AS55: 0 | AT55: 0 | AU55: -1.843081947 | AV55: 0 | AW55: -1.843081947 | AX55: -21.13400632 | AY55: 0 | AZ55: -21.13400632 | BA55: -1.821793163 | BB55: -0.01125923763 | BC55: -1.843081947 | BD55: -0.01139080881 | BE55: -1.821793163 | BF55: -0.01125923763 | BG55: -260.1509888 | BH55: =(SUMPRODUCT(BE56:BE$605,$I55:$I$604)+SUMPRODUCT(BF56:BF$605,$I56:$I$605)) / $I55 -> -257.1460773 | BJ55: -1.821793163 | BK55: -24.00774768 | BM55: 7174.154373 | BN55: 7087.466205 | BP55: =Reserve!BX55 -> 9734.510486 | BQ55: 9616.884516 | BR55: 9.279041362 | BT55: 30.17641768 | BU55: 29.82786062 | BV55: =SUMPRODUCT(BU56:BU$605, $I56:$I$605) / $I55 -> 2860.61209 | BX55: =-BZ55*Others!$Q$43 -> -3.399004451 | BZ55: 13.27736114 | CA55: 9.878356686 | CB55: 9.878356686 | CD55: =SUMPRODUCT(BZ56:BZ$605, $I56:$I$605) / $I55 -> 2529.41831 | CE55: =SUMPRODUCT(CA56:CA$605, $I56:$I$605) / $I55 -> 1881.887223 | CF55: =SUMPRODUCT(CB56:CB$605, $I56:$I$605) / $I55 -> 1881.887223 | CH55: 37265.48951 | CI55: 0 | CK55: =NPV((1+CK$3)^(1/12)-1,$CB$6:$CB55)+$CB$5 -> -414.1924153 | CL55: =NPV((1+CL$3)^(1/12)-1,$CB$6:$CB55)+$CB$5 -> -428.2838207 | CM55: =NPV((1+CM$3)^(1/12)-1,$CB$6:$CB55)+$CB$5 -> -459.1578789 | CN55: =NPV((1+CN$3)^(1/12)-1,$CB$6:$CB55)+$CB$5 -> -459.1578789
A56: 4.25 | B56: 3 | C56: 5 | D56: 4.75 | E56: 4 | G56: =INDEX(Others!$D$11:$E$60, MATCH(C56, Others!$A$11:$A$60, 0), MATCH(G$3, Others!$D$10:$E$10, 0)) -> 0.03783105733 | H56: 0.003099210455 | I56: 0.8781918322 | K56: =INDEX(Mortality!$B$7:$F$32, MATCH( E56,Mortality!$A$7:$A$32, 0), MATCH( K$3,Mortality!$B$6:$F$6,0)) -> 0.336 | L56: 0 | M56: 0.336 | N56: =INDEX(Myopia!$H:$H, MATCH(E56, Myopia!$A:$A, 0)) * Trend_Factor^(A56) -> 6.131932878 | O56: 0 | P56: 6.131932878 | Q56: =VLOOKUP(C56,Others!$L$10:$M$61,2) -> 0 | R56: 0 | S56: 0 | T56: 2.8e-05 | U56: 0.0005109944065 | V56: 0 | W56: 0.9879166014 | X56: 2.765459736e-05 | Y56: 0.0005048127899 | Z56: 0 | AA56: 0.987384134 | AC56: 0 | AD56: 0 | AE56: 0 | AF56: 0 | AG56: =SUMPRODUCT(AE57:AE$605, $I56:$I$604) / $I56 -> 0 | AI56: -47000 | AJ56: =IF(E56>Mat_Year,0, -SUM($AD$5:AD56)) -> -9306 | AK56: -0.257353683 | AL56: -23.72620113 | AM56: -24.2769023 | AN56: -23.98355481 | AO56: -6911.013706 | AP56: =SUMPRODUCT(AN57:AN$605, $I57:$I$605) / $I56 -> -6827.505173 | AR56: 0 | AS56: 0 | AT56: 0 | AU56: -1.845142694 | AV56: 0 | AW56: -1.845142694 | AX56: -21.15763622 | AY56: 0 | AZ56: -21.15763622 | BA56: -1.822847099 | BB56: -0.01126575128 | BC56: -1.845142694 | BD56: -0.01140354486 | BE56: -1.822847099 | BF56: -0.01126575128 | BG56: -259.2357133 | BH56: =(SUMPRODUCT(BE57:BE$605,$I56:$I$604)+SUMPRODUCT(BF57:BF$605,$I57:$I$605)) / $I56 -> -256.1032649 | BJ56: -1.822847099 | BK56: -23.99482056 | BM56: 7174.116126 | BN56: 7083.608438 | BP56: =Reserve!BX56 -> 9730.353029 | BQ56: 9607.596199 | BR56: 9.28831688 | BT56: 30.16357819 | BU56: 29.79909965 | BV56: =SUMPRODUCT(BU57:BU$605, $I57:$I$605) / $I56 -> 2839.678629 | BX56: =-BZ56*Others!$Q$43 -> -3.39705571 | BZ56: 13.26974887 | CA56: 9.872693158 | CB56: 9.872693158 | CD56: =SUMPRODUCT(BZ57:BZ$605, $I57:$I$605) / $I56 -> 2523.987761 | CE56: =SUMPRODUCT(CA57:CA$605, $I57:$I$605) / $I56 -> 1877.846894 | CF56: =SUMPRODUCT(CB57:CB$605, $I57:$I$605) / $I56 -> 1877.846894 | CH56: 37269.64697 | CI56: 0 | CK56: =NPV((1+CK$3)^(1/12)-1,$CB$6:$CB56)+$CB$5 -> -405.485237 | CL56: =NPV((1+CL$3)^(1/12)-1,$CB$6:$CB56)+$CB$5 -> -420.2600018 | CM56: =NPV((1+CM$3)^(1/12)-1,$CB$6:$CB56)+$CB$5 -> -452.573471 | CN56: =NPV((1+CN$3)^(1/12)-1,$CB$6:$CB56)+$CB$5 -> -452.573471
A57: 4.333333333 | B57: 4 | C57: 5 | D57: 4.833333333 | E57: 4 | G57: =INDEX(Others!$D$11:$E$60, MATCH(C57, Others!$A$11:$A$60, 0), MATCH(G$3, Others!$D$10:$E$10, 0)) -> 0.03783105733 | H57: 0.003099210455 | I57: 0.8754785399 | K57: =INDEX(Mortality!$B$7:$F$32, MATCH( E57,Mortality!$A$7:$A$32, 0), MATCH( K$3,Mortality!$B$6:$F$6,0)) -> 0.336 | L57: 0 | M57: 0.336 | N57: =INDEX(Myopia!$H:$H, MATCH(E57, Myopia!$A:$A, 0)) * Trend_Factor^(A57) -> 6.131932878 | O57: 0 | P57: 6.131932878 | Q57: =VLOOKUP(C57,Others!$L$10:$M$61,2) -> 0 | R57: 0 | S57: 0 | T57: 2.8e-05 | U57: 0.0005109944065 | V57: 0 | W57: 0.987384134 | X57: 2.763969208e-05 | Y57: 0.0005045407059 | Z57: 0 | AA57: 0.9868519536 | AC57: 0 | AD57: 0 | AE57: 0 | AF57: 0 | AG57: =SUMPRODUCT(AE58:AE$605, $I57:$I$604) / $I57 -> 0 | AI57: -47000 | AJ57: =IF(E57>Mat_Year,0, -SUM($AD$5:AD57)) -> -9306 | AK57: -0.2572149745 | AL57: -23.71341318 | AM57: -24.2769023 | AN57: -23.97062815 | AO57: -6911.893948 | AP57: =SUMPRODUCT(AN58:AN$605, $I58:$I$605) / $I57 -> -6824.69442 | AR57: 0 | AS57: 0 | AT57: 0 | AU57: -1.847205745 | AV57: 0 | AW57: -1.847205745 | AX57: -21.18129254 | AY57: 0 | AZ57: -21.18129254 | BA57: -1.823901645 | BB57: -0.0112722687 | BC57: -1.847205745 | BD57: -0.01141629515 | BE57: -1.823901645 | BF57: -0.0112722687 | BG57: -258.315024 | BH57: =(SUMPRODUCT(BE58:BE$605,$I57:$I$604)+SUMPRODUCT(BF58:BF$605,$I58:$I$605)) / $I57 -> -255.0561562 | BJ57: -1.823901645 | BK57: -23.98190042 | BM57: 7174.075656 | BN57: 7079.750576 | BP57: =Reserve!BX57 -> 9726.178821 | BQ57: 9598.29857 | BR57: 9.297628685 | BT57: 30.15068696 | BU57: 29.77030993 | BV57: =SUMPRODUCT(BU58:BU$605, $I58:$I$605) / $I57 -> 2818.709081 | BX57: =-BZ57*Others!$Q$43 -> -3.395106957 | BZ57: 13.26213655 | CA57: 9.867029594 | CB57: 9.867029594 | CD57: =SUMPRODUCT(BZ58:BZ$605, $I58:$I$605) / $I57 -> 2518.547994 | CE57: =SUMPRODUCT(CA58:CA$605, $I58:$I$605) / $I57 -> 1873.799707 | CF57: =SUMPRODUCT(CB58:CB$605, $I58:$I$605) / $I57 -> 1873.799707 | CH57: 37273.82118 | CI57: 0 | CK57: =NPV((1+CK$3)^(1/12)-1,$CB$6:$CB57)+$CB$5 -> -396.8044629 | CL57: =NPV((1+CL$3)^(1/12)-1,$CB$6:$CB57)+$CB$5 -> -412.2733245 | CM57: =NPV((1+CM$3)^(1/12)-1,$CB$6:$CB57)+$CB$5 -> -446.0449 | CN57: =NPV((1+CN$3)^(1/12)-1,$CB$6:$CB57)+$CB$5 -> -446.0449
A58: 4.416666667 | B58: 5 | C58: 5 | D58: 4.916666667 | E58: 4 | G58: =INDEX(Others!$D$11:$E$60, MATCH(C58, Others!$A$11:$A$60, 0), MATCH(G$3, Others!$D$10:$E$10, 0)) -> 0.03783105733 | H58: 0.003099210455 | I58: 0.8727736307 | K58: =INDEX(Mortality!$B$7:$F$32, MATCH( E58,Mortality!$A$7:$A$32, 0), MATCH( K$3,Mortality!$B$6:$F$6,0)) -> 0.336 | L58: 0 | M58: 0.336 | N58: =INDEX(Myopia!$H:$H, MATCH(E58, Myopia!$A:$A, 0)) * Trend_Factor^(A58) -> 6.131932878 | O58: 0 | P58: 6.131932878 | Q58: =VLOOKUP(C58,Others!$L$10:$M$61,2) -> 0 | R58: 0 | S58: 0 | T58: 2.8e-05 | U58: 0.0005109944065 | V58: 0 | W58: 0.9868519536 | X58: 2.762479484e-05 | Y58: 0.0005042687685 | Z58: 0 | AA58: 0.98632006 | AC58: 0 | AD58: 0 | AE58: 0 | AF58: 0 | AG58: =SUMPRODUCT(AE59:AE$605, $I58:$I$604) / $I58 -> 0 | AI58: -47000 | AJ58: =IF(E58>Mat_Year,0, -SUM($AD$5:AD58)) -> -9306 | AK58: -0.2570763408 | AL58: -23.70063212 | AM58: -24.2769023 | AN58: -23.95770846 | AO58: -6912.777394 | AP58: =SUMPRODUCT(AN59:AN$605, $I59:$I$605) / $I58 -> -6821.887876 | AR58: 0 | AS58: 0 | AT58: 0 | AU58: -1.849271103 | AV58: 0 | AW58: -1.849271103 | AX58: -21.20497532 | AY58: 0 | AZ58: -21.20497532 | BA58: -1.824956801 | BB58: -0.01127878988 | BC58: -1.849271103 | BD58: -0.01142905969 | BE58: -1.824956801 | BF58: -0.01127878988 | BG58: -257.3888986 | BH58: =(SUMPRODUCT(BE59:BE$605,$I58:$I$604)+SUMPRODUCT(BF59:BF$605,$I59:$I$605)) / $I58 -> -254.0047374 | BJ58: -1.824956801 | BK58: -23.96898725 | BM58: 7174.032954 | BN58: 7075.892613 | BP58: =Reserve!BX58 -> 9721.987803 | BQ58: 9588.991593 | BR58: 9.306976866 | BT58: 30.13774381 | BU58: 29.74149135 | BV58: =SUMPRODUCT(BU59:BU$605, $I59:$I$605) / $I58 -> 2797.703362 | BX58: =-BZ58*Others!$Q$43 -> -3.393158187 | BZ58: 13.25452417 | CA58: 9.861365982 | CB58: 9.861365982 | CD58: =SUMPRODUCT(BZ59:BZ$605, $I59:$I$605) / $I58 -> 2513.09898 | CE58: =SUMPRODUCT(CA59:CA$605, $I59:$I$605) / $I58 -> 1869.745641 | CF58: =SUMPRODUCT(CB59:CB$605, $I59:$I$605) / $I58 -> 1869.745641 | CH58: 37278.0122 | CI58: 0 | CK58: =NPV((1+CK$3)^(1/12)-1,$CB$6:$CB58)+$CB$5 -> -388.1500157 | CL58: =NPV((1+CL$3)^(1/12)-1,$CB$6:$CB58)+$CB$5 -> -404.3236197 | CM58: =NPV((1+CM$3)^(1/12)-1,$CB$6:$CB58)+$CB$5 -> -439.5716947 | CN58: =NPV((1+CN$3)^(1/12)-1,$CB$6:$CB58)+$CB$5 -> -439.5716947
A59: 4.5 | B59: 6 | C59: 5 | D59: 5 | E59: 5 | G59: =INDEX(Others!$D$11:$E$60, MATCH(C59, Others!$A$11:$A$60, 0), MATCH(G$3, Others!$D$10:$E$10, 0)) -> 0.03783105733 | H59: 0.003099210455 | I59: 0.8700770788 | K59: =INDEX(Mortality!$B$7:$F$32, MATCH( E59,Mortality!$A$7:$A$32, 0), MATCH( K$3,Mortality!$B$6:$F$6,0)) -> 0.338 | L59: 0 | M59: 0.338 | N59: =INDEX(Myopia!$H:$H, MATCH(E59, Myopia!$A:$A, 0)) * Trend_Factor^(A59) -> 6.094561437 | O59: 0 | P59: 6.094561437 | Q59: =VLOOKUP(C59,Others!$L$10:$M$61,2) -> 0 | R59: 0 | S59: 0 | T59: 2.816666667e-05 | U59: 0.0005078801197 | V59: 0 | W59: 0.98632006 | X59: 2.777429356e-05 | Y59: 0.0005009252954 | Z59: 0 | AA59: 0.9857913604 | AC59: 0 | AD59: 0 | AE59: 0 | AF59: 0 | AG59: =SUMPRODUCT(AE60:AE$605, $I59:$I$604) / $I59 -> 0 | AI59: -47000 | AJ59: =IF(E59>Mat_Year,0, -SUM($AD$5:AD59)) -> -9306 | AK59: -0.2584675759 | AL59: -23.54348888 | AM59: -24.13208189 | AN59: -23.80195646 | AO59: -6913.808876 | AP59: =SUMPRODUCT(AN60:AN$605, $I60:$I$605) / $I59 -> -6819.228386 | AR59: 0 | AS59: 0 | AT59: 0 | AU59: -1.85133877 | AV59: 0 | AW59: -1.85133877 | AX59: -21.22868457 | AY59: 0 | AZ59: -21.22868457 | BA59: -1.826012567 | BB59: -0.0112235968 | BC59: -1.85133877 | BD59: -0.01137926446 | BE59: -1.826012567 | BF59: -0.0112235968 | BG59: -256.4573777 | BH59: =(SUMPRODUCT(BE60:BE$605,$I59:$I$604)+SUMPRODUCT(BF60:BF$605,$I60:$I$605)) / $I59 -> -252.9490562 | BJ59: -1.826012567 | BK59: -23.81318006 | BM59: 7174.111811 | BN59: 7072.177442 | BP59: =Reserve!BX59 -> 9717.931134 | BQ59: 9579.852553 | BR59: 9.139040234 | BT59: 30.12474855 | BU59: 29.7126438 | BV59: =SUMPRODUCT(BU60:BU$605, $I60:$I$605) / $I59 -> 2776.66139 | BX59: =-BZ59*Others!$Q$43 -> -3.382397802 | BZ59: 13.21249141 | CA59: 9.830093611 | CB59: 9.830093611 | CD59: =SUMPRODUCT(BZ60:BZ$605, $I60:$I$605) / $I59 -> 2507.675111 | CE59: =SUMPRODUCT(CA60:CA$605, $I60:$I$605) / $I59 -> 1865.710283 | CF59: =SUMPRODUCT(CB60:CB$605, $I60:$I$605) / $I59 -> 1865.710283 | CH59: 37282.06887 | CI59: 0 | CK59: =NPV((1+CK$3)^(1/12)-1,$CB$6:$CB59)+$CB$5 -> -379.5442376 | CL59: =NPV((1+CL$3)^(1/12)-1,$CB$6:$CB59)+$CB$5 -> -396.4312793 | CM59: =NPV((1+CM$3)^(1/12)-1,$CB$6:$CB59)+$CB$5 -> -433.1700647 | CN59: =NPV((1+CN$3)^(1/12)-1,$CB$6:$CB59)+$CB$5 -> -433.1700647
A60: 4.583333333 | B60: 7 | C60: 5 | D60: 5.083333333 | E60: 5 | G60: =INDEX(Others!$D$11:$E$60, MATCH(C60, Others!$A$11:$A$60, 0), MATCH(G$3, Others!$D$10:$E$10, 0)) -> 0.03783105733 | H60: 0.003099210455 | I60: 0.8673888581 | K60: =INDEX(Mortality!$B$7:$F$32, MATCH( E60,Mortality!$A$7:$A$32, 0), MATCH( K$3,Mortality!$B$6:$F$6,0)) -> 0.338 | L60: 0 | M60: 0.338 | N60: =INDEX(Myopia!$H:$H, MATCH(E60, Myopia!$A:$A, 0)) * Trend_Factor^(A60) -> 6.094561437 | O60: 0 | P60: 6.094561437 | Q60: =VLOOKUP(C60,Others!$L$10:$M$61,2) -> 0 | R60: 0 | S60: 0 | T60: 2.816666667e-05 | U60: 0.0005078801197 | V60: 0 | W60: 0.9857913604 | X60: 2.775940564e-05 | Y60: 0.0005006567832 | Z60: 0 | AA60: 0.9852629442 | AC60: 0 | AD60: 0 | AE60: 0 | AF60: 0 | AG60: =SUMPRODUCT(AE61:AE$605, $I60:$I$604) / $I60 -> 0 | AI60: -47000 | AJ60: =IF(E60>Mat_Year,0, -SUM($AD$5:AD60)) -> -9306 | AK60: -0.2583290289 | AL60: -23.53086881 | AM60: -24.13208189 | AN60: -23.78919784 | AO60: -6914.823649 | AP60: =SUMPRODUCT(AN61:AN$605, $I61:$I$605) / $I60 -> -6816.573412 | AR60: 0 | AS60: 0 | AT60: 0 | AU60: -1.85340875 | AV60: 0 | AW60: -1.85340875 | AX60: -21.25242033 | AY60: 0 | AZ60: -21.25242033 | BA60: -1.827074333 | BB60: -0.01123012295 | BC60: -1.85340875 | BD60: -0.0113919876 | BE60: -1.827074333 | BF60: -0.01123012295 | BG60: -255.5196178 | BH60: =(SUMPRODUCT(BE61:BE$605,$I60:$I$604)+SUMPRODUCT(BF61:BF$605,$I61:$I$605)) / $I60 -> -251.8890316 | BJ60: -1.827074333 | BK60: -23.80042796 | BM60: 7174.188865 | BN60: 7068.462443 | BP60: =Reserve!BX60 -> 9713.858011 | BQ60: 9570.704344 | BR60: 9.148208655 | BT60: 30.11216967 | BU60: 29.6843167 | BV60: =SUMPRODUCT(BU61:BU$605, $I61:$I$605) / $I60 -> 2755.582531 | BX60: =-BZ60*Others!$Q$43 -> -3.380485904 | BZ60: 13.20502306 | CA60: 9.824537159 | CB60: 9.824537159 | CD60: =SUMPRODUCT(BZ61:BZ$605, $I61:$I$605) / $I60 -> 2502.241901 | CE60: =SUMPRODUCT(CA61:CA$605, $I61:$I$605) / $I60 -> 1861.667974 | CF60: =SUMPRODUCT(CB61:CB$605, $I61:$I$605) / $I60 -> 1861.667974 | CH60: 37286.14199 | CI60: 0 | CK60: =NPV((1+CK$3)^(1/12)-1,$CB$6:$CB60)+$CB$5 -> -370.9644839 | CL60: =NPV((1+CL$3)^(1/12)-1,$CB$6:$CB60)+$CB$5 -> -388.5754058 | CM60: =NPV((1+CM$3)^(1/12)-1,$CB$6:$CB60)+$CB$5 -> -426.8226682 | CN60: =NPV((1+CN$3)^(1/12)-1,$CB$6:$CB60)+$CB$5 -> -426.8226682
A61: 4.666666667 | B61: 8 | C61: 5 | D61: 5.166666667 | E61: 5 | G61: =INDEX(Others!$D$11:$E$60, MATCH(C61, Others!$A$11:$A$60, 0), MATCH(G$3, Others!$D$10:$E$10, 0)) -> 0.03783105733 | H61: 0.003099210455 | I61: 0.8647089432 | K61: =INDEX(Mortality!$B$7:$F$32, MATCH( E61,Mortality!$A$7:$A$32, 0), MATCH( K$3,Mortality!$B$6:$F$6,0)) -> 0.338 | L61: 0 | M61: 0.338 | N61: =INDEX(Myopia!$H:$H, MATCH(E61, Myopia!$A:$A, 0)) * Trend_Factor^(A61) -> 6.094561437 | O61: 0 | P61: 6.094561437 | Q61: =VLOOKUP(C61,Others!$L$10:$M$61,2) -> 0 | R61: 0 | S61: 0 | T61: 2.816666667e-05 | U61: 0.0005078801197 | V61: 0 | W61: 0.9852629442 | X61: 2.774452569e-05 | Y61: 0.0005003884149 | Z61: 0 | AA61: 0.9847348113 | AC61: 0 | AD61: 0 | AE61: 0 | AF61: 0 | AG61: =SUMPRODUCT(AE62:AE$605, $I61:$I$604) / $I61 -> 0 | AI61: -47000 | AJ61: =IF(E61>Mat_Year,0, -SUM($AD$5:AD61)) -> -9306 | AK61: -0.2581905561 | AL61: -23.5182555 | AM61: -24.13208189 | AN61: -23.77644605 | AO61: -6915.842112 | AP61: =SUMPRODUCT(AN62:AN$605, $I62:$I$605) / $I61 -> -6813.922961 | AR61: 0 | AS61: 0 | AT61: 0 | AU61: -1.855481043 | AV61: 0 | AW61: -1.855481043 | AX61: -21.27618263 | AY61: 0 | AZ61: -21.27618263 | BA61: -1.828136715 | BB61: -0.01123665289 | BC61: -1.855481043 | BD61: -0.01140472496 | BE61: -1.828136715 | BF61: -0.01123665289 | BG61: -254.5763555 | BH61: =(SUMPRODUCT(BE62:BE$605,$I61:$I$604)+SUMPRODUCT(BF62:BF$605,$I62:$I$605)) / $I61 -> -250.8246496 | BJ61: -1.828136715 | BK61: -23.78768271 | BM61: 7174.264106 | BN61: 7064.747611 | BP61: =Reserve!BX61 -> 9709.768378 | BQ61: 9561.546931 | BR61: 9.157412954 | BT61: 30.09953978 | BU61: 29.65596119 | BV61: =SUMPRODUCT(BU62:BU$605, $I62:$I$605) / $I61 -> 2734.4667 | BX61: =-BZ61*Others!$Q$43 -> -3.378574007 | BZ61: 13.19755472 | CA61: 9.818980709 | CB61: 9.818980709 | CD61: =SUMPRODUCT(BZ62:BZ$605, $I62:$I$605) / $I61 -> 2496.79932 | CE61: =SUMPRODUCT(CA62:CA$605, $I62:$I$605) / $I61 -> 1857.618694 | CF61: =SUMPRODUCT(CB62:CB$605, $I62:$I$605) / $I61 -> 1857.618694 | CH61: 37290.23162 | CI61: 0 | CK61: =NPV((1+CK$3)^(1/12)-1,$CB$6:$CB61)+$CB$5 -> -362.4106786 | CL61: =NPV((1+CL$3)^(1/12)-1,$CB$6:$CB61)+$CB$5 -> -380.7558333 | CM61: =NPV((1+CM$3)^(1/12)-1,$CB$6:$CB61)+$CB$5 -> -420.5290478 | CN61: =NPV((1+CN$3)^(1/12)-1,$CB$6:$CB61)+$CB$5 -> -420.5290478
A62: 4.75 | B62: 9 | C62: 5 | D62: 5.25 | E62: 5 | G62: =INDEX(Others!$D$11:$E$60, MATCH(C62, Others!$A$11:$A$60, 0), MATCH(G$3, Others!$D$10:$E$10, 0)) -> 0.03783105733 | H62: 0.003099210455 | I62: 0.8620373081 | K62: =INDEX(Mortality!$B$7:$F$32, MATCH( E62,Mortality!$A$7:$A$32, 0), MATCH( K$3,Mortality!$B$6:$F$6,0)) -> 0.338 | L62: 0 | M62: 0.338 | N62: =INDEX(Myopia!$H:$H, MATCH(E62, Myopia!$A:$A, 0)) * Trend_Factor^(A62) -> 6.094561437 | O62: 0 | P62: 6.094561437 | Q62: =VLOOKUP(C62,Others!$L$10:$M$61,2) -> 0 | R62: 0 | S62: 0 | T62: 2.816666667e-05 | U62: 0.0005078801197 | V62: 0 | W62: 0.9847348113 | X62: 2.772965373e-05 | Y62: 0.0005001201904 | Z62: 0 | AA62: 0.9842069615 | AC62: 0 | AD62: 0 | AE62: 0 | AF62: 0 | AG62: =SUMPRODUCT(AE63:AE$605, $I62:$I$604) / $I62 -> 0 | AI62: -47000 | AJ62: =IF(E62>Mat_Year,0, -SUM($AD$5:AD62)) -> -9306 | AK62: -0.2580521576 | AL62: -23.50564895 | AM62: -24.13208189 | AN62: -23.76370111 | AO62: -6916.86428 | AP62: =SUMPRODUCT(AN63:AN$605, $I63:$I$605) / $I62 -> -6811.277042 | AR62: 0 | AS62: 0 | AT62: 0 | AU62: -1.857555654 | AV62: 0 | AW62: -1.857555654 | AX62: -21.2999715 | AY62: 0 | AZ62: -21.2999715 | BA62: -1.829199716 | BB62: -0.01124318663 | BC62: -1.857555654 | BD62: -0.01141747657 | BE62: -1.829199716 | BF62: -0.01124318663 | BG62: -253.6275687 | BH62: =(SUMPRODUCT(BE63:BE$605,$I62:$I$604)+SUMPRODUCT(BF63:BF$605,$I63:$I$605)) / $I62 -> -249.755896 | BJ62: -1.829199716 | BK62: -23.77494429 | BM62: 7174.337527 | BN62: 7061.032938 | BP62: =Reserve!BX62 -> 9705.662175 | BQ62: 9552.380278 | BR62: 9.166653224 | BT62: 30.08685872 | BU62: 29.62757714 | BV62: =SUMPRODUCT(BU63:BU$605, $I63:$I$605) / $I62 -> 2713.31381 | BX62: =-BZ62*Others!$Q$43 -> -3.376662107 | BZ62: 13.19008635 | CA62: 9.813424248 | CB62: 9.813424248 | CD62: =SUMPRODUCT(BZ63:BZ$605, $I63:$I$605) / $I62 -> 2491.347341 | CE62: =SUMPRODUCT(CA63:CA$605, $I63:$I$605) / $I62 -> 1853.562421 | CF62: =SUMPRODUCT(CB63:CB$605, $I63:$I$605) / $I62 -> 1853.562421 | CH62: 37294.33783 | CI62: 0 | CK62: =NPV((1+CK$3)^(1/12)-1,$CB$6:$CB62)+$CB$5 -> -353.8827461 | CL62: =NPV((1+CL$3)^(1/12)-1,$CB$6:$CB62)+$CB$5 -> -372.9723965 | CM62: =NPV((1+CM$3)^(1/12)-1,$CB$6:$CB62)+$CB$5 -> -414.28875 | CN62: =NPV((1+CN$3)^(1/12)-1,$CB$6:$CB62)+$CB$5 -> -414.28875
A63: 4.833333333 | B63: 10 | C63: 5 | D63: 5.333333333 | E63: 5 | G63: =INDEX(Others!$D$11:$E$60, MATCH(C63, Others!$A$11:$A$60, 0), MATCH(G$3, Others!$D$10:$E$10, 0)) -> 0.03783105733 | H63: 0.003099210455 | I63: 0.8593739275 | K63: =INDEX(Mortality!$B$7:$F$32, MATCH( E63,Mortality!$A$7:$A$32, 0), MATCH( K$3,Mortality!$B$6:$F$6,0)) -> 0.338 | L63: 0 | M63: 0.338 | N63: =INDEX(Myopia!$H:$H, MATCH(E63, Myopia!$A:$A, 0)) * Trend_Factor^(A63) -> 6.094561437 | O63: 0 | P63: 6.094561437 | Q63: =VLOOKUP(C63,Others!$L$10:$M$61,2) -> 0 | R63: 0 | S63: 0 | T63: 2.816666667e-05 | U63: 0.0005078801197 | V63: 0 | W63: 0.9842069615 | X63: 2.771478973e-05 | Y63: 0.0004998521097 | Z63: 0 | AA63: 0.9836793946 | AC63: 0 | AD63: 0 | AE63: 0 | AF63: 0 | AG63: =SUMPRODUCT(AE64:AE$605, $I63:$I$604) / $I63 -> 0 | AI63: -47000 | AJ63: =IF(E63>Mat_Year,0, -SUM($AD$5:AD63)) -> -9306 | AK63: -0.2579138332 | AL63: -23.49304916 | AM63: -24.13208189 | AN63: -23.75096299 | AO63: -6917.890166 | AP63: =SUMPRODUCT(AN64:AN$605, $I64:$I$605) / $I63 -> -6808.63566 | AR63: 0 | AS63: 0 | AT63: 0 | AU63: -1.859632584 | AV63: 0 | AW63: -1.859632584 | AX63: -21.32378696 | AY63: 0 | AZ63: -21.32378696 | BA63: -1.830263335 | BB63: -0.01124972417 | BC63: -1.859632584 | BD63: -0.01143024243 | BE63: -1.830263335 | BF63: -0.01124972417 | BG63: -252.6732348 | BH63: =(SUMPRODUCT(BE64:BE$605,$I63:$I$604)+SUMPRODUCT(BF64:BF$605,$I64:$I$605)) / $I63 -> -248.6827566 | BJ63: -1.830263335 | BK63: -23.76221272 | BM63: 7174.409117 | BN63: 7057.318416 | BP63: =Reserve!BX63 -> 9701.539344 | BQ63: 9543.204349 | BR63: 9.175929554 | BT63: 30.07412629 | BU63: 29.59916446 | BV63: =SUMPRODUCT(BU64:BU$605, $I64:$I$605) / $I63 -> 2692.123777 | BX63: =-BZ63*Others!$Q$43 -> -3.374750198 | BZ63: 13.18261796 | CA63: 9.807867762 | CB63: 9.807867762 | CD63: =SUMPRODUCT(BZ64:BZ$605, $I64:$I$605) / $I63 -> 2485.885932 | CE63: =SUMPRODUCT(CA64:CA$605, $I64:$I$605) / $I63 -> 1849.499134 | CF63: =SUMPRODUCT(CB64:CB$605, $I64:$I$605) / $I63 -> 1849.499134 | CH63: 37298.46066 | CI63: 0 | CK63: =NPV((1+CK$3)^(1/12)-1,$CB$6:$CB63)+$CB$5 -> -345.3806107 | CL63: =NPV((1+CL$3)^(1/12)-1,$CB$6:$CB63)+$CB$5 -> -365.2249309 | CM63: =NPV((1+CM$3)^(1/12)-1,$CB$6:$CB63)+$CB$5 -> -408.1013248 | CN63: =NPV((1+CN$3)^(1/12)-1,$CB$6:$CB63)+$CB$5 -> -408.1013248
A64: 4.916666667 | B64: 11 | C64: 5 | D64: 5.416666667 | E64: 5 | G64: =INDEX(Others!$D$11:$E$60, MATCH(C64, Others!$A$11:$A$60, 0), MATCH(G$3, Others!$D$10:$E$10, 0)) -> 0.03783105733 | H64: 0.003099210455 | I64: 0.8567187757 | K64: =INDEX(Mortality!$B$7:$F$32, MATCH( E64,Mortality!$A$7:$A$32, 0), MATCH( K$3,Mortality!$B$6:$F$6,0)) -> 0.338 | L64: 0 | M64: 0.338 | N64: =INDEX(Myopia!$H:$H, MATCH(E64, Myopia!$A:$A, 0)) * Trend_Factor^(A64) -> 6.094561437 | O64: 0 | P64: 6.094561437 | Q64: =VLOOKUP(C64,Others!$L$10:$M$61,2) -> 0 | R64: 0 | S64: 0 | T64: 2.816666667e-05 | U64: 0.0005078801197 | V64: 0 | W64: 0.9836793946 | X64: 2.76999337e-05 | Y64: 0.0004995841728 | Z64: 0 | AA64: 0.9831521104 | AC64: 0 | AD64: 0 | AE64: 0 | AF64: 0 | AG64: =SUMPRODUCT(AE65:AE$605, $I64:$I$604) / $I64 -> 0 | AI64: -47000 | AJ64: =IF(E64>Mat_Year,0, -SUM($AD$5:AD64)) -> -9306 | AK64: -0.257775583 | AL64: -23.48045612 | AM64: -24.13208189 | AN64: -23.7382317 | AO64: -6918.919783 | AP64: =SUMPRODUCT(AN65:AN$605, $I65:$I$605) / $I64 -> -6805.998823 | AR64: 0 | AS64: 0 | AT64: 0 | AU64: -1.861711836 | AV64: 0 | AW64: -1.861711836 | AX64: -21.34762906 | AY64: 0 | AZ64: -21.34762906 | BA64: -1.831327572 | BB64: -0.01125626551 | BC64: -1.861711836 | BD64: -0.01144302257 | BE64: -1.831327572 | BF64: -0.01125626551 | BG64: -251.7133313 | BH64: =(SUMPRODUCT(BE65:BE$605,$I64:$I$604)+SUMPRODUCT(BF65:BF$605,$I65:$I$605)) / $I64 -> -247.6052173 | BJ64: -1.831327572 | BK64: -23.74948797 | BM64: 7174.478868 | BN64: 7053.60404 | BP64: =Reserve!BX64 -> 9697.399828 | BQ64: 9534.019106 | BR64: 9.185242035 | BT64: 30.06134233 | BU64: 29.57072302 | BV64: =SUMPRODUCT(BU65:BU$605, $I65:$I$605) / $I64 -> 2670.896512 | BX64: =-BZ64*Others!$Q$43 -> -3.372838276 | BZ64: 13.17514952 | CA64: 9.80231124 | CB64: 9.80231124 | CD64: =SUMPRODUCT(BZ65:BZ$605, $I65:$I$605) / $I64 -> 2480.415066 | CE64: =SUMPRODUCT(CA65:CA$605, $I65:$I$605) / $I64 -> 1845.428809 | CF64: =SUMPRODUCT(CB65:CB$605, $I65:$I$605) / $I64 -> 1845.428809 | CH64: 37302.60017 | CI64: 0 | CK64: =NPV((1+CK$3)^(1/12)-1,$CB$6:$CB64)+$CB$5 -> -336.9041972 | CL64: =NPV((1+CL$3)^(1/12)-1,$CB$6:$CB64)+$CB$5 -> -357.5132728 | CM64: =NPV((1+CM$3)^(1/12)-1,$CB$6:$CB64)+$CB$5 -> -401.9663265 | CN64: =NPV((1+CN$3)^(1/12)-1,$CB$6:$CB64)+$CB$5 -> -401.9663265
A65: 5 | B65: 12 | C65: 5 | D65: 5.5 | E65: 5 | G65: =INDEX(Others!$D$11:$E$60, MATCH(C65, Others!$A$11:$A$60, 0), MATCH(G$3, Others!$D$10:$E$10, 0)) -> 0.03783105733 | H65: 0.003099210455 | I65: 0.8540718273 | K65: =INDEX(Mortality!$B$7:$F$32, MATCH( E65,Mortality!$A$7:$A$32, 0), MATCH( K$3,Mortality!$B$6:$F$6,0)) -> 0.338 | L65: 0 | M65: 0.338 | N65: =INDEX(Myopia!$H:$H, MATCH(E65, Myopia!$A:$A, 0)) * Trend_Factor^(A65) -> 6.094561437 | O65: 0 | P65: 6.094561437 | Q65: =VLOOKUP(C65,Others!$L$10:$M$61,2) -> 0 | R65: 0 | S65: 0 | T65: 2.816666667e-05 | U65: 0.0005078801197 | V65: 0 | W65: 0.9831521104 | X65: 2.768508564e-05 | Y65: 0.0004993163794 | Z65: 0 | AA65: 0.982625109 | AC65: 0 | AD65: 0 | AE65: 0 | AF65: 0 | AG65: =SUMPRODUCT(AE66:AE$605, $I65:$I$604) / $I65 -> 0 | AI65: -47000 | AJ65: =IF(E65>Mat_Year,0, -SUM($AD$5:AD65)) -> -9306 | AK65: -0.257637407 | AL65: -23.46786983 | AM65: -24.13208189 | AN65: -23.72550724 | AO65: -6919.953144 | AP65: =SUMPRODUCT(AN66:AN$605, $I66:$I$605) / $I65 -> -6803.366538 | AR65: 0 | AS65: 0 | AT65: 0 | AU65: -1.863793414 | AV65: 0 | AW65: -1.863793414 | AX65: -21.37149781 | AY65: 0 | AZ65: -21.37149781 | BA65: -1.832392428 | BB65: -0.01126281066 | BC65: -1.863793414 | BD65: -0.011455817 | BE65: -1.832392428 | BF65: -0.01126281066 | BG65: -250.7478356 | BH65: =(SUMPRODUCT(BE66:BE$605,$I65:$I$604)+SUMPRODUCT(BF66:BF$605,$I66:$I$605)) / $I65 -> -246.5232638 | BJ65: -1.832392428 | BK65: -23.73677005 | BM65: 7174.54677 | BN65: 7049.889802 | BP65: =Reserve!BX65 -> 9693.243566 | BQ65: 9524.824516 | BR65: 9.194590759 | BT65: 30.04850664 | BU65: 29.54225272 | BV65: =SUMPRODUCT(BU66:BU$605, $I66:$I$605) / $I65 -> 2649.631929 | BX65: =-BZ65*Others!$Q$43 -> -3.370926337 | BZ65: 13.167681 | CA65: 9.796754666 | CB65: 9.796754666 | CD65: =SUMPRODUCT(BZ66:BZ$605, $I66:$I$605) / $I65 -> 2474.934714 | CE65: =SUMPRODUCT(CA66:CA$605, $I66:$I$605) / $I65 -> 1841.351427 | CF65: =SUMPRODUCT(CB66:CB$605, $I66:$I$605) / $I65 -> 1841.351427 | CH65: 37306.75643 | CI65: 0 | CK65: =NPV((1+CK$3)^(1/12)-1,$CB$6:$CB65)+$CB$5 -> -328.4534306 | CL65: =NPV((1+CL$3)^(1/12)-1,$CB$6:$CB65)+$CB$5 -> -349.8372592 | CM65: =NPV((1+CM$3)^(1/12)-1,$CB$6:$CB65)+$CB$5 -> -395.8833126 | CN65: =NPV((1+CN$3)^(1/12)-1,$CB$6:$CB65)+$CB$5 -> -395.8833126
A66: 5.083333333 | B66: 1 | C66: 6 | D66: 5.583333333 | E66: 5 | G66: =INDEX(Others!$D$11:$E$60, MATCH(C66, Others!$A$11:$A$60, 0), MATCH(G$3, Others!$D$10:$E$10, 0)) -> 0.04072110327 | H66: 0.003331691237 | I66: 0.8512357726 | K66: =INDEX(Mortality!$B$7:$F$32, MATCH( E66,Mortality!$A$7:$A$32, 0), MATCH( K$3,Mortality!$B$6:$F$6,0)) -> 0.338 | L66: 0 | M66: 0.338 | N66: =INDEX(Myopia!$H:$H, MATCH(E66, Myopia!$A:$A, 0)) * Trend_Factor^(A66) -> 6.094561437 | O66: 0 | P66: 6.094561437 | Q66: =VLOOKUP(C66,Others!$L$10:$M$61,2) -> 0 | R66: 0 | S66: 0 | T66: 2.816666667e-05 | U66: 0.0005078801197 | V66: 0 | W66: 0.982625109 | X66: 2.767024553e-05 | Y66: 0.0004990487296 | Z66: 0 | AA66: 0.98209839 | AC66: 0 | AD66: 0 | AE66: 0 | AF66: 0 | AG66: =SUMPRODUCT(AE67:AE$605, $I66:$I$604) / $I66 -> 0 | AI66: -47000 | AJ66: =IF(E66>Mat_Year,0, -SUM($AD$5:AD66)) -> -9306 | AK66: -0.2574993049 | AL66: -23.45529029 | AM66: -24.13208189 | AN66: -23.7127896 | AO66: -6922.599884 | AP66: =SUMPRODUCT(AN67:AN$605, $I67:$I$605) / $I66 -> -6802.320465 | AR66: 0 | AS66: 0 | AT66: 0 | AU66: -1.865877318 | AV66: 0 | AW66: -1.865877318 | AX66: -21.39539325 | AY66: 0 | AZ66: -21.39539325 | BA66: -1.833457903 | BB66: -0.01126935961 | BC66: -1.865877318 | BD66: -0.01146862573 | BE66: -1.833457903 | BF66: -0.01126935961 | BG66: -249.8346166 | BH66: =(SUMPRODUCT(BE67:BE$605,$I66:$I$604)+SUMPRODUCT(BF67:BF$605,$I67:$I$605)) / $I66 -> -245.4937674 | BJ66: -1.833457903 | BK66: -23.72405896 | BM66: 7176.28122 | BN66: 7047.814233 | BP66: =Reserve!BX66 -> 9690.776194 | BQ66: 9517.295698 | BR66: 7.528817779 | BT66: 32.28867812 | BU66: 31.72766586 | BV66: =SUMPRODUCT(BU67:BU$605, $I67:$I$605) / $I66 -> 2626.732019 | BX66: =-BZ66*Others!$Q$43 -> -3.506935495 | BZ66: 13.69896678 | CA66: 10.19203128 | CB66: 10.19203128 | CD66: =SUMPRODUCT(BZ67:BZ$605, $I67:$I$605) / $I66 -> 2469.481465 | CE66: =SUMPRODUCT(CA67:CA$605, $I67:$I$605) / $I66 -> 1837.29421 | CF66: =SUMPRODUCT(CB67:CB$605, $I67:$I$605) / $I66 -> 1837.29421 | CH66: 37309.22381 | CI66: 0 | CK66: =NPV((1+CK$3)^(1/12)-1,$CB$6:$CB66)+$CB$5 -> -319.6833243 | CL66: =NPV((1+CL$3)^(1/12)-1,$CB$6:$CB66)+$CB$5 -> -341.8839388 | CM66: =NPV((1+CM$3)^(1/12)-1,$CB$6:$CB66)+$CB$5 -> -389.6049278 | CN66: =NPV((1+CN$3)^(1/12)-1,$CB$6:$CB66)+$CB$5 -> -389.6049278
A67: 5.166666667 | B67: 2 | C67: 6 | D67: 5.666666667 | E67: 5 | G67: =INDEX(Others!$D$11:$E$60, MATCH(C67, Others!$A$11:$A$60, 0), MATCH(G$3, Others!$D$10:$E$10, 0)) -> 0.04072110327 | H67: 0.003331691237 | I67: 0.8484091353 | K67: =INDEX(Mortality!$B$7:$F$32, MATCH( E67,Mortality!$A$7:$A$32, 0), MATCH( K$3,Mortality!$B$6:$F$6,0)) -> 0.338 | L67: 0 | M67: 0.338 | N67: =INDEX(Myopia!$H:$H, MATCH(E67, Myopia!$A:$A, 0)) * Trend_Factor^(A67) -> 6.094561437 | O67: 0 | P67: 6.094561437 | Q67: =VLOOKUP(C67,Others!$L$10:$M$61,2) -> 0 | R67: 0 | S67: 0 | T67: 2.816666667e-05 | U67: 0.0005078801197 | V67: 0 | W67: 0.98209839 | X67: 2.765541338e-05 | Y67: 0.0004987812233 | Z67: 0 | AA67: 0.9815719534 | AC67: 0 | AD67: 0 | AE67: 0 | AF67: 0 | AG67: =SUMPRODUCT(AE68:AE$605, $I67:$I$604) / $I67 -> 0 | AI67: -47000 | AJ67: =IF(E67>Mat_Year,0, -SUM($AD$5:AD67)) -> -9306 | AK67: -0.257361277 | AL67: -23.4427175 | AM67: -24.13208189 | AN67: -23.70007877 | AO67: -6925.256865 | AP67: =SUMPRODUCT(AN68:AN$605, $I68:$I$605) / $I67 -> -6801.283618 | AR67: 0 | AS67: 0 | AT67: 0 | AU67: -1.867963553 | AV67: 0 | AW67: -1.867963553 | AX67: -21.41931541 | AY67: 0 | AZ67: -21.41931541 | BA67: -1.834523998 | BB67: -0.01127591236 | BC67: -1.867963553 | BD67: -0.01148144878 | BE67: -1.834523998 | BF67: -0.01127591236 | BG67: -248.9157577 | BH67: =(SUMPRODUCT(BE68:BE$605,$I67:$I$604)+SUMPRODUCT(BF68:BF$605,$I68:$I$605)) / $I67 -> -244.4597649 | BJ67: -1.834523998 | BK67: -23.71135468 | BM67: 7178.020275 | BN67: 7045.743383 | BP67: =Reserve!BX67 -> 9688.29669 | BQ67: 9509.760307 | BR67: 7.53539088 | BT67: 32.28045065 | BU67: 31.70257861 | BV67: =SUMPRODUCT(BU68:BU$605, $I68:$I$605) / $I67 -> 2603.7809 | BX67: =-BZ67*Others!$Q$43 -> -3.505175247 | BZ67: 13.69209081 | CA67: 10.18691556 | CB67: 10.18691556 | CD67: =SUMPRODUCT(BZ68:BZ$605, $I68:$I$605) / $I67 -> 2464.016924 | CE67: =SUMPRODUCT(CA68:CA$605, $I68:$I$605) / $I67 -> 1833.228592 | CF67: =SUMPRODUCT(CB68:CB$605, $I68:$I$605) / $I67 -> 1833.228592 | CH67: 37311.70331 | CI67: 0 | CK67: =NPV((1+CK$3)^(1/12)-1,$CB$6:$CB67)+$CB$5 -> -310.9391855 | CL67: =NPV((1+CL$3)^(1/12)-1,$CB$6:$CB67)+$CB$5 -> -333.9668656 | CM67: =NPV((1+CM$3)^(1/12)-1,$CB$6:$CB67)+$CB$5 -> -383.379338 | CN67: =NPV((1+CN$3)^(1/12)-1,$CB$6:$CB67)+$CB$5 -> -383.379338
A68: 5.25 | B68: 3 | C68: 6 | D68: 5.75 | E68: 5 | G68: =INDEX(Others!$D$11:$E$60, MATCH(C68, Others!$A$11:$A$60, 0), MATCH(G$3, Others!$D$10:$E$10, 0)) -> 0.04072110327 | H68: 0.003331691237 | I68: 0.8455918842 | K68: =INDEX(Mortality!$B$7:$F$32, MATCH( E68,Mortality!$A$7:$A$32, 0), MATCH( K$3,Mortality!$B$6:$F$6,0)) -> 0.338 | L68: 0 | M68: 0.338 | N68: =INDEX(Myopia!$H:$H, MATCH(E68, Myopia!$A:$A, 0)) * Trend_Factor^(A68) -> 6.094561437 | O68: 0 | P68: 6.094561437 | Q68: =VLOOKUP(C68,Others!$L$10:$M$61,2) -> 0 | R68: 0 | S68: 0 | T68: 2.816666667e-05 | U68: 0.0005078801197 | V68: 0 | W68: 0.9815719534 | X68: 2.764058918e-05 | Y68: 0.0004985138604 | Z68: 0 | AA68: 0.9810457989 | AC68: 0 | AD68: 0 | AE68: 0 | AF68: 0 | AG68: =SUMPRODUCT(AE69:AE$605, $I68:$I$604) / $I68 -> 0 | AI68: -47000 | AJ68: =IF(E68>Mat_Year,0, -SUM($AD$5:AD68)) -> -9306 | AK68: -0.2572233229 | AL68: -23.43015144 | AM68: -24.13208189 | AN68: -23.68737476 | AO68: -6927.924129 | AP68: =SUMPRODUCT(AN69:AN$605, $I69:$I$605) / $I68 -> -6800.25602 | AR68: 0 | AS68: 0 | AT68: 0 | AU68: -1.87005212 | AV68: 0 | AW68: -1.87005212 | AX68: -21.44326431 | AY68: 0 | AZ68: -21.44326431 | BA68: -1.835590712 | BB68: -0.01128246893 | BC68: -1.87005212 | BD68: -0.01149428617 | BE68: -1.835590712 | BF68: -0.01128246893 | BG68: -247.9912346 | BH68: =(SUMPRODUCT(BE69:BE$605,$I68:$I$604)+SUMPRODUCT(BF69:BF$605,$I69:$I$605)) / $I68 -> -243.4212405 | BJ68: -1.835590712 | BK68: -23.69865723 | BM68: 7179.76395 | BN68: 7043.677261 | BP68: =Reserve!BX68 -> 9685.805008 | BQ68: 9502.218312 | BR68: 7.541994559 | BT68: 32.27218275 | BU68: 31.67746946 | BV68: =SUMPRODUCT(BU69:BU$605, $I69:$I$605) / $I68 -> 2580.778425 | BX68: =-BZ68*Others!$Q$43 -> -3.503415316 | BZ68: 13.68521608 | CA68: 10.18180076 | CB68: 10.18180076 | CD68: =SUMPRODUCT(BZ69:BZ$605, $I69:$I$605) / $I68 -> 2458.541052 | CE68: =SUMPRODUCT(CA69:CA$605, $I69:$I$605) / $I68 -> 1829.154542 | CF68: =SUMPRODUCT(CB69:CB$605, $I69:$I$605) / $I68 -> 1829.154542 | CH68: 37314.19499 | CI68: 0 | CK68: =NPV((1+CK$3)^(1/12)-1,$CB$6:$CB68)+$CB$5 -> -302.2209386 | CL68: =NPV((1+CL$3)^(1/12)-1,$CB$6:$CB68)+$CB$5 -> -326.0858756 | CM68: =NPV((1+CM$3)^(1/12)-1,$CB$6:$CB68)+$CB$5 -> -377.2061003 | CN68: =NPV((1+CN$3)^(1/12)-1,$CB$6:$CB68)+$CB$5 -> -377.2061003
A69: 5.333333333 | B69: 4 | C69: 6 | D69: 5.833333333 | E69: 5 | G69: =INDEX(Others!$D$11:$E$60, MATCH(C69, Others!$A$11:$A$60, 0), MATCH(G$3, Others!$D$10:$E$10, 0)) -> 0.04072110327 | H69: 0.003331691237 | I69: 0.8427839882 | K69: =INDEX(Mortality!$B$7:$F$32, MATCH( E69,Mortality!$A$7:$A$32, 0), MATCH( K$3,Mortality!$B$6:$F$6,0)) -> 0.338 | L69: 0 | M69: 0.338 | N69: =INDEX(Myopia!$H:$H, MATCH(E69, Myopia!$A:$A, 0)) * Trend_Factor^(A69) -> 6.094561437 | O69: 0 | P69: 6.094561437 | Q69: =VLOOKUP(C69,Others!$L$10:$M$61,2) -> 0 | R69: 0 | S69: 0 | T69: 2.816666667e-05 | U69: 0.0005078801197 | V69: 0 | W69: 0.9810457989 | X69: 2.762577293e-05 | Y69: 0.0004982466408 | Z69: 0 | AA69: 0.9805199265 | AC69: 0 | AD69: 0 | AE69: 0 | AF69: 0 | AG69: =SUMPRODUCT(AE70:AE$605, $I69:$I$604) / $I69 -> 0 | AI69: -47000 | AJ69: =IF(E69>Mat_Year,0, -SUM($AD$5:AD69)) -> -9306 | AK69: -0.2570854429 | AL69: -23.41759212 | AM69: -24.13208189 | AN69: -23.67467756 | AO69: -6930.601715 | AP69: =SUMPRODUCT(AN70:AN$605, $I70:$I$605) / $I69 -> -6799.237696 | AR69: 0 | AS69: 0 | AT69: 0 | AU69: -1.872143023 | AV69: 0 | AW69: -1.872143023 | AX69: -21.46723999 | AY69: 0 | AZ69: -21.46723999 | BA69: -1.836658047 | BB69: -0.01128902931 | BC69: -1.872143023 | BD69: -0.01150713792 | BE69: -1.836658047 | BF69: -0.01128902931 | BG69: -247.061023 | BH69: =(SUMPRODUCT(BE70:BE$605,$I69:$I$604)+SUMPRODUCT(BF70:BF$605,$I70:$I$605)) / $I69 -> -242.3781787 | BJ69: -1.836658047 | BK69: -23.68596659 | BM69: 7181.512261 | BN69: 7041.615875 | BP69: =Reserve!BX69 -> 9683.301101 | BQ69: 9494.669684 | BR69: 7.5486289 | BT69: 32.26387427 | BU69: 31.65233831 | BV69: =SUMPRODUCT(BU70:BU$605, $I70:$I$605) / $I69 -> 2557.724444 | BX69: =-BZ69*Others!$Q$43 -> -3.501655699 | BZ69: =SUM(BJ69,BK69,BR69,BU69) -> 13.67834257 | CA69: 10.17668688 | CB69: 10.17668688 | CD69: =SUMPRODUCT(BZ70:BZ$605, $I70:$I$605) / $I69 -> 2453.053809 | CE69: =SUMPRODUCT(CA70:CA$605, $I70:$I$605) / $I69 -> 1825.072034 | CF69: =SUMPRODUCT(CB70:CB$605, $I70:$I$605) / $I69 -> 1825.072034 | CH69: 37316.6989 | CI69: 0 | CK69: =NPV((1+CK$3)^(1/12)-1,$CB$6:$CB69)+$CB$5 -> -293.5285083 | CL69: =NPV((1+CL$3)^(1/12)-1,$CB$6:$CB69)+$CB$5 -> -318.2408057 | CM69: =NPV((1+CM$3)^(1/12)-1,$CB$6:$CB69)+$CB$5 -> -371.0847755 | CN69: =NPV((1+CN$3)^(1/12)-1,$CB$6:$CB69)+$CB$5 -> -371.0847755
A70: =A69+1/12 -> 5.416666667 | B70: 5 | C70: 6 | D70: 5.916666667 | E70: =INT(D70+0.001) -> 5 | G70: =INDEX(Others!$D$11:$E$60, MATCH(C70, Others!$A$11:$A$60, 0), MATCH(G$3, Others!$D$10:$E$10, 0)) -> 0.04072110327 | H70: 0.003331691237 | I70: 0.8399854161 | K70: =INDEX(Mortality!$B$7:$F$32, MATCH( E70,Mortality!$A$7:$A$32, 0), MATCH( K$3,Mortality!$B$6:$F$6,0)) -> 0.338 | L70: =PAD_Mort -> 0 | M70: 0.338 | N70: =INDEX(Myopia!$H:$H, MATCH(E70, Myopia!$A:$A, 0)) * Trend_Factor^(A70) -> 6.094561437 | O70: =PAD_Incid -> 0 | P70: 6.094561437 | Q70: =VLOOKUP(C70,Others!$L$10:$M$61,2) -> 0 | R70: =PAD_Laspe -> 0 | S70: 0 | T70: 2.816666667e-05 | U70: 0.0005078801197 | V70: 0 | W70: =IF(E70>Mat_Year, 0, AA69) -> 0.9805199265 | X70: 2.761096462e-05 | Y70: 0.0004979795644 | Z70: 0 | AA70: 0.979994336 | AC70: =IF(C70>Prem_Term,0,Ann_Prem) -> 0 | AD70: =IF(Prem_Mode="Mth",AC70/12, IF(B70=1, AC70, 0)) -> 0 | AE70: 0 | AF70: 0 | AG70: =SUMPRODUCT(AE71:AE$605, $I70:$I$604) / $I70 -> 0 | AI70: =IF(E70>Mat_Year,0, -Sum_Assured) -> -47000 | AJ70: =IF(E70>Mat_Year,0, -SUM($AD$5:AD70)) -> -9306 | AK70: -0.2569476367 | AL70: -23.40503953 | AM70: -24.13208189 | AN70: -23.66198716 | AO70: -6933.289662 | AP70: =SUMPRODUCT(AN71:AN$605, $I71:$I$605) / $I70 -> -6798.22867 | AR70: 0 | AS70: 0 | AT70: 0 | AU70: =IF(E70>Mat_Year,0, -Exp_Main/12 * (1+Exp_Main_Infl)^(A69)) -> -1.874236263 | AV70: =PAD_Exp_Main -> 0 | AW70: -1.874236263 | AX70: =IF(E70>Mat_Year,0, -Exp_Claim* (1+Exp_Main_Infl)^(A69)) -> -21.49124248 | AY70: =PAD_Exp_Claim -> 0 | AZ70: -21.49124248 | BA70: -1.837726003 | BB70: -0.0112955935 | BC70: -1.874236263 | BD70: -0.01152000403 | BE70: -1.837726003 | BF70: -0.0112955935 | BG70: -246.1250986 | BH70: =(SUMPRODUCT(BE71:BE$605,$I70:$I$604)+SUMPRODUCT(BF71:BF$605,$I71:$I$605)) / $I70 -> -241.3305636 | BJ70: -1.837726003 | BK70: -23.67328276 | BM70: 7183.265224 | BN70: 7039.559233 | BP70: =Reserve!BX70 -> 9680.78492 | BQ70: =BP70*AA70 -> 9487.11439 | BR70: 7.555293984 | BT70: 32.25552505 | BU70: =SUM(BJ70,BQ69)*H70 -> 31.62718505 | BV70: =SUMPRODUCT(BU71:BU$605, $I71:$I$605) / $I70 -> 2534.618807 | BX70: =-BZ70*Others!$Q$43 -> -3.499896391 | BZ70: 13.67147028 | CA70: 10.17157389 | CB70: =CA70 -> 10.17157389 | CD70: =SUMPRODUCT(BZ71:BZ$605, $I71:$I$605) / $I70 -> 2447.555156 | CE70: =SUMPRODUCT(CA71:CA$605, $I71:$I$605) / $I70 -> 1820.981036 | CF70: =SUMPRODUCT(CB71:CB$605, $I71:$I$605) / $I70 -> 1820.981036 | CH70: =IF(E71>Mat_Year, 0, MAX(0, -AI70-$BP70)) -> 37319.21508 | CI70: =IF(E71>Mat_Year, 0, MAX(0, -AJ70-$BP70)) -> 0 | CK70: =NPV((1+CK$3)^(1/12)-1,$CB$6:$CB70)+$CB$5 -> -284.8618198 | CL70: =NPV((1+CL$3)^(1/12)-1,$CB$6:$CB70)+$CB$5 -> -310.4314935 | CM70: =NPV((1+CM$3)^(1/12)-1,$CB$6:$CB70)+$CB$5 -> -365.014928 | CN70: =NPV((1+CN$3)^(1/12)-1,$CB$6:$CB70)+$CB$5 -> -365.014928
A71: 5.5 | B71: =IF(B70=12,1,B70+1) -> 6 | C71: =IF(B70=12,C70+1,C70) -> 6 | D71: =$D$5+A71 -> 6 | E71: 6 | G71: =INDEX(Others!$D$11:$E$60, MATCH(C71, Others!$A$11:$A$60, 0), MATCH(G$3, Others!$D$10:$E$10, 0)) -> 0.04072110327 | H71: 0.003331691237 | I71: 0.8371961371 | K71: =INDEX(Mortality!$B$7:$F$32, MATCH( E71,Mortality!$A$7:$A$32, 0), MATCH( K$3,Mortality!$B$6:$F$6,0)) -> 0.341 | L71: 0 | M71: =IFERROR( K71*(1+L71), 0) -> 0.341 | N71: =INDEX(Myopia!$H:$H, MATCH(E71, Myopia!$A:$A, 0)) * Trend_Factor^(A71) -> 6.057642761 | O71: 0 | P71: =IFERROR( N71*(1+O71), 0) -> 6.057642761 | Q71: =VLOOKUP(C71,Others!$L$10:$M$61,2) -> 0 | R71: 0 | S71: =IFERROR( Q71*(1+R71), 0) -> 0 | T71: =(M71/1000)/12 -> 2.841666667e-05 | U71: =(P71/1000)/12 -> 0.0005048035634 | V71: =(S71/1000)/12 -> 0 | W71: 0.979994336 | X71: =W71 * (T71)*(1-U71/2) -> 2.784114345e-05 | Y71: =W71 * (1-T71/2)*(U71) -> 0.000494697604 | Z71: =W71 * (1-T71)*(1-U71)*(V71) -> 0 | AA71: =W71-SUM(X71:Z71) -> 0.9794717972 | AC71: 0 | AD71: 0 | AE71: =AD71*$W71 -> 0 | AF71: =IF($W71 = 0, 0, AG71/$W71) -> 0 | AG71: =SUMPRODUCT(AE72:AE$605, $I71:$I$604) / $I71 -> 0 | AI71: -47000 | AJ71: =IF(E71>Mat_Year,0, -SUM($AD$5:AD71)) -> -9306 | AK71: =AJ71*X71 -> -0.259089681 | AL71: =AI71*Y71 -> -23.25078739 | AM71: =IF($W71 = 0, 0, AN71/$W71) -> -23.98980913 | AN71: =SUM(AK71:AL71) -> -23.50987707 | AO71: =IF($W71 = 0, 0, AP71/$W71) -> -6936.130283 | AP71: =SUMPRODUCT(AN72:AN$605, $I72:$I$605) / $I71 -> -6797.368391 | AR71: 0 | AS71: 0 | AT71: 0 | AU71: -1.876331844 | AV71: 0 | AW71: -1.876331844 | AX71: -21.51527181 | AY71: 0 | AZ71: -21.51527181 | BA71: -1.838794579 | BB71: -0.01124256318 | BC71: -1.876331844 | BD71: -0.01147206955 | BE71: -1.838794579 | BF71: -0.01124256318 | BG71: =IF($W71 = 0, 0, BH71/$W71) -> -245.1834978 | BH71: =(SUMPRODUCT(BE72:BE$605,$I71:$I$604)+SUMPRODUCT(BF72:BF$605,$I72:$I$605)) / $I71 -> -240.2784391 | BJ71: -1.838794579 | BK71: -23.52111963 | BM71: =IF($W71 = 0, 0, BN71/$AA71) -> 7185.144943 | BN71: 7037.64683 | BP71: =Reserve!BX71 -> 9678.405992 | BQ71: 9479.725711 | BR71: =BQ70-BQ71 -> 7.388678136 | BT71: =IF($W71 = 0, 0, BU71/$W71) -> 32.24713493 | BU71: 31.60200958 | BV71: =SUMPRODUCT(BU72:BU$605, $I72:$I$605) / $I71 -> 2511.461364 | BX71: =-BZ71*Others!$Q$43 -> -3.489478018 | BZ71: 13.63077351 | CA71: =BZ71+BX71 -> 10.14129549 | CB71: 10.14129549 | CD71: =SUMPRODUCT(BZ72:BZ$605, $I72:$I$605) / $I71 -> 2442.078881 | CE71: =SUMPRODUCT(CA72:CA$605, $I72:$I$605) / $I71 -> 1816.906687 | CF71: =SUMPRODUCT(CB72:CB$605, $I72:$I$605) / $I71 -> 1816.906687 | CH71: 37321.59401 | CI71: 0 | CK71: =NPV((1+CK$3)^(1/12)-1,$CB$6:$CB71)+$CB$5 -> -276.2421882 | CL71: =NPV((1+CL$3)^(1/12)-1,$CB$6:$CB71)+$CB$5 -> -302.6770204 | CM71: =NPV((1+CM$3)^(1/12)-1,$CB$6:$CB71)+$CB$5 -> -359.011025 | CN71: =NPV((1+CN$3)^(1/12)-1,$CB$6:$CB71)+$CB$5 -> -359.011025
A72: 5.583333333 | B72: 7 | C72: 6 | D72: 6.083333333 | E72: 6 | G72: =INDEX(Others!$D$11:$E$60, MATCH(C72, Others!$A$11:$A$60, 0), MATCH(G$3, Others!$D$10:$E$10, 0)) -> 0.04072110327 | H72: 0.003331691237 | I72: 0.8344161202 | K72: =INDEX(Mortality!$B$7:$F$32, MATCH( E72,Mortality!$A$7:$A$32, 0), MATCH( K$3,Mortality!$B$6:$F$6,0)) -> 0.341 | L72: 0 | M72: 0.341 | N72: =INDEX(Myopia!$H:$H, MATCH(E72, Myopia!$A:$A, 0)) * Trend_Factor^(A72) -> 6.057642761 | O72: 0 | P72: 6.057642761 | Q72: =VLOOKUP(C72,Others!$L$10:$M$61,2) -> 0 | R72: 0 | S72: 0 | T72: 2.841666667e-05 | U72: 0.0005048035634 | V72: 0 | W72: 0.9794717972 | X72: 2.782629839e-05 | Y72: 0.0004944338283 | Z72: 0 | AA72: 0.9789495371 | AC72: 0 | AD72: 0 | AE72: 0 | AF72: 0 | AG72: =SUMPRODUCT(AE73:AE$605, $I72:$I$604) / $I72 -> 0 | AI72: -47000 | AJ72: =IF(E72>Mat_Year,0, -SUM($AD$5:AD72)) -> -9306 | AK72: -0.2589515328 | AL72: -23.23838993 | AM72: -23.98980913 | AN72: -23.49734146 | AO72: -6938.962206 | AP72: =SUMPRODUCT(AN73:AN$605, $I73:$I$605) / $I72 -> -6796.517783 | AR72: 0 | AS72: 0 | AT72: 0 | AU72: -1.878429768 | AV72: 0 | AW72: -1.878429768 | AX72: -21.539328 | AY72: 0 | AZ72: -21.539328 | BA72: -1.83986898 | BB72: -0.01124913217 | BC72: -1.878429768 | BD72: -0.01148489645 | BE72: -1.83986898 | BF72: -0.01124913217 | BG72: -244.2354393 | BH72: =(SUMPRODUCT(BE73:BE$605,$I72:$I$604)+SUMPRODUCT(BF73:BF$605,$I73:$I$605)) / $I72 -> -239.2217247 | BJ72: -1.83986898 | BK72: -23.5085906 | BM72: 7187.029812 | BN72: 7035.739507 | BP72: =Reserve!BX72 -> 9676.015184 | BQ72: 9472.330586 | BR72: 7.395125771 | BT72: 32.23920209 | BU72: 31.57738921 | BV72: =SUMPRODUCT(BU73:BU$605, $I73:$I$605) / $I72 -> 2488.251389 | BX72: =-BZ72*Others!$Q$43 -> -3.487758183 | BZ72: 13.6240554 | CA72: 10.13629722 | CB72: 10.13629722 | CD72: =SUMPRODUCT(BZ73:BZ$605, $I73:$I$605) / $I72 -> 2436.591078 | CE72: =SUMPRODUCT(CA73:CA$605, $I73:$I$605) / $I72 -> 1812.823762 | CF72: =SUMPRODUCT(CB73:CB$605, $I73:$I$605) / $I72 -> 1812.823762 | CH72: 37323.98482 | CI72: 0 | CK72: =NPV((1+CK$3)^(1/12)-1,$CB$6:$CB72)+$CB$5 -> -267.6480006 | CL72: =NPV((1+CL$3)^(1/12)-1,$CB$6:$CB72)+$CB$5 -> -294.9578182 | CM72: =NPV((1+CM$3)^(1/12)-1,$CB$6:$CB72)+$CB$5 -> -353.0575549 | CN72: =NPV((1+CN$3)^(1/12)-1,$CB$6:$CB72)+$CB$5 -> -353.0575549
A73: 5.666666667 | B73: 8 | C73: 6 | D73: 6.166666667 | E73: 6 | G73: =INDEX(Others!$D$11:$E$60, MATCH(C73, Others!$A$11:$A$60, 0), MATCH(G$3, Others!$D$10:$E$10, 0)) -> 0.04072110327 | H73: 0.003331691237 | I73: 0.8316453348 | K73: =INDEX(Mortality!$B$7:$F$32, MATCH( E73,Mortality!$A$7:$A$32, 0), MATCH( K$3,Mortality!$B$6:$F$6,0)) -> 0.341 | L73: 0 | M73: 0.341 | N73: =INDEX(Myopia!$H:$H, MATCH(E73, Myopia!$A:$A, 0)) * Trend_Factor^(A73) -> 6.057642761 | O73: 0 | P73: 6.057642761 | Q73: =VLOOKUP(C73,Others!$L$10:$M$61,2) -> 0 | R73: 0 | S73: 0 | T73: 2.841666667e-05 | U73: 0.0005048035634 | V73: 0 | W73: 0.9789495371 | X73: 2.781146124e-05 | Y73: 0.0004941701933 | Z73: 0 | AA73: 0.9784275555 | AC73: 0 | AD73: 0 | AE73: 0 | AF73: 0 | AG73: =SUMPRODUCT(AE74:AE$605, $I73:$I$604) / $I73 -> 0 | AI73: -47000 | AJ73: =IF(E73>Mat_Year,0, -SUM($AD$5:AD73)) -> -9306 | AK73: -0.2588134583 | AL73: -23.22599908 | AM73: -23.98980913 | AN73: -23.48481254 | AO73: -6941.805079 | AP73: =SUMPRODUCT(AN74:AN$605, $I74:$I$605) / $I73 -> -6795.676869 | AR73: 0 | AS73: 0 | AT73: 0 | AU73: -1.880530037 | AV73: 0 | AW73: -1.880530037 | AX73: -21.56341109 | AY73: 0 | AZ73: -21.56341109 | BA73: -1.840944009 | BB73: -0.011255705 | BC73: -1.880530037 | BD73: -0.0114977377 | BE73: -1.840944009 | BF73: -0.011255705 | BG73: -243.2815946 | BH73: =(SUMPRODUCT(BE74:BE$605,$I73:$I$604)+SUMPRODUCT(BF74:BF$605,$I74:$I$605)) / $I73 -> -238.1604044 | BJ73: -1.840944009 | BK73: -23.49606825 | BM73: 7188.919848 | BN73: 7033.837273 | BP73: =Reserve!BX73 -> 9673.61245 | BQ73: 9464.928982 | BR73: 7.401603522 | BT73: 32.23122966 | BU73: 31.55274735 | BV73: =SUMPRODUCT(BU74:BU$605, $I74:$I$605) / $I73 -> 2464.988727 | BX73: =-BZ73*Others!$Q$43 -> -3.486038686 | BZ73: 13.61733862 | CA73: 10.13129993 | CB73: 10.13129993 | CD73: =SUMPRODUCT(BZ74:BZ$605, $I74:$I$605) / $I73 -> 2431.091709 | CE73: =SUMPRODUCT(CA74:CA$605, $I74:$I$605) / $I73 -> 1808.732231 | CF73: =SUMPRODUCT(CB74:CB$605, $I74:$I$605) / $I73 -> 1808.732231 | CH73: 37326.38755 | CI73: 0 | CK73: =NPV((1+CK$3)^(1/12)-1,$CB$6:$CB73)+$CB$5 -> -259.079183 | CL73: =NPV((1+CL$3)^(1/12)-1,$CB$6:$CB73)+$CB$5 -> -287.2737276 | CM73: =NPV((1+CM$3)^(1/12)-1,$CB$6:$CB73)+$CB$5 -> -347.1540949 | CN73: =NPV((1+CN$3)^(1/12)-1,$CB$6:$CB73)+$CB$5 -> -347.1540949
A74: 5.75 | B74: 9 | C74: 6 | D74: 6.25 | E74: 6 | G74: =INDEX(Others!$D$11:$E$60, MATCH(C74, Others!$A$11:$A$60, 0), MATCH(G$3, Others!$D$10:$E$10, 0)) -> 0.04072110327 | H74: =(1+G74)^(1/12) - 1 -> 0.003331691237 | I74: =I73/(1+H74) -> 0.82888375 | K74: =INDEX(Mortality!$B$7:$F$32, MATCH( E74,Mortality!$A$7:$A$32, 0), MATCH( K$3,Mortality!$B$6:$F$6,0)) -> 0.341 | L74: 0 | M74: 0.341 | N74: =INDEX(Myopia!$H:$H, MATCH(E74, Myopia!$A:$A, 0)) * Trend_Factor^(A74) -> 6.057642761 | O74: 0 | P74: 6.057642761 | Q74: =VLOOKUP(C74,Others!$L$10:$M$61,2) -> 0 | R74: 0 | S74: 0 | T74: 2.841666667e-05 | U74: 0.0005048035634 | V74: 0 | W74: 0.9784275555 | X74: 2.779663201e-05 | Y74: 0.0004939066988 | Z74: 0 | AA74: 0.9779058521 | AC74: 0 | AD74: 0 | AE74: 0 | AF74: 0 | AG74: =SUMPRODUCT(AE75:AE$605, $I74:$I$604) / $I74 -> 0 | AI74: -47000 | AJ74: =IF(E74>Mat_Year,0, -SUM($AD$5:AD74)) -> -9306 | AK74: -0.2586754575 | AL74: -23.21361485 | AM74: -23.98980913 | AN74: -23.4722903 | AO74: -6944.658946 | AP74: =SUMPRODUCT(AN75:AN$605, $I75:$I$605) / $I74 -> -6794.845676 | AR74: 0 | AS74: 0 | AT74: 0 | AU74: -1.882632655 | AV74: 0 | AW74: -1.882632655 | AX74: -21.58752111 | AY74: 0 | AZ74: -21.58752111 | BA74: -1.842019666 | BB74: -0.01126228167 | BC74: -1.882632655 | BD74: -0.0115105933 | BE74: -1.842019666 | BF74: -0.01126228167 | BG74: -242.321939 | BH74: =(SUMPRODUCT(BE75:BE$605,$I74:$I$604)+SUMPRODUCT(BF75:BF$605,$I75:$I$605)) / $I74 -> -237.0944624 | BJ74: -1.842019666 | BK74: -23.48355258 | BM74: 7190.815069 | BN74: 7031.940138 | BP74: =Reserve!BX74 -> 9671.197744 | BQ74: 9457.520871 | BR74: 7.40811147 | BT74: 32.22321748 | BU74: 31.52808391 | BV74: =SUMPRODUCT(BU75:BU$605, $I75:$I$605) / $I74 -> 2441.673224 | BX74: =-BZ74*Others!$Q$43 -> -3.484319521 | BZ74: 13.61062313 | CA74: 10.12630361 | CB74: 10.12630361 | CD74: =SUMPRODUCT(BZ75:BZ$605, $I75:$I$605) / $I74 -> 2425.580733 | CE74: =SUMPRODUCT(CA75:CA$605, $I75:$I$605) / $I74 -> 1804.632065 | CF74: =SUMPRODUCT(CB75:CB$605, $I75:$I$605) / $I74 -> 1804.632065 | CH74: 37328.80226 | CI74: 0 | CK74: =NPV((1+CK$3)^(1/12)-1,$CB$6:$CB74)+$CB$5 -> -250.5356617 | CL74: =NPV((1+CL$3)^(1/12)-1,$CB$6:$CB74)+$CB$5 -> -279.6245899 | CM74: =NPV((1+CM$3)^(1/12)-1,$CB$6:$CB74)+$CB$5 -> -341.3002258 | CN74: =NPV((1+CN$3)^(1/12)-1,$CB$6:$CB74)+$CB$5 -> -341.3002258
A75: 5.833333333 | B75: 10 | C75: 6 | D75: 6.333333333 | E75: 6 | G75: =INDEX(Others!$D$11:$E$60, MATCH(C75, Others!$A$11:$A$60, 0), MATCH(G$3, Others!$D$10:$E$10, 0)) -> 0.04072110327 | H75: 0.003331691237 | I75: 0.8261313355 | K75: =INDEX(Mortality!$B$7:$F$32, MATCH( E75,Mortality!$A$7:$A$32, 0), MATCH( K$3,Mortality!$B$6:$F$6,0)) -> 0.341 | L75: 0 | M75: 0.341 | N75: =INDEX(Myopia!$H:$H, MATCH(E75, Myopia!$A:$A, 0)) * Trend_Factor^(A75) -> 6.057642761 | O75: 0 | P75: 6.057642761 | Q75: =VLOOKUP(C75,Others!$L$10:$M$61,2) -> 0 | R75: 0 | S75: 0 | T75: 2.841666667e-05 | U75: 0.0005048035634 | V75: 0 | W75: 0.9779058521 | X75: 2.778181068e-05 | Y75: 0.0004936433449 | Z75: 0 | AA75: 0.977384427 | AC75: 0 | AD75: 0 | AE75: 0 | AF75: 0 | AG75: =SUMPRODUCT(AE76:AE$605, $I75:$I$604) / $I75 -> 0 | AI75: -47000 | AJ75: =IF(E75>Mat_Year,0, -SUM($AD$5:AD75)) -> -9306 | AK75: -0.2585375302 | AL75: -23.20123721 | AM75: -23.98980913 | AN75: -23.45977474 | AO75: -6947.523848 | AP75: =SUMPRODUCT(AN76:AN$605, $I76:$I$605) / $I75 -> -6794.024229 | AR75: 0 | AS75: 0 | AT75: 0 | AU75: -1.884737624 | AV75: 0 | AW75: -1.884737624 | AX75: -21.61165809 | AY75: 0 | AZ75: -21.61165809 | BA75: -1.843095952 | BB75: -0.01126886218 | BC75: -1.884737624 | BD75: -0.01152346328 | BE75: -1.843095952 | BF75: -0.01126886218 | BG75: -241.3564475 | BH75: =(SUMPRODUCT(BE76:BE$605,$I75:$I$604)+SUMPRODUCT(BF76:BF$605,$I76:$I$605)) / $I75 -> -236.0238825 | BJ75: -1.843095952 | BK75: -23.4710436 | BM75: 7192.715494 | BN75: 7030.048111 | BP75: =Reserve!BX75 -> 9668.771018 | BQ75: 9450.106221 | BR75: 7.414649699 | BT75: 32.21516541 | BU75: 31.50339878 | BV75: =SUMPRODUCT(BU76:BU$605, $I76:$I$605) / $I75 -> 2418.304727 | BX75: =-BZ75*Others!$Q$43 -> -3.482600686 | BZ75: 13.60390893 | CA75: 10.12130824 | CB75: 10.12130824 | CD75: =SUMPRODUCT(BZ76:BZ$605, $I76:$I$605) / $I75 -> 2420.05811 | CE75: =SUMPRODUCT(CA76:CA$605, $I76:$I$605) / $I75 -> 1800.523234 | CF75: =SUMPRODUCT(CB76:CB$605, $I76:$I$605) / $I75 -> 1800.523234 | CH75: 37331.22898 | CI75: 0 | CK75: =NPV((1+CK$3)^(1/12)-1,$CB$6:$CB75)+$CB$5 -> -242.0173635 | CL75: =NPV((1+CL$3)^(1/12)-1,$CB$6:$CB75)+$CB$5 -> -272.0102475 | CM75: =NPV((1+CM$3)^(1/12)-1,$CB$6:$CB75)+$CB$5 -> -335.4955319 | CN75: =NPV((1+CN$3)^(1/12)-1,$CB$6:$CB75)+$CB$5 -> -335.4955319
A76: 5.916666667 | B76: 11 | C76: 6 | D76: 6.416666667 | E76: 6 | G76: =INDEX(Others!$D$11:$E$60, MATCH(C76, Others!$A$11:$A$60, 0), MATCH(G$3, Others!$D$10:$E$10, 0)) -> 0.04072110327 | H76: 0.003331691237 | I76: 0.8233880607 | K76: =INDEX(Mortality!$B$7:$F$32, MATCH( E76,Mortality!$A$7:$A$32, 0), MATCH( K$3,Mortality!$B$6:$F$6,0)) -> 0.341 | L76: 0 | M76: 0.341 | N76: =INDEX(Myopia!$H:$H, MATCH(E76, Myopia!$A:$A, 0)) * Trend_Factor^(A76) -> 6.057642761 | O76: 0 | P76: 6.057642761 | Q76: =VLOOKUP(C76,Others!$L$10:$M$61,2) -> 0 | R76: 0 | S76: 0 | T76: 2.841666667e-05 | U76: 0.0005048035634 | V76: 0 | W76: 0.977384427 | X76: 2.776699726e-05 | Y76: 0.0004933801313 | Z76: 0 | AA76: 0.9768632798 | AC76: 0 | AD76: 0 | AE76: 0 | AF76: 0 | AG76: =SUMPRODUCT(AE77:AE$605, $I76:$I$604) / $I76 -> 0 | AI76: -47000 | AJ76: =IF(E76>Mat_Year,0, -SUM($AD$5:AD76)) -> -9306 | AK76: -0.2583996765 | AL76: -23.18886617 | AM76: -23.98980913 | AN76: -23.44726585 | AO76: -6950.399829 | AP76: =SUMPRODUCT(AN77:AN$605, $I77:$I$605) / $I76 -> -6793.212554 | AR76: 0 | AS76: 0 | AT76: 0 | AU76: -1.886844946 | AV76: 0 | AW76: =AU76*(1+AV76) -> -1.886844946 | AX76: -21.63582205 | AY76: 0 | AZ76: =AX76*(1+AY76) -> -21.63582205 | BA76: =AW76*$W76 -> -1.844172866 | BB76: =AZ76*SUM(X76:Y76) -> -0.01127544654 | BC76: =IF($W76 = 0, 0, BE76/$W76) -> -1.886844946 | BD76: =IF($W76 = 0, 0, BF76/$W76) -> -0.01153634765 | BE76: =SUM(AT76,BA76) -> -1.844172866 | BF76: =SUM(BB76) -> -0.01127544654 | BG76: -240.3850953 | BH76: =(SUMPRODUCT(BE77:BE$605,$I76:$I$604)+SUMPRODUCT(BF77:BF$605,$I77:$I$605)) / $I76 -> -234.9486486 | BJ76: -1.844172866 | BK76: -23.4585413 | BM76: 7194.621138 | BN76: 7028.161202 | BP76: =Reserve!BX76 -> 9666.332226 | BQ76: 9442.685003 | BR76: 7.421218289 | BT76: 32.20707329 | BU76: 31.47869187 | BV76: =SUMPRODUCT(BU77:BU$605, $I77:$I$605) / $I76 -> 2394.88308 | BX76: =-BZ76*Others!$Q$43 -> -3.480882176 | BZ76: 13.597196 | CA76: 10.11631382 | CB76: 10.11631382 | CD76: =SUMPRODUCT(BZ77:BZ$605, $I77:$I$605) / $I76 -> 2414.5238 | CE76: =SUMPRODUCT(CA77:CA$605, $I77:$I$605) / $I76 -> 1796.405707 | CF76: =SUMPRODUCT(CB77:CB$605, $I77:$I$605) / $I76 -> 1796.405707 | CH76: 37333.66777 | CI76: 0 | CK76: =NPV((1+CK$3)^(1/12)-1,$CB$6:$CB76)+$CB$5 -> -233.5242151 | CL76: =NPV((1+CL$3)^(1/12)-1,$CB$6:$CB76)+$CB$5 -> -264.430543 | CM76: =NPV((1+CM$3)^(1/12)-1,$CB$6:$CB76)+$CB$5 -> -329.739601 | CN76: =NPV((1+CN$3)^(1/12)-1,$CB$6:$CB76)+$CB$5 -> -329.739601
A77: 6 | B77: 12 | C77: 6 | D77: 6.5 | E77: 6 | G77: =INDEX(Others!$D$11:$E$60, MATCH(C77, Others!$A$11:$A$60, 0), MATCH(G$3, Others!$D$10:$E$10, 0)) -> 0.04072110327 | H77: 0.003331691237 | I77: 0.8206538953 | K77: =INDEX(Mortality!$B$7:$F$32, MATCH( E77,Mortality!$A$7:$A$32, 0), MATCH( K$3,Mortality!$B$6:$F$6,0)) -> 0.341 | L77: 0 | M77: 0.341 | N77: =INDEX(Myopia!$H:$H, MATCH(E77, Myopia!$A:$A, 0)) * Trend_Factor^(A77) -> 6.057642761 | O77: 0 | P77: 6.057642761 | Q77: =VLOOKUP(C77,Others!$L$10:$M$61,2) -> 0 | R77: 0 | S77: 0 | T77: 2.841666667e-05 | U77: 0.0005048035634 | V77: 0 | W77: 0.9768632798 | X77: 2.775219173e-05 | Y77: 0.0004931170582 | Z77: 0 | AA77: 0.9763424106 | AC77: 0 | AD77: 0 | AE77: 0 | AF77: 0 | AG77: =SUMPRODUCT(AE78:AE$605, $I77:$I$604) / $I77 -> 0 | AI77: -47000 | AJ77: =IF(E77>Mat_Year,0, -SUM($AD$5:AD77)) -> -9306 | AK77: -0.2582618962 | AL77: -23.17650173 | AM77: -23.98980913 | AN77: -23.43476363 | AO77: -6953.286931 | AP77: =SUMPRODUCT(AN78:AN$605, $I78:$I$605) / $I77 -> -6792.410677 | AR77: 0 | AS77: 0 | AT77: 0 | AU77: -1.888954625 | AV77: 0 | AW77: -1.888954625 | AX77: -21.66001303 | AY77: 0 | AZ77: -21.66001303 | BA77: -1.84525041 | BB77: -0.01128203474 | BC77: -1.888954625 | BD77: -0.01154924642 | BE77: -1.84525041 | BF77: -0.01128203474 | BG77: -239.4078573 | BH77: =(SUMPRODUCT(BE78:BE$605,$I77:$I$604)+SUMPRODUCT(BF78:BF$605,$I78:$I$605)) / $I77 -> -233.8687447 | BJ77: -1.84525041 | BK77: -23.44604566 | BM77: 7196.532021 | BN77: 7026.279422 | BP77: =Reserve!BX77 -> 9663.881322 | BQ77: 9435.257185 | BR77: 7.427817323 | BT77: 32.19894096 | BU77: 31.45396308 | BV77: =SUMPRODUCT(BU78:BU$605, $I78:$I$605) / $I77 -> 2371.408127 | BX77: =-BZ77*Others!$Q$43 -> -3.479163987 | BZ77: 13.59048432 | CA77: 10.11132034 | CB77: 10.11132034 | CD77: =SUMPRODUCT(BZ78:BZ$605, $I78:$I$605) / $I77 -> 2408.977764 | CE77: =SUMPRODUCT(CA78:CA$605, $I78:$I$605) / $I77 -> 1792.279456 | CF77: =SUMPRODUCT(CB78:CB$605, $I78:$I$605) / $I77 -> 1792.279456 | CH77: 37336.11868 | CI77: 0 | CK77: =NPV((1+CK$3)^(1/12)-1,$CB$6:$CB77)+$CB$5 -> -225.0561435 | CL77: =NPV((1+CL$3)^(1/12)-1,$CB$6:$CB77)+$CB$5 -> -256.8853201 | CM77: =NPV((1+CM$3)^(1/12)-1,$CB$6:$CB77)+$CB$5 -> -324.0320243 | CN77: =NPV((1+CN$3)^(1/12)-1,$CB$6:$CB77)+$CB$5 -> -324.0320243
A78: 6.083333333 | B78: 1 | C78: 7 | D78: 6.583333333 | E78: 6 | G78: =INDEX(Others!$D$11:$E$60, MATCH(C78, Others!$A$11:$A$60, 0), MATCH(G$3, Others!$D$10:$E$10, 0)) -> 0.04361314155 | H78: 0.003563740637 | I78: 0.8177396832 | K78: =INDEX(Mortality!$B$7:$F$32, MATCH( E78,Mortality!$A$7:$A$32, 0), MATCH( K$3,Mortality!$B$6:$F$6,0)) -> 0.341 | L78: 0 | M78: 0.341 | N78: =INDEX(Myopia!$H:$H, MATCH(E78, Myopia!$A:$A, 0)) * Trend_Factor^(A78) -> 6.057642761 | O78: 0 | P78: 6.057642761 | Q78: =VLOOKUP(C78,Others!$L$10:$M$61,2) -> 0 | R78: 0 | S78: 0 | T78: 2.841666667e-05 | U78: 0.0005048035634 | V78: 0 | W78: 0.9763424106 | X78: 2.77373941e-05 | Y78: 0.0004928541252 | Z78: 0 | AA78: 0.9758218191 | AC78: 0 | AD78: 0 | AE78: 0 | AF78: 0 | AG78: =SUMPRODUCT(AE79:AE$605, $I78:$I$604) / $I78 -> 0 | AI78: -47000 | AJ78: =IF(E78>Mat_Year,0, -SUM($AD$5:AD78)) -> -9306 | AK78: -0.2581241895 | AL78: -23.16414389 | AM78: -23.98980913 | AN78: -23.42226808 | AO78: -6957.799564 | AP78: =SUMPRODUCT(AN79:AN$605, $I79:$I$605) / $I78 -> -6793.194799 | AR78: 0 | AS78: 0 | AT78: 0 | AU78: -1.891066662 | AV78: 0 | AW78: -1.891066662 | AX78: -21.68423106 | AY78: 0 | AZ78: -21.68423106 | BA78: -1.846328583 | BB78: -0.01128862679 | BC78: -1.891066662 | BD78: -0.01156215962 | BE78: -1.846328583 | BF78: -0.01128862679 | BG78: -238.4798537 | BH78: =(SUMPRODUCT(BE79:BE$605,$I78:$I$604)+SUMPRODUCT(BF79:BF$605,$I79:$I$605)) / $I78 -> -232.8379952 | BJ78: -1.846328583 | BK78: -23.4335567 | BM78: 7200.118563 | BN78: 7026.032794 | BP78: =Reserve!BX78 -> 9663.11666 | BQ78: 9429.480077 | BR78: 5.777108218 | BT78: 34.43282731 | BU78: 33.61822962 | BV78: =SUMPRODUCT(BU79:BU$605, $I79:$I$605) / $I78 -> 2346.240981 | BX78: =-BZ78*Others!$Q$43 -> -3.613555852 | BZ78: 14.11545255 | CA78: 10.5018967 | CB78: 10.5018967 | CD78: =SUMPRODUCT(BZ79:BZ$605, $I79:$I$605) / $I78 -> 2403.447283 | CE78: =SUMPRODUCT(CA79:CA$605, $I79:$I$605) / $I78 -> 1788.164779 | CF78: =SUMPRODUCT(CB79:CB$605, $I79:$I$605) / $I78 -> 1788.164779 | CH78: 37336.88334 | CI78: 0 | CK78: =NPV((1+CK$3)^(1/12)-1,$CB$6:$CB78)+$CB$5 -> -216.2826083 | CL78: =NPV((1+CL$3)^(1/12)-1,$CB$6:$CB78)+$CB$5 -> -249.0804411 | CM78: =NPV((1+CM$3)^(1/12)-1,$CB$6:$CB78)+$CB$5 -> -318.1508745 | CN78: =NPV((1+CN$3)^(1/12)-1,$CB$6:$CB78)+$CB$5 -> -318.1508745
A79: 6.166666667 | B79: 2 | C79: 7 | D79: 6.666666667 | E79: 6 | G79: =INDEX(Others!$D$11:$E$60, MATCH(C79, Others!$A$11:$A$60, 0), MATCH(G$3, Others!$D$10:$E$10, 0)) -> 0.04361314155 | H79: 0.003563740637 | I79: 0.8148358197 | K79: =INDEX(Mortality!$B$7:$F$32, MATCH( E79,Mortality!$A$7:$A$32, 0), MATCH( K$3,Mortality!$B$6:$F$6,0)) -> 0.341 | L79: 0 | M79: 0.341 | N79: =INDEX(Myopia!$H:$H, MATCH(E79, Myopia!$A:$A, 0)) * Trend_Factor^(A79) -> 6.057642761 | O79: 0 | P79: 6.057642761 | Q79: =VLOOKUP(C79,Others!$L$10:$M$61,2) -> 0 | R79: 0 | S79: 0 | T79: 2.841666667e-05 | U79: 0.0005048035634 | V79: 0 | W79: 0.9758218191 | X79: 2.772260436e-05 | Y79: 0.0004925913325 | Z79: 0 | AA79: 0.9753015051 | AC79: 0 | AD79: 0 | AE79: 0 | AF79: 0 | AG79: =SUMPRODUCT(AE80:AE$605, $I79:$I$604) / $I79 -> 0 | AI79: -47000 | AJ79: =IF(E79>Mat_Year,0, -SUM($AD$5:AD79)) -> -9306 | AK79: -0.2579865561 | AL79: -23.15179263 | AM79: -23.98980913 | AN79: -23.40977918 | AO79: -6962.330695 | AP79: =SUMPRODUCT(AN80:AN$605, $I80:$I$605) / $I79 -> -6793.994204 | AR79: 0 | AS79: 0 | AT79: 0 | AU79: -1.893181061 | AV79: 0 | AW79: -1.893181061 | AX79: -21.70847616 | AY79: 0 | AZ79: -21.70847616 | BA79: -1.847407387 | BB79: -0.0112952227 | BC79: -1.893181061 | BD79: -0.01157508725 | BE79: -1.847407387 | BF79: -0.0112952227 | BG79: -237.5459112 | BH79: =(SUMPRODUCT(BE80:BE$605,$I79:$I$604)+SUMPRODUCT(BF80:BF$605,$I80:$I$605)) / $I79 -> -231.8024832 | BJ79: -1.847407387 | BK79: -23.42107441 | BM79: 7203.717671 | BN79: 7025.796687 | BP79: =Reserve!BX79 -> 9662.345093 | BQ79: 9423.699712 | BR79: 5.780364929 | BT79: 34.43009472 | BU79: 33.59763766 | BV79: =SUMPRODUCT(BU80:BU$605, $I80:$I$605) / $I79 -> 2321.004738 | BX79: =-BZ79*Others!$Q$43 -> -3.612037323 | BZ79: 14.10952079 | CA79: 10.49748347 | CB79: 10.49748347 | CD79: =SUMPRODUCT(BZ80:BZ$605, $I80:$I$605) / $I79 -> 2397.903025 | CE79: =SUMPRODUCT(CA80:CA$605, $I80:$I$605) / $I79 -> 1784.039851 | CF79: =SUMPRODUCT(CB80:CB$605, $I80:$I$605) / $I79 -> 1784.039851 | CH79: 37337.65491 | CI79: 0 | CK79: =NPV((1+CK$3)^(1/12)-1,$CB$6:$CB79)+$CB$5 -> -207.5343355 | CL79: =NPV((1+CL$3)^(1/12)-1,$CB$6:$CB79)+$CB$5 -> -241.3104977 | CM79: =NPV((1+CM$3)^(1/12)-1,$CB$6:$CB79)+$CB$5 -> -312.3187027 | CN79: =NPV((1+CN$3)^(1/12)-1,$CB$6:$CB79)+$CB$5 -> -312.3187027
A80: 6.25 | B80: 3 | C80: 7 | D80: 6.75 | E80: 6 | G80: =INDEX(Others!$D$11:$E$60, MATCH(C80, Others!$A$11:$A$60, 0), MATCH(G$3, Others!$D$10:$E$10, 0)) -> 0.04361314155 | H80: 0.003563740637 | I80: 0.811942268 | K80: =INDEX(Mortality!$B$7:$F$32, MATCH( E80,Mortality!$A$7:$A$32, 0), MATCH( K$3,Mortality!$B$6:$F$6,0)) -> 0.341 | L80: 0 | M80: 0.341 | N80: =INDEX(Myopia!$H:$H, MATCH(E80, Myopia!$A:$A, 0)) * Trend_Factor^(A80) -> 6.057642761 | O80: 0 | P80: 6.057642761 | Q80: =VLOOKUP(C80,Others!$L$10:$M$61,2) -> 0 | R80: 0 | S80: 0 | T80: 2.841666667e-05 | U80: 0.0005048035634 | V80: 0 | W80: 0.9753015051 | X80: 2.77078225e-05 | Y80: 0.0004923286799 | Z80: 0 | AA80: 0.9747814686 | AC80: 0 | AD80: 0 | AE80: 0 | AF80: 0 | AG80: =SUMPRODUCT(AE81:AE$605, $I80:$I$604) / $I80 -> 0 | AI80: -47000 | AJ80: =IF(E80>Mat_Year,0, -SUM($AD$5:AD80)) -> -9306 | AK80: -0.2578489962 | AL80: -23.13944796 | AM80: -23.98980913 | AN80: -23.39729695 | AO80: -6966.8804 | AP80: =SUMPRODUCT(AN81:AN$605, $I81:$I$605) / $I80 -> -6794.80894 | AR80: 0 | AS80: 0 | AT80: 0 | AU80: -1.895297824 | AV80: 0 | AW80: -1.895297824 | AX80: -21.73274838 | AY80: 0 | AZ80: -21.73274838 | BA80: -1.84848682 | BB80: -0.01130182246 | BC80: -1.895297824 | BD80: -0.01158802934 | BE80: -1.84848682 | BF80: -0.01130182246 | BG80: -236.6060031 | BH80: =(SUMPRODUCT(BE81:BE$605,$I80:$I$604)+SUMPRODUCT(BF81:BF$605,$I81:$I$605)) / $I80 -> -230.7621909 | BJ80: -1.84848682 | BK80: -23.40859877 | BM80: 7207.329394 | BN80: 7025.571131 | BP80: =Reserve!BX80 -> 9661.566589 | BQ80: 9417.916068 | BR80: 5.783643832 | BT80: 34.42733751 | BU80: 33.57703409 | BV80: =SUMPRODUCT(BU81:BU$605, $I81:$I$605) / $I80 -> 2295.699163 | BX80: =-BZ80*Others!$Q$43 -> -3.610519635 | BZ80: 14.10359232 | CA80: 10.49307269 | CB80: 10.49307269 | CD80: =SUMPRODUCT(BZ81:BZ$605, $I81:$I$605) / $I80 -> 2392.344937 | CE80: =SUMPRODUCT(CA81:CA$605, $I81:$I$605) / $I80 -> 1779.904633 | CF80: =SUMPRODUCT(CB81:CB$605, $I81:$I$605) / $I80 -> 1779.904633 | CH80: 37338.43341 | CI80: 0 | CK80: =NPV((1+CK$3)^(1/12)-1,$CB$6:$CB80)+$CB$5 -> -198.8112521 | CL80: =NPV((1+CL$3)^(1/12)-1,$CB$6:$CB80)+$CB$5 -> -233.5753331 | CM80: =NPV((1+CM$3)^(1/12)-1,$CB$6:$CB80)+$CB$5 -> -306.5351007 | CN80: =NPV((1+CN$3)^(1/12)-1,$CB$6:$CB80)+$CB$5 -> -306.5351007
A81: 6.333333333 | B81: 4 | C81: 7 | D81: 6.833333333 | E81: 6 | G81: =INDEX(Others!$D$11:$E$60, MATCH(C81, Others!$A$11:$A$60, 0), MATCH(G$3, Others!$D$10:$E$10, 0)) -> 0.04361314155 | H81: 0.003563740637 | I81: 0.8090589916 | K81: =INDEX(Mortality!$B$7:$F$32, MATCH( E81,Mortality!$A$7:$A$32, 0), MATCH( K$3,Mortality!$B$6:$F$6,0)) -> 0.341 | L81: 0 | M81: 0.341 | N81: =INDEX(Myopia!$H:$H, MATCH(E81, Myopia!$A:$A, 0)) * Trend_Factor^(A81) -> 6.057642761 | O81: 0 | P81: 6.057642761 | Q81: =VLOOKUP(C81,Others!$L$10:$M$61,2) -> 0 | R81: 0 | S81: 0 | T81: 2.841666667e-05 | U81: 0.0005048035634 | V81: 0 | W81: 0.9747814686 | X81: 2.769304853e-05 | Y81: 0.0004920661674 | Z81: 0 | AA81: 0.9742617094 | AC81: 0 | AD81: 0 | AE81: 0 | AF81: 0 | AG81: =SUMPRODUCT(AE82:AE$605, $I81:$I$604) / $I81 -> 0 | AI81: -47000 | AJ81: =IF(E81>Mat_Year,0, -SUM($AD$5:AD81)) -> -9306 | AK81: -0.2577115096 | AL81: -23.12710987 | AM81: -23.98980913 | AN81: -23.38482138 | AO81: -6971.448755 | AP81: =SUMPRODUCT(AN82:AN$605, $I82:$I$605) / $I81 -> -6795.639056 | AR81: 0 | AS81: 0 | AT81: 0 | AU81: -1.897416953 | AV81: 0 | AW81: -1.897416953 | AX81: -21.75704773 | AY81: 0 | AZ81: -21.75704773 | BA81: -1.849566884 | BB81: -0.01130842607 | BC81: -1.897416953 | BD81: -0.0116009859 | BE81: -1.849566884 | BF81: -0.01130842607 | BG81: -235.6601025 | BH81: =(SUMPRODUCT(BE82:BE$605,$I81:$I$604)+SUMPRODUCT(BF82:BF$605,$I82:$I$605)) / $I81 -> -229.7171009 | BJ81: -1.849566884 | BK81: -23.3961298 | BM81: 7210.95378 | BN81: 7025.356156 | BP81: =Reserve!BX81 -> 9660.781115 | BQ81: 9412.129123 | BR81: 5.786944989 | BT81: 34.42455557 | BU81: 33.55641883 | BV81: =SUMPRODUCT(BU82:BU$605, $I82:$I$605) / $I81 -> 2270.32402 | BX81: =-BZ81*Others!$Q$43 -> -3.609002786 | BZ81: 14.09766713 | CA81: 10.48866435 | CB81: 10.48866435 | CD81: =SUMPRODUCT(BZ82:BZ$605, $I82:$I$605) / $I81 -> 2386.772967 | CE81: =SUMPRODUCT(CA82:CA$605, $I82:$I$605) / $I81 -> 1775.759087 | CF81: =SUMPRODUCT(CB82:CB$605, $I82:$I$605) / $I81 -> 1775.759087 | CH81: 37339.21888 | CI81: 0 | CK81: =NPV((1+CK$3)^(1/12)-1,$CB$6:$CB81)+$CB$5 -> -190.1132849 | CL81: =NPV((1+CL$3)^(1/12)-1,$CB$6:$CB81)+$CB$5 -> -225.8747911 | CM81: =NPV((1+CM$3)^(1/12)-1,$CB$6:$CB81)+$CB$5 -> -300.7996637 | CN81: =NPV((1+CN$3)^(1/12)-1,$CB$6:$CB81)+$CB$5 -> -300.7996637
A82: 6.416666667 | B82: 5 | C82: 7 | D82: 6.916666667 | E82: 6 | G82: =INDEX(Others!$D$11:$E$60, MATCH(C82, Others!$A$11:$A$60, 0), MATCH(G$3, Others!$D$10:$E$10, 0)) -> 0.04361314155 | H82: 0.003563740637 | I82: 0.8061859539 | K82: =INDEX(Mortality!$B$7:$F$32, MATCH( E82,Mortality!$A$7:$A$32, 0), MATCH( K$3,Mortality!$B$6:$F$6,0)) -> 0.341 | L82: 0 | M82: 0.341 | N82: =INDEX(Myopia!$H:$H, MATCH(E82, Myopia!$A:$A, 0)) * Trend_Factor^(A82) -> 6.057642761 | O82: 0 | P82: 6.057642761 | Q82: =VLOOKUP(C82,Others!$L$10:$M$61,2) -> 0 | R82: 0 | S82: 0 | T82: 2.841666667e-05 | U82: 0.0005048035634 | V82: 0 | W82: 0.9742617094 | X82: 2.767828243e-05 | Y82: 0.0004918037948 | Z82: 0 | AA82: 0.9737422273 | AC82: 0 | AD82: 0 | AE82: 0 | AF82: 0 | AG82: =SUMPRODUCT(AE83:AE$605, $I82:$I$604) / $I82 -> 0 | AI82: -47000 | AJ82: =IF(E82>Mat_Year,0, -SUM($AD$5:AD82)) -> -9306 | AK82: -0.2575740963 | AL82: -23.11477836 | AM82: -23.98980913 | AN82: -23.37235245 | AO82: -6976.035836 | AP82: =SUMPRODUCT(AN83:AN$605, $I83:$I$605) / $I82 -> -6796.484598 | AR82: 0 | AS82: 0 | AT82: 0 | AU82: -1.899538453 | AV82: 0 | AW82: -1.899538453 | AX82: -21.78137426 | AY82: 0 | AZ82: -21.78137426 | BA82: -1.85064758 | BB82: -0.01131503354 | BC82: -1.899538453 | BD82: -0.01161395694 | BE82: -1.85064758 | BF82: -0.01131503354 | BG82: -234.7081826 | BH82: =(SUMPRODUCT(BE83:BE$605,$I82:$I$604)+SUMPRODUCT(BF83:BF$605,$I83:$I$605)) / $I82 -> -228.6671952 | BJ82: -1.85064758 | BK82: -23.38366748 | BM82: 7214.590881 | BN82: 7025.151793 | BP82: =Reserve!BX82 -> 9659.988641 | BQ82: 9406.338855 | BR82: 5.790268466 | BT82: 34.42174878 | BU82: 33.53579181 | BV82: =SUMPRODUCT(BU83:BU$605, $I83:$I$605) / $I82 -> 2244.879075 | BX82: =-BZ82*Others!$Q$43 -> -3.607486774 | BZ82: 14.09174521 | CA82: 10.48425844 | CB82: 10.48425844 | CD82: =SUMPRODUCT(BZ83:BZ$605, $I83:$I$605) / $I82 -> 2381.187062 | CE82: =SUMPRODUCT(CA83:CA$605, $I83:$I$605) / $I82 -> 1771.603174 | CF82: =SUMPRODUCT(CB83:CB$605, $I83:$I$605) / $I82 -> 1771.603174 | CH82: 37340.01136 | CI82: 0 | CK82: =NPV((1+CK$3)^(1/12)-1,$CB$6:$CB82)+$CB$5 -> -181.4403612 | CL82: =NPV((1+CL$3)^(1/12)-1,$CB$6:$CB82)+$CB$5 -> -218.2087163 | CM82: =NPV((1+CM$3)^(1/12)-1,$CB$6:$CB82)+$CB$5 -> -295.1119903 | CN82: =NPV((1+CN$3)^(1/12)-1,$CB$6:$CB82)+$CB$5 -> -295.1119903
A83: 6.5 | B83: 6 | C83: 7 | D83: 7 | E83: 7 | G83: =INDEX(Others!$D$11:$E$60, MATCH(C83, Others!$A$11:$A$60, 0), MATCH(G$3, Others!$D$10:$E$10, 0)) -> 0.04361314155 | H83: 0.003563740637 | I83: 0.8033231187 | K83: =INDEX(Mortality!$B$7:$F$32, MATCH( E83,Mortality!$A$7:$A$32, 0), MATCH( K$3,Mortality!$B$6:$F$6,0)) -> 0.344 | L83: 0 | M83: 0.344 | N83: =INDEX(Myopia!$H:$H, MATCH(E83, Myopia!$A:$A, 0)) * Trend_Factor^(A83) -> 12.16603037 | O83: 0 | P83: =IFERROR( N83*(1+O83), 0) -> 12.16603037 | Q83: =VLOOKUP(C83,Others!$L$10:$M$61,2) -> 0 | R83: 0 | S83: 0 | T83: 2.866666667e-05 | U83: =(P83/1000)/12 -> 0.001013835864 | V83: 0 | W83: 0.9737422273 | X83: 2.789979377e-05 | Y83: =W83 * (1-T83/2)*(U83) -> 0.0009872006421 | Z83: 0 | AA83: 0.9727271269 | AC83: 0 | AD83: 0 | AE83: 0 | AF83: 0 | AG83: =SUMPRODUCT(AE84:AE$605, $I83:$I$604) / $I83 -> 0 | AI83: -47000 | AJ83: =IF(E83>Mat_Year,0, -SUM($AD$5:AD83)) -> -9306 | AK83: -0.2596354808 | AL83: -46.39843018 | AM83: -47.91623938 | AN83: -46.65806566 | AO83: -6956.715289 | AP83: =SUMPRODUCT(AN84:AN$605, $I84:$I$605) / $I83 -> -6774.047441 | AR83: 0 | AS83: 0 | AT83: 0 | AU83: -1.901662324 | AV83: 0 | AW83: -1.901662324 | AX83: -21.80572798 | AY83: 0 | AZ83: -21.80572798 | BA83: -1.851728907 | BB83: -0.02213500397 | BC83: -1.901662324 | BD83: -0.02273189285 | BE83: -1.851728907 | BF83: -0.02213500397 | BG83: -233.7391112 | BH83: =(SUMPRODUCT(BE84:BE$605,$I83:$I$604)+SUMPRODUCT(BF84:BF$605,$I84:$I$605)) / $I83 -> -227.6016428 | BJ83: -1.851728907 | BK83: -46.68020066 | BM83: 7197.958081 | BN83: 7001.649084 | BP83: =Reserve!BX83 -> 9634.429299 | BQ83: 9371.670731 | BR83: 34.66812353 | BT83: 34.41891704 | BU83: 33.51515294 | BV83: =SUMPRODUCT(BU84:BU$605, $I84:$I$605) / $I83 -> 2219.364088 | BX83: =-BZ83*Others!$Q$43 -> -5.030744806 | BZ83: 19.6513469 | CA83: 14.62060209 | CB83: 14.62060209 | CD83: =SUMPRODUCT(BZ84:BZ$605, $I84:$I$605) / $I83 -> 2370.021648 | CE83: =SUMPRODUCT(CA84:CA$605, $I84:$I$605) / $I83 -> 1763.296106 | CF83: =SUMPRODUCT(CB84:CB$605, $I84:$I$605) / $I83 -> 1763.296106 | CH83: 37365.5707 | CI83: 0 | CK83: =NPV((1+CK$3)^(1/12)-1,$CB$6:$CB83)+$CB$5 -> -169.3754731 | CL83: =NPV((1+CL$3)^(1/12)-1,$CB$6:$CB83)+$CB$5 -> -207.561531 | CM83: =NPV((1+CM$3)^(1/12)-1,$CB$6:$CB83)+$CB$5 -> -287.2431124 | CN83: =NPV((1+CN$3)^(1/12)-1,$CB$6:$CB83)+$CB$5 -> -287.2431124
A84: 6.583333333 | B84: 7 | C84: 7 | D84: 7.083333333 | E84: 7 | G84: =INDEX(Others!$D$11:$E$60, MATCH(C84, Others!$A$11:$A$60, 0), MATCH(G$3, Others!$D$10:$E$10, 0)) -> 0.04361314155 | H84: 0.003563740637 | I84: 0.8004704496 | K84: =INDEX(Mortality!$B$7:$F$32, MATCH( E84,Mortality!$A$7:$A$32, 0), MATCH( K$3,Mortality!$B$6:$F$6,0)) -> 0.344 | L84: 0 | M84: 0.344 | N84: =INDEX(Myopia!$H:$H, MATCH(E84, Myopia!$A:$A, 0)) * Trend_Factor^(A84) -> 12.16603037 | O84: 0 | P84: 12.16603037 | Q84: =VLOOKUP(C84,Others!$L$10:$M$61,2) -> 0 | R84: 0 | S84: 0 | T84: 2.866666667e-05 | U84: 0.001013835864 | V84: 0 | W84: 0.9727271269 | X84: 2.787070898e-05 | Y84: 0.0009861715116 | Z84: 0 | AA84: 0.9717130847 | AC84: 0 | AD84: 0 | AE84: 0 | AF84: 0 | AG84: =SUMPRODUCT(AE85:AE$605, $I84:$I$604) / $I84 -> 0 | AI84: -47000 | AJ84: =IF(E84>Mat_Year,0, -SUM($AD$5:AD84)) -> -9306 | AK84: -0.2593648177 | AL84: -46.35006105 | AM84: -47.91623938 | AN84: -46.60942586 | AO84: -6940.87661 | AP84: =SUMPRODUCT(AN85:AN$605, $I85:$I$605) / $I84 -> -6751.578963 | AR84: 0 | AS84: 0 | AT84: 0 | AU84: -1.903788569 | AV84: 0 | AW84: -1.903788569 | AX84: -21.83010893 | AY84: 0 | AZ84: -21.83010893 | BA84: -1.851866785 | BB84: -0.02213665214 | BC84: -1.903788569 | BD84: -0.02275730935 | BE84: -1.851866785 | BF84: -0.02213665214 | BG84: -232.8835567 | BH84: =(SUMPRODUCT(BE85:BE$605,$I84:$I$604)+SUMPRODUCT(BF85:BF$605,$I85:$I$605)) / $I84 -> -226.532153 | BJ84: -1.851866785 | BK84: -46.63156252 | BM84: 7181.246426 | BN84: 6978.111116 | BP84: =Reserve!BX84 -> 9608.762242 | BQ84: 9336.959998 | BR84: 34.71073368 | BT84: 34.3278226 | BU84: 33.39160425 | BV84: =SUMPRODUCT(BU85:BU$605, $I85:$I$605) / $I84 -> 2193.881722 | BX84: =-BZ84*Others!$Q$43 -> -5.022440607 | BZ84: 19.61890862 | CA84: 14.59646802 | CB84: 14.59646802 | CD84: =SUMPRODUCT(BZ85:BZ$605, $I85:$I$605) / $I84 -> 2358.848882 | CE84: =SUMPRODUCT(CA85:CA$605, $I85:$I$605) / $I84 -> 1754.983568 | CF84: =SUMPRODUCT(CB85:CB$605, $I85:$I$605) / $I84 -> 1754.983568 | CH84: 37391.23776 | CI84: 0 | CK84: =NPV((1+CK$3)^(1/12)-1,$CB$6:$CB84)+$CB$5 -> -157.3601335 | CL84: =NPV((1+CL$3)^(1/12)-1,$CB$6:$CB84)+$CB$5 -> -196.9750515 | CM84: =NPV((1+CM$3)^(1/12)-1,$CB$6:$CB84)+$CB$5 -> -279.449372 | CN84: =NPV((1+CN$3)^(1/12)-1,$CB$6:$CB84)+$CB$5 -> -279.449372
A85: 6.666666667 | B85: 8 | C85: 7 | D85: 7.166666667 | E85: 7 | G85: =INDEX(Others!$D$11:$E$60, MATCH(C85, Others!$A$11:$A$60, 0), MATCH(G$3, Others!$D$10:$E$10, 0)) -> 0.04361314155 | H85: 0.003563740637 | I85: 0.7976279106 | K85: =INDEX(Mortality!$B$7:$F$32, MATCH( E85,Mortality!$A$7:$A$32, 0), MATCH( K$3,Mortality!$B$6:$F$6,0)) -> 0.344 | L85: 0 | M85: 0.344 | N85: =INDEX(Myopia!$H:$H, MATCH(E85, Myopia!$A:$A, 0)) * Trend_Factor^(A85) -> 12.16603037 | O85: 0 | P85: 12.16603037 | Q85: =VLOOKUP(C85,Others!$L$10:$M$61,2) -> 0 | R85: 0 | S85: 0 | T85: 2.866666667e-05 | U85: 0.001013835864 | V85: 0 | W85: 0.9717130847 | X85: 2.78416545e-05 | Y85: 0.000985143454 | Z85: 0 | AA85: 0.9707000996 | AC85: 0 | AD85: 0 | AE85: 0 | AF85: 0 | AG85: =SUMPRODUCT(AE86:AE$605, $I85:$I$604) / $I85 -> 0 | AI85: -47000 | AJ85: =IF(E85>Mat_Year,0, -SUM($AD$5:AD85)) -> -9306 | AK85: -0.2590944368 | AL85: -46.30174234 | AM85: -47.91623938 | AN85: -46.56083677 | AO85: -6924.964898 | AP85: =SUMPRODUCT(AN86:AN$605, $I86:$I$605) / $I85 -> -6729.079003 | AR85: 0 | AS85: 0 | AT85: 0 | AU85: -1.905917193 | AV85: 0 | AW85: -1.905917193 | AX85: -21.85451714 | AY85: 0 | AZ85: -21.85451714 | BA85: -1.852004674 | BB85: -0.02213830042 | BC85: -1.905917193 | BD85: -0.02278275426 | BE85: -1.852004674 | BF85: -0.02213830042 | BG85: -232.0218955 | BH85: =(SUMPRODUCT(BE86:BE$605,$I85:$I$604)+SUMPRODUCT(BF86:BF$605,$I86:$I$605)) / $I85 -> -225.4587118 | BJ85: -1.852004674 | BK85: -46.58297507 | BM85: 7164.455549 | BN85: 6954.537714 | BP85: =Reserve!BX85 -> 9582.987024 | BQ85: 9302.206459 | BR85: 34.75353912 | BT85: 34.23634428 | BU85: 33.26790371 | BV85: =SUMPRODUCT(BU86:BU$605, $I86:$I$605) / $I85 -> 2168.432244 | BX85: =-BZ85*Others!$Q$43 -> -5.014134547 | BZ85: 19.58646308 | CA85: 14.57232853 | CB85: 14.57232853 | CD85: =SUMPRODUCT(BZ86:BZ$605, $I86:$I$605) / $I85 -> 2347.668744 | CE85: =SUMPRODUCT(CA86:CA$605, $I86:$I$605) / $I85 -> 1746.665546 | CF85: =SUMPRODUCT(CB86:CB$605, $I86:$I$605) / $I85 -> 1746.665546 | CH85: 37417.01298 | CI85: 0 | CK85: =NPV((1+CK$3)^(1/12)-1,$CB$6:$CB85)+$CB$5 -> -145.394176 | CL85: =NPV((1+CL$3)^(1/12)-1,$CB$6:$CB85)+$CB$5 -> -186.4489644 | CM85: =NPV((1+CM$3)^(1/12)-1,$CB$6:$CB85)+$CB$5 -> -271.7300756 | CN85: =NPV((1+CN$3)^(1/12)-1,$CB$6:$CB85)+$CB$5 -> -271.7300756
A86: 6.75 | B86: 9 | C86: 7 | D86: 7.25 | E86: 7 | G86: =INDEX(Others!$D$11:$E$60, MATCH(C86, Others!$A$11:$A$60, 0), MATCH(G$3, Others!$D$10:$E$10, 0)) -> 0.04361314155 | H86: 0.003563740637 | I86: 0.7947954657 | K86: =INDEX(Mortality!$B$7:$F$32, MATCH( E86,Mortality!$A$7:$A$32, 0), MATCH( K$3,Mortality!$B$6:$F$6,0)) -> 0.344 | L86: 0 | M86: 0.344 | N86: =INDEX(Myopia!$H:$H, MATCH(E86, Myopia!$A:$A, 0)) * Trend_Factor^(A86) -> 12.16603037 | O86: 0 | P86: 12.16603037 | Q86: =VLOOKUP(C86,Others!$L$10:$M$61,2) -> 0 | R86: 0 | S86: 0 | T86: 2.866666667e-05 | U86: 0.001013835864 | V86: 0 | W86: 0.9707000996 | X86: 2.781263032e-05 | Y86: 0.0009841164681 | Z86: 0 | AA86: 0.9696881705 | AC86: 0 | AD86: 0 | AE86: 0 | AF86: 0 | AG86: =SUMPRODUCT(AE87:AE$605, $I86:$I$604) / $I86 -> 0 | AI86: -47000 | AJ86: =IF(E86>Mat_Year,0, -SUM($AD$5:AD86)) -> -9306 | AK86: -0.2588243377 | AL86: -46.253474 | AM86: -47.91623938 | AN86: -46.51229834 | AO86: -6908.979817 | AP86: =SUMPRODUCT(AN87:AN$605, $I87:$I$605) / $I86 -> -6706.547397 | AR86: 0 | AS86: 0 | AT86: 0 | AU86: -1.908048196 | AV86: 0 | AW86: -1.908048196 | AX86: -21.87895265 | AY86: 0 | AZ86: -21.87895265 | BA86: -1.852142574 | BB86: -0.02213994882 | BC86: -1.908048196 | BD86: -0.02280822762 | BE86: -1.852142574 | BF86: -0.02213994882 | BG86: -231.1540971 | BH86: =(SUMPRODUCT(BE87:BE$605,$I86:$I$604)+SUMPRODUCT(BF87:BF$605,$I87:$I$605)) / $I86 -> -224.3813051 | BJ86: -1.852142574 | BK86: -46.53443829 | BM86: 7147.585082 | BN86: 6930.928702 | BP86: =Reserve!BX86 -> 9557.103201 | BQ86: 9267.409918 | BR86: 34.79654037 | BT86: 34.14448049 | BU86: 33.14405061 | BV86: =SUMPRODUCT(BU87:BU$605, $I87:$I$605) / $I86 -> 2143.015923 | BX86: =-BZ86*Others!$Q$43 -> -5.005826593 | BZ86: 19.55401013 | CA86: 14.54818354 | CB86: 14.54818354 | CD86: =SUMPRODUCT(BZ87:BZ$605, $I87:$I$605) / $I86 -> 2336.481217 | CE86: =SUMPRODUCT(CA87:CA$605, $I87:$I$605) / $I86 -> 1738.342025 | CF86: =SUMPRODUCT(CB87:CB$605, $I87:$I$605) / $I86 -> 1738.342025 | CH86: 37442.8968 | CI86: 0 | CK86: =NPV((1+CK$3)^(1/12)-1,$CB$6:$CB86)+$CB$5 -> -133.4774349 | CL86: =NPV((1+CL$3)^(1/12)-1,$CB$6:$CB86)+$CB$5 -> -175.9829578 | CM86: =NPV((1+CM$3)^(1/12)-1,$CB$6:$CB86)+$CB$5 -> -264.0845359 | CN86: =NPV((1+CN$3)^(1/12)-1,$CB$6:$CB86)+$CB$5 -> -264.0845359
A87: 6.833333333 | B87: 10 | C87: 7 | D87: 7.333333333 | E87: 7 | G87: =INDEX(Others!$D$11:$E$60, MATCH(C87, Others!$A$11:$A$60, 0), MATCH(G$3, Others!$D$10:$E$10, 0)) -> 0.04361314155 | H87: 0.003563740637 | I87: 0.7919730791 | K87: =INDEX(Mortality!$B$7:$F$32, MATCH( E87,Mortality!$A$7:$A$32, 0), MATCH( K$3,Mortality!$B$6:$F$6,0)) -> 0.344 | L87: 0 | M87: 0.344 | N87: =INDEX(Myopia!$H:$H, MATCH(E87, Myopia!$A:$A, 0)) * Trend_Factor^(A87) -> 12.16603037 | O87: 0 | P87: 12.16603037 | Q87: =VLOOKUP(C87,Others!$L$10:$M$61,2) -> 0 | R87: 0 | S87: 0 | T87: 2.866666667e-05 | U87: 0.001013835864 | V87: 0 | W87: 0.9696881705 | X87: 2.778363639e-05 | Y87: 0.0009830905528 | Z87: 0 | AA87: 0.9686772963 | AC87: 0 | AD87: 0 | AE87: 0 | AF87: 0 | AG87: =SUMPRODUCT(AE88:AE$605, $I87:$I$604) / $I87 -> 0 | AI87: -47000 | AJ87: =IF(E87>Mat_Year,0, -SUM($AD$5:AD87)) -> -9306 | AK87: -0.2585545202 | AL87: -46.20525598 | AM87: -47.91623938 | AN87: -46.4638105 | AO87: -6892.921029 | AP87: =SUMPRODUCT(AN88:AN$605, $I88:$I$605) / $I87 -> -6683.983982 | AR87: 0 | AS87: 0 | AT87: 0 | AU87: -1.910181582 | AV87: 0 | AW87: -1.910181582 | AX87: -21.90341547 | AY87: 0 | AZ87: -21.90341547 | BA87: -1.852280483 | BB87: -0.02214159735 | BC87: -1.910181582 | BD87: -0.02283372947 | BE87: -1.852280483 | BF87: -0.02214159735 | BG87: -230.2801308 | BH87: =(SUMPRODUCT(BE88:BE$605,$I87:$I$604)+SUMPRODUCT(BF88:BF$605,$I88:$I$605)) / $I87 -> -223.2999187 | BJ87: -1.852280483 | BK87: -46.4859521 | BM87: 7130.634657 | BN87: 6907.2839 | BP87: =Reserve!BX87 -> 9531.110325 | BQ87: 9232.57018 | BR87: 34.83973796 | BT87: 34.05222966 | BU87: 33.02004428 | BV87: =SUMPRODUCT(BU88:BU$605, $I88:$I$605) / $I87 -> 2117.633032 | BX87: =-BZ87*Others!$Q$43 -> -4.997516713 | BZ87: 19.52154966 | CA87: 14.52403295 | CB87: 14.52403295 | CD87: =SUMPRODUCT(BZ88:BZ$605, $I88:$I$605) / $I87 -> 2325.28628 | CE87: =SUMPRODUCT(CA88:CA$605, $I88:$I$605) / $I87 -> 1730.012992 | CF87: =SUMPRODUCT(CB88:CB$605, $I88:$I$605) / $I87 -> 1730.012992 | CH87: 37468.88967 | CI87: 0 | CK87: =NPV((1+CK$3)^(1/12)-1,$CB$6:$CB87)+$CB$5 -> -121.609745 | CL87: =NPV((1+CL$3)^(1/12)-1,$CB$6:$CB87)+$CB$5 -> -165.5767216 | CM87: =NPV((1+CM$3)^(1/12)-1,$CB$6:$CB87)+$CB$5 -> -256.512072 | CN87: =NPV((1+CN$3)^(1/12)-1,$CB$6:$CB87)+$CB$5 -> -256.512072
A88: 6.916666667 | B88: 11 | C88: 7 | D88: 7.416666667 | E88: 7 | G88: =INDEX(Others!$D$11:$E$60, MATCH(C88, Others!$A$11:$A$60, 0), MATCH(G$3, Others!$D$10:$E$10, 0)) -> 0.04361314155 | H88: 0.003563740637 | I88: 0.789160715 | K88: =INDEX(Mortality!$B$7:$F$32, MATCH( E88,Mortality!$A$7:$A$32, 0), MATCH( K$3,Mortality!$B$6:$F$6,0)) -> 0.344 | L88: 0 | M88: 0.344 | N88: =INDEX(Myopia!$H:$H, MATCH(E88, Myopia!$A:$A, 0)) * Trend_Factor^(A88) -> 12.16603037 | O88: 0 | P88: 12.16603037 | Q88: =VLOOKUP(C88,Others!$L$10:$M$61,2) -> 0 | R88: 0 | S88: 0 | T88: 2.866666667e-05 | U88: 0.001013835864 | V88: 0 | W88: 0.9686772963 | X88: 2.775467268e-05 | Y88: 0.0009820657069 | Z88: 0 | AA88: 0.9676674759 | AC88: 0 | AD88: 0 | AE88: 0 | AF88: 0 | AG88: =SUMPRODUCT(AE89:AE$605, $I88:$I$604) / $I88 -> 0 | AI88: -47000 | AJ88: =IF(E88>Mat_Year,0, -SUM($AD$5:AD88)) -> -9306 | AK88: -0.258284984 | AL88: -46.15708823 | AM88: -47.91623938 | AN88: -46.41537321 | AO88: -6876.788193 | AP88: =SUMPRODUCT(AN89:AN$605, $I89:$I$605) / $I88 -> -6661.388594 | AR88: 0 | AS88: 0 | AT88: 0 | AU88: -1.912317353 | AV88: 0 | AW88: -1.912317353 | AX88: -21.92790565 | AY88: 0 | AZ88: -21.92790565 | BA88: -1.852418403 | BB88: -0.022143246 | BC88: -1.912317353 | BD88: -0.02285925983 | BE88: -1.852418403 | BF88: -0.022143246 | BG88: -229.3999657 | BH88: =(SUMPRODUCT(BE89:BE$605,$I88:$I$604)+SUMPRODUCT(BF89:BF$605,$I89:$I$605)) / $I88 -> -222.2145385 | BJ88: -1.852418403 | BK88: -46.43751646 | BM88: 7113.603902 | BN88: 6883.603132 | BP88: =Reserve!BX88 -> 9505.007946 | BQ88: 9197.687048 | BR88: 34.88313241 | BT88: 33.95959018 | BU88: 32.895884 | BV88: =SUMPRODUCT(BU89:BU$605, $I89:$I$605) / $I88 -> 2092.283843 | BX88: =-BZ88*Others!$Q$43 -> -4.989204875 | BZ88: 19.48908154 | CA88: 14.49987667 | CB88: 14.49987667 | CD88: =SUMPRODUCT(BZ89:BZ$605, $I89:$I$605) / $I88 -> 2314.083916 | CE88: =SUMPRODUCT(CA89:CA$605, $I89:$I$605) / $I88 -> 1721.678433 | CF88: =SUMPRODUCT(CB89:CB$605, $I89:$I$605) / $I88 -> 1721.678433 | CH88: 37494.99205 | CI88: 0 | CK88: =NPV((1+CK$3)^(1/12)-1,$CB$6:$CB88)+$CB$5 -> -109.7909417 | CL88: =NPV((1+CL$3)^(1/12)-1,$CB$6:$CB88)+$CB$5 -> -155.2299469 | CM88: =NPV((1+CM$3)^(1/12)-1,$CB$6:$CB88)+$CB$5 -> -249.0120092 | CN88: =NPV((1+CN$3)^(1/12)-1,$CB$6:$CB88)+$CB$5 -> -249.0120092
A89: 7 | B89: 12 | C89: 7 | D89: 7.5 | E89: 7 | G89: =INDEX(Others!$D$11:$E$60, MATCH(C89, Others!$A$11:$A$60, 0), MATCH(G$3, Others!$D$10:$E$10, 0)) -> 0.04361314155 | H89: 0.003563740637 | I89: 0.7863583378 | K89: =INDEX(Mortality!$B$7:$F$32, MATCH( E89,Mortality!$A$7:$A$32, 0), MATCH( K$3,Mortality!$B$6:$F$6,0)) -> 0.344 | L89: 0 | M89: 0.344 | N89: =INDEX(Myopia!$H:$H, MATCH(E89, Myopia!$A:$A, 0)) * Trend_Factor^(A89) -> 12.16603037 | O89: 0 | P89: 12.16603037 | Q89: =VLOOKUP(C89,Others!$L$10:$M$61,2) -> 0 | R89: 0 | S89: 0 | T89: 2.866666667e-05 | U89: 0.001013835864 | V89: 0 | W89: 0.9676674759 | X89: 2.772573917e-05 | Y89: 0.0009810419295 | Z89: 0 | AA89: 0.9666587082 | AC89: 0 | AD89: 0 | AE89: 0 | AF89: 0 | AG89: =SUMPRODUCT(AE90:AE$605, $I89:$I$604) / $I89 -> 0 | AI89: -47000 | AJ89: =IF(E89>Mat_Year,0, -SUM($AD$5:AD89)) -> -9306 | AK89: -0.2580157287 | AL89: -46.10897069 | AM89: -47.91623938 | AN89: -46.36698642 | AO89: -6860.580968 | AP89: =SUMPRODUCT(AN90:AN$605, $I90:$I$605) / $I89 -> -6638.761069 | AR89: 0 | AS89: 0 | AT89: 0 | AU89: -1.914455512 | AV89: 0 | AW89: -1.914455512 | AX89: -21.95242321 | AY89: 0 | AZ89: -21.95242321 | BA89: -1.852556333 | BB89: -0.02214489478 | BC89: -1.914455512 | BD89: -0.02288481873 | BE89: -1.852556333 | BF89: -0.02214489478 | BG89: -228.5135708 | BH89: =(SUMPRODUCT(BE90:BE$605,$I89:$I$604)+SUMPRODUCT(BF90:BF$605,$I90:$I$605)) / $I89 -> -221.1251502 | BJ89: -1.852556333 | BK89: -46.38913131 | BM89: 7096.492444 | BN89: 6859.886219 | BP89: =Reserve!BX89 -> 9478.795614 | BQ89: 9162.760324 | BR89: 34.92672422 | BT89: 33.86656045 | BU89: 32.77156907 | BV89: =SUMPRODUCT(BU90:BU$605, $I90:$I$605) / $I89 -> 2066.968631 | BX89: =-BZ89*Others!$Q$43 -> -4.980891046 | BZ89: 19.45660565 | CA89: 14.4757146 | CB89: 14.4757146 | CD89: =SUMPRODUCT(BZ90:BZ$605, $I90:$I$605) / $I89 -> 2302.874105 | CE89: =SUMPRODUCT(CA90:CA$605, $I90:$I$605) / $I89 -> 1713.338334 | CF89: =SUMPRODUCT(CB90:CB$605, $I90:$I$605) / $I89 -> 1713.338334 | CH89: 37521.20439 | CI89: 0 | CK89: =NPV((1+CK$3)^(1/12)-1,$CB$6:$CB89)+$CB$5 -> -98.02086107 | CL89: =NPV((1+CL$3)^(1/12)-1,$CB$6:$CB89)+$CB$5 -> -144.9423268 | CM89: =NPV((1+CM$3)^(1/12)-1,$CB$6:$CB89)+$CB$5 -> -241.5836787 | CN89: =NPV((1+CN$3)^(1/12)-1,$CB$6:$CB89)+$CB$5 -> -241.5836787
A90: 7.083333333 | B90: 1 | C90: 8 | D90: 7.583333333 | E90: 7 | G90: =INDEX(Others!$D$11:$E$60, MATCH(C90, Others!$A$11:$A$60, 0), MATCH(G$3, Others!$D$10:$E$10, 0)) -> 0.04650716662 | H90: 0.003795360129 | I90: 0.7833851092 | K90: =INDEX(Mortality!$B$7:$F$32, MATCH( E90,Mortality!$A$7:$A$32, 0), MATCH( K$3,Mortality!$B$6:$F$6,0)) -> 0.344 | L90: 0 | M90: 0.344 | N90: =INDEX(Myopia!$H:$H, MATCH(E90, Myopia!$A:$A, 0)) * Trend_Factor^(A90) -> 12.16603037 | O90: 0 | P90: 12.16603037 | Q90: =VLOOKUP(C90,Others!$L$10:$M$61,2) -> 0 | R90: 0 | S90: 0 | T90: 2.866666667e-05 | U90: 0.001013835864 | V90: 0 | W90: 0.9666587082 | X90: 2.769683583e-05 | Y90: 0.0009800192193 | Z90: 0 | AA90: 0.9656509922 | AC90: 0 | AD90: 0 | AE90: 0 | AF90: 0 | AG90: =SUMPRODUCT(AE91:AE$605, $I90:$I$604) / $I90 -> 0 | AI90: -47000 | AJ90: =IF(E90>Mat_Year,0, -SUM($AD$5:AD90)) -> -9306 | AK90: -0.2577467542 | AL90: -46.06090331 | AM90: -47.91623938 | AN90: -46.31865006 | AO90: -6845.889714 | AP90: =SUMPRODUCT(AN91:AN$605, $I91:$I$605) / $I90 -> -6617.638908 | AR90: 0 | AS90: 0 | AT90: 0 | AU90: -1.916596062 | AV90: 0 | AW90: -1.916596062 | AX90: -21.97696818 | AY90: 0 | AZ90: -21.97696818 | BA90: -1.852694273 | BB90: -0.02214654368 | BC90: -1.916596062 | BD90: -0.02291040621 | BE90: -1.852694273 | BF90: -0.02214654368 | BG90: -227.6734544 | BH90: =(SUMPRODUCT(BE91:BE$605,$I90:$I$604)+SUMPRODUCT(BF91:BF$605,$I91:$I$605)) / $I90 -> -220.0825274 | BJ90: -1.852694273 | BK90: -46.34079661 | BM90: 7080.944866 | BN90: 6837.721435 | BP90: =Reserve!BX90 -> 9454.137772 | BQ90: 9129.39752 | BR90: 33.36280361 | BT90: 35.96816877 | BU90: 34.76894356 | BV90: =SUMPRODUCT(BU91:BU$605, $I91:$I$605) / $I90 -> 2040.044578 | BX90: =-BZ90*Others!$Q$43 -> -5.10419361 | BZ90: 19.93825629 | CA90: 14.83406268 | CB90: 14.83406268 | CD90: =SUMPRODUCT(BZ91:BZ$605, $I91:$I$605) / $I90 -> 2291.676085 | CE90: =SUMPRODUCT(CA91:CA$605, $I91:$I$605) / $I90 -> 1705.007007 | CF90: =SUMPRODUCT(CB91:CB$605, $I91:$I$605) / $I90 -> 1705.007007 | CH90: 37545.86223 | CI90: 0 | CK90: =NPV((1+CK$3)^(1/12)-1,$CB$6:$CB90)+$CB$5 -> -85.98908423 | CL90: =NPV((1+CL$3)^(1/12)-1,$CB$6:$CB90)+$CB$5 -> -134.4428117 | CM90: =NPV((1+CM$3)^(1/12)-1,$CB$6:$CB90)+$CB$5 -> -234.0316797 | CN90: =NPV((1+CN$3)^(1/12)-1,$CB$6:$CB90)+$CB$5 -> -234.0316797
A91: 7.166666667 | B91: 2 | C91: 8 | D91: 7.666666667 | E91: 7 | G91: =INDEX(Others!$D$11:$E$60, MATCH(C91, Others!$A$11:$A$60, 0), MATCH(G$3, Others!$D$10:$E$10, 0)) -> 0.04650716662 | H91: 0.003795360129 | I91: 0.7804231224 | K91: =INDEX(Mortality!$B$7:$F$32, MATCH( E91,Mortality!$A$7:$A$32, 0), MATCH( K$3,Mortality!$B$6:$F$6,0)) -> 0.344 | L91: 0 | M91: 0.344 | N91: =INDEX(Myopia!$H:$H, MATCH(E91, Myopia!$A:$A, 0)) * Trend_Factor^(A91) -> 12.16603037 | O91: 0 | P91: 12.16603037 | Q91: =VLOOKUP(C91,Others!$L$10:$M$61,2) -> 0 | R91: 0 | S91: 0 | T91: 2.866666667e-05 | U91: 0.001013835864 | V91: 0 | W91: 0.9656509922 | X91: 2.766796261e-05 | Y91: 0.0009789975753 | Z91: 0 | AA91: 0.9646443266 | AC91: 0 | AD91: 0 | AE91: 0 | AF91: 0 | AG91: =SUMPRODUCT(AE92:AE$605, $I91:$I$604) / $I91 -> 0 | AI91: -47000 | AJ91: =IF(E91>Mat_Year,0, -SUM($AD$5:AD91)) -> -9306 | AK91: -0.25747806 | AL91: -46.01288604 | AM91: -47.91623938 | AN91: -46.2703641 | AO91: -6831.127312 | AP91: =SUMPRODUCT(AN92:AN$605, $I92:$I$605) / $I91 -> -6596.484866 | AR91: 0 | AS91: 0 | AT91: 0 | AU91: -1.918739005 | AV91: 0 | AW91: -1.918739005 | AX91: -22.00154059 | AY91: 0 | AZ91: -22.00154059 | BA91: -1.852832224 | BB91: -0.0221481927 | BC91: -1.918739005 | BD91: -0.0229360223 | BE91: -1.852832224 | BF91: -0.0221481927 | BG91: -226.8270928 | BH91: =(SUMPRODUCT(BE92:BE$605,$I91:$I$604)+SUMPRODUCT(BF92:BF$605,$I92:$I$605)) / $I91 -> -219.0358072 | BJ91: =SUM(AE91,BE91) -> -1.852832224 | BK91: =SUM(AN91,BF91) -> -46.29251229 | BM91: 7065.319813 | BN91: =MAX(BN92/(1+H92) - (BJ92 + BK92/(1+H92)),0) -> 6815.520674 | BP91: =Reserve!BX91 -> 9429.371466 | BQ91: 9095.989689 | BR91: 33.40783152 | BT91: 35.87457525 | BU91: 34.64231918 | BV91: =SUMPRODUCT(BU92:BU$605, $I92:$I$605) / $I91 -> 2013.144962 | BX91: =-BZ91*Others!$Q$43 -> -5.095630384 | BZ91: 19.90480619 | CA91: 14.8091758 | CB91: 14.8091758 | CD91: =SUMPRODUCT(BZ92:BZ$605, $I92:$I$605) / $I91 -> 2280.469015 | CE91: =SUMPRODUCT(CA92:CA$605, $I92:$I$605) / $I91 -> 1696.668947 | CF91: =SUMPRODUCT(CB92:CB$605, $I92:$I$605) / $I91 -> 1696.668947 | CH91: 37570.62853 | CI91: 0 | CK91: =NPV((1+CK$3)^(1/12)-1,$CB$6:$CB91)+$CB$5 -> -74.00704386 | CL91: =NPV((1+CL$3)^(1/12)-1,$CB$6:$CB91)+$CB$5 -> -124.0034428 | CM91: =NPV((1+CM$3)^(1/12)-1,$CB$6:$CB91)+$CB$5 -> -226.5519946 | CN91: =NPV((1+CN$3)^(1/12)-1,$CB$6:$CB91)+$CB$5 -> -226.5519946
A92: 7.25 | B92: 3 | C92: 8 | D92: 7.75 | E92: 7 | G92: =INDEX(Others!$D$11:$E$60, MATCH(C92, Others!$A$11:$A$60, 0), MATCH(G$3, Others!$D$10:$E$10, 0)) -> 0.04650716662 | H92: 0.003795360129 | I92: 0.7774723349 | K92: =INDEX(Mortality!$B$7:$F$32, MATCH( E92,Mortality!$A$7:$A$32, 0), MATCH( K$3,Mortality!$B$6:$F$6,0)) -> 0.344 | L92: 0 | M92: 0.344 | N92: =INDEX(Myopia!$H:$H, MATCH(E92, Myopia!$A:$A, 0)) * Trend_Factor^(A92) -> 12.16603037 | O92: 0 | P92: 12.16603037 | Q92: =VLOOKUP(C92,Others!$L$10:$M$61,2) -> 0 | R92: 0 | S92: 0 | T92: 2.866666667e-05 | U92: 0.001013835864 | V92: 0 | W92: 0.9646443266 | X92: 2.763911949e-05 | Y92: 0.0009779769963 | Z92: 0 | AA92: 0.9636387105 | AC92: 0 | AD92: 0 | AE92: 0 | AF92: 0 | AG92: =SUMPRODUCT(AE93:AE$605, $I92:$I$604) / $I92 -> 0 | AI92: -47000 | AJ92: =IF(E92>Mat_Year,0, -SUM($AD$5:AD92)) -> -9306 | AK92: -0.257209646 | AL92: -45.96491883 | AM92: -47.91623938 | AN92: -46.22212847 | AO92: -6816.293417 | AP92: =SUMPRODUCT(AN93:AN$605, $I93:$I$605) / $I92 -> -6575.298774 | AR92: 0 | AS92: 0 | AT92: 0 | AU92: -1.920884344 | AV92: 0 | AW92: -1.920884344 | AX92: -22.02614048 | AY92: 0 | AZ92: -22.02614048 | BA92: -1.852970185 | BB92: -0.02214984184 | BC92: -1.920884344 | BD92: -0.02296166704 | BE92: -1.852970185 | BF92: -0.02214984184 | BG92: -225.9744532 | BH92: =(SUMPRODUCT(BE93:BE$605,$I92:$I$604)+SUMPRODUCT(BF93:BF$605,$I93:$I$605)) / $I92 -> -217.9849743 | BJ92: -1.852970185 | BK92: -46.24427831 | BM92: 7049.616909 | BN92: 6793.283748 | BP92: =Reserve!BX92 -> 9404.496229 | BQ92: 9062.536619 | BR92: 33.45306941 | BT92: 35.78057005 | BU92: 34.51552391 | BV92: =SUMPRODUCT(BU93:BU$605, $I93:$I$605) / $I92 -> 1986.270049 | BX92: =-BZ92*Others!$Q$43 -> -5.087064273 | BZ92: 19.87134481 | CA92: 14.78428054 | CB92: 14.78428054 | CD92: =SUMPRODUCT(BZ93:BZ$605, $I93:$I$605) / $I92 -> 2269.252871 | CE92: =SUMPRODUCT(CA93:CA$605, $I93:$I$605) / $I92 -> 1688.324136 | CF92: =SUMPRODUCT(CB93:CB$605, $I93:$I$605) / $I92 -> 1688.324136 | CH92: 37595.50377 | CI92: 0 | CK92: =NPV((1+CK$3)^(1/12)-1,$CB$6:$CB92)+$CB$5 -> -62.07457483 | CL92: =NPV((1+CL$3)^(1/12)-1,$CB$6:$CB92)+$CB$5 -> -113.6239107 | CM92: =NPV((1+CM$3)^(1/12)-1,$CB$6:$CB92)+$CB$5 -> -219.1439562 | CN92: =NPV((1+CN$3)^(1/12)-1,$CB$6:$CB92)+$CB$5 -> -219.1439562
A93: 7.333333333 | B93: 4 | C93: 8 | D93: 7.833333333 | E93: 7 | G93: =INDEX(Others!$D$11:$E$60, MATCH(C93, Others!$A$11:$A$60, 0), MATCH(G$3, Others!$D$10:$E$10, 0)) -> 0.04650716662 | H93: 0.003795360129 | I93: 0.7745327044 | K93: =INDEX(Mortality!$B$7:$F$32, MATCH( E93,Mortality!$A$7:$A$32, 0), MATCH( K$3,Mortality!$B$6:$F$6,0)) -> 0.344 | L93: 0 | M93: 0.344 | N93: =INDEX(Myopia!$H:$H, MATCH(E93, Myopia!$A:$A, 0)) * Trend_Factor^(A93) -> 12.16603037 | O93: 0 | P93: 12.16603037 | Q93: =VLOOKUP(C93,Others!$L$10:$M$61,2) -> 0 | R93: 0 | S93: 0 | T93: 2.866666667e-05 | U93: 0.001013835864 | V93: 0 | W93: 0.9636387105 | X93: 2.761030644e-05 | Y93: 0.0009769574812 | Z93: 0 | AA93: 0.9626341427 | AC93: 0 | AD93: 0 | AE93: 0 | AF93: 0 | AG93: =SUMPRODUCT(AE94:AE$605, $I93:$I$604) / $I93 -> 0 | AI93: -47000 | AJ93: =IF(E93>Mat_Year,0, -SUM($AD$5:AD93)) -> -9306 | AK93: -0.2569415118 | AL93: -45.91700162 | AM93: -47.91623938 | AN93: -46.17394313 | AO93: -6801.387684 | AP93: =SUMPRODUCT(AN94:AN$605, $I94:$I$605) / $I93 -> -6554.080457 | AR93: 0 | AS93: 0 | AT93: 0 | AU93: -1.923032082 | AV93: 0 | AW93: -1.923032082 | AX93: -22.05076788 | AY93: 0 | AZ93: -22.05076788 | BA93: -1.853108156 | BB93: -0.0221514911 | BC93: -1.923032082 | BD93: -0.02298734044 | BE93: -1.853108156 | BF93: -0.0221514911 | BG93: -225.1155029 | BH93: =(SUMPRODUCT(BE94:BE$605,$I93:$I$604)+SUMPRODUCT(BF94:BF$605,$I94:$I$605)) / $I93 -> -216.9300129 | BJ93: -1.853108156 | BK93: -46.19609462 | BM93: 7033.835774 | BN93: 6771.01047 | BP93: =Reserve!BX93 -> 9379.511593 | BQ93: 9029.038101 | BR93: 33.49851786 | BT93: 35.68615142 | BU93: 34.38855694 | BV93: =SUMPRODUCT(BU94:BU$605, $I94:$I$605) / $I93 -> 1959.420102 | BX93: =-BZ93*Others!$Q$43 -> -5.078495238 | BZ93: 19.83787202 | CA93: 14.75937679 | CB93: 14.75937679 | CD93: =SUMPRODUCT(BZ94:BZ$605, $I94:$I$605) / $I93 -> 2258.027631 | CE93: =SUMPRODUCT(CA94:CA$605, $I94:$I$605) / $I93 -> 1679.972558 | CF93: =SUMPRODUCT(CB94:CB$605, $I94:$I$605) / $I93 -> 1679.972558 | CH93: 37620.48841 | CI93: 0 | CK93: =NPV((1+CK$3)^(1/12)-1,$CB$6:$CB93)+$CB$5 -> -50.19151259 | CL93: =NPV((1+CL$3)^(1/12)-1,$CB$6:$CB93)+$CB$5 -> -103.3039076 | CM93: =NPV((1+CM$3)^(1/12)-1,$CB$6:$CB93)+$CB$5 -> -211.8069031 | CN93: =NPV((1+CN$3)^(1/12)-1,$CB$6:$CB93)+$CB$5 -> -211.8069031
A94: 7.416666667 | B94: 5 | C94: 8 | D94: 7.916666667 | E94: 7 | G94: =INDEX(Others!$D$11:$E$60, MATCH(C94, Others!$A$11:$A$60, 0), MATCH(G$3, Others!$D$10:$E$10, 0)) -> 0.04650716662 | H94: 0.003795360129 | I94: 0.7716041886 | K94: =INDEX(Mortality!$B$7:$F$32, MATCH( E94,Mortality!$A$7:$A$32, 0), MATCH( K$3,Mortality!$B$6:$F$6,0)) -> 0.344 | L94: 0 | M94: 0.344 | N94: =INDEX(Myopia!$H:$H, MATCH(E94, Myopia!$A:$A, 0)) * Trend_Factor^(A94) -> 12.16603037 | O94: 0 | P94: 12.16603037 | Q94: =VLOOKUP(C94,Others!$L$10:$M$61,2) -> 0 | R94: 0 | S94: 0 | T94: 2.866666667e-05 | U94: 0.001013835864 | V94: 0 | W94: 0.9626341427 | X94: 2.758152343e-05 | Y94: 0.000975939029 | Z94: 0 | AA94: 0.9616306222 | AC94: 0 | AD94: 0 | AE94: 0 | AF94: 0 | AG94: =SUMPRODUCT(AE95:AE$605, $I94:$I$604) / $I94 -> 0 | AI94: -47000 | AJ94: =IF(E94>Mat_Year,0, -SUM($AD$5:AD94)) -> -9306 | AK94: -0.2566736571 | AL94: -45.86913436 | AM94: -47.91623938 | AN94: -46.12580802 | AO94: -6786.409763 | AP94: =SUMPRODUCT(AN95:AN$605, $I95:$I$605) / $I94 -> -6532.829745 | AR94: 0 | AS94: 0 | AT94: 0 | AU94: -1.925182222 | AV94: 0 | AW94: -1.925182222 | AX94: -22.07542281 | AY94: 0 | AZ94: -22.07542281 | BA94: -1.853246138 | BB94: -0.02215314049 | BC94: -1.925182222 | BD94: -0.02301304255 | BE94: -1.853246138 | BF94: -0.02215314049 | BG94: -224.2502087 | BH94: =(SUMPRODUCT(BE95:BE$605,$I94:$I$604)+SUMPRODUCT(BF95:BF$605,$I95:$I$605)) / $I94 -> -215.8709074 | BJ94: -1.853246138 | BK94: -46.14796116 | BM94: 7017.976026 | BN94: 6748.700652 | BP94: =Reserve!BX94 -> 9354.417087 | BQ94: 8995.493924 | BR94: 33.54417749 | BT94: 35.59131757 | BU94: 34.26141747 | BV94: =SUMPRODUCT(BU95:BU$605, $I95:$I$605) / $I94 -> 1932.595389 | BX94: =-BZ94*Others!$Q$43 -> -5.069923243 | BZ94: 19.80438767 | CA94: 14.73446442 | CB94: 14.73446442 | CD94: =SUMPRODUCT(BZ95:BZ$605, $I95:$I$605) / $I94 -> 2246.793272 | CE94: =SUMPRODUCT(CA95:CA$605, $I95:$I$605) / $I94 -> 1671.614194 | CF94: =SUMPRODUCT(CB95:CB$605, $I95:$I$605) / $I94 -> 1671.614194 | CH94: 37645.58291 | CI94: 0 | CK94: =NPV((1+CK$3)^(1/12)-1,$CB$6:$CB94)+$CB$5 -> -38.35769316 | CL94: =NPV((1+CL$3)^(1/12)-1,$CB$6:$CB94)+$CB$5 -> -93.04312739 | CM94: =NPV((1+CM$3)^(1/12)-1,$CB$6:$CB94)+$CB$5 -> -204.5401801 | CN94: =NPV((1+CN$3)^(1/12)-1,$CB$6:$CB94)+$CB$5 -> -204.5401801
A95: 7.5 | B95: 6 | C95: 8 | D95: 8 | E95: 8 | G95: =INDEX(Others!$D$11:$E$60, MATCH(C95, Others!$A$11:$A$60, 0), MATCH(G$3, Others!$D$10:$E$10, 0)) -> 0.04650716662 | H95: 0.003795360129 | I95: 0.7686867456 | K95: =INDEX(Mortality!$B$7:$F$32, MATCH( E95,Mortality!$A$7:$A$32, 0), MATCH( K$3,Mortality!$B$6:$F$6,0)) -> 0.348 | L95: 0 | M95: 0.348 | N95: =INDEX(Myopia!$H:$H, MATCH(E95, Myopia!$A:$A, 0)) * Trend_Factor^(A95) -> 12.01979715 | O95: 0 | P95: 12.01979715 | Q95: =VLOOKUP(C95,Others!$L$10:$M$61,2) -> 0 | R95: 0 | S95: 0 | T95: 2.9e-05 | U95: 0.001001649762 | V95: 0 | W95: 0.9616306222 | X95: 2.78733214e-05 | Y95: 0.0009632031176 | Z95: 0 | AA95: 0.9606395457 | AC95: 0 | AD95: 0 | AE95: 0 | AF95: 0 | AG95: =SUMPRODUCT(AE96:AE$605, $I95:$I$604) / $I95 -> 0 | AI95: -47000 | AJ95: =IF(E95>Mat_Year,0, -SUM($AD$5:AD95)) -> -9306 | AK95: -0.2593891289 | AL95: -45.27054653 | AM95: -47.34659505 | AN95: -45.52993565 | AO95: -6771.928951 | AP95: =SUMPRODUCT(AN96:AN$605, $I96:$I$605) / $I95 -> -6512.094251 | AR95: 0 | AS95: 0 | AT95: 0 | AU95: -1.927334765 | AV95: 0 | AW95: -1.927334765 | AX95: -22.10010531 | AY95: 0 | AZ95: -22.10010531 | BA95: -1.853384129 | BB95: -0.02190289367 | BC95: -1.927334765 | BD95: -0.02277682632 | BE95: -1.853384129 | BF95: -0.02190289367 | BG95: -223.3787995 | BH95: =(SUMPRODUCT(BE96:BE$605,$I95:$I$604)+SUMPRODUCT(BF96:BF$605,$I96:$I$605)) / $I95 -> -214.807894 | BJ95: -1.853384129 | BK95: -45.55183855 | BM95: 7002.524698 | BN95: 6726.902145 | BP95: =Reserve!BX95 -> 9329.81023 | BQ95: 8962.584661 | BR95: 32.90926266 | BT95: 35.49606671 | BU95: 34.13410472 | BV95: =SUMPRODUCT(BU96:BU$605, $I96:$I$605) / $I95 -> 1905.79618 | BX95: =-BZ95*Others!$Q$43 -> -5.027365042 | BZ95: 19.63814469 | CA95: 14.61077965 | CB95: 14.61077965 | CD95: =SUMPRODUCT(BZ96:BZ$605, $I96:$I$605) / $I95 -> 2235.682516 | CE95: =SUMPRODUCT(CA96:CA$605, $I96:$I$605) / $I95 -> 1663.347792 | CF95: =SUMPRODUCT(CB96:CB$605, $I96:$I$605) / $I95 -> 1663.347792 | CH95: 37670.18977 | CI95: 0 | CK95: =NPV((1+CK$3)^(1/12)-1,$CB$6:$CB95)+$CB$5 -> -26.65207898 | CL95: =NPV((1+CL$3)^(1/12)-1,$CB$6:$CB95)+$CB$5 -> -82.90976328 | CM95: =NPV((1+CM$3)^(1/12)-1,$CB$6:$CB95)+$CB$5 -> -197.3914607 | CN95: =NPV((1+CN$3)^(1/12)-1,$CB$6:$CB95)+$CB$5 -> -197.3914607
A96: 7.583333333 | B96: 7 | C96: 8 | D96: 8.083333333 | E96: 8 | G96: =INDEX(Others!$D$11:$E$60, MATCH(C96, Others!$A$11:$A$60, 0), MATCH(G$3, Others!$D$10:$E$10, 0)) -> 0.04650716662 | H96: 0.003795360129 | I96: 0.7657803334 | K96: =INDEX(Mortality!$B$7:$F$32, MATCH( E96,Mortality!$A$7:$A$32, 0), MATCH( K$3,Mortality!$B$6:$F$6,0)) -> 0.348 | L96: 0 | M96: 0.348 | N96: =INDEX(Myopia!$H:$H, MATCH(E96, Myopia!$A:$A, 0)) * Trend_Factor^(A96) -> 12.01979715 | O96: 0 | P96: 12.01979715 | Q96: =VLOOKUP(C96,Others!$L$10:$M$61,2) -> 0 | R96: 0 | S96: 0 | T96: 2.9e-05 | U96: 0.001001649762 | V96: 0 | W96: 0.9606395457 | X96: 2.784459457e-05 | Y96: 0.0009622104205 | Z96: 0 | AA96: 0.9596494907 | AC96: 0 | AD96: 0 | AE96: 0 | AF96: 0 | AG96: =SUMPRODUCT(AE97:AE$605, $I96:$I$604) / $I96 -> 0 | AI96: -47000 | AJ96: =IF(E96>Mat_Year,0, -SUM($AD$5:AD96)) -> -9306 | AK96: -0.2591217971 | AL96: -45.22388976 | AM96: -47.34659505 | AN96: -45.48301156 | AO96: -6757.297272 | AP96: =SUMPRODUCT(AN97:AN$605, $I97:$I$605) / $I96 -> -6491.326982 | AR96: 0 | AS96: 0 | AT96: 0 | AU96: -1.929489715 | AV96: 0 | AW96: -1.929489715 | AX96: -22.1248154 | AY96: 0 | AZ96: -22.1248154 | BA96: -1.853544124 | BB96: -0.02190478444 | BC96: -1.929489715 | BD96: -0.02280229306 | BE96: -1.853544124 | BF96: -0.02190478444 | BG96: -222.4983184 | BH96: =(SUMPRODUCT(BE97:BE$605,$I96:$I$604)+SUMPRODUCT(BF97:BF$605,$I97:$I$605)) / $I96 -> -213.7406835 | BJ96: -1.853544124 | BK96: -45.50491634 | BM96: 6986.996534 | BN96: 6705.067666 | BP96: =Reserve!BX96 -> 9305.095463 | BQ96: 8929.630122 | BR96: 32.95453912 | BT96: 35.40266665 | BU96: 34.00920161 | BV96: =SUMPRODUCT(BU97:BU$605, $I97:$I$605) / $I96 -> 1879.020161 | BX96: =-BZ96*Others!$Q$43 -> -5.018951746 | BZ96: 19.60528026 | CA96: 14.58632851 | CB96: 14.58632851 | CD96: =SUMPRODUCT(BZ97:BZ$605, $I97:$I$605) / $I96 -> 2224.562456 | CE96: =SUMPRODUCT(CA97:CA$605, $I97:$I$605) / $I96 -> 1655.074468 | CF96: =SUMPRODUCT(CB97:CB$605, $I97:$I$605) / $I96 -> 1655.074468 | CH96: 37694.90454 | CI96: 0.9045372774 | CK96: =NPV((1+CK$3)^(1/12)-1,$CB$6:$CB96)+$CB$5 -> -14.99480412 | CL96: =NPV((1+CL$3)^(1/12)-1,$CB$6:$CB96)+$CB$5 -> -72.8344056 | CM96: =NPV((1+CM$3)^(1/12)-1,$CB$6:$CB96)+$CB$5 -> -190.3111639 | CN96: =NPV((1+CN$3)^(1/12)-1,$CB$6:$CB96)+$CB$5 -> -190.3111639
A97: 7.666666667 | B97: 8 | C97: 8 | D97: 8.166666667 | E97: 8 | G97: =INDEX(Others!$D$11:$E$60, MATCH(C97, Others!$A$11:$A$60, 0), MATCH(G$3, Others!$D$10:$E$10, 0)) -> 0.04650716662 | H97: 0.003795360129 | I97: 0.7628849104 | K97: =INDEX(Mortality!$B$7:$F$32, MATCH( E97,Mortality!$A$7:$A$32, 0), MATCH( K$3,Mortality!$B$6:$F$6,0)) -> 0.348 | L97: 0 | M97: 0.348 | N97: =INDEX(Myopia!$H:$H, MATCH(E97, Myopia!$A:$A, 0)) * Trend_Factor^(A97) -> 12.01979715 | O97: 0 | P97: 12.01979715 | Q97: =VLOOKUP(C97,Others!$L$10:$M$61,2) -> 0 | R97: 0 | S97: 0 | T97: 2.9e-05 | U97: 0.001001649762 | V97: 0 | W97: 0.9596494907 | X97: 2.781589736e-05 | Y97: 0.0009612187465 | Z97: 0 | AA97: 0.9586604561 | AC97: 0 | AD97: 0 | AE97: 0 | AF97: 0 | AG97: =SUMPRODUCT(AE98:AE$605, $I97:$I$604) / $I97 -> 0 | AI97: -47000 | AJ97: =IF(E97>Mat_Year,0, -SUM($AD$5:AD97)) -> -9306 | AK97: -0.2588547408 | AL97: -45.17728108 | AM97: -47.34659505 | AN97: -45.43613583 | AO97: -6742.594908 | AP97: =SUMPRODUCT(AN98:AN$605, $I98:$I$605) / $I97 -> -6470.52777 | AR97: 0 | AS97: 0 | AT97: 0 | AU97: -1.931647075 | AV97: 0 | AW97: -1.931647075 | AX97: -22.14955312 | AY97: 0 | AZ97: -22.14955312 | BA97: -1.853704132 | BB97: -0.02190667539 | BC97: -1.931647075 | BD97: -0.02282778827 | BE97: -1.853704132 | BF97: -0.02190667539 | BG97: -221.6113926 | BH97: =(SUMPRODUCT(BE98:BE$605,$I97:$I$604)+SUMPRODUCT(BF98:BF$605,$I98:$I$605)) / $I97 -> -212.6692601 | BJ97: -1.853704132 | BK97: -45.4580425 | BM97: 6971.391161 | BN97: 6683.19703 | BP97: =Reserve!BX97 -> 9280.272324 | BQ97: 8896.630098 | BR97: 33.00002366 | BT97: 35.30885702 | BU97: 33.88412665 | BV97: =SUMPRODUCT(BU98:BU$605, $I98:$I$605) / $I97 -> 1852.267593 | BX97: =-BZ97*Others!$Q$43 -> -5.010535344 | BZ97: 19.57240369 | CA97: 14.56186834 | CB97: 14.56186834 | CD97: =SUMPRODUCT(BZ98:BZ$605, $I98:$I$605) / $I97 -> 2213.433068 | CE97: =SUMPRODUCT(CA98:CA$605, $I98:$I$605) / $I97 -> 1646.794203 | CF97: =SUMPRODUCT(CB98:CB$605, $I98:$I$605) / $I97 -> 1646.794203 | CH97: 37719.72768 | CI97: 25.72767642 | CK97: =NPV((1+CK$3)^(1/12)-1,$CB$6:$CB97)+$CB$5 -> -3.385708792 | CL97: =NPV((1+CL$3)^(1/12)-1,$CB$6:$CB97)+$CB$5 -> -62.81675668 | CM97: =NPV((1+CM$3)^(1/12)-1,$CB$6:$CB97)+$CB$5 -> -183.2986589 | CN97: =NPV((1+CN$3)^(1/12)-1,$CB$6:$CB97)+$CB$5 -> -183.2986589
A98: 7.75 | B98: 9 | C98: 8 | D98: 8.25 | E98: 8 | G98: =INDEX(Others!$D$11:$E$60, MATCH(C98, Others!$A$11:$A$60, 0), MATCH(G$3, Others!$D$10:$E$10, 0)) -> 0.04650716662 | H98: 0.003795360129 | I98: 0.7600004351 | K98: =INDEX(Mortality!$B$7:$F$32, MATCH( E98,Mortality!$A$7:$A$32, 0), MATCH( K$3,Mortality!$B$6:$F$6,0)) -> 0.348 | L98: 0 | M98: 0.348 | N98: =INDEX(Myopia!$H:$H, MATCH(E98, Myopia!$A:$A, 0)) * Trend_Factor^(A98) -> 12.01979715 | O98: 0 | P98: 12.01979715 | Q98: =VLOOKUP(C98,Others!$L$10:$M$61,2) -> 0 | R98: 0 | S98: 0 | T98: 2.9e-05 | U98: 0.001001649762 | V98: 0 | W98: 0.9586604561 | X98: 2.778722972e-05 | Y98: 0.0009602280945 | Z98: 0 | AA98: 0.9576724408 | AC98: 0 | AD98: 0 | AE98: 0 | AF98: 0 | AG98: =SUMPRODUCT(AE99:AE$605, $I98:$I$604) / $I98 -> 0 | AI98: -47000 | AJ98: =IF(E98>Mat_Year,0, -SUM($AD$5:AD98)) -> -9306 | AK98: -0.2585879597 | AL98: -45.13072044 | AM98: -47.34659505 | AN98: -45.3893084 | AO98: -6727.821518 | AP98: =SUMPRODUCT(AN99:AN$605, $I99:$I$605) / $I98 -> -6449.696445 | AR98: 0 | AS98: 0 | AT98: 0 | AU98: -1.933806846 | AV98: 0 | AW98: -1.933806846 | AX98: -22.17431851 | AY98: 0 | AZ98: -22.17431851 | BA98: -1.853864153 | BB98: -0.02190856649 | BC98: -1.933806846 | BD98: -0.02285331198 | BE98: -1.853864153 | BF98: -0.02190856649 | BG98: -220.7179887 | BH98: =(SUMPRODUCT(BE99:BE$605,$I98:$I$604)+SUMPRODUCT(BF99:BF$605,$I99:$I$605)) / $I98 -> -211.5936077 | BJ98: -1.853864153 | BK98: -45.41121697 | BM98: 6955.708203 | BN98: 6661.290052 | BP98: =Reserve!BX98 -> 9255.340348 | BQ98: 8863.584381 | BR98: 33.04571689 | BT98: 35.21463607 | BU98: 33.75887907 | BV98: =SUMPRODUCT(BU99:BU$605, $I99:$I$605) / $I98 -> 1825.538736 | BX98: =-BZ98*Others!$Q$43 -> -5.002115799 | BZ98: 19.53951484 | CA98: 14.53739904 | CB98: 14.53739904 | CD98: =SUMPRODUCT(BZ99:BZ$605, $I99:$I$605) / $I98 -> 2202.294329 | CE98: =SUMPRODUCT(CA99:CA$605, $I99:$I$605) / $I98 -> 1638.506981 | CF98: =SUMPRODUCT(CB99:CB$605, $I99:$I$605) / $I98 -> 1638.506981 | CH98: 37744.65965 | CI98: 50.65965169 | CK98: =NPV((1+CK$3)^(1/12)-1,$CB$6:$CB98)+$CB$5 -> 8.17536625 | CL98: =NPV((1+CL$3)^(1/12)-1,$CB$6:$CB98)+$CB$5 -> -52.85652034 | CM98: =NPV((1+CM$3)^(1/12)-1,$CB$6:$CB98)+$CB$5 -> -176.3533207 | CN98: =NPV((1+CN$3)^(1/12)-1,$CB$6:$CB98)+$CB$5 -> -176.3533207
A99: 7.833333333 | B99: 10 | C99: 8 | D99: 8.333333333 | E99: 8 | G99: =INDEX(Others!$D$11:$E$60, MATCH(C99, Others!$A$11:$A$60, 0), MATCH(G$3, Others!$D$10:$E$10, 0)) -> 0.04650716662 | H99: 0.003795360129 | I99: 0.757126866 | K99: =INDEX(Mortality!$B$7:$F$32, MATCH( E99,Mortality!$A$7:$A$32, 0), MATCH( K$3,Mortality!$B$6:$F$6,0)) -> 0.348 | L99: 0 | M99: 0.348 | N99: =INDEX(Myopia!$H:$H, MATCH(E99, Myopia!$A:$A, 0)) * Trend_Factor^(A99) -> 12.01979715 | O99: 0 | P99: 12.01979715 | Q99: =VLOOKUP(C99,Others!$L$10:$M$61,2) -> 0 | R99: 0 | S99: 0 | T99: 2.9e-05 | U99: 0.001001649762 | V99: 0 | W99: 0.9576724408 | X99: 2.775859162e-05 | Y99: 0.0009592384636 | Z99: 0 | AA99: 0.9566854437 | AC99: 0 | AD99: 0 | AE99: 0 | AF99: 0 | AG99: =SUMPRODUCT(AE100:AE$605, $I99:$I$604) / $I99 -> 0 | AI99: -47000 | AJ99: =IF(E99>Mat_Year,0, -SUM($AD$5:AD99)) -> -9306 | AK99: -0.2583214536 | AL99: -45.08420779 | AM99: -47.34659505 | AN99: -45.34252924 | AO99: -6712.976757 | AP99: =SUMPRODUCT(AN100:AN$605, $I100:$I$605) / $I99 -> -6428.832836 | AR99: 0 | AS99: 0 | AT99: 0 | AU99: -1.935969033 | AV99: 0 | AW99: -1.935969033 | AX99: -22.19911158 | AY99: 0 | AZ99: -22.19911158 | BA99: -1.854024189 | BB99: -0.02191045776 | BC99: -1.935969033 | BD99: -0.02287886424 | BE99: -1.854024189 | BF99: -0.02191045776 | BG99: -219.8180728 | BH99: =(SUMPRODUCT(BE100:BE$605,$I99:$I$604)+SUMPRODUCT(BF100:BF$605,$I100:$I$605)) / $I99 -> -210.5137103 | BJ99: -1.854024189 | BK99: -45.3644397 | BM99: 6939.947284 | BN99: 6639.346546 | BP99: =Reserve!BX99 -> 9230.299071 | BQ99: 8830.492762 | BR99: 33.09161939 | BT99: 35.12000204 | BU99: 33.63345807 | BV99: =SUMPRODUCT(BU100:BU$605, $I100:$I$605) / $I99 -> 1798.833855 | BX99: =-BZ99*Others!$Q$43 -> -4.993693073 | BZ99: 19.50661357 | CA99: 14.51292049 | CB99: 14.51292049 | CD99: =SUMPRODUCT(BZ100:BZ$605, $I100:$I$605) / $I99 -> 2191.146216 | CE99: =SUMPRODUCT(CA100:CA$605, $I100:$I$605) / $I99 -> 1630.212785 | CF99: =SUMPRODUCT(CB100:CB$605, $I100:$I$605) / $I99 -> 1630.212785 | CH99: 37769.70093 | CI99: 75.70092924 | CK99: =NPV((1+CK$3)^(1/12)-1,$CB$6:$CB99)+$CB$5 -> 19.68857969 | CL99: =NPV((1+CL$3)^(1/12)-1,$CB$6:$CB99)+$CB$5 -> -42.95340189 | CM99: =NPV((1+CM$3)^(1/12)-1,$CB$6:$CB99)+$CB$5 -> -169.4745297 | CN99: =NPV((1+CN$3)^(1/12)-1,$CB$6:$CB99)+$CB$5 -> -169.4745297
A100: 7.916666667 | B100: 11 | C100: 8 | D100: 8.416666667 | E100: 8 | G100: =INDEX(Others!$D$11:$E$60, MATCH(C100, Others!$A$11:$A$60, 0), MATCH(G$3, Others!$D$10:$E$10, 0)) -> 0.04650716662 | H100: 0.003795360129 | I100: 0.7542641619 | K100: =INDEX(Mortality!$B$7:$F$32, MATCH( E100,Mortality!$A$7:$A$32, 0), MATCH( K$3,Mortality!$B$6:$F$6,0)) -> 0.348 | L100: 0 | M100: 0.348 | N100: =INDEX(Myopia!$H:$H, MATCH(E100, Myopia!$A:$A, 0)) * Trend_Factor^(A100) -> 12.01979715 | O100: 0 | P100: 12.01979715 | Q100: =VLOOKUP(C100,Others!$L$10:$M$61,2) -> 0 | R100: 0 | S100: 0 | T100: 2.9e-05 | U100: 0.001001649762 | V100: 0 | W100: 0.9566854437 | X100: 2.772998304e-05 | Y100: 0.0009582498525 | Z100: 0 | AA100: 0.9556994639 | AC100: 0 | AD100: 0 | AE100: 0 | AF100: 0 | AG100: =SUMPRODUCT(AE101:AE$605, $I100:$I$604) / $I100 -> 0 | AI100: -47000 | AJ100: =IF(E100>Mat_Year,0, -SUM($AD$5:AD100)) -> -9306 | AK100: -0.2580552222 | AL100: -45.03774307 | AM100: -47.34659505 | AN100: -45.29579829 | AO100: -6698.060283 | AP100: =SUMPRODUCT(AN101:AN$605, $I101:$I$605) / $I100 -> -6407.936774 | AR100: 0 | AS100: 0 | AT100: 0 | AU100: -1.938133637 | AV100: 0 | AW100: -1.938133637 | AX100: -22.22393237 | AY100: 0 | AZ100: -22.22393237 | BA100: -1.854184239 | BB100: -0.02191234919 | BC100: -1.938133637 | BD100: -0.02290444506 | BE100: -1.854184239 | BF100: -0.02191234919 | BG100: -218.9116111 | BH100: =(SUMPRODUCT(BE101:BE$605,$I100:$I$604)+SUMPRODUCT(BF101:BF$605,$I101:$I$605)) / $I100 -> -209.4295518 | BJ100: -1.854184239 | BK100: -45.31771064 | BM100: 6924.108023 | BN100: 6617.366325 | BP100: =Reserve!BX100 -> 9205.148023 | BQ100: 8797.35503 | BR100: 33.13773176 | BT100: 35.02495315 | BU100: 33.50786285 | BV100: =SUMPRODUCT(BU101:BU$605, $I101:$I$605) / $I100 -> 1772.153215 | BX100: =-BZ100*Others!$Q$43 -> -4.985267131 | BZ100: 19.47369973 | CA100: 14.4884326 | CB100: 14.4884326 | CD100: =SUMPRODUCT(BZ101:BZ$605, $I101:$I$605) / $I100 -> 2179.988705 | CE100: =SUMPRODUCT(CA101:CA$605, $I101:$I$605) / $I100 -> 1621.911597 | CF100: =SUMPRODUCT(CB101:CB$605, $I101:$I$605) / $I100 -> 1621.911597 | CH100: 37794.85198 | CI100: 100.8519771 | CK100: =NPV((1+CK$3)^(1/12)-1,$CB$6:$CB100)+$CB$5 -> 31.15408965 | CL100: =NPV((1+CL$3)^(1/12)-1,$CB$6:$CB100)+$CB$5 -> -33.10710817 | CM100: =NPV((1+CM$3)^(1/12)-1,$CB$6:$CB100)+$CB$5 -> -162.661672 | CN100: =NPV((1+CN$3)^(1/12)-1,$CB$6:$CB100)+$CB$5 -> -162.661672
A101: 8 | B101: 12 | C101: 8 | D101: 8.5 | E101: 8 | G101: =INDEX(Others!$D$11:$E$60, MATCH(C101, Others!$A$11:$A$60, 0), MATCH(G$3, Others!$D$10:$E$10, 0)) -> 0.04650716662 | H101: 0.003795360129 | I101: 0.7514122816 | K101: =INDEX(Mortality!$B$7:$F$32, MATCH( E101,Mortality!$A$7:$A$32, 0), MATCH( K$3,Mortality!$B$6:$F$6,0)) -> 0.348 | L101: 0 | M101: 0.348 | N101: =INDEX(Myopia!$H:$H, MATCH(E101, Myopia!$A:$A, 0)) * Trend_Factor^(A101) -> 12.01979715 | O101: 0 | P101: 12.01979715 | Q101: =VLOOKUP(C101,Others!$L$10:$M$61,2) -> 0 | R101: 0 | S101: 0 | T101: 2.9e-05 | U101: 0.001001649762 | V101: 0 | W101: 0.9556994639 | X101: 2.770140395e-05 | Y101: 0.0009572622604 | Z101: 0 | AA101: 0.9547145002 | AC101: 0 | AD101: 0 | AE101: 0 | AF101: 0 | AG101: =SUMPRODUCT(AE102:AE$605, $I101:$I$604) / $I101 -> 0 | AI101: -47000 | AJ101: =IF(E101>Mat_Year,0, -SUM($AD$5:AD101)) -> -9306 | AK101: -0.2577892651 | AL101: -44.99132624 | AM101: -47.34659505 | AN101: -45.2491155 | AO101: -6683.071747 | AP101: =SUMPRODUCT(AN102:AN$605, $I102:$I$605) / $I101 -> -6387.008086 | AR101: 0 | AS101: 0 | AT101: 0 | AU101: -1.940300661 | AV101: 0 | AW101: -1.940300661 | AX101: -22.24878092 | AY101: 0 | AZ101: -22.24878092 | BA101: -1.854344302 | BB101: -0.02191424078 | BC101: -1.940300661 | BD101: -0.02293005449 | BE101: -1.854344302 | BF101: -0.02191424078 | BG101: -217.9985694 | BH101: =(SUMPRODUCT(BE102:BE$605,$I101:$I$604)+SUMPRODUCT(BF102:BF$605,$I102:$I$605)) / $I101 -> -208.3411159 | BJ101: -1.854344302 | BK101: -45.27102974 | BM101: 6908.19004 | BN101: 6595.349202 | BP101: =Reserve!BX101 -> 9179.886734 | BQ101: 8764.170976 | BR101: 33.18405462 | BT101: 34.92948764 | BU101: 33.38209262 | BV101: =SUMPRODUCT(BU102:BU$605, $I102:$I$605) / $I101 -> 1745.497082 | BX101: =-BZ101*Others!$Q$43 -> -4.976837935 | BZ101: 19.44077319 | CA101: 14.46393525 | CB101: 14.46393525 | CD101: =SUMPRODUCT(BZ102:BZ$605, $I102:$I$605) / $I101 -> 2168.821774 | CE101: =SUMPRODUCT(CA102:CA$605, $I102:$I$605) / $I101 -> 1613.6034 | CF101: =SUMPRODUCT(CB102:CB$605, $I102:$I$605) / $I101 -> 1613.6034 | CH101: 37820.11327 | CI101: 126.1132655 | CK101: =NPV((1+CK$3)^(1/12)-1,$CB$6:$CB101)+$CB$5 -> 42.5720537 | CL101: =NPV((1+CL$3)^(1/12)-1,$CB$6:$CB101)+$CB$5 -> -23.31734746 | CM101: =NPV((1+CM$3)^(1/12)-1,$CB$6:$CB101)+$CB$5 -> -155.9141395 | CN101: =NPV((1+CN$3)^(1/12)-1,$CB$6:$CB101)+$CB$5 -> -155.9141395
A102: 8.083333333 | B102: 1 | C102: 9 | D102: 8.583333333 | E102: 8 | G102: =INDEX(Others!$D$11:$E$60, MATCH(C102, Others!$A$11:$A$60, 0), MATCH(G$3, Others!$D$10:$E$10, 0)) -> 0.04940317292 | H102: 0.00402655118 | I102: 0.7483988155 | K102: =INDEX(Mortality!$B$7:$F$32, MATCH( E102,Mortality!$A$7:$A$32, 0), MATCH( K$3,Mortality!$B$6:$F$6,0)) -> 0.348 | L102: 0 | M102: 0.348 | N102: =INDEX(Myopia!$H:$H, MATCH(E102, Myopia!$A:$A, 0)) * Trend_Factor^(A102) -> 12.01979715 | O102: 0 | P102: 12.01979715 | Q102: =VLOOKUP(C102,Others!$L$10:$M$61,2) -> 0 | R102: 0 | S102: 0 | T102: 2.9e-05 | U102: 0.001001649762 | V102: 0 | W102: 0.9547145002 | X102: 2.767285431e-05 | Y102: 0.0009562756861 | Z102: 0 | AA102: 0.9537305517 | AC102: 0 | AD102: 0 | AE102: 0 | AF102: 0 | AG102: =SUMPRODUCT(AE103:AE$605, $I102:$I$604) / $I102 -> 0 | AI102: -47000 | AJ102: =IF(E102>Mat_Year,0, -SUM($AD$5:AD102)) -> -9306 | AK102: -0.2575235822 | AL102: -44.94495725 | AM102: -47.34659505 | AN102: -45.20248083 | AO102: -6669.557463 | AP102: =SUMPRODUCT(AN103:AN$605, $I103:$I$605) / $I102 -> -6367.52322 | AR102: 0 | AS102: 0 | AT102: 0 | AU102: -1.942470109 | AV102: 0 | AW102: -1.942470109 | AX102: -22.27365725 | AY102: 0 | AZ102: -22.27365725 | BA102: -1.854504379 | BB102: -0.02191613254 | BC102: -1.942470109 | BD102: -0.02295569255 | BE102: -1.854504379 | BF102: -0.02191613254 | BG102: -217.1289158 | BH102: =(SUMPRODUCT(BE103:BE$605,$I102:$I$604)+SUMPRODUCT(BF103:BF$605,$I103:$I$605)) / $I102 -> -207.2961243 | BJ102: -1.854504379 | BK102: -45.22439696 | BM102: 6893.791263 | BN102: 6574.819344 | BP102: =Reserve!BX102 -> 9156.125087 | BQ102: 8732.47623 | BR102: 31.69474553 | BT102: 36.95546231 | BU102: 35.28191573 | BV102: =SUMPRODUCT(BU103:BU$605, $I103:$I$605) / $I102 -> 1717.243499 | BX102: =-BZ102*Others!$Q$43 -> -5.09382654 | BZ102: 19.89775992 | CA102: 14.80393338 | CB102: 14.80393338 | CD102: =SUMPRODUCT(BZ103:BZ$605, $I103:$I$605) / $I102 -> 2157.656886 | CE102: =SUMPRODUCT(CA103:CA$605, $I103:$I$605) / $I102 -> 1605.296723 | CF102: =SUMPRODUCT(CB103:CB$605, $I103:$I$605) / $I102 -> 1605.296723 | CH102: 37843.87491 | CI102: 149.8749132 | CK102: =NPV((1+CK$3)^(1/12)-1,$CB$6:$CB102)+$CB$5 -> 54.2296646 | CL102: =NPV((1+CL$3)^(1/12)-1,$CB$6:$CB102)+$CB$5 -> -13.33811925 | CM102: =NPV((1+CM$3)^(1/12)-1,$CB$6:$CB102)+$CB$5 -> -149.0626302 | CN102: =NPV((1+CN$3)^(1/12)-1,$CB$6:$CB102)+$CB$5 -> -149.0626302
A103: 8.166666667 | B103: 2 | C103: 9 | D103: 8.666666667 | E103: 8 | G103: =INDEX(Others!$D$11:$E$60, MATCH(C103, Others!$A$11:$A$60, 0), MATCH(G$3, Others!$D$10:$E$10, 0)) -> 0.04940317292 | H103: 0.00402655118 | I103: 0.7453974346 | K103: =INDEX(Mortality!$B$7:$F$32, MATCH( E103,Mortality!$A$7:$A$32, 0), MATCH( K$3,Mortality!$B$6:$F$6,0)) -> 0.348 | L103: 0 | M103: 0.348 | N103: =INDEX(Myopia!$H:$H, MATCH(E103, Myopia!$A:$A, 0)) * Trend_Factor^(A103) -> 12.01979715 | O103: 0 | P103: 12.01979715 | Q103: =VLOOKUP(C103,Others!$L$10:$M$61,2) -> 0 | R103: 0 | S103: 0 | T103: 2.9e-05 | U103: 0.001001649762 | V103: 0 | W103: 0.9537305517 | X103: 2.764433409e-05 | Y103: 0.0009552901285 | Z103: 0 | AA103: 0.9527476172 | AC103: 0 | AD103: 0 | AE103: 0 | AF103: 0 | AG103: =SUMPRODUCT(AE104:AE$605, $I103:$I$604) / $I103 -> 0 | AI103: -47000 | AJ103: =IF(E103>Mat_Year,0, -SUM($AD$5:AD103)) -> -9306 | AK103: -0.257258173 | AL103: -44.89863604 | AM103: -47.34659505 | AN103: -45.15589421 | AO103: -6655.974764 | AP103: =SUMPRODUCT(AN104:AN$605, $I104:$I$605) / $I103 -> -6348.006484 | AR103: 0 | AS103: 0 | AT103: 0 | AU103: -1.944641982 | AV103: 0 | AW103: -1.944641982 | AX103: -22.29856139 | AY103: 0 | AZ103: -22.29856139 | BA103: -1.85466447 | BB103: -0.02191802446 | BC103: -1.944641982 | BD103: -0.02298135927 | BE103: -1.85466447 | BF103: -0.02191802446 | BG103: -216.2526533 | BH103: =(SUMPRODUCT(BE104:BE$605,$I103:$I$604)+SUMPRODUCT(BF104:BF$605,$I104:$I$605)) / $I103 -> -206.2467624 | BJ103: -1.85466447 | BK103: -45.17781224 | BM103: 6879.317385 | BN103: 6554.253246 | BP103: =Reserve!BX103 -> 9132.25485 | BQ103: 8700.734048 | BR103: 31.74218257 | BT103: 36.85977607 | BU103: 35.15429457 | BV103: =SUMPRODUCT(BU104:BU$605, $I104:$I$605) / $I103 -> 1689.003773 | BX103: =-BZ103*Others!$Q$43 -> -5.08518411 | BZ103: 19.86400043 | CA103: 14.77881632 | CB103: 14.77881632 | CD103: =SUMPRODUCT(BZ104:BZ$605, $I104:$I$605) / $I103 -> 2146.480801 | CE103: =SUMPRODUCT(CA104:CA$605, $I104:$I$605) / $I103 -> 1596.981716 | CF103: =SUMPRODUCT(CB104:CB$605, $I104:$I$605) / $I103 -> 1596.981716 | CH103: 37867.74515 | CI103: 173.7451505 | CK103: =NPV((1+CK$3)^(1/12)-1,$CB$6:$CB103)+$CB$5 -> 65.83886522 | CL103: =NPV((1+CL$3)^(1/12)-1,$CB$6:$CB103)+$CB$5 -> -3.41624521 | CM103: =NPV((1+CM$3)^(1/12)-1,$CB$6:$CB103)+$CB$5 -> -142.2768562 | CN103: =NPV((1+CN$3)^(1/12)-1,$CB$6:$CB103)+$CB$5 -> -142.2768562
A104: 8.25 | B104: 3 | C104: 9 | D104: 8.75 | E104: 8 | G104: =INDEX(Others!$D$11:$E$60, MATCH(C104, Others!$A$11:$A$60, 0), MATCH(G$3, Others!$D$10:$E$10, 0)) -> 0.04940317292 | H104: 0.00402655118 | I104: 0.7424080904 | K104: =INDEX(Mortality!$B$7:$F$32, MATCH( E104,Mortality!$A$7:$A$32, 0), MATCH( K$3,Mortality!$B$6:$F$6,0)) -> 0.348 | L104: 0 | M104: 0.348 | N104: =INDEX(Myopia!$H:$H, MATCH(E104, Myopia!$A:$A, 0)) * Trend_Factor^(A104) -> 12.01979715 | O104: 0 | P104: 12.01979715 | Q104: =VLOOKUP(C104,Others!$L$10:$M$61,2) -> 0 | R104: 0 | S104: 0 | T104: 2.9e-05 | U104: 0.001001649762 | V104: 0 | W104: 0.9527476172 | X104: 2.761584327e-05 | Y104: 0.0009543055867 | Z104: 0 | AA104: 0.9517656958 | AC104: 0 | AD104: 0 | AE104: 0 | AF104: 0 | AG104: =SUMPRODUCT(AE105:AE$605, $I104:$I$604) / $I104 -> 0 | AI104: -47000 | AJ104: =IF(E104>Mat_Year,0, -SUM($AD$5:AD104)) -> -9306 | AK104: -0.2569930374 | AL104: -44.85236258 | AM104: -47.34659505 | AN104: -45.10935561 | AO104: -6642.323305 | AP104: =SUMPRODUCT(AN105:AN$605, $I105:$I$605) / $I104 -> -6328.457701 | AR104: 0 | AS104: 0 | AT104: 0 | AU104: -1.946816283 | AV104: 0 | AW104: -1.946816283 | AX104: -22.32349338 | AY104: 0 | AZ104: -22.32349338 | BA104: -1.854824575 | BB104: -0.02191991654 | BC104: -1.946816283 | BD104: -0.0230070547 | BE104: -1.854824575 | BF104: -0.02191991654 | BG104: -215.3697462 | BH104: =(SUMPRODUCT(BE105:BE$605,$I104:$I$604)+SUMPRODUCT(BF105:BF$605,$I105:$I$605)) / $I104 -> -205.1930125 | BJ104: -1.854824575 | BK104: -45.13127553 | BM104: 6864.768023 | BN104: 6533.650714 | BP104: =Reserve!BX104 -> 9108.275538 | BQ104: 8668.944205 | BR104: 31.78984241 | BT104: 36.76365258 | BU104: 35.0264824 | BV104: =SUMPRODUCT(BU105:BU$605, $I105:$I$605) / $I104 -> 1660.778151 | BX104: =-BZ104*Others!$Q$43 -> -5.076537525 | BZ104: 19.83022471 | CA104: 14.75368718 | CB104: 14.75368718 | CD104: =SUMPRODUCT(BZ105:BZ$605, $I105:$I$605) / $I104 -> 2135.293492 | CE104: =SUMPRODUCT(CA105:CA$605, $I105:$I$605) / $I104 -> 1588.658358 | CF104: =SUMPRODUCT(CB105:CB$605, $I105:$I$605) / $I104 -> 1588.658358 | CH104: 37891.72446 | CI104: 197.7244615 | CK104: =NPV((1+CK$3)^(1/12)-1,$CB$6:$CB104)+$CB$5 -> 77.39981374 | CL104: =NPV((1+CL$3)^(1/12)-1,$CB$6:$CB104)+$CB$5 -> 6.448567713 | CM104: =NPV((1+CM$3)^(1/12)-1,$CB$6:$CB104)+$CB$5 -> -135.5562118 | CN104: =NPV((1+CN$3)^(1/12)-1,$CB$6:$CB104)+$CB$5 -> -135.5562118
A105: 8.333333333 | B105: 4 | C105: 9 | D105: 8.833333333 | E105: 8 | G105: =INDEX(Others!$D$11:$E$60, MATCH(C105, Others!$A$11:$A$60, 0), MATCH(G$3, Others!$D$10:$E$10, 0)) -> 0.04940317292 | H105: 0.00402655118 | I105: 0.7394307347 | K105: =INDEX(Mortality!$B$7:$F$32, MATCH( E105,Mortality!$A$7:$A$32, 0), MATCH( K$3,Mortality!$B$6:$F$6,0)) -> 0.348 | L105: 0 | M105: 0.348 | N105: =INDEX(Myopia!$H:$H, MATCH(E105, Myopia!$A:$A, 0)) * Trend_Factor^(A105) -> 12.01979715 | O105: 0 | P105: 12.01979715 | Q105: =VLOOKUP(C105,Others!$L$10:$M$61,2) -> 0 | R105: 0 | S105: 0 | T105: 2.9e-05 | U105: 0.001001649762 | V105: 0 | W105: 0.9517656958 | X105: 2.758738181e-05 | Y105: 0.0009533220596 | Z105: 0 | AA105: 0.9507847863 | AC105: 0 | AD105: 0 | AE105: 0 | AF105: 0 | AG105: =SUMPRODUCT(AE106:AE$605, $I105:$I$604) / $I105 -> 0 | AI105: -47000 | AJ105: =IF(E105>Mat_Year,0, -SUM($AD$5:AD105)) -> -9306 | AK105: -0.2567281751 | AL105: -44.8061368 | AM105: -47.34659505 | AN105: -45.06286498 | AO105: -6628.602736 | AP105: =SUMPRODUCT(AN106:AN$605, $I106:$I$605) / $I105 -> -6308.876695 | AR105: 0 | AS105: 0 | AT105: 0 | AU105: -1.948993015 | AV105: 0 | AW105: -1.948993015 | AX105: -22.34845324 | AY105: 0 | AZ105: -22.34845324 | BA105: -1.854984693 | BB105: -0.02192180879 | BC105: -1.948993015 | BD105: -0.02303277885 | BE105: -1.854984693 | BF105: -0.02192180879 | BG105: -214.4801581 | BH105: =(SUMPRODUCT(BE106:BE$605,$I105:$I$604)+SUMPRODUCT(BF106:BF$605,$I106:$I$605)) / $I105 -> -204.1348569 | BJ105: -1.854984693 | BK105: -45.08478679 | BM105: 6850.142793 | BN105: 6513.011552 | BP105: =Reserve!BX105 -> 9084.186667 | BQ105: 8637.106479 | BR105: 31.83772574 | BT105: 36.6670899 | BU105: 34.89847833 | BV105: =SUMPRODUCT(BU106:BU$605, $I106:$I$605) / $I105 -> 1632.566881 | BX105: =-BZ105*Others!$Q$43 -> -5.067886741 | BZ105: 19.79643258 | CA105: 14.72854584 | CB105: 14.72854584 | CD105: =SUMPRODUCT(BZ106:BZ$605, $I106:$I$605) / $I105 -> 2124.094927 | CE105: =SUMPRODUCT(CA106:CA$605, $I106:$I$605) / $I105 -> 1580.326626 | CF105: =SUMPRODUCT(CB106:CB$605, $I106:$I$605) / $I105 -> 1580.326626 | CH105: 37915.81333 | CI105: 221.8133328 | CK105: =NPV((1+CK$3)^(1/12)-1,$CB$6:$CB105)+$CB$5 -> 88.91266777 | CL105: =NPV((1+CL$3)^(1/12)-1,$CB$6:$CB105)+$CB$5 -> 16.2566111 | CM105: =NPV((1+CM$3)^(1/12)-1,$CB$6:$CB105)+$CB$5 -> -128.9000966 | CN105: =NPV((1+CN$3)^(1/12)-1,$CB$6:$CB105)+$CB$5 -> -128.9000966
A106: 8.416666667 | B106: 5 | C106: 9 | D106: 8.916666667 | E106: 8 | G106: =INDEX(Others!$D$11:$E$60, MATCH(C106, Others!$A$11:$A$60, 0), MATCH(G$3, Others!$D$10:$E$10, 0)) -> 0.04940317292 | H106: 0.00402655118 | I106: 0.7364653194 | K106: =INDEX(Mortality!$B$7:$F$32, MATCH( E106,Mortality!$A$7:$A$32, 0), MATCH( K$3,Mortality!$B$6:$F$6,0)) -> 0.348 | L106: 0 | M106: 0.348 | N106: =INDEX(Myopia!$H:$H, MATCH(E106, Myopia!$A:$A, 0)) * Trend_Factor^(A106) -> 12.01979715 | O106: 0 | P106: 12.01979715 | Q106: =VLOOKUP(C106,Others!$L$10:$M$61,2) -> 0 | R106: 0 | S106: 0 | T106: 2.9e-05 | U106: 0.001001649762 | V106: 0 | W106: 0.9507847863 | X106: 2.755894968e-05 | Y106: 0.0009523395462 | Z106: 0 | AA106: 0.9498048878 | AC106: 0 | AD106: 0 | AE106: 0 | AF106: 0 | AG106: =SUMPRODUCT(AE107:AE$605, $I106:$I$604) / $I106 -> 0 | AI106: -47000 | AJ106: =IF(E106>Mat_Year,0, -SUM($AD$5:AD106)) -> -9306 | AK106: -0.2564635857 | AL106: -44.75995867 | AM106: -47.34659505 | AN106: -45.01642226 | AO106: -6614.812708 | AP106: =SUMPRODUCT(AN107:AN$605, $I107:$I$605) / $I106 -> -6289.263288 | AR106: 0 | AS106: 0 | AT106: 0 | AU106: -1.951172182 | AV106: 0 | AW106: -1.951172182 | AX106: -22.37344102 | AY106: 0 | AZ106: -22.37344102 | BA106: -1.855144826 | BB106: -0.0219237012 | BC106: -1.951172182 | BD106: -0.02305853177 | BE106: -1.855144826 | BF106: -0.0219237012 | BG106: -213.583853 | BH106: =(SUMPRODUCT(BE107:BE$605,$I106:$I$604)+SUMPRODUCT(BF107:BF$605,$I107:$I$605)) / $I106 -> -203.072278 | BJ106: -1.855144826 | BK106: -45.03834596 | BM106: 6835.441309 | BN106: 6492.335566 | BP106: =Reserve!BX106 -> 9059.987747 | BQ106: 8605.220646 | BR106: 31.88583323 | BT106: 36.57008605 | BU106: 34.77028145 | BV106: =SUMPRODUCT(BU107:BU$605, $I107:$I$605) / $I106 -> 1604.370214 | BX106: =-BZ106*Others!$Q$43 -> -5.059231717 | BZ106: 19.76262389 | CA106: 14.70339218 | CB106: 14.70339218 | CD106: =SUMPRODUCT(BZ107:BZ$605, $I107:$I$605) / $I106 -> 2112.88508 | CE106: =SUMPRODUCT(CA107:CA$605, $I107:$I$605) / $I106 -> 1571.9865 | CF106: =SUMPRODUCT(CB107:CB$605, $I107:$I$605) / $I106 -> 1571.9865 | CH106: 37940.01225 | CI106: 246.0122526 | CK106: =NPV((1+CK$3)^(1/12)-1,$CB$6:$CB106)+$CB$5 -> 100.3775844 | CL106: =NPV((1+CL$3)^(1/12)-1,$CB$6:$CB106)+$CB$5 -> 26.00817507 | CM106: =NPV((1+CM$3)^(1/12)-1,$CB$6:$CB106)+$CB$5 -> -122.3079159 | CN106: =NPV((1+CN$3)^(1/12)-1,$CB$6:$CB106)+$CB$5 -> -122.3079159
A107: 8.5 | B107: 6 | C107: 9 | D107: 9 | E107: 9 | G107: =INDEX(Others!$D$11:$E$60, MATCH(C107, Others!$A$11:$A$60, 0), MATCH(G$3, Others!$D$10:$E$10, 0)) -> 0.04940317292 | H107: 0.00402655118 | I107: 0.7335117966 | K107: =INDEX(Mortality!$B$7:$F$32, MATCH( E107,Mortality!$A$7:$A$32, 0), MATCH( K$3,Mortality!$B$6:$F$6,0)) -> 0.351 | L107: 0 | M107: 0.351 | N107: =INDEX(Myopia!$H:$H, MATCH(E107, Myopia!$A:$A, 0)) * Trend_Factor^(A107) -> 11.87703757 | O107: 0 | P107: 11.87703757 | Q107: =VLOOKUP(C107,Others!$L$10:$M$61,2) -> 0 | R107: 0 | S107: 0 | T107: 2.925e-05 | U107: 0.0009897531305 | V107: 0 | W107: 0.9498048878 | X107: 2.776804441e-05 | Y107: 0.0009400586126 | Z107: 0 | AA107: 0.9488370612 | AC107: 0 | AD107: 0 | AE107: 0 | AF107: 0 | AG107: =SUMPRODUCT(AE108:AE$605, $I107:$I$604) / $I107 -> 0 | AI107: -47000 | AJ107: =IF(E107>Mat_Year,0, -SUM($AD$5:AD107)) -> -9306 | AK107: -0.2584094213 | AL107: -44.18275479 | AM107: -46.7897826 | AN107: -44.44116421 | AO107: -6601.509683 | AP107: =SUMPRODUCT(AN108:AN$605, $I108:$I$605) / $I107 -> -6270.146164 | AR107: 0 | AS107: 0 | AT107: 0 | AU107: -1.953353784 | AV107: 0 | AW107: -1.953353784 | AX107: -22.39845673 | AY107: 0 | AZ107: -22.39845673 | BA107: -1.855304972 | BB107: -0.0216778235 | BC107: -1.953353784 | BD107: -0.02282344908 | BE107: -1.855304972 | BF107: -0.0216778235 | BG107: -212.6810551 | BH107: =(SUMPRODUCT(BE108:BE$605,$I107:$I$604)+SUMPRODUCT(BF108:BF$605,$I108:$I$605)) / $I107 -> -202.0055057 | BJ107: -1.855304972 | BK107: -44.46284204 | BM107: 6821.141305 | BN107: 6472.15167 | BP107: =Reserve!BX107 -> 9036.266532 | BQ107: 8573.944581 | BR107: 31.27606564 | BT107: 36.47263907 | BU107: 34.64189087 | BV107: =SUMPRODUCT(BU108:BU$605, $I108:$I$605) / $I107 -> 1576.188402 | BX107: =-BZ107*Others!$Q$43 -> -5.017551232 | BZ107: 19.5998095 | CA107: 14.58225827 | CB107: 14.58225827 | CD107: =SUMPRODUCT(BZ108:BZ$605, $I108:$I$605) / $I107 -> 2101.792911 | CE107: =SUMPRODUCT(CA108:CA$605, $I108:$I$605) / $I107 -> 1563.733926 | CF107: =SUMPRODUCT(CB108:CB$605, $I108:$I$605) / $I107 -> 1563.733926 | CH107: 37963.73347 | CI107: 269.7334677 | CK107: =NPV((1+CK$3)^(1/12)-1,$CB$6:$CB107)+$CB$5 -> 111.7200736 | CL107: =NPV((1+CL$3)^(1/12)-1,$CB$6:$CB107)+$CB$5 -> 35.64015888 | CM107: =NPV((1+CM$3)^(1/12)-1,$CB$6:$CB107)+$CB$5 -> -115.8217663 | CN107: =NPV((1+CN$3)^(1/12)-1,$CB$6:$CB107)+$CB$5 -> -115.8217663
A108: 8.583333333 | B108: 7 | C108: 9 | D108: 9.083333333 | E108: 9 | G108: =INDEX(Others!$D$11:$E$60, MATCH(C108, Others!$A$11:$A$60, 0), MATCH(G$3, Others!$D$10:$E$10, 0)) -> 0.04940317292 | H108: 0.00402655118 | I108: 0.7305701186 | K108: =INDEX(Mortality!$B$7:$F$32, MATCH( E108,Mortality!$A$7:$A$32, 0), MATCH( K$3,Mortality!$B$6:$F$6,0)) -> 0.351 | L108: 0 | M108: 0.351 | N108: =INDEX(Myopia!$H:$H, MATCH(E108, Myopia!$A:$A, 0)) * Trend_Factor^(A108) -> 11.87703757 | O108: 0 | P108: 11.87703757 | Q108: =VLOOKUP(C108,Others!$L$10:$M$61,2) -> 0 | R108: 0 | S108: 0 | T108: 2.925e-05 | U108: 0.0009897531305 | V108: 0 | W108: 0.9488370612 | X108: 2.773974949e-05 | Y108: 0.0009391007171 | Z108: 0 | AA108: 0.9478702207 | AC108: 0 | AD108: 0 | AE108: 0 | AF108: 0 | AG108: =SUMPRODUCT(AE109:AE$605, $I108:$I$604) / $I108 -> 0 | AI108: -47000 | AJ108: =IF(E108>Mat_Year,0, -SUM($AD$5:AD108)) -> -9306 | AK108: -0.2581461088 | AL108: -44.1377337 | AM108: -46.7897826 | AN108: -44.39587981 | AO108: -6588.06196 | AP108: =SUMPRODUCT(AN109:AN$605, $I109:$I$605) / $I108 -> -6250.997349 | AR108: 0 | AS108: 0 | AT108: 0 | AU108: -1.955537826 | AV108: 0 | AW108: -1.955537826 | AX108: -22.42350041 | AY108: 0 | AZ108: -22.42350041 | BA108: -1.855486764 | BB108: -0.0216799476 | BC108: -1.955537826 | BD108: -0.02284896795 | BE108: -1.855486764 | BF108: -0.0216799476 | BG108: -211.7689764 | BH108: =(SUMPRODUCT(BE109:BE$605,$I108:$I$604)+SUMPRODUCT(BF109:BF$605,$I109:$I$605)) / $I108 -> -200.9342533 | BJ108: -1.855486764 | BK108: -44.41755976 | BM108: 6806.766856 | BN108: 6451.931602 | BP108: =Reserve!BX108 -> 9012.437223 | BQ108: 8542.62086 | BR108: 31.3237206 | BT108: 36.37711559 | BU108: 34.51595545 | BV108: =SUMPRODUCT(BU109:BU$605, $I109:$I$605) / $I108 -> 1548.019049 | BX108: =-BZ108*Others!$Q$43 -> -5.009057161 | BZ108: 19.56662953 | CA108: 14.55757237 | CB108: 14.55757237 | CD108: =SUMPRODUCT(BZ109:BZ$605, $I109:$I$605) / $I108 -> 2090.689258 | CE108: =SUMPRODUCT(CA109:CA$605, $I109:$I$605) / $I108 -> 1555.472808 | CF108: =SUMPRODUCT(CB109:CB$605, $I109:$I$605) / $I108 -> 1555.472808 | CH108: 37987.56278 | CI108: 293.5627768 | CK108: =NPV((1+CK$3)^(1/12)-1,$CB$6:$CB108)+$CB$5 -> 123.0155039 | CL108: =NPV((1+CL$3)^(1/12)-1,$CB$6:$CB108)+$CB$5 -> 45.21682046 | CM108: =NPV((1+CM$3)^(1/12)-1,$CB$6:$CB108)+$CB$5 -> -109.3978223 | CN108: =NPV((1+CN$3)^(1/12)-1,$CB$6:$CB108)+$CB$5 -> -109.3978223
A109: 8.666666667 | B109: 8 | C109: 9 | D109: 9.166666667 | E109: 9 | G109: =INDEX(Others!$D$11:$E$60, MATCH(C109, Others!$A$11:$A$60, 0), MATCH(G$3, Others!$D$10:$E$10, 0)) -> 0.04940317292 | H109: 0.00402655118 | I109: 0.727640238 | K109: =INDEX(Mortality!$B$7:$F$32, MATCH( E109,Mortality!$A$7:$A$32, 0), MATCH( K$3,Mortality!$B$6:$F$6,0)) -> 0.351 | L109: 0 | M109: 0.351 | N109: =INDEX(Myopia!$H:$H, MATCH(E109, Myopia!$A:$A, 0)) * Trend_Factor^(A109) -> 11.87703757 | O109: 0 | P109: 11.87703757 | Q109: =VLOOKUP(C109,Others!$L$10:$M$61,2) -> 0 | R109: 0 | S109: 0 | T109: 2.925e-05 | U109: 0.0009897531305 | V109: 0 | W109: 0.9478702207 | X109: 2.77114834e-05 | Y109: 0.0009381437977 | Z109: 0 | AA109: 0.9469043654 | AC109: 0 | AD109: 0 | AE109: 0 | AF109: 0 | AG109: =SUMPRODUCT(AE110:AE$605, $I109:$I$604) / $I109 -> 0 | AI109: -47000 | AJ109: =IF(E109>Mat_Year,0, -SUM($AD$5:AD109)) -> -9306 | AK109: -0.2578830645 | AL109: -44.09275849 | AM109: -46.7897826 | AN109: -44.35064156 | AO109: -6574.546316 | AP109: =SUMPRODUCT(AN110:AN$605, $I110:$I$605) / $I109 -> -6231.816668 | AR109: 0 | AS109: 0 | AT109: 0 | AU109: -1.95772431 | AV109: 0 | AW109: -1.95772431 | AX109: -22.44857209 | AY109: 0 | AZ109: -22.44857209 | BA109: -1.855668574 | BB109: -0.02168207191 | BC109: -1.95772431 | BD109: -0.02287451534 | BE109: -1.855668574 | BF109: -0.02168207191 | BG109: -210.8500704 | BH109: =(SUMPRODUCT(BE110:BE$605,$I109:$I$604)+SUMPRODUCT(BF110:BF$605,$I110:$I$605)) / $I109 -> -199.8585027 | BJ109: -1.855668574 | BK109: -44.37232363 | BM109: 6792.317583 | BN109: 6431.675171 | BP109: =Reserve!BX109 -> 8988.49934 | BQ109: 8511.249263 | BR109: 31.37159655 | BT109: 36.28115686 | BU109: 34.38982816 | BV109: =SUMPRODUCT(BU110:BU$605, $I110:$I$605) / $I109 -> 1519.862399 | BX109: =-BZ109*Others!$Q$43 -> -5.000558722 | BZ109: 19.53343251 | CA109: 14.53287379 | CB109: 14.53287379 | CD109: =SUMPRODUCT(BZ110:BZ$605, $I110:$I$605) / $I109 -> 2079.574093 | CE109: =SUMPRODUCT(CA110:CA$605, $I110:$I$605) / $I109 -> 1547.203125 | CF109: =SUMPRODUCT(CB110:CB$605, $I110:$I$605) / $I109 -> 1547.203125 | CH109: 38011.50066 | CI109: 317.5006604 | CK109: =NPV((1+CK$3)^(1/12)-1,$CB$6:$CB109)+$CB$5 -> 134.2640283 | CL109: =NPV((1+CL$3)^(1/12)-1,$CB$6:$CB109)+$CB$5 -> 54.73844188 | CM109: =NPV((1+CM$3)^(1/12)-1,$CB$6:$CB109)+$CB$5 -> -103.0355113 | CN109: =NPV((1+CN$3)^(1/12)-1,$CB$6:$CB109)+$CB$5 -> -103.0355113
A110: 8.75 | B110: 9 | C110: 9 | D110: 9.25 | E110: 9 | G110: =INDEX(Others!$D$11:$E$60, MATCH(C110, Others!$A$11:$A$60, 0), MATCH(G$3, Others!$D$10:$E$10, 0)) -> 0.04940317292 | H110: 0.00402655118 | I110: 0.7247221073 | K110: =INDEX(Mortality!$B$7:$F$32, MATCH( E110,Mortality!$A$7:$A$32, 0), MATCH( K$3,Mortality!$B$6:$F$6,0)) -> 0.351 | L110: 0 | M110: 0.351 | N110: =INDEX(Myopia!$H:$H, MATCH(E110, Myopia!$A:$A, 0)) * Trend_Factor^(A110) -> 11.87703757 | O110: 0 | P110: 11.87703757 | Q110: =VLOOKUP(C110,Others!$L$10:$M$61,2) -> 0 | R110: 0 | S110: 0 | T110: 2.925e-05 | U110: 0.0009897531305 | V110: 0 | W110: 0.9469043654 | X110: 2.768324612e-05 | Y110: 0.0009371878534 | Z110: 0 | AA110: 0.9459394943 | AC110: 0 | AD110: 0 | AE110: 0 | AF110: 0 | AG110: =SUMPRODUCT(AE111:AE$605, $I110:$I$604) / $I110 -> 0 | AI110: -47000 | AJ110: =IF(E110>Mat_Year,0, -SUM($AD$5:AD110)) -> -9306 | AK110: -0.2576202884 | AL110: -44.04782911 | AM110: -46.7897826 | AN110: -44.3054494 | AO110: -6560.96241 | AP110: =SUMPRODUCT(AN111:AN$605, $I111:$I$605) / $I110 -> -6212.603947 | AR110: 0 | AS110: 0 | AT110: 0 | AU110: -1.959913239 | AV110: 0 | AW110: -1.959913239 | AX110: -22.47367181 | AY110: 0 | AZ110: -22.47367181 | BA110: -1.855850402 | BB110: -0.02168419643 | BC110: -1.959913239 | BD110: -0.02290009131 | BE110: -1.855850402 | BF110: -0.02168419643 | BG110: -209.9242998 | BH110: =(SUMPRODUCT(BE111:BE$605,$I110:$I$604)+SUMPRODUCT(BF111:BF$605,$I111:$I$605)) / $I110 -> -198.7782359 | BJ110: -1.855850402 | BK110: -44.3271336 | BM110: 6777.793106 | BN110: 6411.382183 | BP110: =Reserve!BX110 -> 8964.452399 | BQ110: 8479.829569 | BR110: 31.41969416 | BT110: 36.18476093 | BU110: 34.26350809 | BV110: =SUMPRODUCT(BU111:BU$605, $I111:$I$605) / $I110 -> 1491.718695 | BX110: =-BZ110*Others!$Q$43 -> -4.992055873 | BZ110: 19.50021825 | CA110: 14.50816238 | CB110: 14.50816238 | CD110: =SUMPRODUCT(BZ111:BZ$605, $I111:$I$605) / $I110 -> 2068.447386 | CE110: =SUMPRODUCT(CA111:CA$605, $I111:$I$605) / $I110 -> 1538.924855 | CF110: =SUMPRODUCT(CB111:CB$605, $I111:$I$605) / $I110 -> 1538.924855 | CH110: 38035.5476 | CI110: 341.547601 | CK110: =NPV((1+CK$3)^(1/12)-1,$CB$6:$CB110)+$CB$5 -> 145.4657993 | CL110: =NPV((1+CL$3)^(1/12)-1,$CB$6:$CB110)+$CB$5 -> 64.20530376 | CM110: =NPV((1+CM$3)^(1/12)-1,$CB$6:$CB110)+$CB$5 -> -96.73426559 | CN110: =NPV((1+CN$3)^(1/12)-1,$CB$6:$CB110)+$CB$5 -> -96.73426559
A111: 8.833333333 | B111: 10 | C111: 9 | D111: 9.333333333 | E111: 9 | G111: =INDEX(Others!$D$11:$E$60, MATCH(C111, Others!$A$11:$A$60, 0), MATCH(G$3, Others!$D$10:$E$10, 0)) -> 0.04940317292 | H111: 0.00402655118 | I111: 0.7218156796 | K111: =INDEX(Mortality!$B$7:$F$32, MATCH( E111,Mortality!$A$7:$A$32, 0), MATCH( K$3,Mortality!$B$6:$F$6,0)) -> 0.351 | L111: 0 | M111: 0.351 | N111: =INDEX(Myopia!$H:$H, MATCH(E111, Myopia!$A:$A, 0)) * Trend_Factor^(A111) -> 11.87703757 | O111: 0 | P111: 11.87703757 | Q111: =VLOOKUP(C111,Others!$L$10:$M$61,2) -> 0 | R111: 0 | S111: 0 | T111: 2.925e-05 | U111: 0.0009897531305 | V111: 0 | W111: 0.9459394943 | X111: 2.76550376e-05 | Y111: 0.0009362328832 | Z111: 0 | AA111: 0.9449756064 | AC111: 0 | AD111: 0 | AE111: 0 | AF111: 0 | AG111: =SUMPRODUCT(AE112:AE$605, $I111:$I$604) / $I111 -> 0 | AI111: -47000 | AJ111: =IF(E111>Mat_Year,0, -SUM($AD$5:AD111)) -> -9306 | AK111: -0.2573577799 | AL111: -44.00294551 | AM111: -46.7897826 | AN111: -44.26030329 | AO111: -6547.309895 | AP111: =SUMPRODUCT(AN112:AN$605, $I112:$I$605) / $I111 -> -6193.359012 | AR111: 0 | AS111: 0 | AT111: 0 | AU111: -1.962104615 | AV111: 0 | AW111: -1.962104615 | AX111: -22.49879959 | AY111: 0 | AZ111: -22.49879959 | BA111: -1.856032247 | BB111: -0.02168632115 | BC111: -1.962104615 | BD111: -0.02292569586 | BE111: -1.856032247 | BF111: -0.02168632115 | BG111: -208.9916278 | BH111: =(SUMPRODUCT(BE112:BE$605,$I111:$I$604)+SUMPRODUCT(BF112:BF$605,$I112:$I$605)) / $I111 -> -197.6934347 | BJ111: -1.856032247 | BK111: -44.28198961 | BM111: 6763.193042 | BN111: 6391.052446 | BP111: =Reserve!BX111 -> 8940.295916 | BQ111: 8448.361555 | BR111: 31.46801412 | BT111: 36.08792587 | BU111: 34.13699435 | BV111: =SUMPRODUCT(BU112:BU$605, $I112:$I$605) / $I111 -> 1463.588182 | BX111: =-BZ111*Others!$Q$43 -> -4.983548572 | BZ111: 19.46698661 | CA111: 14.48343804 | CB111: 14.48343804 | CD111: =SUMPRODUCT(BZ112:BZ$605, $I112:$I$605) / $I111 -> 2057.309109 | CE111: =SUMPRODUCT(CA112:CA$605, $I112:$I$605) / $I111 -> 1530.637977 | CF111: =SUMPRODUCT(CB112:CB$605, $I112:$I$605) / $I111 -> 1530.637977 | CH111: 38059.70408 | CI111: 365.7040836 | CK111: =NPV((1+CK$3)^(1/12)-1,$CB$6:$CB111)+$CB$5 -> 156.620969 | CL111: =NPV((1+CL$3)^(1/12)-1,$CB$6:$CB111)+$CB$5 -> 73.61768531 | CM111: =NPV((1+CM$3)^(1/12)-1,$CB$6:$CB111)+$CB$5 -> -90.49352285 | CN111: =NPV((1+CN$3)^(1/12)-1,$CB$6:$CB111)+$CB$5 -> -90.49352285
A112: 8.916666667 | B112: 11 | C112: 9 | D112: 9.416666667 | E112: 9 | G112: =INDEX(Others!$D$11:$E$60, MATCH(C112, Others!$A$11:$A$60, 0), MATCH(G$3, Others!$D$10:$E$10, 0)) -> 0.04940317292 | H112: 0.00402655118 | I112: 0.7189209077 | K112: =INDEX(Mortality!$B$7:$F$32, MATCH( E112,Mortality!$A$7:$A$32, 0), MATCH( K$3,Mortality!$B$6:$F$6,0)) -> 0.351 | L112: 0 | M112: 0.351 | N112: =INDEX(Myopia!$H:$H, MATCH(E112, Myopia!$A:$A, 0)) * Trend_Factor^(A112) -> 11.87703757 | O112: 0 | P112: 11.87703757 | Q112: =VLOOKUP(C112,Others!$L$10:$M$61,2) -> 0 | R112: 0 | S112: 0 | T112: 2.925e-05 | U112: 0.0009897531305 | V112: 0 | W112: 0.9449756064 | X112: 2.762685783e-05 | Y112: 0.0009352788861 | Z112: 0 | AA112: 0.9440127007 | AC112: 0 | AD112: 0 | AE112: 0 | AF112: 0 | AG112: =SUMPRODUCT(AE113:AE$605, $I112:$I$604) / $I112 -> 0 | AI112: -47000 | AJ112: =IF(E112>Mat_Year,0, -SUM($AD$5:AD112)) -> -9306 | AK112: -0.257095539 | AL112: -43.95810764 | AM112: -46.7897826 | AN112: -44.21520318 | AO112: -6533.588427 | AP112: =SUMPRODUCT(AN113:AN$605, $I113:$I$605) / $I112 -> -6174.081685 | AR112: 0 | AS112: 0 | AT112: 0 | AU112: -1.964298441 | AV112: 0 | AW112: -1.964298441 | AX112: -22.52395546 | AY112: 0 | AZ112: -22.52395546 | BA112: -1.856214111 | BB112: -0.02168844609 | BC112: -1.964298441 | BD112: -0.02295132905 | BE112: -1.856214111 | BF112: -0.02168844609 | BG112: -208.0520168 | BH112: =(SUMPRODUCT(BE113:BE$605,$I112:$I$604)+SUMPRODUCT(BF113:BF$605,$I113:$I$605)) / $I112 -> -196.6040807 | BJ112: -1.856214111 | BK112: -44.23689163 | BM112: 6748.517008 | BN112: 6370.685766 | BP112: =Reserve!BX112 -> 8916.029405 | BQ112: 8416.844998 | BR112: 31.5165571 | BT112: 35.99064972 | BU112: 34.01028605 | BV112: =SUMPRODUCT(BU113:BU$605, $I113:$I$605) / $I112 -> 1435.471109 | BX112: =-BZ112*Others!$Q$43 -> -4.975036777 | BZ112: 19.43373741 | CA112: 14.45870063 | CB112: 14.45870063 | CD112: =SUMPRODUCT(BZ113:BZ$605, $I113:$I$605) / $I112 -> 2046.159232 | CE112: =SUMPRODUCT(CA113:CA$605, $I113:$I$605) / $I112 -> 1522.342468 | CF112: =SUMPRODUCT(CB113:CB$605, $I113:$I$605) / $I112 -> 1522.342468 | CH112: 38083.97059 | CI112: 389.9705948 | CK112: =NPV((1+CK$3)^(1/12)-1,$CB$6:$CB112)+$CB$5 -> 167.7296888 | CL112: =NPV((1+CL$3)^(1/12)-1,$CB$6:$CB112)+$CB$5 -> 82.97586434 | CM112: =NPV((1+CM$3)^(1/12)-1,$CB$6:$CB112)+$CB$5 -> -84.31272571 | CN112: =NPV((1+CN$3)^(1/12)-1,$CB$6:$CB112)+$CB$5 -> -84.31272571
A113: 9 | B113: 12 | C113: 9 | D113: 9.5 | E113: 9 | G113: =INDEX(Others!$D$11:$E$60, MATCH(C113, Others!$A$11:$A$60, 0), MATCH(G$3, Others!$D$10:$E$10, 0)) -> 0.04940317292 | H113: 0.00402655118 | I113: 0.7160377451 | K113: =INDEX(Mortality!$B$7:$F$32, MATCH( E113,Mortality!$A$7:$A$32, 0), MATCH( K$3,Mortality!$B$6:$F$6,0)) -> 0.351 | L113: 0 | M113: 0.351 | N113: =INDEX(Myopia!$H:$H, MATCH(E113, Myopia!$A:$A, 0)) * Trend_Factor^(A113) -> 11.87703757 | O113: 0 | P113: 11.87703757 | Q113: =VLOOKUP(C113,Others!$L$10:$M$61,2) -> 0 | R113: 0 | S113: 0 | T113: 2.925e-05 | U113: 0.0009897531305 | V113: 0 | W113: 0.9440127007 | X113: 2.759870678e-05 | Y113: 0.000934325861 | Z113: 0 | AA113: 0.9430507761 | AC113: 0 | AD113: 0 | AE113: 0 | AF113: 0 | AG113: =SUMPRODUCT(AE114:AE$605, $I113:$I$604) / $I113 -> 0 | AI113: -47000 | AJ113: =IF(E113>Mat_Year,0, -SUM($AD$5:AD113)) -> -9306 | AK113: -0.2568335653 | AL113: -43.91331547 | AM113: -46.7897826 | AN113: -44.17014903 | AO113: -6519.797655 | AP113: =SUMPRODUCT(AN114:AN$605, $I114:$I$605) / $I113 -> -6154.771792 | AR113: 0 | AS113: 0 | AT113: 0 | AU113: -1.96649472 | AV113: 0 | AW113: -1.96649472 | AX113: -22.54913946 | AY113: 0 | AZ113: -22.54913946 | BA113: -1.856395992 | BB113: -0.02169057123 | BC113: -1.96649472 | BD113: -0.0229769909 | BE113: -1.856395992 | BF113: -0.02169057123 | BG113: -207.1054294 | BH113: =(SUMPRODUCT(BE114:BE$605,$I113:$I$604)+SUMPRODUCT(BF114:BF$605,$I114:$I$605)) / $I113 -> -195.5101557 | BJ113: -1.856395992 | BK113: -44.1918396 | BM113: 6733.764617 | BN113: 6350.281948 | BP113: =Reserve!BX113 -> 8891.652376 | BQ113: 8385.279674 | BR113: 31.5653238 | BT113: 35.89293053 | BU113: 33.88338228 | BV113: =SUMPRODUCT(BU114:BU$605, $I114:$I$605) / $I113 -> 1407.367724 | BX113: =-BZ113*Others!$Q$43 -> -4.966520445 | BZ113: 19.40047049 | CA113: 14.43395004 | CB113: 14.43395004 | CD113: =SUMPRODUCT(BZ114:BZ$605, $I114:$I$605) / $I113 -> 2034.997726 | CE113: =SUMPRODUCT(CA114:CA$605, $I114:$I$605) / $I113 -> 1514.038308 | CF113: =SUMPRODUCT(CB114:CB$605, $I114:$I$605) / $I113 -> 1514.038308 | CH113: 38108.34762 | CI113: 414.3476238 | CK113: =NPV((1+CK$3)^(1/12)-1,$CB$6:$CB113)+$CB$5 -> 178.7921096 | CL113: =NPV((1+CL$3)^(1/12)-1,$CB$6:$CB113)+$CB$5 -> 92.28011723 | CM113: =NPV((1+CM$3)^(1/12)-1,$CB$6:$CB113)+$CB$5 -> -78.19132187 | CN113: =NPV((1+CN$3)^(1/12)-1,$CB$6:$CB113)+$CB$5 -> -78.19132187
A114: 9.083333333 | B114: 1 | C114: 10 | D114: 9.583333333 | E114: 9 | G114: =INDEX(Others!$D$11:$E$60, MATCH(C114, Others!$A$11:$A$60, 0), MATCH(G$3, Others!$D$10:$E$10, 0)) -> 0.05230115492 | H114: 0.004257315251 | I114: 0.7130022697 | K114: =INDEX(Mortality!$B$7:$F$32, MATCH( E114,Mortality!$A$7:$A$32, 0), MATCH( K$3,Mortality!$B$6:$F$6,0)) -> 0.351 | L114: 0 | M114: 0.351 | N114: =INDEX(Myopia!$H:$H, MATCH(E114, Myopia!$A:$A, 0)) * Trend_Factor^(A114) -> 11.87703757 | O114: 0 | P114: 11.87703757 | Q114: =VLOOKUP(C114,Others!$L$10:$M$61,2) -> 0 | R114: 0 | S114: 0 | T114: 2.925e-05 | U114: 0.0009897531305 | V114: 0 | W114: 0.9430507761 | X114: 2.757058441e-05 | Y114: 0.0009333738071 | Z114: 0 | AA114: 0.9420898317 | AC114: 0 | AD114: 0 | AE114: 0 | AF114: 0 | AG114: =SUMPRODUCT(AE115:AE$605, $I114:$I$604) / $I114 -> 0 | AI114: -47000 | AJ114: =IF(E114>Mat_Year,0, -SUM($AD$5:AD114)) -> -9306 | AK114: -0.2565718585 | AL114: -43.86856893 | AM114: -46.7897826 | AN114: -44.12514079 | AO114: -6507.443301 | AP114: =SUMPRODUCT(AN115:AN$605, $I115:$I$605) / $I114 -> -6136.849455 | AR114: 0 | AS114: 0 | AT114: 0 | AU114: -1.968693455 | AV114: 0 | AW114: -1.968693455 | AX114: -22.57435162 | AY114: 0 | AZ114: -22.57435162 | BA114: -1.856577891 | BB114: -0.02169269658 | BC114: -1.968693455 | BD114: -0.02300268144 | BE114: -1.856577891 | BF114: -0.02169269658 | BG114: -206.1992147 | BH114: =(SUMPRODUCT(BE115:BE$605,$I114:$I$604)+SUMPRODUCT(BF115:BF$605,$I115:$I$605)) / $I114 -> -194.4563294 | BJ114: -1.856577891 | BK114: -44.14683349 | BM114: 6720.490522 | BN114: 6331.305785 | BP114: =Reserve!BX114 -> 8868.722152 | BQ114: 8355.13296 | BR114: 30.1467142 | BT114: 37.84618592 | BU114: 35.690875 | BV114: =SUMPRODUCT(BU115:BU$605, $I115:$I$605) / $I114 -> 1377.668458 | BX114: =-BZ114*Others!$Q$43 -> -5.077549522 | BZ114: 19.83417782 | CA114: 14.7566283 | CB114: 14.7566283 | CD114: =SUMPRODUCT(BZ115:BZ$605, $I115:$I$605) / $I114 -> 2023.827175 | CE114: =SUMPRODUCT(CA115:CA$605, $I115:$I$605) / $I114 -> 1505.727418 | CF114: =SUMPRODUCT(CB115:CB$605, $I115:$I$605) / $I114 -> 1505.727418 | CH114: 38131.27785 | CI114: 437.2778476 | CK114: =NPV((1+CK$3)^(1/12)-1,$CB$6:$CB114)+$CB$5 -> 190.0740122 | CL114: =NPV((1+CL$3)^(1/12)-1,$CB$6:$CB114)+$CB$5 -> 101.7537746 | CM114: =NPV((1+CM$3)^(1/12)-1,$CB$6:$CB114)+$CB$5 -> -71.98258033 | CN114: =NPV((1+CN$3)^(1/12)-1,$CB$6:$CB114)+$CB$5 -> -71.98258033
A115: 9.166666667 | B115: 2 | C115: 10 | D115: 9.666666667 | E115: 9 | G115: =INDEX(Others!$D$11:$E$60, MATCH(C115, Others!$A$11:$A$60, 0), MATCH(G$3, Others!$D$10:$E$10, 0)) -> 0.05230115492 | H115: 0.004257315251 | I115: 0.7099796624 | K115: =INDEX(Mortality!$B$7:$F$32, MATCH( E115,Mortality!$A$7:$A$32, 0), MATCH( K$3,Mortality!$B$6:$F$6,0)) -> 0.351 | L115: 0 | M115: 0.351 | N115: =INDEX(Myopia!$H:$H, MATCH(E115, Myopia!$A:$A, 0)) * Trend_Factor^(A115) -> 11.87703757 | O115: 0 | P115: 11.87703757 | Q115: =VLOOKUP(C115,Others!$L$10:$M$61,2) -> 0 | R115: 0 | S115: 0 | T115: 2.925e-05 | U115: 0.0009897531305 | V115: 0 | W115: 0.9420898317 | X115: 2.75424907e-05 | Y115: 0.0009324227233 | Z115: 0 | AA115: 0.9411298665 | AC115: 0 | AD115: 0 | AE115: 0 | AF115: 0 | AG115: =SUMPRODUCT(AE116:AE$605, $I115:$I$604) / $I115 -> 0 | AI115: -47000 | AJ115: =IF(E115>Mat_Year,0, -SUM($AD$5:AD115)) -> -9306 | AK115: -0.2563104184 | AL115: -43.82386799 | AM115: -46.7897826 | AN115: -44.08017841 | AO115: -6495.023695 | AP115: =SUMPRODUCT(AN116:AN$605, $I116:$I$605) / $I115 -> -6118.89578 | AR115: 0 | AS115: 0 | AT115: 0 | AU115: -1.970894648 | AV115: 0 | AW115: -1.970894648 | AX115: -22.59959197 | AY115: 0 | AZ115: -22.59959197 | BA115: -1.856759808 | BB115: -0.02169482214 | BC115: -1.970894648 | BD115: -0.0230284007 | BE115: -1.856759808 | BF115: -0.02169482214 | BG115: -205.2859774 | BH115: =(SUMPRODUCT(BE116:BE$605,$I115:$I$604)+SUMPRODUCT(BF116:BF$605,$I116:$I$605)) / $I115 -> -193.3978319 | BJ115: -1.856759808 | BK115: -44.10187323 | BM115: 6707.144079 | BN115: 6312.293612 | BP115: =Reserve!BX115 -> 8845.683203 | BQ115: 8324.936652 | BR115: 30.19630801 | BT115: 37.74855536 | BU115: 35.56253016 | BV115: =SUMPRODUCT(BU116:BU$605, $I116:$I$605) / $I115 -> 1347.971096 | BX115: =-BZ115*Others!$Q$43 -> -5.068852515 | BZ115: 19.80020513 | CA115: 14.73135262 | CB115: 14.73135262 | CD115: =SUMPRODUCT(BZ116:BZ$605, $I116:$I$605) / $I115 -> 2012.64304 | CE115: =SUMPRODUCT(CA116:CA$605, $I116:$I$605) / $I115 -> 1497.406422 | CF115: =SUMPRODUCT(CB116:CB$605, $I116:$I$605) / $I115 -> 1497.406422 | CH115: 38154.3168 | CI115: 460.3167969 | CK115: =NPV((1+CK$3)^(1/12)-1,$CB$6:$CB115)+$CB$5 -> 201.3088826 | CL115: =NPV((1+CL$3)^(1/12)-1,$CB$6:$CB115)+$CB$5 -> 111.1728307 | CM115: =NPV((1+CM$3)^(1/12)-1,$CB$6:$CB115)+$CB$5 -> -65.83350692 | CN115: =NPV((1+CN$3)^(1/12)-1,$CB$6:$CB115)+$CB$5 -> -65.83350692
A116: 9.25 | B116: 3 | C116: 10 | D116: 9.75 | E116: 9 | G116: =INDEX(Others!$D$11:$E$60, MATCH(C116, Others!$A$11:$A$60, 0), MATCH(G$3, Others!$D$10:$E$10, 0)) -> 0.05230115492 | H116: 0.004257315251 | I116: 0.7069698688 | K116: =INDEX(Mortality!$B$7:$F$32, MATCH( E116,Mortality!$A$7:$A$32, 0), MATCH( K$3,Mortality!$B$6:$F$6,0)) -> 0.351 | L116: 0 | M116: 0.351 | N116: =INDEX(Myopia!$H:$H, MATCH(E116, Myopia!$A:$A, 0)) * Trend_Factor^(A116) -> 11.87703757 | O116: 0 | P116: 11.87703757 | Q116: =VLOOKUP(C116,Others!$L$10:$M$61,2) -> 0 | R116: 0 | S116: 0 | T116: 2.925e-05 | U116: 0.0009897531305 | V116: 0 | W116: 0.9411298665 | X116: 2.751442561e-05 | Y116: 0.0009314726086 | Z116: 0 | AA116: 0.9401708795 | AC116: 0 | AD116: 0 | AE116: 0 | AF116: 0 | AG116: =SUMPRODUCT(AE117:AE$605, $I116:$I$604) / $I116 -> 0 | AI116: -47000 | AJ116: =IF(E116>Mat_Year,0, -SUM($AD$5:AD116)) -> -9306 | AK116: -0.2560492447 | AL116: -43.7792126 | AM116: -46.7897826 | AN116: -44.03526185 | AO116: -6482.538493 | AP116: =SUMPRODUCT(AN117:AN$605, $I117:$I$605) / $I116 -> -6100.910586 | AR116: 0 | AS116: 0 | AT116: 0 | AU116: -1.973098303 | AV116: 0 | AW116: -1.973098303 | AX116: -22.62486054 | AY116: 0 | AZ116: -22.62486054 | BA116: -1.856941742 | BB116: -0.02169694791 | BC116: -1.973098303 | BD116: -0.02305414872 | BE116: -1.856941742 | BF116: -0.02169694791 | BG116: -204.3656779 | BH116: =(SUMPRODUCT(BE117:BE$605,$I116:$I$604)+SUMPRODUCT(BF117:BF$605,$I117:$I$605)) / $I116 -> -192.3346432 | BJ116: -1.856941742 | BK116: -44.0569588 | BM116: 6693.724903 | BN116: 6293.245229 | BP116: =Reserve!BX116 -> 8822.535026 | BQ116: 8294.690514 | BR116: 30.24613756 | BT116: 37.6504619 | BU116: 35.43397419 | BV116: =SUMPRODUCT(BU117:BU$605, $I117:$I$605) / $I116 -> 1318.27586 | BX116: =-BZ116*Others!$Q$43 -> -5.060150069 | BZ116: 19.76621121 | CA116: 14.70606114 | CB116: 14.70606114 | CD116: =SUMPRODUCT(BZ117:BZ$605, $I117:$I$605) / $I116 -> 2001.445285 | CE116: =SUMPRODUCT(CA117:CA$605, $I117:$I$605) / $I116 -> 1489.075292 | CF116: =SUMPRODUCT(CB117:CB$605, $I117:$I$605) / $I116 -> 1489.075292 | CH116: 38177.46497 | CI116: 483.464974 | CK116: =NPV((1+CK$3)^(1/12)-1,$CB$6:$CB116)+$CB$5 -> 212.4968718 | CL116: =NPV((1+CL$3)^(1/12)-1,$CB$6:$CB116)+$CB$5 -> 120.5375626 | CM116: =NPV((1+CM$3)^(1/12)-1,$CB$6:$CB116)+$CB$5 -> -59.74355268 | CN116: =NPV((1+CN$3)^(1/12)-1,$CB$6:$CB116)+$CB$5 -> -59.74355268
